Workbook

Sheet Read This Sheet
B1: SLUOS Construction Cost Calculation Workbook
B3: Description
B4: This Excel workbook contains a costing model for the calculation of SLUOS Capital charges.
B5: This workbook is designed to take financial, technical and material inputs to calculate both CAPEX and OPEX charges applicable to assemblies relating to Streetlights. For OPEX this is achieved through a ground up approach by calcualting the forecasted level of maintenance per failure rates and calculating the cost of repairs utilising labour, plant and material rates. For CAPEX this is achieved by calculating the cost of labour, plant and materials and applying a return on investment of a period of time for the economic life of the asset. This model takes into consideration appropriate overheads, oncosts and CPI to establish the final fully loaded SLUOS charges. These charges are based on an anuual charge.
B7: A description of each of the sheets is contained below:
B9: Worksheet | C9: Function
B10: Global Inputs | C10: Contains all inputs from other major workbooks - including overheads, oncosts, pay rates.
B11: CAPEX Inputs | C11: • Contains a list of all stock and their associated costs. This data is extracted from WASP. • Models the design costs associated with streetlights. • Contains components (from stock list) used to construct larger assemblies, giving prices for each. • Models the traffic control costs associated with a streetlight construction.
B12: CAPEX - Stock Costs | C12: Contains all stock costs as per 21/22 dollars as tracked through procurement purchase prices
B13: CAPEX - Hybrid Calcs | C13: Calculates assembly costs where assembly cannot be directly calculated (i.e. insufficient data to distinguish assets)
B14: CAPEX Build Up | C14: • For the assemblies listed in the CAPEX Input (luminaire, bracket, pole) the CAPEX cost for the component is calculated. • This is then calculated as an annual cost based of a given asset lifespan.
B15: OPEX Input | C15: • For a given lamp type, this sheet contains the associated lamp, ballast/igniter and starter/PE cell cost. It also contains the failure rates for these components. • Pole maintenance costs are modelled • Small component usage (fuses, etc) are measured to be able to provide a cost per pole to account for these otherwise unrecovered costs • Bulk Works Additional Material usage is measured to pass on these costs on an average per pole basis • Streetlight Improvement Programs are listed to be able to have these costs passed on, in a per pole cost
B16: Warrenty NPV | C16: • Given that LEDs have parts and labour warranty for the first three years, the average NPV cost of maintenance is calculated across the span of the luminaire’s lifetime
B17: OPEX Calc | C17: • All luminaires and poles now have their associated costs calculated
B18: OPEX Tariff Summary | C18: • Contains real Opex charges for each component and an estimate of the real revenue through to FY29
B19: CAPEX Tariff Summary | C19: • Contains real Capex charges for each component and an estimate of the real revenue through to FY29
B20: Mapping & Lookups | C20: • This sheet provides construction information for a given construction code (type of pole, number of luminaires etc) • Because of different naming conventions for a number of the bulbs and luminaire types, this sheet provides a given CAPEX and OPEX code for a given lamp code from the traditional tariff code. This then allows the costs to be found in the CAPEX Calc and OPEX Calc sheets
B21: New Component SLUOS (For New Assets) | C21: • To be able to map to the old lamp tariff codes, the new componentised structure is now collapsed again, such that it can map according allowing direct comparison of the old and new costs for a given assembly type.

Sheet Instructions
B2: Steps to create new asset in pricing model
B3: When creating a new code, always work from a copy of the model rather than the model itself
B4: When creating new entries for the steps below, formulas from the previous entry should just be copied down
B6: CAPEX CHARGE
B7: Step | C7: Sheet affected | D7: Columns | E7: Instruction | F7: Notes
B8: 1 | C8: I_CAPEX - Stock Costs | D8: B:G | E8: Create new entry in "CAPEX - Stock Costs" tab for the purchase price of the luminaire and its stock item code | F8: This should be added after the last entry (but above hybrid stock costs)
B9: 2 | C9: CAPEX - Input | D9: A:AN | E9: Create new sub assembly in "CAPEX - Input" tab | F9: This can be done by copying and pasting the last one in the list (columns A to AC, of whichever asset you are adding, eg luminaire, bracket, column) and changing the materials item code (column Y) to the stock item code created in step 1
B10: 3 | C10: Mapping & Lookups | D10: X:AD | E10: Create new entry in "Mapping & Lookups" tab | F10: Data needs to be entered into columns X, Y, Z and AD
B11: 4 | C11: CAPEX Build Up | D11: B:AC | E11: Create new entry at bottom of table in "CAPEX Build Up" and change the "Mapped to Assembly/Item" (column H) to the new LED code created in step 2
B12: 5 | C12: CAPEX Tariff and Revenue Summary | D12: B:BS | E12: Create a new entry in the "CAPEX Tariff Summary" tab by adding a row at the bottom. The item and mapping code will automatically be looked up based on the description in column D
B13: OPEX CHARGE
B14: 5 | C14: OPEX Input | D14: B:L | E14: Create a new entry in the "Additions through the regulatory period" in tab "OPEX Input". Also add the failure rates in columns T to AF for each scenario, to the bottom of the table | F14: This should be added after the last entry which is currently in row 210. All entries in this table are usually common except for the luminaire failure column (column K) and smart controller cost (column H).
B15: =B14+1 -> 6 | C15: OPEX Calc | D15: B:AG | E15: Create a new entry in the "OPEX Calc" tab and change the Mapping code (column F). Note that the description (column C) will update automatically based on the mapping code
B16: =B15+1 -> 7 | C16: Warranty NPV | D16: B:N | E16: Create a new entry in the "Warranty NPV" tab and change the Lamp Type (Column B) to the new LED code
B17: 8 | C17: OPEX Tariff and Revenue Summary | D17: B:BC | E17: Create a new entry in the "OPEX Tariff and Revenue Summary" tab and change the Mapping Code (Column R) to the new LED code
B18: PRICING SUMMARY
B19: =B17+1 -> 9 | C19: New Component SLUOS | D19: B:Q | E19: Create a new entry in the "New Component SLUOS" tab and change the CAPEX and OPEX lookups (column K&L) to the LED code created

Sheet O_Waterfall charts (hidden)
A2: Waterfall chart from RP 19-24 to RP 24-29
D4: Change log
D5: RP 24-29 proposed | F5: AER approved overheads | H5: Reduce traffic controllers | I5: Increase % of installations requiring TC | J5: Increase labour on-cost | K5: Change failure rates to RP 19-24 rates | L5: Change labour rates to RP 19-24 rates | M5: RP 19-24 charge - direct | N5: RP 19-24 charge - indirect
F6: Reduce capex overheads from 69% to 42%, opex overheads from 123% to 50.36% | H6: Reduce the number of traffic controllers required from 3 to 2 | I6: Increase % of cat P and cat V lights requiring installation from 5% to 10% and 68% to 80% respectively | J6: Increase labour on-cost from 51.4% to 56.19% | K6: Change failure rates to RP 19-24 rates | L6: Change labour rates to RP 19-24 rates
H11: Opex charge | J11: Opex charge | T11: Capex charge | V11: Capex charge | AF11: Volumes
AF12: Opex | AG12: Capex
B13: Type | C13: Light globe category | D13: Description | F13: Capex code | G13: Opex code | H13: LIVE | J13: =D5 -> RP 24-29 proposed | K13: =F5 -> AER approved overheads | L13: =H5 -> Reduce traffic controllers | M13: Increase % of installations requiring TC | N13: Increase labour on-cost | O13: Change failure rates to RP 19-24 rates | P13: Change labour rates to RP 19-24 rates | Q13: RP 19-24 charge - direct | R13: RP 19-24 charge - indirect | T13: LIVE | V13: =J13 -> RP 24-29 proposed | W13: AER approved overheads | X13: Reduce traffic controllers | Y13: Increase % of installations requiring TC | Z13: Increase labour on-cost | AA13: Change failure rates to RP 19-24 rates | AB13: Change labour rates to RP 19-24 rates | AC13: RP 19-24 charge - direct | AD13: RP 19-24 charge - indirect | AF13: FY24 | AG13: FY24 | AH13: Incur capex?
B14: Lamp | C14: LED | D14: LED 36W Gerard Luminaire (Cat P3) | E14: LED0001 | F14: 7206.05.80 | G14: =_xlfn.XLOOKUP($D14,'O_OPEX Tariff Summary'!$D$8:$D$137,'O_OPEX Tariff Summary'!$R$8:$R$137,_xlfn.XLOOKUP($E14,'O_OPEX Tariff Summary'!$D$8:$D$137,'O_OPEX Tariff Summary'!$R$8:$R$137)) -> LED0001 | H14: =_xlfn.XLOOKUP($G14,'O_OPEX Tariff Summary'!$R$8:$R$137,'O_OPEX Tariff Summary'!$AC$8:$AC$137) -> 36.35553348 | J14: 57.1570573 | K14: 38.45055609 | L14: 38.09182146 | M14: 38.74100088 | N14: 39.19390456 | O14: 36.36055545 | P14: 35.43989791 | Q14: =_xlfn.XLOOKUP($D14,#REF!,#REF!,_xlfn.XLOOKUP($G14,#REF!,#REF!)) ->  | T14: =_xlfn.XLOOKUP($F14,'O_CAPEX Tariff Summary'!$R$9:$R$178,'O_CAPEX Tariff Summary'!$V$9:$V$178) -> 75.73234839 | V14: 96.56934408 | W14: 80.92826795 | X14: 79.17825612 | Y14: 82.34514205 | Z14: 82.85268751 | AA14: 82.85268751 | AB14: 81.62392869 | AC14: =_xlfn.XLOOKUP($D14,#REF!,#REF!,_xlfn.XLOOKUP($F14,#REF!,#REF!)) ->  | AF14: =IF($F14="NO_CAPEX",SUMIFS('I_Number of assets'!$M$8:$M$113,'I_Number of assets'!$F$8:$F$119,$G14),SUMIFS('I_Number of assets'!$M$8:$M$113,'I_Number of assets'!$F$8:$F$119,$F14)) ->  | AG14: =_xlfn.XLOOKUP($F14,'O_CAPEX Tariff Summary'!$R$9:$R$178,'O_CAPEX Tariff Summary'!$J$9:$J$178) -> 55 | AH14: =IF(SUM(_xlfn.ANCHORARRAY(AC14))=0,0,1) -> 
B15: Lamp | C15: LED | D15: LED 23W Gerard Luminaire (Cat P3) - Aeroscreen | E15: LED0002 | F15: 7206.05.81 | G15: =_xlfn.XLOOKUP($D15,'O_OPEX Tariff Summary'!$D$8:$D$137,'O_OPEX Tariff Summary'!$R$8:$R$137,_xlfn.XLOOKUP($E15,'O_OPEX Tariff Summary'!$D$8:$D$137,'O_OPEX Tariff Summary'!$R$8:$R$137)) -> LED0002 | H15: =_xlfn.XLOOKUP($G15,'O_OPEX Tariff Summary'!$R$8:$R$137,'O_OPEX Tariff Summary'!$AC$8:$AC$137) -> 36.35553348 | J15: 54.99194004 | K15: 36.9940437 | L15: 36.70219179 | M15: 37.23033776 | N15: 37.64339756 | O15: 36.36055545 | P15: 35.43989791 | Q15: =_xlfn.XLOOKUP($D15,#REF!,#REF!,_xlfn.XLOOKUP($G15,#REF!,#REF!)) ->  | T15: =_xlfn.XLOOKUP($F15,'O_CAPEX Tariff Summary'!$R$9:$R$178,'O_CAPEX Tariff Summary'!$V$9:$V$178) -> 71.61771445 | V15: 91.72793061 | W15: 76.87100515 | X15: 75.12099332 | Y15: 78.28787925 | Z15: 78.79542472 | AA15: 78.79542472 | AB15: 77.56666589 | AC15: =_xlfn.XLOOKUP($D15,#REF!,#REF!,_xlfn.XLOOKUP($F15,#REF!,#REF!)) ->  | AF15: =IF($F15="NO_CAPEX",SUMIFS('I_Number of assets'!$M$8:$M$113,'I_Number of assets'!$F$8:$F$119,$G15),SUMIFS('I_Number of assets'!$M$8:$M$113,'I_Number of assets'!$F$8:$F$119,$F15)) ->  | AG15: =_xlfn.XLOOKUP($F15,'O_CAPEX Tariff Summary'!$R$9:$R$178,'O_CAPEX Tariff Summary'!$J$9:$J$178) -> 67 | AH15: =IF(SUM(_xlfn.ANCHORARRAY(AC15))=0,0,1) -> 
B16: Lamp | C16: LED | D16: LED 17W Gerard Luminaire (Cat P4/P5) | E16: LED0003 | F16: 7206.05.82 | G16: =_xlfn.XLOOKUP($D16,'O_OPEX Tariff Summary'!$D$8:$D$137,'O_OPEX Tariff Summary'!$R$8:$R$137,_xlfn.XLOOKUP($E16,'O_OPEX Tariff Summary'!$D$8:$D$137,'O_OPEX Tariff Summary'!$R$8:$R$137)) -> LED0003 | H16: =_xlfn.XLOOKUP($G16,'O_OPEX Tariff Summary'!$R$8:$R$137,'O_OPEX Tariff Summary'!$AC$8:$AC$137) -> 36.35553348 | J16: 54.20462468 | K16: 36.46440283 | L16: 36.19687191 | M16: 36.68100572 | N16: 37.07957683 | O16: 36.36055545 | P16: 35.43989791 | Q16: =_xlfn.XLOOKUP($D16,#REF!,#REF!,_xlfn.XLOOKUP($G16,#REF!,#REF!)) ->  | T16: =_xlfn.XLOOKUP($F16,'O_CAPEX Tariff Summary'!$R$9:$R$178,'O_CAPEX Tariff Summary'!$V$9:$V$178) -> 73.75346286 | V16: 94.24092235 | W16: 78.9769744 | X16: 77.22696257 | Y16: 80.3938485 | Z16: 80.90139397 | AA16: 80.90139397 | AB16: 79.67263514 | AC16: =_xlfn.XLOOKUP($D16,#REF!,#REF!,_xlfn.XLOOKUP($F16,#REF!,#REF!)) ->  | AF16: =IF($F16="NO_CAPEX",SUMIFS('I_Number of assets'!$M$8:$M$113,'I_Number of assets'!$F$8:$F$119,$G16),SUMIFS('I_Number of assets'!$M$8:$M$113,'I_Number of assets'!$F$8:$F$119,$F16)) ->  | AG16: =_xlfn.XLOOKUP($F16,'O_CAPEX Tariff Summary'!$R$9:$R$178,'O_CAPEX Tariff Summary'!$J$9:$J$178) -> 577
B17: Lamp | C17: LED | D17: LED 17W Gerard Luminaire (Cat P4/P5) - Aeroscreen | E17: LED0004 | F17: 7206.05.83 | G17: =_xlfn.XLOOKUP($D17,'O_OPEX Tariff Summary'!$D$8:$D$137,'O_OPEX Tariff Summary'!$R$8:$R$137,_xlfn.XLOOKUP($E17,'O_OPEX Tariff Summary'!$D$8:$D$137,'O_OPEX Tariff Summary'!$R$8:$R$137)) -> LED0004 | H17: =_xlfn.XLOOKUP($G17,'O_OPEX Tariff Summary'!$R$8:$R$137,'O_OPEX Tariff Summary'!$AC$8:$AC$137) -> 36.35553348 | J17: 54.3030391 | K17: 36.53060793 | L17: 36.2600369 | M17: 36.74967222 | N17: 37.15005442 | O17: 36.36055545 | P17: 35.43989791 | Q17: =_xlfn.XLOOKUP($D17,#REF!,#REF!,_xlfn.XLOOKUP($G17,#REF!,#REF!)) ->  | T17: =_xlfn.XLOOKUP($F17,'O_CAPEX Tariff Summary'!$R$9:$R$178,'O_CAPEX Tariff Summary'!$V$9:$V$178) -> 75.97850245 | V17: 96.85897703 | W17: 81.17098983 | X17: 79.420978 | Y17: 82.58786393 | Z17: 83.09540939 | AA17: 83.09540939 | AB17: 81.86665057 | AC17: =_xlfn.XLOOKUP($D17,#REF!,#REF!,_xlfn.XLOOKUP($F17,#REF!,#REF!)) ->  | AF17: =IF($F17="NO_CAPEX",SUMIFS('I_Number of assets'!$M$8:$M$113,'I_Number of assets'!$F$8:$F$119,$G17),SUMIFS('I_Number of assets'!$M$8:$M$113,'I_Number of assets'!$F$8:$F$119,$F17)) ->  | AG17: =_xlfn.XLOOKUP($F17,'O_CAPEX Tariff Summary'!$R$9:$R$178,'O_CAPEX Tariff Summary'!$J$9:$J$178) -> 13
B18: Lamp | C18: LED | D18: LED 17W Gerard Luminaire - Louvred (Cat P4/P5 RRW) | E18: LED0005 | F18: 7206.05.84 | G18: =_xlfn.XLOOKUP($D18,'O_OPEX Tariff Summary'!$D$8:$D$137,'O_OPEX Tariff Summary'!$R$8:$R$137,_xlfn.XLOOKUP($E18,'O_OPEX Tariff Summary'!$D$8:$D$137,'O_OPEX Tariff Summary'!$R$8:$R$137)) -> LED0005 | H18: =_xlfn.XLOOKUP($G18,'O_OPEX Tariff Summary'!$R$8:$R$137,'O_OPEX Tariff Summary'!$AC$8:$AC$137) -> 36.35553348 | J18: 54.3030391 | K18: 36.53060793 | L18: 36.2600369 | M18: 36.74967222 | N18: 37.15005442 | O18: 36.36055545 | P18: 35.43989791 | Q18: =_xlfn.XLOOKUP($D18,#REF!,#REF!,_xlfn.XLOOKUP($G18,#REF!,#REF!)) ->  | T18: =_xlfn.XLOOKUP($F18,'O_CAPEX Tariff Summary'!$R$9:$R$178,'O_CAPEX Tariff Summary'!$V$9:$V$178) -> 61.30049386 | V18: 78.85948578 | W18: 66.08682761 | X18: 64.33681578 | Y18: 67.50370172 | Z18: 68.01124718 | AA18: 68.01124718 | AB18: 66.78248835 | AC18: =_xlfn.XLOOKUP($D18,#REF!,#REF!,_xlfn.XLOOKUP($F18,#REF!,#REF!)) ->  | AF18: =IF($F18="NO_CAPEX",SUMIFS('I_Number of assets'!$M$8:$M$113,'I_Number of assets'!$F$8:$F$119,$G18),SUMIFS('I_Number of assets'!$M$8:$M$113,'I_Number of assets'!$F$8:$F$119,$F18)) ->  | AG18: =_xlfn.XLOOKUP($F18,'O_CAPEX Tariff Summary'!$R$9:$R$178,'O_CAPEX Tariff Summary'!$J$9:$J$178) -> 0
B19: Lamp | C19: LED | D19: LED 25W GE Evolve Luminaire (Cat P4/P5) | E19: LED0006 | F19: 7206.05.85 | G19: =_xlfn.XLOOKUP($D19,'O_OPEX Tariff Summary'!$D$8:$D$137,'O_OPEX Tariff Summary'!$R$8:$R$137,_xlfn.XLOOKUP($E19,'O_OPEX Tariff Summary'!$D$8:$D$137,'O_OPEX Tariff Summary'!$R$8:$R$137)) -> LED0006 | H19: =_xlfn.XLOOKUP($G19,'O_OPEX Tariff Summary'!$R$8:$R$137,'O_OPEX Tariff Summary'!$AC$8:$AC$137) -> 36.35553348 | J19: 55.92687704 | K19: 37.62299223 | L19: 37.30225915 | M19: 37.88266956 | N19: 38.31293467 | O19: 41.73430135 | P19: 40.47932817 | Q19: =_xlfn.XLOOKUP($D19,#REF!,#REF!,_xlfn.XLOOKUP($G19,#REF!,#REF!)) ->  | T19: =_xlfn.XLOOKUP($F19,'O_CAPEX Tariff Summary'!$R$9:$R$178,'O_CAPEX Tariff Summary'!$V$9:$V$178) -> 52.48466659 | V19: 69.21535794 | W19: 58.00473315 | X19: 56.25472132 | Y19: 59.42160725 | Z19: 59.92915271 | AA19: 59.92915271 | AB19: 58.70039389 | AC19: =_xlfn.XLOOKUP($D19,#REF!,#REF!,_xlfn.XLOOKUP($F19,#REF!,#REF!)) ->  | AF19: =IF($F19="NO_CAPEX",SUMIFS('I_Number of assets'!$M$8:$M$113,'I_Number of assets'!$F$8:$F$119,$G19),SUMIFS('I_Number of assets'!$M$8:$M$113,'I_Number of assets'!$F$8:$F$119,$F19)) ->  | AG19: =_xlfn.XLOOKUP($F19,'O_CAPEX Tariff Summary'!$R$9:$R$178,'O_CAPEX Tariff Summary'!$J$9:$J$178) -> 176
B20: Lamp | C20: LED | D20: LED 35W Pecan Luminaire (Cat P3) | E20: LED0007 | F20: 7206.05.86 | G20: =_xlfn.XLOOKUP($D20,'O_OPEX Tariff Summary'!$D$8:$D$137,'O_OPEX Tariff Summary'!$R$8:$R$137,_xlfn.XLOOKUP($E20,'O_OPEX Tariff Summary'!$D$8:$D$137,'O_OPEX Tariff Summary'!$R$8:$R$137)) -> LED0007 | H20: =_xlfn.XLOOKUP($G20,'O_OPEX Tariff Summary'!$R$8:$R$137,'O_OPEX Tariff Summary'!$AC$8:$AC$137) -> 36.35553348 | J20: 54.3030391 | K20: 36.53060793 | L20: 36.2600369 | M20: 36.74967222 | N20: 37.15005442 | O20: 35.90249974 | P20: 35.01033911 | Q20: =_xlfn.XLOOKUP($D20,#REF!,#REF!,_xlfn.XLOOKUP($G20,#REF!,#REF!)) ->  | T20: =_xlfn.XLOOKUP($F20,'O_CAPEX Tariff Summary'!$R$9:$R$178,'O_CAPEX Tariff Summary'!$V$9:$V$178) -> 90.44125978 | V20: 113.8763324 | W20: 95.43209008 | X20: 93.68207825 | Y20: 96.84896419 | Z20: 97.35650965 | AA20: 97.35650965 | AB20: 96.12775082 | AC20: =_xlfn.XLOOKUP($D20,#REF!,#REF!,_xlfn.XLOOKUP($F20,#REF!,#REF!)) ->  | AF20: =IF($F20="NO_CAPEX",SUMIFS('I_Number of assets'!$M$8:$M$113,'I_Number of assets'!$F$8:$F$119,$G20),SUMIFS('I_Number of assets'!$M$8:$M$113,'I_Number of assets'!$F$8:$F$119,$F20)) ->  | AG20: =_xlfn.XLOOKUP($F20,'O_CAPEX Tariff Summary'!$R$9:$R$178,'O_CAPEX Tariff Summary'!$J$9:$J$178) -> 1
B21: Lamp | C21: LED | D21: LED 29W Pecan Luminaire (Cat P3) - Aeroscreen | E21: LED0008 | F21: 7206.05.87 | G21: =_xlfn.XLOOKUP($D21,'O_OPEX Tariff Summary'!$D$8:$D$137,'O_OPEX Tariff Summary'!$R$8:$R$137,_xlfn.XLOOKUP($E21,'O_OPEX Tariff Summary'!$D$8:$D$137,'O_OPEX Tariff Summary'!$R$8:$R$137)) -> LED0008 | H21: =_xlfn.XLOOKUP($G21,'O_OPEX Tariff Summary'!$R$8:$R$137,'O_OPEX Tariff Summary'!$AC$8:$AC$137) -> 36.35553348 | J21: 54.3030391 | K21: 36.53060793 | L21: 36.2600369 | M21: 36.74967222 | N21: 37.15005442 | O21: 35.70233993 | P21: 34.8226318 | Q21: =_xlfn.XLOOKUP($D21,#REF!,#REF!,_xlfn.XLOOKUP($G21,#REF!,#REF!)) ->  | T21: =_xlfn.XLOOKUP($F21,'O_CAPEX Tariff Summary'!$R$9:$R$178,'O_CAPEX Tariff Summary'!$V$9:$V$178) -> 90.44125978 | V21: 113.8763324 | W21: 95.43209008 | X21: 93.68207825 | Y21: 96.84896419 | Z21: 97.35650965 | AA21: 97.35650965 | AB21: 96.12775082 | AC21: =_xlfn.XLOOKUP($D21,#REF!,#REF!,_xlfn.XLOOKUP($F21,#REF!,#REF!)) ->  | AF21: =IF($F21="NO_CAPEX",SUMIFS('I_Number of assets'!$M$8:$M$113,'I_Number of assets'!$F$8:$F$119,$G21),SUMIFS('I_Number of assets'!$M$8:$M$113,'I_Number of assets'!$F$8:$F$119,$F21)) ->  | AG21: =_xlfn.XLOOKUP($F21,'O_CAPEX Tariff Summary'!$R$9:$R$178,'O_CAPEX Tariff Summary'!$J$9:$J$178) -> 13
B22: Lamp | C22: LED | D22: LED 42W Pecan Luminaire (Cat V5) | E22: LED0009 | F22: 7206.05.88 | G22: =_xlfn.XLOOKUP($D22,'O_OPEX Tariff Summary'!$D$8:$D$137,'O_OPEX Tariff Summary'!$R$8:$R$137,_xlfn.XLOOKUP($E22,'O_OPEX Tariff Summary'!$D$8:$D$137,'O_OPEX Tariff Summary'!$R$8:$R$137)) -> LED0009 | H22: =_xlfn.XLOOKUP($G22,'O_OPEX Tariff Summary'!$R$8:$R$137,'O_OPEX Tariff Summary'!$AC$8:$AC$137) -> 42.82711115 | J22: 68.67929566 | K22: 46.20176816 | L22: 42.70747705 | M22: 43.96511398 | N22: 44.59377866 | O22: 41.94081084 | P22: 40.60074202 | Q22: =_xlfn.XLOOKUP($D22,#REF!,#REF!,_xlfn.XLOOKUP($G22,#REF!,#REF!)) ->  | T22: =_xlfn.XLOOKUP($F22,'O_CAPEX Tariff Summary'!$R$9:$R$178,'O_CAPEX Tariff Summary'!$V$9:$V$178) -> 131.6142552 | V22: 202.3202719 | W22: 169.5510033 | X22: 146.950466 | Y22: 155.0846682 | Z22: 157.0687096 | AA22: 157.0687096 | AB22: 152.2653796 | AC22: =_xlfn.XLOOKUP($D22,#REF!,#REF!,_xlfn.XLOOKUP($F22,#REF!,#REF!)) ->  | AF22: =IF($F22="NO_CAPEX",SUMIFS('I_Number of assets'!$M$8:$M$113,'I_Number of assets'!$F$8:$F$119,$G22),SUMIFS('I_Number of assets'!$M$8:$M$113,'I_Number of assets'!$F$8:$F$119,$F22)) ->  | AG22: =_xlfn.XLOOKUP($F22,'O_CAPEX Tariff Summary'!$R$9:$R$178,'O_CAPEX Tariff Summary'!$J$9:$J$178) -> 2 | AH22: =IF(SUM(_xlfn.ANCHORARRAY(AC22))=0,0,1) -> 
B23: Lamp | C23: LED | D23: LED 36W Pecan Luminaire (Cat V5) - Aeroscreen | E23: LED0010 | F23: 7206.05.89 | G23: =_xlfn.XLOOKUP($D23,'O_OPEX Tariff Summary'!$D$8:$D$137,'O_OPEX Tariff Summary'!$R$8:$R$137,_xlfn.XLOOKUP($E23,'O_OPEX Tariff Summary'!$D$8:$D$137,'O_OPEX Tariff Summary'!$R$8:$R$137)) -> LED0010 | H23: =_xlfn.XLOOKUP($G23,'O_OPEX Tariff Summary'!$R$8:$R$137,'O_OPEX Tariff Summary'!$AC$8:$AC$137) -> 42.82711115 | J23: 84.27601926 | K23: 56.693958 | L23: 50.84396501 | M23: 52.94944707 | N23: 53.84067516 | O23: 41.94081084 | P23: 40.60074202 | Q23: =_xlfn.XLOOKUP($D23,#REF!,#REF!,_xlfn.XLOOKUP($G23,#REF!,#REF!)) ->  | T23: =_xlfn.XLOOKUP($F23,'O_CAPEX Tariff Summary'!$R$9:$R$178,'O_CAPEX Tariff Summary'!$V$9:$V$178) -> 131.6142552 | V23: 202.3202719 | W23: 169.5510033 | X23: 146.950466 | Y23: 155.0846682 | Z23: 157.0687096 | AA23: 157.0687096 | AB23: 152.2653796 | AC23: =_xlfn.XLOOKUP($D23,#REF!,#REF!,_xlfn.XLOOKUP($F23,#REF!,#REF!)) ->  | AF23: =IF($F23="NO_CAPEX",SUMIFS('I_Number of assets'!$M$8:$M$113,'I_Number of assets'!$F$8:$F$119,$G23),SUMIFS('I_Number of assets'!$M$8:$M$113,'I_Number of assets'!$F$8:$F$119,$F23)) ->  | AG23: =_xlfn.XLOOKUP($F23,'O_CAPEX Tariff Summary'!$R$9:$R$178,'O_CAPEX Tariff Summary'!$J$9:$J$178) -> 0
B24: Lamp | C24: LED | D24: LED 105W Aldridge Luminaire (Cat V3) | E24: LED0011 | F24: 7206.05.90 | G24: =_xlfn.XLOOKUP($D24,'O_OPEX Tariff Summary'!$D$8:$D$137,'O_OPEX Tariff Summary'!$R$8:$R$137,_xlfn.XLOOKUP($E24,'O_OPEX Tariff Summary'!$D$8:$D$137,'O_OPEX Tariff Summary'!$R$8:$R$137)) -> LED0011 | H24: =_xlfn.XLOOKUP($G24,'O_OPEX Tariff Summary'!$R$8:$R$137,'O_OPEX Tariff Summary'!$AC$8:$AC$137) -> 42.82711115 | J24: 68.67929566 | K24: 46.20176816 | L24: 42.70747705 | M24: 43.96511398 | N24: 44.59377866 | O24: 41.94081084 | P24: 40.60074202 | Q24: =_xlfn.XLOOKUP($D24,#REF!,#REF!,_xlfn.XLOOKUP($G24,#REF!,#REF!)) ->  | T24: =_xlfn.XLOOKUP($F24,'O_CAPEX Tariff Summary'!$R$9:$R$178,'O_CAPEX Tariff Summary'!$V$9:$V$178) -> 212.1399909 | V24: 294.2911545 | W24: 246.6256101 | X24: 224.0250729 | Y24: 232.159275 | Z24: 234.1433164 | AA24: 234.1433164 | AB24: 229.3399864 | AC24: =_xlfn.XLOOKUP($D24,#REF!,#REF!,_xlfn.XLOOKUP($F24,#REF!,#REF!)) ->  | AF24: =IF($F24="NO_CAPEX",SUMIFS('I_Number of assets'!$M$8:$M$113,'I_Number of assets'!$F$8:$F$119,$G24),SUMIFS('I_Number of assets'!$M$8:$M$113,'I_Number of assets'!$F$8:$F$119,$F24)) ->  | AG24: =_xlfn.XLOOKUP($F24,'O_CAPEX Tariff Summary'!$R$9:$R$178,'O_CAPEX Tariff Summary'!$J$9:$J$178) -> 1
B25: Lamp | C25: LED | D25: LED 198W Aldridge Luminaire (Cat V1) - Standard Dist. | E25: LED0012 | F25: 7206.05.91 | G25: =_xlfn.XLOOKUP($D25,'O_OPEX Tariff Summary'!$D$8:$D$137,'O_OPEX Tariff Summary'!$R$8:$R$137,_xlfn.XLOOKUP($E25,'O_OPEX Tariff Summary'!$D$8:$D$137,'O_OPEX Tariff Summary'!$R$8:$R$137)) -> LED0012 | H25: =_xlfn.XLOOKUP($G25,'O_OPEX Tariff Summary'!$R$8:$R$137,'O_OPEX Tariff Summary'!$AC$8:$AC$137) -> 42.82711115 | J25: 68.67929566 | K25: 46.20176816 | L25: 42.70747705 | M25: 43.96511398 | N25: 44.59377866 | O25: 44.53646288 | P25: 43.01796056 | Q25: =_xlfn.XLOOKUP($D25,#REF!,#REF!,_xlfn.XLOOKUP($G25,#REF!,#REF!)) ->  | T25: =_xlfn.XLOOKUP($F25,'O_CAPEX Tariff Summary'!$R$9:$R$178,'O_CAPEX Tariff Summary'!$V$9:$V$178) -> 237.9340636 | V25: 327.4196513 | W25: 274.3883737 | X25: 251.7878364 | Y25: 259.9220386 | Z25: 261.9060799 | AA25: 261.9060799 | AB25: 257.10275 | AC25: =_xlfn.XLOOKUP($D25,#REF!,#REF!,_xlfn.XLOOKUP($F25,#REF!,#REF!)) ->  | AF25: =IF($F25="NO_CAPEX",SUMIFS('I_Number of assets'!$M$8:$M$113,'I_Number of assets'!$F$8:$F$119,$G25),SUMIFS('I_Number of assets'!$M$8:$M$113,'I_Number of assets'!$F$8:$F$119,$F25)) ->  | AG25: =_xlfn.XLOOKUP($F25,'O_CAPEX Tariff Summary'!$R$9:$R$178,'O_CAPEX Tariff Summary'!$J$9:$J$178) -> 0
B26: Lamp | C26: LED | D26: LED 198W Aldridge Luminaire (Cat V1) - Forward Dist. | E26: LED0013 | F26: 7206.05.92 | G26: =_xlfn.XLOOKUP($D26,'O_OPEX Tariff Summary'!$D$8:$D$137,'O_OPEX Tariff Summary'!$R$8:$R$137,_xlfn.XLOOKUP($E26,'O_OPEX Tariff Summary'!$D$8:$D$137,'O_OPEX Tariff Summary'!$R$8:$R$137)) -> LED0013 | H26: =_xlfn.XLOOKUP($G26,'O_OPEX Tariff Summary'!$R$8:$R$137,'O_OPEX Tariff Summary'!$AC$8:$AC$137) -> 42.82711115 | J26: 68.67929566 | K26: 46.20176816 | L26: 42.70747705 | M26: 43.96511398 | N26: 44.59377866 | O26: 44.53646288 | P26: 43.01796056 | Q26: =_xlfn.XLOOKUP($D26,#REF!,#REF!,_xlfn.XLOOKUP($G26,#REF!,#REF!)) ->  | T26: =_xlfn.XLOOKUP($F26,'O_CAPEX Tariff Summary'!$R$9:$R$178,'O_CAPEX Tariff Summary'!$V$9:$V$178) -> 235.2145707 | V26: 324.2198067 | W26: 271.7067993 | X26: 249.106262 | Y26: 257.2404642 | Z26: 259.2245055 | AA26: 259.2245055 | AB26: 254.4211756 | AC26: =_xlfn.XLOOKUP($D26,#REF!,#REF!,_xlfn.XLOOKUP($F26,#REF!,#REF!)) ->  | AF26: =IF($F26="NO_CAPEX",SUMIFS('I_Number of assets'!$M$8:$M$113,'I_Number of assets'!$F$8:$F$119,$G26),SUMIFS('I_Number of assets'!$M$8:$M$113,'I_Number of assets'!$F$8:$F$119,$F26)) ->  | AG26: =_xlfn.XLOOKUP($F26,'O_CAPEX Tariff Summary'!$R$9:$R$178,'O_CAPEX Tariff Summary'!$J$9:$J$178) -> 32
B27: Lamp | C27: LED | D27: LED 298W Aldrige Luminaire (Cat V1) - Standard Dist. | E27: LED0014 | F27: 7206.05.93 | G27: =_xlfn.XLOOKUP($D27,'O_OPEX Tariff Summary'!$D$8:$D$137,'O_OPEX Tariff Summary'!$R$8:$R$137,_xlfn.XLOOKUP($E27,'O_OPEX Tariff Summary'!$D$8:$D$137,'O_OPEX Tariff Summary'!$R$8:$R$137)) -> LED0014 | H27: =_xlfn.XLOOKUP($G27,'O_OPEX Tariff Summary'!$R$8:$R$137,'O_OPEX Tariff Summary'!$AC$8:$AC$137) -> 42.82711115 | J27: 68.67929566 | K27: 46.20176816 | L27: 42.70747705 | M27: 43.96511398 | N27: 44.59377866 | O27: 44.53646288 | P27: 43.01796056 | Q27: =_xlfn.XLOOKUP($D27,#REF!,#REF!,_xlfn.XLOOKUP($G27,#REF!,#REF!)) ->  | T27: =_xlfn.XLOOKUP($F27,'O_CAPEX Tariff Summary'!$R$9:$R$178,'O_CAPEX Tariff Summary'!$V$9:$V$178) -> 267.6012581 | V27: 362.327047 | W27: 303.6419127 | X27: 281.0413754 | Y27: 289.1755776 | Z27: 291.1596189 | AA27: 291.1596189 | AB27: 286.356289 | AC27: =_xlfn.XLOOKUP($D27,#REF!,#REF!,_xlfn.XLOOKUP($F27,#REF!,#REF!)) ->  | AF27: =IF($F27="NO_CAPEX",SUMIFS('I_Number of assets'!$M$8:$M$113,'I_Number of assets'!$F$8:$F$119,$G27),SUMIFS('I_Number of assets'!$M$8:$M$113,'I_Number of assets'!$F$8:$F$119,$F27)) ->  | AG27: =_xlfn.XLOOKUP($F27,'O_CAPEX Tariff Summary'!$R$9:$R$178,'O_CAPEX Tariff Summary'!$J$9:$J$178) -> 0
B28: Lamp | C28: LED | D28: LED 100W Aldridge Luminaire - Brownfield | E28: LED0015 | F28: LED0015 | G28: =_xlfn.XLOOKUP($D28,'O_OPEX Tariff Summary'!$D$8:$D$137,'O_OPEX Tariff Summary'!$R$8:$R$137,_xlfn.XLOOKUP($E28,'O_OPEX Tariff Summary'!$D$8:$D$137,'O_OPEX Tariff Summary'!$R$8:$R$137)) -> LED0015 | H28: =_xlfn.XLOOKUP($G28,'O_OPEX Tariff Summary'!$R$8:$R$137,'O_OPEX Tariff Summary'!$AC$8:$AC$137) -> 42.82711115 | J28: 68.67929566 | K28: 46.20176816 | L28: 42.70747705 | M28: 43.96511398 | N28: 44.59377866 | O28: 44.53646288 | P28: 43.01796056 | Q28: =_xlfn.XLOOKUP($D28,#REF!,#REF!,_xlfn.XLOOKUP($G28,#REF!,#REF!)) ->  | T28: =_xlfn.XLOOKUP($F28,'O_CAPEX Tariff Summary'!$R$9:$R$178,'O_CAPEX Tariff Summary'!$V$9:$V$178) -> 236.8328951 | V28: 326.1239803 | W28: 273.302559 | X28: 250.7020217 | Y28: 258.8362239 | Z28: 260.8202653 | AA28: 260.8202653 | AB28: 256.0169353 | AC28: =_xlfn.XLOOKUP($D28,#REF!,#REF!,_xlfn.XLOOKUP($F28,#REF!,#REF!)) ->  | AF28: =IF($F28="NO_CAPEX",SUMIFS('I_Number of assets'!$M$8:$M$113,'I_Number of assets'!$F$8:$F$119,$G28),SUMIFS('I_Number of assets'!$M$8:$M$113,'I_Number of assets'!$F$8:$F$119,$F28)) ->  | AG28: =_xlfn.XLOOKUP($F28,'O_CAPEX Tariff Summary'!$R$9:$R$178,'O_CAPEX Tariff Summary'!$J$9:$J$178) -> 0
B29: Lamp | C29: LED | D29: LED 200W Aldridge Luminaire - Brownfield | E29: LED0016 | F29: LED0016 | G29: =_xlfn.XLOOKUP($D29,'O_OPEX Tariff Summary'!$D$8:$D$137,'O_OPEX Tariff Summary'!$R$8:$R$137,_xlfn.XLOOKUP($E29,'O_OPEX Tariff Summary'!$D$8:$D$137,'O_OPEX Tariff Summary'!$R$8:$R$137)) -> LED0016 | H29: =_xlfn.XLOOKUP($G29,'O_OPEX Tariff Summary'!$R$8:$R$137,'O_OPEX Tariff Summary'!$AC$8:$AC$137) -> 42.82711115 | J29: 68.67929566 | K29: 46.20176816 | L29: 42.70747705 | M29: 43.96511398 | N29: 44.59377866 | O29: 44.53646288 | P29: 43.01796056 | Q29: =_xlfn.XLOOKUP($D29,#REF!,#REF!,_xlfn.XLOOKUP($G29,#REF!,#REF!)) ->  | T29: =_xlfn.XLOOKUP($F29,'O_CAPEX Tariff Summary'!$R$9:$R$178,'O_CAPEX Tariff Summary'!$V$9:$V$178) -> 236.8328951 | V29: 326.1239803 | W29: 273.302559 | X29: 250.7020217 | Y29: 258.8362239 | Z29: 260.8202653 | AA29: 260.8202653 | AB29: 256.0169353 | AC29: =_xlfn.XLOOKUP($D29,#REF!,#REF!,_xlfn.XLOOKUP($F29,#REF!,#REF!)) ->  | AF29: =IF($F29="NO_CAPEX",SUMIFS('I_Number of assets'!$M$8:$M$113,'I_Number of assets'!$F$8:$F$119,$G29),SUMIFS('I_Number of assets'!$M$8:$M$113,'I_Number of assets'!$F$8:$F$119,$F29)) ->  | AG29: =_xlfn.XLOOKUP($F29,'O_CAPEX Tariff Summary'!$R$9:$R$178,'O_CAPEX Tariff Summary'!$J$9:$J$178) -> 0
B30: Lamp | C30: LED | D30: LED 300W Aldridge Luminaire - Brownfield | E30: LED0017 | F30: LED0017 | G30: =_xlfn.XLOOKUP($D30,'O_OPEX Tariff Summary'!$D$8:$D$137,'O_OPEX Tariff Summary'!$R$8:$R$137,_xlfn.XLOOKUP($E30,'O_OPEX Tariff Summary'!$D$8:$D$137,'O_OPEX Tariff Summary'!$R$8:$R$137)) -> LED0017 | H30: =_xlfn.XLOOKUP($G30,'O_OPEX Tariff Summary'!$R$8:$R$137,'O_OPEX Tariff Summary'!$AC$8:$AC$137) -> 42.82711115 | J30: 68.67929566 | K30: 46.20176816 | L30: 42.70747705 | M30: 43.96511398 | N30: 44.59377866 | O30: 44.53646288 | P30: 43.01796056 | Q30: =_xlfn.XLOOKUP($D30,#REF!,#REF!,_xlfn.XLOOKUP($G30,#REF!,#REF!)) ->  | T30: =_xlfn.XLOOKUP($F30,'O_CAPEX Tariff Summary'!$R$9:$R$178,'O_CAPEX Tariff Summary'!$V$9:$V$178) -> 266.328479 | V30: 360.8294532 | W30: 302.3868801 | X30: 279.7863428 | Y30: 287.920545 | Z30: 289.9045864 | AA30: 289.9045864 | AB30: 285.1012564 | AC30: =_xlfn.XLOOKUP($D30,#REF!,#REF!,_xlfn.XLOOKUP($F30,#REF!,#REF!)) ->  | AF30: =IF($F30="NO_CAPEX",SUMIFS('I_Number of assets'!$M$8:$M$113,'I_Number of assets'!$F$8:$F$119,$G30),SUMIFS('I_Number of assets'!$M$8:$M$113,'I_Number of assets'!$F$8:$F$119,$F30)) ->  | AG30: =_xlfn.XLOOKUP($F30,'O_CAPEX Tariff Summary'!$R$9:$R$178,'O_CAPEX Tariff Summary'!$J$9:$J$178) -> 0
B31: Lamp | C31: HID | D31: Fluorescent Twin 20 | E31: FLU0060 | F31: NO_CAPEX | G31: =_xlfn.XLOOKUP($D31,'O_OPEX Tariff Summary'!$D$8:$D$137,'O_OPEX Tariff Summary'!$R$8:$R$137,_xlfn.XLOOKUP($E31,'O_OPEX Tariff Summary'!$D$8:$D$137,'O_OPEX Tariff Summary'!$R$8:$R$137)) -> FLU0060 | H31: =_xlfn.XLOOKUP($G31,'O_OPEX Tariff Summary'!$R$8:$R$137,'O_OPEX Tariff Summary'!$AC$8:$AC$137) -> 54.77399899 | J31: 73.5484262 | K31: 49.47731778 | L31: 48.83496252 | M31: 49.99739228 | N31: 50.56941137 | O31: 48.20538765 | P31: 46.96615408 | Q31: =_xlfn.XLOOKUP($D31,#REF!,#REF!,_xlfn.XLOOKUP($G31,#REF!,#REF!)) ->  | T31: =_xlfn.XLOOKUP($F31,'O_CAPEX Tariff Summary'!$R$9:$R$178,'O_CAPEX Tariff Summary'!$V$9:$V$178) -> 0 | V31: 0 | W31: 0 | X31: 0 | Y31: 0 | Z31: 0 | AA31: 0 | AB31: 0 | AC31: =_xlfn.XLOOKUP($D31,#REF!,#REF!,_xlfn.XLOOKUP($F31,#REF!,#REF!)) ->  | AF31: =IF($F31="NO_CAPEX",SUMIFS('I_Number of assets'!$M$8:$M$113,'I_Number of assets'!$F$8:$F$119,$G31),SUMIFS('I_Number of assets'!$M$8:$M$113,'I_Number of assets'!$F$8:$F$119,$F31)) ->  | AG31: =_xlfn.XLOOKUP($F31,'O_CAPEX Tariff Summary'!$R$9:$R$178,'O_CAPEX Tariff Summary'!$J$9:$J$178) -> 0
B32: Lamp | C32: HID | D32: Fluorescent 40 | E32: FLU0130 | F32: 7206.05.1 | G32: =_xlfn.XLOOKUP($D32,'O_OPEX Tariff Summary'!$D$8:$D$137,'O_OPEX Tariff Summary'!$R$8:$R$137,_xlfn.XLOOKUP($E32,'O_OPEX Tariff Summary'!$D$8:$D$137,'O_OPEX Tariff Summary'!$R$8:$R$137)) -> FLU0130 | H32: =_xlfn.XLOOKUP($G32,'O_OPEX Tariff Summary'!$R$8:$R$137,'O_OPEX Tariff Summary'!$AC$8:$AC$137) -> 59.23946511 | J32: 79.30235911 | K32: 53.34808948 | L32: 52.47316474 | M32: 54.05646081 | N32: 54.74270816 | O32: 47.92724443 | P32: 46.68801085 | Q32: =_xlfn.XLOOKUP($D32,#REF!,#REF!,_xlfn.XLOOKUP($G32,#REF!,#REF!)) ->  | T32: =_xlfn.XLOOKUP($F32,'O_CAPEX Tariff Summary'!$R$9:$R$178,'O_CAPEX Tariff Summary'!$V$9:$V$178) -> 21.02538413 | V32: 29.88220985 | W32: 25.04226894 | X32: 24.00731831 | Y32: 25.88020313 | Z32: 26.18036367 | AA32: 26.18036367 | AB32: 25.45368017 | AC32: =_xlfn.XLOOKUP($D32,#REF!,#REF!,_xlfn.XLOOKUP($F32,#REF!,#REF!)) ->  | AF32: =IF($F32="NO_CAPEX",SUMIFS('I_Number of assets'!$M$8:$M$113,'I_Number of assets'!$F$8:$F$119,$G32),SUMIFS('I_Number of assets'!$M$8:$M$113,'I_Number of assets'!$F$8:$F$119,$F32)) ->  | AG32: =_xlfn.XLOOKUP($F32,'O_CAPEX Tariff Summary'!$R$9:$R$178,'O_CAPEX Tariff Summary'!$J$9:$J$178) -> 34
B33: Lamp | C33: HID | D33: High Pressure Sodium 50 | E33: HPS0010 | F33: NO_CAPEX | G33: =_xlfn.XLOOKUP($D33,'O_OPEX Tariff Summary'!$D$8:$D$137,'O_OPEX Tariff Summary'!$R$8:$R$137,_xlfn.XLOOKUP($E33,'O_OPEX Tariff Summary'!$D$8:$D$137,'O_OPEX Tariff Summary'!$R$8:$R$137)) -> HPS0010 | H33: =_xlfn.XLOOKUP($G33,'O_OPEX Tariff Summary'!$R$8:$R$137,'O_OPEX Tariff Summary'!$AC$8:$AC$137) -> 101.5131802 | J33: 133.5766003 | K33: 89.85932453 | L33: 87.14056458 | M33: 92.06053283 | N33: 93.65239378 | O33: 77.19695744 | P33: 74.33313324 | Q33: =_xlfn.XLOOKUP($D33,#REF!,#REF!,_xlfn.XLOOKUP($G33,#REF!,#REF!)) ->  | T33: =_xlfn.XLOOKUP($F33,'O_CAPEX Tariff Summary'!$R$9:$R$178,'O_CAPEX Tariff Summary'!$V$9:$V$178) -> 0 | V33: 0 | W33: 0 | X33: 0 | Y33: 0 | Z33: 0 | AA33: 0 | AB33: 0 | AC33: =_xlfn.XLOOKUP($D33,#REF!,#REF!,_xlfn.XLOOKUP($F33,#REF!,#REF!)) ->  | AF33: =IF($F33="NO_CAPEX",SUMIFS('I_Number of assets'!$M$8:$M$113,'I_Number of assets'!$F$8:$F$119,$G33),SUMIFS('I_Number of assets'!$M$8:$M$113,'I_Number of assets'!$F$8:$F$119,$F33)) ->  | AG33: =_xlfn.XLOOKUP($F33,'O_CAPEX Tariff Summary'!$R$9:$R$178,'O_CAPEX Tariff Summary'!$J$9:$J$178) -> 0
B34: Lamp | C34: HID | D34: High Pressure Sodium 50 Twin Arc | E34: HPS0010-TA | F34: 7107.09.30 | G34: =_xlfn.XLOOKUP($D34,'O_OPEX Tariff Summary'!$D$8:$D$137,'O_OPEX Tariff Summary'!$R$8:$R$137,_xlfn.XLOOKUP($E34,'O_OPEX Tariff Summary'!$D$8:$D$137,'O_OPEX Tariff Summary'!$R$8:$R$137)) -> HPS0010-TA | H34: =_xlfn.XLOOKUP($G34,'O_OPEX Tariff Summary'!$R$8:$R$137,'O_OPEX Tariff Summary'!$AC$8:$AC$137) -> 72.6391959 | J34: 114.1001333 | K34: 76.75716321 | L34: 75.28029391 | M34: 77.95289104 | N34: 78.93478801 | O34: 58.2588788 | P34: 57.01455792 | Q34: =_xlfn.XLOOKUP($D34,#REF!,#REF!,_xlfn.XLOOKUP($G34,#REF!,#REF!)) ->  | T34: =_xlfn.XLOOKUP($F34,'O_CAPEX Tariff Summary'!$R$9:$R$178,'O_CAPEX Tariff Summary'!$V$9:$V$178) -> 27.75922331 | V34: 37.99313701 | W34: 31.8394911 | X34: 30.80454047 | Y34: 32.67742529 | Z34: 32.97758583 | AA34: 32.97758583 | AB34: 32.25090233 | AC34: =_xlfn.XLOOKUP($D34,#REF!,#REF!,_xlfn.XLOOKUP($F34,#REF!,#REF!)) ->  | AF34: =IF($F34="NO_CAPEX",SUMIFS('I_Number of assets'!$M$8:$M$113,'I_Number of assets'!$F$8:$F$119,$G34),SUMIFS('I_Number of assets'!$M$8:$M$113,'I_Number of assets'!$F$8:$F$119,$F34)) ->  | AG34: =_xlfn.XLOOKUP($F34,'O_CAPEX Tariff Summary'!$R$9:$R$178,'O_CAPEX Tariff Summary'!$J$9:$J$178) -> 0
B35: Lamp | C35: HID | D35: High Pressure Sodium 70 | E35: HPS0020 | F35: 7107.09.3 | G35: =_xlfn.XLOOKUP($D35,'O_OPEX Tariff Summary'!$D$8:$D$137,'O_OPEX Tariff Summary'!$R$8:$R$137,_xlfn.XLOOKUP($E35,'O_OPEX Tariff Summary'!$D$8:$D$137,'O_OPEX Tariff Summary'!$R$8:$R$137)) -> HPS0020 | H35: =_xlfn.XLOOKUP($G35,'O_OPEX Tariff Summary'!$R$8:$R$137,'O_OPEX Tariff Summary'!$AC$8:$AC$137) -> 96.32061133 | J35: 126.8960408 | K35: 85.36519488 | L35: 82.8957251 | M35: 87.36456867 | N35: 88.83398887 | O35: 77.29629803 | P35: 74.43247383 | Q35: =_xlfn.XLOOKUP($D35,#REF!,#REF!,_xlfn.XLOOKUP($G35,#REF!,#REF!)) ->  | T35: =_xlfn.XLOOKUP($F35,'O_CAPEX Tariff Summary'!$R$9:$R$178,'O_CAPEX Tariff Summary'!$V$9:$V$178) -> 28.62231279 | V35: 38.66783384 | W35: 32.40490911 | X35: 31.36995848 | Y35: 33.2428433 | Z35: 33.54300384 | AA35: 33.54300384 | AB35: 32.81632034 | AC35: =_xlfn.XLOOKUP($D35,#REF!,#REF!,_xlfn.XLOOKUP($F35,#REF!,#REF!)) ->  | AF35: =IF($F35="NO_CAPEX",SUMIFS('I_Number of assets'!$M$8:$M$113,'I_Number of assets'!$F$8:$F$119,$G35),SUMIFS('I_Number of assets'!$M$8:$M$113,'I_Number of assets'!$F$8:$F$119,$F35)) ->  | AG35: =_xlfn.XLOOKUP($F35,'O_CAPEX Tariff Summary'!$R$9:$R$178,'O_CAPEX Tariff Summary'!$J$9:$J$178) -> 79
B36: Lamp | C36: HID | D36: High Pressure Sodium 150 | E36: HPS0090 | F36: NO_CAPEX | G36: =_xlfn.XLOOKUP($D36,'O_OPEX Tariff Summary'!$D$8:$D$137,'O_OPEX Tariff Summary'!$R$8:$R$137,_xlfn.XLOOKUP($E36,'O_OPEX Tariff Summary'!$D$8:$D$137,'O_OPEX Tariff Summary'!$R$8:$R$137)) -> HPS0090 | H36: =_xlfn.XLOOKUP($G36,'O_OPEX Tariff Summary'!$R$8:$R$137,'O_OPEX Tariff Summary'!$AC$8:$AC$137) -> 102.8843746 | J36: 174.713936 | K36: 117.5331326 | L36: 99.06865244 | M36: 105.7142385 | N36: 107.8792779 | O36: 80.85589004 | P36: 77.46095713 | Q36: =_xlfn.XLOOKUP($D36,#REF!,#REF!,_xlfn.XLOOKUP($G36,#REF!,#REF!)) ->  | T36: =_xlfn.XLOOKUP($F36,'O_CAPEX Tariff Summary'!$R$9:$R$178,'O_CAPEX Tariff Summary'!$V$9:$V$178) -> 0 | V36: 0 | W36: 0 | X36: 0 | Y36: 0 | Z36: 0 | AA36: 0 | AB36: 0 | AC36: =_xlfn.XLOOKUP($D36,#REF!,#REF!,_xlfn.XLOOKUP($F36,#REF!,#REF!)) ->  | AF36: =IF($F36="NO_CAPEX",SUMIFS('I_Number of assets'!$M$8:$M$113,'I_Number of assets'!$F$8:$F$119,$G36),SUMIFS('I_Number of assets'!$M$8:$M$113,'I_Number of assets'!$F$8:$F$119,$F36)) ->  | AG36: =_xlfn.XLOOKUP($F36,'O_CAPEX Tariff Summary'!$R$9:$R$178,'O_CAPEX Tariff Summary'!$J$9:$J$178) -> 0
B37: Lamp | C37: HID | D37: High Pressure Sodium 250 | E37: HPS0110 | F37: NO_CAPEX | G37: =_xlfn.XLOOKUP($D37,'O_OPEX Tariff Summary'!$D$8:$D$137,'O_OPEX Tariff Summary'!$R$8:$R$137,_xlfn.XLOOKUP($E37,'O_OPEX Tariff Summary'!$D$8:$D$137,'O_OPEX Tariff Summary'!$R$8:$R$137)) -> HPS0110 | H37: =_xlfn.XLOOKUP($G37,'O_OPEX Tariff Summary'!$R$8:$R$137,'O_OPEX Tariff Summary'!$AC$8:$AC$137) -> 85.48176569 | J37: 140.5622685 | K37: 94.55870624 | L37: 81.61049459 | M37: 86.27070997 | N37: 87.86557915 | O37: 81.68127672 | P37: 78.2421326 | Q37: =_xlfn.XLOOKUP($D37,#REF!,#REF!,_xlfn.XLOOKUP($G37,#REF!,#REF!)) ->  | T37: =_xlfn.XLOOKUP($F37,'O_CAPEX Tariff Summary'!$R$9:$R$178,'O_CAPEX Tariff Summary'!$V$9:$V$178) -> 0 | V37: 0 | W37: 0 | X37: 0 | Y37: 0 | Z37: 0 | AA37: 0 | AB37: 0 | AC37: =_xlfn.XLOOKUP($D37,#REF!,#REF!,_xlfn.XLOOKUP($F37,#REF!,#REF!)) ->  | AF37: =IF($F37="NO_CAPEX",SUMIFS('I_Number of assets'!$M$8:$M$113,'I_Number of assets'!$F$8:$F$119,$G37),SUMIFS('I_Number of assets'!$M$8:$M$113,'I_Number of assets'!$F$8:$F$119,$F37)) ->  | AG37: =_xlfn.XLOOKUP($F37,'O_CAPEX Tariff Summary'!$R$9:$R$178,'O_CAPEX Tariff Summary'!$J$9:$J$178) -> 0
B38: Lamp | C38: HID | D38: High Pressure Sodium 2x250 | E38: HPS0120 | F38: NO_CAPEX | G38: =_xlfn.XLOOKUP($D38,'O_OPEX Tariff Summary'!$D$8:$D$137,'O_OPEX Tariff Summary'!$R$8:$R$137,_xlfn.XLOOKUP($E38,'O_OPEX Tariff Summary'!$D$8:$D$137,'O_OPEX Tariff Summary'!$R$8:$R$137)) -> HPS0120 | H38: =_xlfn.XLOOKUP($G38,'O_OPEX Tariff Summary'!$R$8:$R$137,'O_OPEX Tariff Summary'!$AC$8:$AC$137) -> 110.1259831 | J38: 185.1800117 | K38: 124.5738455 | L38: 105.500809 | M38: 112.3654217 | N38: 114.5933625 | O38: 85.45834309 | P38: 82.01919897 | Q38: =_xlfn.XLOOKUP($D38,#REF!,#REF!,_xlfn.XLOOKUP($G38,#REF!,#REF!)) ->  | T38: =_xlfn.XLOOKUP($F38,'O_CAPEX Tariff Summary'!$R$9:$R$178,'O_CAPEX Tariff Summary'!$V$9:$V$178) -> 0 | V38: 0 | W38: 0 | X38: 0 | Y38: 0 | Z38: 0 | AA38: 0 | AB38: 0 | AC38: =_xlfn.XLOOKUP($D38,#REF!,#REF!,_xlfn.XLOOKUP($F38,#REF!,#REF!)) ->  | AF38: =IF($F38="NO_CAPEX",SUMIFS('I_Number of assets'!$M$8:$M$113,'I_Number of assets'!$F$8:$F$119,$G38),SUMIFS('I_Number of assets'!$M$8:$M$113,'I_Number of assets'!$F$8:$F$119,$F38)) ->  | AG38: =_xlfn.XLOOKUP($F38,'O_CAPEX Tariff Summary'!$R$9:$R$178,'O_CAPEX Tariff Summary'!$J$9:$J$178) -> 0
B39: Lamp | C39: HID | D39: High Pressure Sodium 400 | E39: HPS0170 | F39: 7107.09.21 | G39: =_xlfn.XLOOKUP($D39,'O_OPEX Tariff Summary'!$D$8:$D$137,'O_OPEX Tariff Summary'!$R$8:$R$137,_xlfn.XLOOKUP($E39,'O_OPEX Tariff Summary'!$D$8:$D$137,'O_OPEX Tariff Summary'!$R$8:$R$137)) -> HPS0170 | H39: =_xlfn.XLOOKUP($G39,'O_OPEX Tariff Summary'!$R$8:$R$137,'O_OPEX Tariff Summary'!$AC$8:$AC$137) -> 85.33954871 | J39: 130.887848 | K39: 88.05055365 | L39: 79.38186707 | M39: 82.50183048 | N39: 83.65436115 | O39: 90.79723631 | P39: 87.54476177 | Q39: =_xlfn.XLOOKUP($D39,#REF!,#REF!,_xlfn.XLOOKUP($G39,#REF!,#REF!)) ->  | T39: =_xlfn.XLOOKUP($F39,'O_CAPEX Tariff Summary'!$R$9:$R$178,'O_CAPEX Tariff Summary'!$V$9:$V$178) -> 66.55287236 | V39: 108.3751224 | W39: 90.82189622 | X39: 77.45602069 | Y39: 82.26655827 | Z39: 83.43991311 | AA39: 83.43991311 | AB39: 80.59924125 | AC39: =_xlfn.XLOOKUP($D39,#REF!,#REF!,_xlfn.XLOOKUP($F39,#REF!,#REF!)) ->  | AF39: =IF($F39="NO_CAPEX",SUMIFS('I_Number of assets'!$M$8:$M$113,'I_Number of assets'!$F$8:$F$119,$G39),SUMIFS('I_Number of assets'!$M$8:$M$113,'I_Number of assets'!$F$8:$F$119,$F39)) ->  | AG39: =_xlfn.XLOOKUP($F39,'O_CAPEX Tariff Summary'!$R$9:$R$178,'O_CAPEX Tariff Summary'!$J$9:$J$178) -> 93
B40: Lamp | C40: HID | D40: High Pressure Sodium 2x400 | E40: HPS0180 | F40: NO_CAPEX | G40: =_xlfn.XLOOKUP($D40,'O_OPEX Tariff Summary'!$D$8:$D$137,'O_OPEX Tariff Summary'!$R$8:$R$137,_xlfn.XLOOKUP($E40,'O_OPEX Tariff Summary'!$D$8:$D$137,'O_OPEX Tariff Summary'!$R$8:$R$137)) -> HPS0180 | H40: =_xlfn.XLOOKUP($G40,'O_OPEX Tariff Summary'!$R$8:$R$137,'O_OPEX Tariff Summary'!$AC$8:$AC$137) -> 142.1888768 | J40: 225.5521951 | K40: 151.7329222 | L40: 132.6598857 | M40: 139.5244984 | N40: 141.7524392 | O40: 106.2801539 | P40: 103.0276794 | Q40: =_xlfn.XLOOKUP($D40,#REF!,#REF!,_xlfn.XLOOKUP($G40,#REF!,#REF!)) ->  | T40: =_xlfn.XLOOKUP($F40,'O_CAPEX Tariff Summary'!$R$9:$R$178,'O_CAPEX Tariff Summary'!$V$9:$V$178) -> 0 | V40: 0 | W40: 0 | X40: 0 | Y40: 0 | Z40: 0 | AA40: 0 | AB40: 0 | AC40: =_xlfn.XLOOKUP($D40,#REF!,#REF!,_xlfn.XLOOKUP($F40,#REF!,#REF!)) ->  | AF40: =IF($F40="NO_CAPEX",SUMIFS('I_Number of assets'!$M$8:$M$113,'I_Number of assets'!$F$8:$F$119,$G40),SUMIFS('I_Number of assets'!$M$8:$M$113,'I_Number of assets'!$F$8:$F$119,$F40)) ->  | AG40: =_xlfn.XLOOKUP($F40,'O_CAPEX Tariff Summary'!$R$9:$R$178,'O_CAPEX Tariff Summary'!$J$9:$J$178) -> 0
B41: Lamp | C41: HID | D41: High Pressure Sodium 3x400 | E41: HPS0190 | F41: NO_CAPEX | G41: =_xlfn.XLOOKUP($D41,'O_OPEX Tariff Summary'!$D$8:$D$137,'O_OPEX Tariff Summary'!$R$8:$R$137,_xlfn.XLOOKUP($E41,'O_OPEX Tariff Summary'!$D$8:$D$137,'O_OPEX Tariff Summary'!$R$8:$R$137)) -> HPS0190 | H41: =_xlfn.XLOOKUP($G41,'O_OPEX Tariff Summary'!$R$8:$R$137,'O_OPEX Tariff Summary'!$AC$8:$AC$137) -> 163.229444 | J41: 252.0483374 | K41: 169.5573424 | L41: 150.4843059 | M41: 157.3489186 | N41: 159.5768594 | O41: 121.7630715 | P41: 118.5105969 | Q41: =_xlfn.XLOOKUP($D41,#REF!,#REF!,_xlfn.XLOOKUP($G41,#REF!,#REF!)) ->  | T41: =_xlfn.XLOOKUP($F41,'O_CAPEX Tariff Summary'!$R$9:$R$178,'O_CAPEX Tariff Summary'!$V$9:$V$178) -> 0 | V41: 0 | W41: 0 | X41: 0 | Y41: 0 | Z41: 0 | AA41: 0 | AB41: 0 | AC41: =_xlfn.XLOOKUP($D41,#REF!,#REF!,_xlfn.XLOOKUP($F41,#REF!,#REF!)) ->  | AF41: =IF($F41="NO_CAPEX",SUMIFS('I_Number of assets'!$M$8:$M$113,'I_Number of assets'!$F$8:$F$119,$G41),SUMIFS('I_Number of assets'!$M$8:$M$113,'I_Number of assets'!$F$8:$F$119,$F41)) ->  | AG41: =_xlfn.XLOOKUP($F41,'O_CAPEX Tariff Summary'!$R$9:$R$178,'O_CAPEX Tariff Summary'!$J$9:$J$178) -> 0
B42: Lamp | C42: HID | D42: High Pressure Sodium 400 Twin Arc | E42: HPS0170-TA | F42: 7107.09.24 | G42: =_xlfn.XLOOKUP($D42,'O_OPEX Tariff Summary'!$D$8:$D$137,'O_OPEX Tariff Summary'!$R$8:$R$137,_xlfn.XLOOKUP($E42,'O_OPEX Tariff Summary'!$D$8:$D$137,'O_OPEX Tariff Summary'!$R$8:$R$137)) -> HPS0170-TA | H42: =_xlfn.XLOOKUP($G42,'O_OPEX Tariff Summary'!$R$8:$R$137,'O_OPEX Tariff Summary'!$AC$8:$AC$137) -> 99.9815517 | J42: 196.6027062 | K42: 132.2580927 | L42: 113.1850562 | M42: 120.0496689 | N42: 122.2776097 | O42: 69.28308731 | P42: 67.33729984 | Q42: =_xlfn.XLOOKUP($D42,#REF!,#REF!,_xlfn.XLOOKUP($G42,#REF!,#REF!)) ->  | T42: =_xlfn.XLOOKUP($F42,'O_CAPEX Tariff Summary'!$R$9:$R$178,'O_CAPEX Tariff Summary'!$V$9:$V$178) -> 69.92567904 | V42: 112.437677 | W42: 94.22644981 | X42: 80.86057428 | Y42: 85.67111186 | Z42: 86.8444667 | AA42: 86.8444667 | AB42: 84.00379484 | AC42: =_xlfn.XLOOKUP($D42,#REF!,#REF!,_xlfn.XLOOKUP($F42,#REF!,#REF!)) ->  | AF42: =IF($F42="NO_CAPEX",SUMIFS('I_Number of assets'!$M$8:$M$113,'I_Number of assets'!$F$8:$F$119,$G42),SUMIFS('I_Number of assets'!$M$8:$M$113,'I_Number of assets'!$F$8:$F$119,$F42)) ->  | AG42: =_xlfn.XLOOKUP($F42,'O_CAPEX Tariff Summary'!$R$9:$R$178,'O_CAPEX Tariff Summary'!$J$9:$J$178) -> 0
B43: Lamp | C43: HID | D43: High Pressure Sodium 70 Twin Arc | E43: HPS0020-TA | F43: 7107.09.61 | G43: =_xlfn.XLOOKUP($D43,'O_OPEX Tariff Summary'!$D$8:$D$137,'O_OPEX Tariff Summary'!$R$8:$R$137,_xlfn.XLOOKUP($E43,'O_OPEX Tariff Summary'!$D$8:$D$137,'O_OPEX Tariff Summary'!$R$8:$R$137)) -> HPS0020-TA | H43: =_xlfn.XLOOKUP($G43,'O_OPEX Tariff Summary'!$R$8:$R$137,'O_OPEX Tariff Summary'!$AC$8:$AC$137) -> 66.71516345 | J43: 105.193311 | K43: 70.76538743 | L43: 69.28851813 | M43: 71.96111526 | N43: 72.94301223 | O43: 52.83015029 | P43: 51.62197904 | Q43: =_xlfn.XLOOKUP($D43,#REF!,#REF!,_xlfn.XLOOKUP($G43,#REF!,#REF!)) ->  | T43: =_xlfn.XLOOKUP($F43,'O_CAPEX Tariff Summary'!$R$9:$R$178,'O_CAPEX Tariff Summary'!$V$9:$V$178) -> 30.14100021 | V43: 40.49709687 | W43: 33.93789135 | X43: 32.90294072 | Y43: 34.77582554 | Z43: 35.07598608 | AA43: 35.07598608 | AB43: 34.34930258 | AC43: =_xlfn.XLOOKUP($D43,#REF!,#REF!,_xlfn.XLOOKUP($F43,#REF!,#REF!)) ->  | AF43: =IF($F43="NO_CAPEX",SUMIFS('I_Number of assets'!$M$8:$M$113,'I_Number of assets'!$F$8:$F$119,$G43),SUMIFS('I_Number of assets'!$M$8:$M$113,'I_Number of assets'!$F$8:$F$119,$F43)) ->  | AG43: =_xlfn.XLOOKUP($F43,'O_CAPEX Tariff Summary'!$R$9:$R$178,'O_CAPEX Tariff Summary'!$J$9:$J$178) -> 0
B44: Lamp | C44: HID | D44: High Pressure Sodium 150 Twin Arc | E44: HPS0090-TA | F44: 7107.09.41 | G44: =_xlfn.XLOOKUP($D44,'O_OPEX Tariff Summary'!$D$8:$D$137,'O_OPEX Tariff Summary'!$R$8:$R$137,_xlfn.XLOOKUP($E44,'O_OPEX Tariff Summary'!$D$8:$D$137,'O_OPEX Tariff Summary'!$R$8:$R$137)) -> HPS0090-TA | H44: =_xlfn.XLOOKUP($G44,'O_OPEX Tariff Summary'!$R$8:$R$137,'O_OPEX Tariff Summary'!$AC$8:$AC$137) -> 94.12637221 | J44: 187.8107987 | K44: 126.3436221 | L44: 107.2705856 | M44: 114.1351983 | N44: 116.3631391 | O44: 67.31334289 | P44: 65.18838934 | Q44: =_xlfn.XLOOKUP($D44,#REF!,#REF!,_xlfn.XLOOKUP($G44,#REF!,#REF!)) ->  | T44: =_xlfn.XLOOKUP($F44,'O_CAPEX Tariff Summary'!$R$9:$R$178,'O_CAPEX Tariff Summary'!$V$9:$V$178) -> 57.38000029 | V44: 97.32637369 | W44: 81.56268351 | X44: 68.19680798 | Y44: 73.00734556 | Z44: 74.1807004 | AA44: 74.1807004 | AB44: 71.34002854 | AC44: =_xlfn.XLOOKUP($D44,#REF!,#REF!,_xlfn.XLOOKUP($F44,#REF!,#REF!)) ->  | AF44: =IF($F44="NO_CAPEX",SUMIFS('I_Number of assets'!$M$8:$M$113,'I_Number of assets'!$F$8:$F$119,$G44),SUMIFS('I_Number of assets'!$M$8:$M$113,'I_Number of assets'!$F$8:$F$119,$F44)) ->  | AG44: =_xlfn.XLOOKUP($F44,'O_CAPEX Tariff Summary'!$R$9:$R$178,'O_CAPEX Tariff Summary'!$J$9:$J$178) -> 0
B45: Lamp | C45: HID | D45: High Pressure Sodium 250 Twin Arc | E45: HPS0110-TA | F45: 7107.09.39 | G45: =_xlfn.XLOOKUP($D45,'O_OPEX Tariff Summary'!$D$8:$D$137,'O_OPEX Tariff Summary'!$R$8:$R$137,_xlfn.XLOOKUP($E45,'O_OPEX Tariff Summary'!$D$8:$D$137,'O_OPEX Tariff Summary'!$R$8:$R$137)) -> HPS0110-TA | H45: =_xlfn.XLOOKUP($G45,'O_OPEX Tariff Summary'!$R$8:$R$137,'O_OPEX Tariff Summary'!$AC$8:$AC$137) -> 105.0181335 | J45: 204.1729929 | K45: 137.3507575 | L45: 118.277721 | M45: 125.1423337 | N45: 127.3702745 | O45: 79.19401961 | P45: 76.86998061 | Q45: =_xlfn.XLOOKUP($D45,#REF!,#REF!,_xlfn.XLOOKUP($G45,#REF!,#REF!)) ->  | T45: =_xlfn.XLOOKUP($F45,'O_CAPEX Tariff Summary'!$R$9:$R$178,'O_CAPEX Tariff Summary'!$V$9:$V$178) -> 63.71886956 | V45: 102.4964871 | W45: 85.89540763 | X45: 72.5295321 | Y45: 77.34006968 | Z45: 78.51342452 | AA45: 78.51342452 | AB45: 75.67275266 | AC45: =_xlfn.XLOOKUP($D45,#REF!,#REF!,_xlfn.XLOOKUP($F45,#REF!,#REF!)) ->  | AF45: =IF($F45="NO_CAPEX",SUMIFS('I_Number of assets'!$M$8:$M$113,'I_Number of assets'!$F$8:$F$119,$G45),SUMIFS('I_Number of assets'!$M$8:$M$113,'I_Number of assets'!$F$8:$F$119,$F45)) ->  | AG45: =_xlfn.XLOOKUP($F45,'O_CAPEX Tariff Summary'!$R$9:$R$178,'O_CAPEX Tariff Summary'!$J$9:$J$178) -> 0
B46: Lamp | C46: HID | D46: Mercury Vapour 50 | E46: MVA0010 | F46: 7206.05.1 | G46: =_xlfn.XLOOKUP($D46,'O_OPEX Tariff Summary'!$D$8:$D$137,'O_OPEX Tariff Summary'!$R$8:$R$137,_xlfn.XLOOKUP($E46,'O_OPEX Tariff Summary'!$D$8:$D$137,'O_OPEX Tariff Summary'!$R$8:$R$137)) -> MVA0010 | H46: =_xlfn.XLOOKUP($G46,'O_OPEX Tariff Summary'!$R$8:$R$137,'O_OPEX Tariff Summary'!$AC$8:$AC$137) -> 54.29013228 | J46: 72.90051494 | K46: 49.0414565 | L46: 48.47206422 | M46: 49.50245748 | N46: 50.03864026 | O46: 69.74729046 | P46: 67.24496254 | Q46: =_xlfn.XLOOKUP($D46,#REF!,#REF!,_xlfn.XLOOKUP($G46,#REF!,#REF!)) ->  | T46: =_xlfn.XLOOKUP($F46,'O_CAPEX Tariff Summary'!$R$9:$R$178,'O_CAPEX Tariff Summary'!$V$9:$V$178) -> 21.02538413 | V46: 29.88220985 | W46: 25.04226894 | X46: 24.00731831 | Y46: 25.88020313 | Z46: 26.18036367 | AA46: 26.18036367 | AB46: 25.45368017 | AC46: =_xlfn.XLOOKUP($D46,#REF!,#REF!,_xlfn.XLOOKUP($F46,#REF!,#REF!)) ->  | AF46: =IF($F46="NO_CAPEX",SUMIFS('I_Number of assets'!$M$8:$M$113,'I_Number of assets'!$F$8:$F$119,$G46),SUMIFS('I_Number of assets'!$M$8:$M$113,'I_Number of assets'!$F$8:$F$119,$F46)) ->  | AG46: =_xlfn.XLOOKUP($F46,'O_CAPEX Tariff Summary'!$R$9:$R$178,'O_CAPEX Tariff Summary'!$J$9:$J$178) -> 34
B47: Lamp | C47: HID | D47: Mercury Vapour 80 | E47: MVA0020 | F47: 7206.05.1 | G47: =_xlfn.XLOOKUP($D47,'O_OPEX Tariff Summary'!$D$8:$D$137,'O_OPEX Tariff Summary'!$R$8:$R$137,_xlfn.XLOOKUP($E47,'O_OPEX Tariff Summary'!$D$8:$D$137,'O_OPEX Tariff Summary'!$R$8:$R$137)) -> MVA0020 | H47: =_xlfn.XLOOKUP($G47,'O_OPEX Tariff Summary'!$R$8:$R$137,'O_OPEX Tariff Summary'!$AC$8:$AC$137) -> 53.66567768 | J47: 72.11600308 | K47: 48.51370159 | L47: 47.93822906 | M47: 48.97962537 | N47: 49.51879451 | O47: 58.88014503 | P47: 56.99778323 | Q47: =_xlfn.XLOOKUP($D47,#REF!,#REF!,_xlfn.XLOOKUP($G47,#REF!,#REF!)) ->  | T47: =_xlfn.XLOOKUP($F47,'O_CAPEX Tariff Summary'!$R$9:$R$178,'O_CAPEX Tariff Summary'!$V$9:$V$178) -> 21.02538413 | V47: 29.88220985 | W47: 25.04226894 | X47: 24.00731831 | Y47: 25.88020313 | Z47: 26.18036367 | AA47: 26.18036367 | AB47: 25.45368017 | AC47: =_xlfn.XLOOKUP($D47,#REF!,#REF!,_xlfn.XLOOKUP($F47,#REF!,#REF!)) ->  | AF47: =IF($F47="NO_CAPEX",SUMIFS('I_Number of assets'!$M$8:$M$113,'I_Number of assets'!$F$8:$F$119,$G47),SUMIFS('I_Number of assets'!$M$8:$M$113,'I_Number of assets'!$F$8:$F$119,$F47)) ->  | AG47: =_xlfn.XLOOKUP($F47,'O_CAPEX Tariff Summary'!$R$9:$R$178,'O_CAPEX Tariff Summary'!$J$9:$J$178) -> 34
B48: Lamp | C48: HID | D48: Mercury Vapour 125 | E48: MVA0080 | F48: NO_CAPEX | G48: =_xlfn.XLOOKUP($D48,'O_OPEX Tariff Summary'!$D$8:$D$137,'O_OPEX Tariff Summary'!$R$8:$R$137,_xlfn.XLOOKUP($E48,'O_OPEX Tariff Summary'!$D$8:$D$137,'O_OPEX Tariff Summary'!$R$8:$R$137)) -> MVA0080 | H48: =_xlfn.XLOOKUP($G48,'O_OPEX Tariff Summary'!$R$8:$R$137,'O_OPEX Tariff Summary'!$AC$8:$AC$137) -> 73.06541688 | J48: 97.04991503 | K48: 65.28718199 | L48: 63.81031269 | M48: 66.48290982 | N48: 67.46480679 | O48: 65.6656054 | P48: 63.39825006 | Q48: =_xlfn.XLOOKUP($D48,#REF!,#REF!,_xlfn.XLOOKUP($G48,#REF!,#REF!)) ->  | T48: =_xlfn.XLOOKUP($F48,'O_CAPEX Tariff Summary'!$R$9:$R$178,'O_CAPEX Tariff Summary'!$V$9:$V$178) -> 0 | V48: 0 | W48: 0 | X48: 0 | Y48: 0 | Z48: 0 | AA48: 0 | AB48: 0 | AC48: =_xlfn.XLOOKUP($D48,#REF!,#REF!,_xlfn.XLOOKUP($F48,#REF!,#REF!)) ->  | AF48: =IF($F48="NO_CAPEX",SUMIFS('I_Number of assets'!$M$8:$M$113,'I_Number of assets'!$F$8:$F$119,$G48),SUMIFS('I_Number of assets'!$M$8:$M$113,'I_Number of assets'!$F$8:$F$119,$F48)) ->  | AG48: =_xlfn.XLOOKUP($F48,'O_CAPEX Tariff Summary'!$R$9:$R$178,'O_CAPEX Tariff Summary'!$J$9:$J$178) -> 0
B49: Lamp | C49: HID | D49: Mercury Vapour 250 | E49: MVA0190 | F49: 7107.09.7 | G49: =_xlfn.XLOOKUP($D49,'O_OPEX Tariff Summary'!$D$8:$D$137,'O_OPEX Tariff Summary'!$R$8:$R$137,_xlfn.XLOOKUP($E49,'O_OPEX Tariff Summary'!$D$8:$D$137,'O_OPEX Tariff Summary'!$R$8:$R$137)) -> MVA0190 | H49: =_xlfn.XLOOKUP($G49,'O_OPEX Tariff Summary'!$R$8:$R$137,'O_OPEX Tariff Summary'!$AC$8:$AC$137) -> 89.16986746 | J49: 147.3449565 | K49: 99.12153955 | L49: 85.2114163 | M49: 90.21783511 | N49: 91.912129 | O49: 126.6005763 | P49: 120.13542 | Q49: =_xlfn.XLOOKUP($D49,#REF!,#REF!,_xlfn.XLOOKUP($G49,#REF!,#REF!)) ->  | T49: =_xlfn.XLOOKUP($F49,'O_CAPEX Tariff Summary'!$R$9:$R$178,'O_CAPEX Tariff Summary'!$V$9:$V$178) -> 55.53776641 | V49: 95.10739809 | W49: 79.7031094 | X49: 66.33723387 | Y49: 71.14777145 | Z49: 72.3211263 | AA49: 72.3211263 | AB49: 69.48045443 | AC49: =_xlfn.XLOOKUP($D49,#REF!,#REF!,_xlfn.XLOOKUP($F49,#REF!,#REF!)) ->  | AF49: =IF($F49="NO_CAPEX",SUMIFS('I_Number of assets'!$M$8:$M$113,'I_Number of assets'!$F$8:$F$119,$G49),SUMIFS('I_Number of assets'!$M$8:$M$113,'I_Number of assets'!$F$8:$F$119,$F49)) ->  | AG49: =_xlfn.XLOOKUP($F49,'O_CAPEX Tariff Summary'!$R$9:$R$178,'O_CAPEX Tariff Summary'!$J$9:$J$178) -> 4
B50: Lamp | C50: HID | D50: Mercury Vapour 400 | E50: MVA0220 | F50: 7107.09.7 | G50: =_xlfn.XLOOKUP($D50,'O_OPEX Tariff Summary'!$D$8:$D$137,'O_OPEX Tariff Summary'!$R$8:$R$137,_xlfn.XLOOKUP($E50,'O_OPEX Tariff Summary'!$D$8:$D$137,'O_OPEX Tariff Summary'!$R$8:$R$137)) -> MVA0220 | H50: =_xlfn.XLOOKUP($G50,'O_OPEX Tariff Summary'!$R$8:$R$137,'O_OPEX Tariff Summary'!$AC$8:$AC$137) -> 83.35315617 | J50: 134.6612336 | K50: 90.58897644 | L50: 79.09344761 | M50: 83.23082517 | N50: 84.67554274 | O50: 144.3909162 | P50: 136.854866 | Q50: =_xlfn.XLOOKUP($D50,#REF!,#REF!,_xlfn.XLOOKUP($G50,#REF!,#REF!)) ->  | T50: =_xlfn.XLOOKUP($F50,'O_CAPEX Tariff Summary'!$R$9:$R$178,'O_CAPEX Tariff Summary'!$V$9:$V$178) -> 55.53776641 | V50: 95.10739809 | W50: 79.7031094 | X50: 66.33723387 | Y50: 71.14777145 | Z50: 72.3211263 | AA50: 72.3211263 | AB50: 69.48045443 | AC50: =_xlfn.XLOOKUP($D50,#REF!,#REF!,_xlfn.XLOOKUP($F50,#REF!,#REF!)) ->  | AF50: =IF($F50="NO_CAPEX",SUMIFS('I_Number of assets'!$M$8:$M$113,'I_Number of assets'!$F$8:$F$119,$G50),SUMIFS('I_Number of assets'!$M$8:$M$113,'I_Number of assets'!$F$8:$F$119,$F50)) ->  | AG50: =_xlfn.XLOOKUP($F50,'O_CAPEX Tariff Summary'!$R$9:$R$178,'O_CAPEX Tariff Summary'!$J$9:$J$178) -> 4
B51: Lamp | C51: HID | D51: Mercury Vapour 2x400 | E51: MVA0230 | F51: 7107.09.7 | G51: =_xlfn.XLOOKUP($D51,'O_OPEX Tariff Summary'!$D$8:$D$137,'O_OPEX Tariff Summary'!$R$8:$R$137,_xlfn.XLOOKUP($E51,'O_OPEX Tariff Summary'!$D$8:$D$137,'O_OPEX Tariff Summary'!$R$8:$R$137)) -> MVA0230 | H51: =_xlfn.XLOOKUP($G51,'O_OPEX Tariff Summary'!$R$8:$R$137,'O_OPEX Tariff Summary'!$AC$8:$AC$137) -> 90.51186909 | J51: 182.3908856 | K51: 122.6975515 | L51: 103.6245149 | M51: 110.4891277 | N51: 112.7170685 | O51: 57.40610506 | P51: 55.75197395 | Q51: =_xlfn.XLOOKUP($D51,#REF!,#REF!,_xlfn.XLOOKUP($G51,#REF!,#REF!)) ->  | T51: =_xlfn.XLOOKUP($F51,'O_CAPEX Tariff Summary'!$R$9:$R$178,'O_CAPEX Tariff Summary'!$V$9:$V$178) -> 55.53776641 | V51: 95.10739809 | W51: 79.7031094 | X51: 66.33723387 | Y51: 71.14777145 | Z51: 72.3211263 | AA51: 72.3211263 | AB51: 69.48045443 | AC51: =_xlfn.XLOOKUP($D51,#REF!,#REF!,_xlfn.XLOOKUP($F51,#REF!,#REF!)) ->  | AF51: =IF($F51="NO_CAPEX",SUMIFS('I_Number of assets'!$M$8:$M$113,'I_Number of assets'!$F$8:$F$119,$G51),SUMIFS('I_Number of assets'!$M$8:$M$113,'I_Number of assets'!$F$8:$F$119,$F51)) ->  | AG51: =_xlfn.XLOOKUP($F51,'O_CAPEX Tariff Summary'!$R$9:$R$178,'O_CAPEX Tariff Summary'!$J$9:$J$178) -> 4
B52: Lamp | C52: HID | D52: Metal Hallide (Reactor Control Gear) 250 | E52: MHR0060 | F52: NO_CAPEX | G52: =_xlfn.XLOOKUP($D52,'O_OPEX Tariff Summary'!$D$8:$D$137,'O_OPEX Tariff Summary'!$R$8:$R$137,_xlfn.XLOOKUP($E52,'O_OPEX Tariff Summary'!$D$8:$D$137,'O_OPEX Tariff Summary'!$R$8:$R$137)) -> MHR0060 | H52: =_xlfn.XLOOKUP($G52,'O_OPEX Tariff Summary'!$R$8:$R$137,'O_OPEX Tariff Summary'!$AC$8:$AC$137) -> 77.39750415 | J52: 114.6649693 | K52: 77.13713834 | L52: 71.27566316 | M52: 73.38527779 | N52: 74.24765063 | O52: 135.8137911 | P52: 129.77601 | Q52: =_xlfn.XLOOKUP($D52,#REF!,#REF!,_xlfn.XLOOKUP($G52,#REF!,#REF!)) ->  | T52: =_xlfn.XLOOKUP($F52,'O_CAPEX Tariff Summary'!$R$9:$R$178,'O_CAPEX Tariff Summary'!$V$9:$V$178) -> 0 | V52: 0 | W52: 0 | X52: 0 | Y52: 0 | Z52: 0 | AA52: 0 | AB52: 0 | AC52: =_xlfn.XLOOKUP($D52,#REF!,#REF!,_xlfn.XLOOKUP($F52,#REF!,#REF!)) ->  | AF52: =IF($F52="NO_CAPEX",SUMIFS('I_Number of assets'!$M$8:$M$113,'I_Number of assets'!$F$8:$F$119,$G52),SUMIFS('I_Number of assets'!$M$8:$M$113,'I_Number of assets'!$F$8:$F$119,$F52)) ->  | AG52: =_xlfn.XLOOKUP($F52,'O_CAPEX Tariff Summary'!$R$9:$R$178,'O_CAPEX Tariff Summary'!$J$9:$J$178) -> 0
B53: Lamp | C53: HID | D53: Metal Hallide (Reactor Control Gear) 400 | E53: MHR0070 | F53: 7107.09.11 | G53: =_xlfn.XLOOKUP($D53,'O_OPEX Tariff Summary'!$D$8:$D$137,'O_OPEX Tariff Summary'!$R$8:$R$137,_xlfn.XLOOKUP($E53,'O_OPEX Tariff Summary'!$D$8:$D$137,'O_OPEX Tariff Summary'!$R$8:$R$137)) -> MHR0070 | H53: =_xlfn.XLOOKUP($G53,'O_OPEX Tariff Summary'!$R$8:$R$137,'O_OPEX Tariff Summary'!$AC$8:$AC$137) -> 80.79419074 | J53: 116.8048139 | K53: 78.57664935 | L53: 73.67708577 | M53: 75.44049697 | N53: 76.2034451 | O53: 143.3660144 | P53: 137.3282332 | Q53: =_xlfn.XLOOKUP($D53,#REF!,#REF!,_xlfn.XLOOKUP($G53,#REF!,#REF!)) ->  | T53: =_xlfn.XLOOKUP($F53,'O_CAPEX Tariff Summary'!$R$9:$R$178,'O_CAPEX Tariff Summary'!$V$9:$V$178) -> 55.53776641 | V53: 95.10739809 | W53: 79.7031094 | X53: 66.33723387 | Y53: 71.14777145 | Z53: 72.3211263 | AA53: 72.3211263 | AB53: 69.48045443 | AC53: =_xlfn.XLOOKUP($D53,#REF!,#REF!,_xlfn.XLOOKUP($F53,#REF!,#REF!)) ->  | AF53: =IF($F53="NO_CAPEX",SUMIFS('I_Number of assets'!$M$8:$M$113,'I_Number of assets'!$F$8:$F$119,$G53),SUMIFS('I_Number of assets'!$M$8:$M$113,'I_Number of assets'!$F$8:$F$119,$F53)) ->  | AG53: =_xlfn.XLOOKUP($F53,'O_CAPEX Tariff Summary'!$R$9:$R$178,'O_CAPEX Tariff Summary'!$J$9:$J$178) -> 4
B54: Lamp | C54: HID | D54: Incandescent 60 | E54: INC0030 | F54: NO_CAPEX | G54: =_xlfn.XLOOKUP($D54,'O_OPEX Tariff Summary'!$D$8:$D$137,'O_OPEX Tariff Summary'!$R$8:$R$137,_xlfn.XLOOKUP($E54,'O_OPEX Tariff Summary'!$D$8:$D$137,'O_OPEX Tariff Summary'!$R$8:$R$137)) -> INC0030 | H54: =_xlfn.XLOOKUP($G54,'O_OPEX Tariff Summary'!$R$8:$R$137,'O_OPEX Tariff Summary'!$AC$8:$AC$137) -> 70.96044191 | J54: 94.41057556 | K54: 63.51165198 | L54: 62.03478269 | M54: 64.70737981 | N54: 65.68927679 | O54: 49.16632264 | P54: 47.81727455 | Q54: =_xlfn.XLOOKUP($D54,#REF!,#REF!,_xlfn.XLOOKUP($G54,#REF!,#REF!)) ->  | T54: =_xlfn.XLOOKUP($F54,'O_CAPEX Tariff Summary'!$R$9:$R$178,'O_CAPEX Tariff Summary'!$V$9:$V$178) -> 0 | V54: 0 | W54: 0 | X54: 0 | Y54: 0 | Z54: 0 | AA54: 0 | AB54: 0 | AC54: =_xlfn.XLOOKUP($D54,#REF!,#REF!,_xlfn.XLOOKUP($F54,#REF!,#REF!)) ->  | AF54: =IF($F54="NO_CAPEX",SUMIFS('I_Number of assets'!$M$8:$M$113,'I_Number of assets'!$F$8:$F$119,$G54),SUMIFS('I_Number of assets'!$M$8:$M$113,'I_Number of assets'!$F$8:$F$119,$F54)) ->  | AG54: =_xlfn.XLOOKUP($F54,'O_CAPEX Tariff Summary'!$R$9:$R$178,'O_CAPEX Tariff Summary'!$J$9:$J$178) -> 0
B55: Lamp | C55: HID | D55: Metal Hallide (Reactor Control Gear) 1000 | E55: MHR0100 | F55: NO_CAPEX | G55: =_xlfn.XLOOKUP($D55,'O_OPEX Tariff Summary'!$D$8:$D$137,'O_OPEX Tariff Summary'!$R$8:$R$137,_xlfn.XLOOKUP($E55,'O_OPEX Tariff Summary'!$D$8:$D$137,'O_OPEX Tariff Summary'!$R$8:$R$137)) -> MHR0100 | H55: =_xlfn.XLOOKUP($G55,'O_OPEX Tariff Summary'!$R$8:$R$137,'O_OPEX Tariff Summary'!$AC$8:$AC$137) -> 130.1210794 | J55: 210.3256967 | K55: 141.4897894 | L55: 122.4167529 | M55: 129.2813656 | N55: 131.5093064 | O55: 293.1277232 | P55: 277.564881 | Q55: =_xlfn.XLOOKUP($D55,#REF!,#REF!,_xlfn.XLOOKUP($G55,#REF!,#REF!)) ->  | T55: =_xlfn.XLOOKUP($F55,'O_CAPEX Tariff Summary'!$R$9:$R$178,'O_CAPEX Tariff Summary'!$V$9:$V$178) -> 0 | V55: 0 | W55: 0 | X55: 0 | Y55: 0 | Z55: 0 | AA55: 0 | AB55: 0 | AC55: =_xlfn.XLOOKUP($D55,#REF!,#REF!,_xlfn.XLOOKUP($F55,#REF!,#REF!)) ->  | AF55: =IF($F55="NO_CAPEX",SUMIFS('I_Number of assets'!$M$8:$M$113,'I_Number of assets'!$F$8:$F$119,$G55),SUMIFS('I_Number of assets'!$M$8:$M$113,'I_Number of assets'!$F$8:$F$119,$F55)) ->  | AG55: =_xlfn.XLOOKUP($F55,'O_CAPEX Tariff Summary'!$R$9:$R$178,'O_CAPEX Tariff Summary'!$J$9:$J$178) -> 0
B56: Lamp | C56: HID | D56: High Pressure Sodium 600 (Internal Ignitor) | E56: HPS0210 | F56: NO_CAPEX | G56: =_xlfn.XLOOKUP($D56,'O_OPEX Tariff Summary'!$D$8:$D$137,'O_OPEX Tariff Summary'!$R$8:$R$137,_xlfn.XLOOKUP($E56,'O_OPEX Tariff Summary'!$D$8:$D$137,'O_OPEX Tariff Summary'!$R$8:$R$137)) -> HPS0210 | H56: =_xlfn.XLOOKUP($G56,'O_OPEX Tariff Summary'!$R$8:$R$137,'O_OPEX Tariff Summary'!$AC$8:$AC$137) -> 150.4753386 | J56: 272.4061652 | K56: 183.2524106 | L56: 164.1793741 | M56: 171.0439868 | N56: 173.2719276 | O56: 114.0961467 | P56: 111.9026557 | Q56: =_xlfn.XLOOKUP($D56,#REF!,#REF!,_xlfn.XLOOKUP($G56,#REF!,#REF!)) ->  | T56: =_xlfn.XLOOKUP($F56,'O_CAPEX Tariff Summary'!$R$9:$R$178,'O_CAPEX Tariff Summary'!$V$9:$V$178) -> 0 | V56: 0 | W56: 0 | X56: 0 | Y56: 0 | Z56: 0 | AA56: 0 | AB56: 0 | AC56: =_xlfn.XLOOKUP($D56,#REF!,#REF!,_xlfn.XLOOKUP($F56,#REF!,#REF!)) ->  | AF56: =IF($F56="NO_CAPEX",SUMIFS('I_Number of assets'!$M$8:$M$113,'I_Number of assets'!$F$8:$F$119,$G56),SUMIFS('I_Number of assets'!$M$8:$M$113,'I_Number of assets'!$F$8:$F$119,$F56)) ->  | AG56: =_xlfn.XLOOKUP($F56,'O_CAPEX Tariff Summary'!$R$9:$R$178,'O_CAPEX Tariff Summary'!$J$9:$J$178) -> 0
B57: Lamp | C57: HID | D57: Compact Fluorescent 1x42 | E57: FLU0350 | F57: 7107.09.43 | G57: =_xlfn.XLOOKUP($D57,'O_OPEX Tariff Summary'!$D$8:$D$137,'O_OPEX Tariff Summary'!$R$8:$R$137,_xlfn.XLOOKUP($E57,'O_OPEX Tariff Summary'!$D$8:$D$137,'O_OPEX Tariff Summary'!$R$8:$R$137)) -> FLU0350 | H57: =_xlfn.XLOOKUP($G57,'O_OPEX Tariff Summary'!$R$8:$R$137,'O_OPEX Tariff Summary'!$AC$8:$AC$137) -> 83.95764923 | J57: 111.0078105 | K57: 74.67690339 | L57: 72.74097537 | M57: 76.24430209 | N57: 77.45166922 | O57: 55.41871446 | P57: 53.83639456 | Q57: =_xlfn.XLOOKUP($D57,#REF!,#REF!,_xlfn.XLOOKUP($G57,#REF!,#REF!)) ->  | T57: =_xlfn.XLOOKUP($F57,'O_CAPEX Tariff Summary'!$R$9:$R$178,'O_CAPEX Tariff Summary'!$V$9:$V$178) -> 29.4760004 | V57: 40.06099957 | W57: 33.57242754 | X57: 32.53747692 | Y57: 34.41036174 | Z57: 34.71052228 | AA57: 34.71052228 | AB57: 33.98383878 | AC57: =_xlfn.XLOOKUP($D57,#REF!,#REF!,_xlfn.XLOOKUP($F57,#REF!,#REF!)) ->  | AF57: =IF($F57="NO_CAPEX",SUMIFS('I_Number of assets'!$M$8:$M$113,'I_Number of assets'!$F$8:$F$119,$G57),SUMIFS('I_Number of assets'!$M$8:$M$113,'I_Number of assets'!$F$8:$F$119,$F57)) ->  | AG57: =_xlfn.XLOOKUP($F57,'O_CAPEX Tariff Summary'!$R$9:$R$178,'O_CAPEX Tariff Summary'!$J$9:$J$178) -> 134
B58: Lamp | C58: HID | D58: Compact Fluorescent 1x32 | E58: FLU0355 | F58: Compact_Fluro_32W | G58: =_xlfn.XLOOKUP($D58,'O_OPEX Tariff Summary'!$D$8:$D$137,'O_OPEX Tariff Summary'!$R$8:$R$137,_xlfn.XLOOKUP($E58,'O_OPEX Tariff Summary'!$D$8:$D$137,'O_OPEX Tariff Summary'!$R$8:$R$137)) -> FLU0355 | H58: =_xlfn.XLOOKUP($G58,'O_OPEX Tariff Summary'!$R$8:$R$137,'O_OPEX Tariff Summary'!$AC$8:$AC$137) -> 51.51122102 | J58: 69.21013248 | K58: 46.55887141 | L58: 46.29349153 | M58: 46.77373275 | N58: 47.16059754 | O58: 58.09297022 | P58: 56.51065033 | Q58: =_xlfn.XLOOKUP($D58,#REF!,#REF!,_xlfn.XLOOKUP($G58,#REF!,#REF!)) ->  | T58: =_xlfn.XLOOKUP($F58,'O_CAPEX Tariff Summary'!$R$9:$R$178,'O_CAPEX Tariff Summary'!$V$9:$V$178) -> 87.87201867 | V58: 110.3991585 | W58: 92.51810463 | X58: 91.483154 | Y58: 93.35603882 | Z58: 93.65619936 | AA58: 93.65619936 | AB58: 92.92951586 | AC58: =_xlfn.XLOOKUP($D58,#REF!,#REF!,_xlfn.XLOOKUP($F58,#REF!,#REF!)) ->  | AF58: =IF($F58="NO_CAPEX",SUMIFS('I_Number of assets'!$M$8:$M$113,'I_Number of assets'!$F$8:$F$119,$G58),SUMIFS('I_Number of assets'!$M$8:$M$113,'I_Number of assets'!$F$8:$F$119,$F58)) ->  | AG58: =_xlfn.XLOOKUP($F58,'O_CAPEX Tariff Summary'!$R$9:$R$178,'O_CAPEX Tariff Summary'!$J$9:$J$178) -> 9
B59: Lamp | C59: HID | D59: T5 2x14W | E59: FLU0360 | F59: NO_CAPEX | G59: =_xlfn.XLOOKUP($D59,'O_OPEX Tariff Summary'!$D$8:$D$137,'O_OPEX Tariff Summary'!$R$8:$R$137,_xlfn.XLOOKUP($E59,'O_OPEX Tariff Summary'!$D$8:$D$137,'O_OPEX Tariff Summary'!$R$8:$R$137)) -> FLU0360 | H59: =_xlfn.XLOOKUP($G59,'O_OPEX Tariff Summary'!$R$8:$R$137,'O_OPEX Tariff Summary'!$AC$8:$AC$137) -> 75.17057026 | J59: 99.70299955 | K59: 67.07195853 | L59: 65.59508924 | M59: 68.26768637 | N59: 69.24958334 | O59: 59.66470655 | P59: 57.8636814 | Q59: =_xlfn.XLOOKUP($D59,#REF!,#REF!,_xlfn.XLOOKUP($G59,#REF!,#REF!)) ->  | T59: =_xlfn.XLOOKUP($F59,'O_CAPEX Tariff Summary'!$R$9:$R$178,'O_CAPEX Tariff Summary'!$V$9:$V$178) -> 0 | V59: 0 | W59: 0 | X59: 0 | Y59: 0 | Z59: 0 | AA59: 0 | AB59: 0 | AC59: =_xlfn.XLOOKUP($D59,#REF!,#REF!,_xlfn.XLOOKUP($F59,#REF!,#REF!)) ->  | AF59: =IF($F59="NO_CAPEX",SUMIFS('I_Number of assets'!$M$8:$M$113,'I_Number of assets'!$F$8:$F$119,$G59),SUMIFS('I_Number of assets'!$M$8:$M$113,'I_Number of assets'!$F$8:$F$119,$F59)) ->  | AG59: =_xlfn.XLOOKUP($F59,'O_CAPEX Tariff Summary'!$R$9:$R$178,'O_CAPEX Tariff Summary'!$J$9:$J$178) -> 0
B60: Lamp | C60: HID | D60: T5 2x24W | E60: FLU0370 | F60: NO_CAPEX | G60: =_xlfn.XLOOKUP($D60,'O_OPEX Tariff Summary'!$D$8:$D$137,'O_OPEX Tariff Summary'!$R$8:$R$137,_xlfn.XLOOKUP($E60,'O_OPEX Tariff Summary'!$D$8:$D$137,'O_OPEX Tariff Summary'!$R$8:$R$137)) -> FLU0370 | H60: =_xlfn.XLOOKUP($G60,'O_OPEX Tariff Summary'!$R$8:$R$137,'O_OPEX Tariff Summary'!$AC$8:$AC$137) -> 67.59095603 | J60: 106.5138122 | K60: 71.65371179 | L60: 70.1768425 | M60: 72.84943963 | N60: 73.8313366 | O60: 63.81756417 | P60: 62.01653903 | Q60: =_xlfn.XLOOKUP($D60,#REF!,#REF!,_xlfn.XLOOKUP($G60,#REF!,#REF!)) ->  | T60: =_xlfn.XLOOKUP($F60,'O_CAPEX Tariff Summary'!$R$9:$R$178,'O_CAPEX Tariff Summary'!$V$9:$V$178) -> 0 | V60: 0 | W60: 0 | X60: 0 | Y60: 0 | Z60: 0 | AA60: 0 | AB60: 0 | AC60: =_xlfn.XLOOKUP($D60,#REF!,#REF!,_xlfn.XLOOKUP($F60,#REF!,#REF!)) ->  | AF60: =IF($F60="NO_CAPEX",SUMIFS('I_Number of assets'!$M$8:$M$113,'I_Number of assets'!$F$8:$F$119,$G60),SUMIFS('I_Number of assets'!$M$8:$M$113,'I_Number of assets'!$F$8:$F$119,$F60)) ->  | AG60: =_xlfn.XLOOKUP($F60,'O_CAPEX Tariff Summary'!$R$9:$R$178,'O_CAPEX Tariff Summary'!$J$9:$J$178) -> 0
B61: Lamp | C61: HID | D61: Low Pressure Sodium 55 | E61: LPS0030 | F61: 7107.09.7 | G61: =_xlfn.XLOOKUP($D61,'O_OPEX Tariff Summary'!$D$8:$D$137,'O_OPEX Tariff Summary'!$R$8:$R$137,_xlfn.XLOOKUP($E61,'O_OPEX Tariff Summary'!$D$8:$D$137,'O_OPEX Tariff Summary'!$R$8:$R$137)) -> LPS0030 | H61: =_xlfn.XLOOKUP($G61,'O_OPEX Tariff Summary'!$R$8:$R$137,'O_OPEX Tariff Summary'!$AC$8:$AC$137) -> 107.2662141 | J61: 139.5395638 | K61: 93.87071482 | L61: 93.39404632 | M61: 94.25664321 | N61: 94.747284 | O61: 124.7158983 | P61: 122.3726288 | Q61: =_xlfn.XLOOKUP($D61,#REF!,#REF!,_xlfn.XLOOKUP($G61,#REF!,#REF!)) ->  | T61: =_xlfn.XLOOKUP($F61,'O_CAPEX Tariff Summary'!$R$9:$R$178,'O_CAPEX Tariff Summary'!$V$9:$V$178) -> 55.53776641 | V61: 95.10739809 | W61: 79.7031094 | X61: 66.33723387 | Y61: 71.14777145 | Z61: 72.3211263 | AA61: 72.3211263 | AB61: 69.48045443 | AC61: =_xlfn.XLOOKUP($D61,#REF!,#REF!,_xlfn.XLOOKUP($F61,#REF!,#REF!)) ->  | AF61: =IF($F61="NO_CAPEX",SUMIFS('I_Number of assets'!$M$8:$M$113,'I_Number of assets'!$F$8:$F$119,$G61),SUMIFS('I_Number of assets'!$M$8:$M$113,'I_Number of assets'!$F$8:$F$119,$F61)) ->  | AG61: =_xlfn.XLOOKUP($F61,'O_CAPEX Tariff Summary'!$R$9:$R$178,'O_CAPEX Tariff Summary'!$J$9:$J$178) -> 4
B62: Lamp | C62: HID | D62: Low Pressure Sodium 90/100 | E62: LPS0040 | F62: 7107.09.7 | G62: =_xlfn.XLOOKUP($D62,'O_OPEX Tariff Summary'!$D$8:$D$137,'O_OPEX Tariff Summary'!$R$8:$R$137,_xlfn.XLOOKUP($E62,'O_OPEX Tariff Summary'!$D$8:$D$137,'O_OPEX Tariff Summary'!$R$8:$R$137)) -> LPS0040 | H62: =_xlfn.XLOOKUP($G62,'O_OPEX Tariff Summary'!$R$8:$R$137,'O_OPEX Tariff Summary'!$AC$8:$AC$137) -> 225.2324058 | J62: 290.0156556 | K62: 195.0986241 | L62: 191.1972559 | M62: 198.2573156 | N62: 200.4300235 | O62: 124.7346503 | P62: 122.3913807 | Q62: =_xlfn.XLOOKUP($D62,#REF!,#REF!,_xlfn.XLOOKUP($G62,#REF!,#REF!)) ->  | T62: =_xlfn.XLOOKUP($F62,'O_CAPEX Tariff Summary'!$R$9:$R$178,'O_CAPEX Tariff Summary'!$V$9:$V$178) -> 55.53776641 | V62: 95.10739809 | W62: 79.7031094 | X62: 66.33723387 | Y62: 71.14777145 | Z62: 72.3211263 | AA62: 72.3211263 | AB62: 69.48045443 | AC62: =_xlfn.XLOOKUP($D62,#REF!,#REF!,_xlfn.XLOOKUP($F62,#REF!,#REF!)) ->  | AF62: =IF($F62="NO_CAPEX",SUMIFS('I_Number of assets'!$M$8:$M$113,'I_Number of assets'!$F$8:$F$119,$G62),SUMIFS('I_Number of assets'!$M$8:$M$113,'I_Number of assets'!$F$8:$F$119,$F62)) ->  | AG62: =_xlfn.XLOOKUP($F62,'O_CAPEX Tariff Summary'!$R$9:$R$178,'O_CAPEX Tariff Summary'!$J$9:$J$178) -> 4
B63: Lamp | C63: HID | D63: Low Pressure Sodium 135 | E63: LPS0050 | F63: NO_CAPEX | G63: =_xlfn.XLOOKUP($D63,'O_OPEX Tariff Summary'!$D$8:$D$137,'O_OPEX Tariff Summary'!$R$8:$R$137,_xlfn.XLOOKUP($E63,'O_OPEX Tariff Summary'!$D$8:$D$137,'O_OPEX Tariff Summary'!$R$8:$R$137)) -> LPS0050 | H63: =_xlfn.XLOOKUP($G63,'O_OPEX Tariff Summary'!$R$8:$R$137,'O_OPEX Tariff Summary'!$AC$8:$AC$137) -> 339.4897501 | J63: 562.7338896 | K63: 378.5609689 | L63: 319.4802622 | M63: 340.7441113 | N63: 347.1073084 | O63: 164.6145565 | P63: 159.3136289 | Q63: =_xlfn.XLOOKUP($D63,#REF!,#REF!,_xlfn.XLOOKUP($G63,#REF!,#REF!)) ->  | T63: =_xlfn.XLOOKUP($F63,'O_CAPEX Tariff Summary'!$R$9:$R$178,'O_CAPEX Tariff Summary'!$V$9:$V$178) -> 0 | V63: 0 | W63: 0 | X63: 0 | Y63: 0 | Z63: 0 | AA63: 0 | AB63: 0 | AC63: =_xlfn.XLOOKUP($D63,#REF!,#REF!,_xlfn.XLOOKUP($F63,#REF!,#REF!)) ->  | AF63: =IF($F63="NO_CAPEX",SUMIFS('I_Number of assets'!$M$8:$M$113,'I_Number of assets'!$F$8:$F$119,$G63),SUMIFS('I_Number of assets'!$M$8:$M$113,'I_Number of assets'!$F$8:$F$119,$F63)) ->  | AG63: =_xlfn.XLOOKUP($F63,'O_CAPEX Tariff Summary'!$R$9:$R$178,'O_CAPEX Tariff Summary'!$J$9:$J$178) -> 0
B64: Support | C64: Wood pole | D64: 9.5m Timber Pole | E64: WOOD POLE | F64: 9.5m_Timber_Pole | G64: =_xlfn.XLOOKUP($D64,'O_OPEX Tariff Summary'!$D$8:$D$137,'O_OPEX Tariff Summary'!$R$8:$R$137,_xlfn.XLOOKUP($E64,'O_OPEX Tariff Summary'!$D$8:$D$137,'O_OPEX Tariff Summary'!$R$8:$R$137)) -> WOOD POLE | H64: =_xlfn.XLOOKUP($G64,'O_OPEX Tariff Summary'!$R$8:$R$137,'O_OPEX Tariff Summary'!$AC$8:$AC$137) -> 18.78152491 | J64: 26.67707602 | K64: 17.94613747 | L64: 17.94613747 | M64: 17.94613747 | N64: 18.4454597 | O64: 18.4454597 | P64: 17.40588068 | Q64: =_xlfn.XLOOKUP($D64,#REF!,#REF!,_xlfn.XLOOKUP($G64,#REF!,#REF!)) ->  | T64: =_xlfn.XLOOKUP($F64,'O_CAPEX Tariff Summary'!$R$9:$R$178,'O_CAPEX Tariff Summary'!$V$9:$V$178) -> 105.470747 | V64: 125.8278006 | W64: 105.4478112 | X64: 104.0505633 | Y64: 106.5790746 | Z64: 108.6920177 | AA64: 108.6920177 | AB64: 105.7514645 | AC64: =_xlfn.XLOOKUP($D64,#REF!,#REF!,_xlfn.XLOOKUP($F64,#REF!,#REF!)) ->  | AF64: =IF($F64="NO_CAPEX",SUMIFS('I_Number of assets'!$M$8:$M$113,'I_Number of assets'!$F$8:$F$119,$G64),SUMIFS('I_Number of assets'!$M$8:$M$113,'I_Number of assets'!$F$8:$F$119,$F64)) ->  | AG64: =_xlfn.XLOOKUP($F64,'O_CAPEX Tariff Summary'!$R$9:$R$178,'O_CAPEX Tariff Summary'!$J$9:$J$178) -> 79
B65: Support | C65: Wood pole | D65: 11m Timber Pole | E65: WOOD POLE | F65: 11m_Timber_Pole | G65: =_xlfn.XLOOKUP($D65,'O_OPEX Tariff Summary'!$D$8:$D$137,'O_OPEX Tariff Summary'!$R$8:$R$137,_xlfn.XLOOKUP($E65,'O_OPEX Tariff Summary'!$D$8:$D$137,'O_OPEX Tariff Summary'!$R$8:$R$137)) -> WOOD POLE | H65: =_xlfn.XLOOKUP($G65,'O_OPEX Tariff Summary'!$R$8:$R$137,'O_OPEX Tariff Summary'!$AC$8:$AC$137) -> 18.78152491 | J65: 26.67707602 | K65: 17.94613747 | L65: 17.94613747 | M65: 17.94613747 | N65: 18.4454597 | O65: 18.4454597 | P65: 17.40588068 | Q65: =_xlfn.XLOOKUP($D65,#REF!,#REF!,_xlfn.XLOOKUP($G65,#REF!,#REF!)) ->  | T65: =_xlfn.XLOOKUP($F65,'O_CAPEX Tariff Summary'!$R$9:$R$178,'O_CAPEX Tariff Summary'!$V$9:$V$178) -> 152.000027 | AC65: =_xlfn.XLOOKUP($D65,#REF!,#REF!,_xlfn.XLOOKUP($F65,#REF!,#REF!)) ->  | AF65: =IF($F65="NO_CAPEX",SUMIFS('I_Number of assets'!$M$8:$M$113,'I_Number of assets'!$F$8:$F$119,$G65),SUMIFS('I_Number of assets'!$M$8:$M$113,'I_Number of assets'!$F$8:$F$119,$F65)) ->  | AG65: =_xlfn.XLOOKUP($F65,'O_CAPEX Tariff Summary'!$R$9:$R$178,'O_CAPEX Tariff Summary'!$J$9:$J$178) -> 410
B66: Support | C66: Wood pole | D66: 12.5m Timber Pole | E66: WOOD POLE | F66: 12.5m_Timber_Pole | G66: =_xlfn.XLOOKUP($D66,'O_OPEX Tariff Summary'!$D$8:$D$137,'O_OPEX Tariff Summary'!$R$8:$R$137,_xlfn.XLOOKUP($E66,'O_OPEX Tariff Summary'!$D$8:$D$137,'O_OPEX Tariff Summary'!$R$8:$R$137)) -> WOOD POLE | H66: =_xlfn.XLOOKUP($G66,'O_OPEX Tariff Summary'!$R$8:$R$137,'O_OPEX Tariff Summary'!$AC$8:$AC$137) -> 18.78152491 | J66: 26.67707602 | K66: 17.94613747 | L66: 17.94613747 | M66: 17.94613747 | N66: 18.4454597 | O66: 18.4454597 | P66: 17.40588068 | Q66: =_xlfn.XLOOKUP($D66,#REF!,#REF!,_xlfn.XLOOKUP($G66,#REF!,#REF!)) ->  | T66: =_xlfn.XLOOKUP($F66,'O_CAPEX Tariff Summary'!$R$9:$R$178,'O_CAPEX Tariff Summary'!$V$9:$V$178) -> 176.5908494 | AC66: =_xlfn.XLOOKUP($D66,#REF!,#REF!,_xlfn.XLOOKUP($F66,#REF!,#REF!)) ->  | AF66: =IF($F66="NO_CAPEX",SUMIFS('I_Number of assets'!$M$8:$M$113,'I_Number of assets'!$F$8:$F$119,$G66),SUMIFS('I_Number of assets'!$M$8:$M$113,'I_Number of assets'!$F$8:$F$119,$F66)) ->  | AG66: =_xlfn.XLOOKUP($F66,'O_CAPEX Tariff Summary'!$R$9:$R$178,'O_CAPEX Tariff Summary'!$J$9:$J$178) -> 141
B67: Support | C67: Wood pole | D67: 14m Timber Pole | E67: WOOD POLE | F67: 14m_Timber_Pole | G67: =_xlfn.XLOOKUP($D67,'O_OPEX Tariff Summary'!$D$8:$D$137,'O_OPEX Tariff Summary'!$R$8:$R$137,_xlfn.XLOOKUP($E67,'O_OPEX Tariff Summary'!$D$8:$D$137,'O_OPEX Tariff Summary'!$R$8:$R$137)) -> WOOD POLE | H67: =_xlfn.XLOOKUP($G67,'O_OPEX Tariff Summary'!$R$8:$R$137,'O_OPEX Tariff Summary'!$AC$8:$AC$137) -> 18.78152491 | J67: 26.67707602 | K67: 17.94613747 | L67: 17.94613747 | M67: 17.94613747 | N67: 18.4454597 | O67: 18.4454597 | P67: 17.40588068 | Q67: =_xlfn.XLOOKUP($D67,#REF!,#REF!,_xlfn.XLOOKUP($G67,#REF!,#REF!)) ->  | T67: =_xlfn.XLOOKUP($F67,'O_CAPEX Tariff Summary'!$R$9:$R$178,'O_CAPEX Tariff Summary'!$V$9:$V$178) -> 188.7101556 | AC67: =_xlfn.XLOOKUP($D67,#REF!,#REF!,_xlfn.XLOOKUP($F67,#REF!,#REF!)) ->  | AF67: =IF($F67="NO_CAPEX",SUMIFS('I_Number of assets'!$M$8:$M$113,'I_Number of assets'!$F$8:$F$119,$G67),SUMIFS('I_Number of assets'!$M$8:$M$113,'I_Number of assets'!$F$8:$F$119,$F67)) ->  | AG67: =_xlfn.XLOOKUP($F67,'O_CAPEX Tariff Summary'!$R$9:$R$178,'O_CAPEX Tariff Summary'!$J$9:$J$178) -> 30
B68: Support | C68: Wood pole | D68: 15.5m Timber Pole | E68: WOOD POLE | F68: 15.5m_Timber_Pole | G68: =_xlfn.XLOOKUP($D68,'O_OPEX Tariff Summary'!$D$8:$D$137,'O_OPEX Tariff Summary'!$R$8:$R$137,_xlfn.XLOOKUP($E68,'O_OPEX Tariff Summary'!$D$8:$D$137,'O_OPEX Tariff Summary'!$R$8:$R$137)) -> WOOD POLE | H68: =_xlfn.XLOOKUP($G68,'O_OPEX Tariff Summary'!$R$8:$R$137,'O_OPEX Tariff Summary'!$AC$8:$AC$137) -> 18.78152491 | J68: 26.67707602 | K68: 17.94613747 | L68: 17.94613747 | M68: 17.94613747 | N68: 18.4454597 | O68: 18.4454597 | P68: 17.40588068 | Q68: =_xlfn.XLOOKUP($D68,#REF!,#REF!,_xlfn.XLOOKUP($G68,#REF!,#REF!)) ->  | T68: =_xlfn.XLOOKUP($F68,'O_CAPEX Tariff Summary'!$R$9:$R$178,'O_CAPEX Tariff Summary'!$V$9:$V$178) -> 197.0535628 | AC68: =_xlfn.XLOOKUP($D68,#REF!,#REF!,_xlfn.XLOOKUP($F68,#REF!,#REF!)) ->  | AF68: =IF($F68="NO_CAPEX",SUMIFS('I_Number of assets'!$M$8:$M$113,'I_Number of assets'!$F$8:$F$119,$G68),SUMIFS('I_Number of assets'!$M$8:$M$113,'I_Number of assets'!$F$8:$F$119,$F68)) ->  | AG68: =_xlfn.XLOOKUP($F68,'O_CAPEX Tariff Summary'!$R$9:$R$178,'O_CAPEX Tariff Summary'!$J$9:$J$178) -> 7
B69: Support | C69: Steel pole | D69: 7.5m Steel Column Single Outreach | E69: STEEL POLE | F69: 7.5_Single | G69: =_xlfn.XLOOKUP($D69,'O_OPEX Tariff Summary'!$D$8:$D$137,'O_OPEX Tariff Summary'!$R$8:$R$137,_xlfn.XLOOKUP($E69,'O_OPEX Tariff Summary'!$D$8:$D$137,'O_OPEX Tariff Summary'!$R$8:$R$137)) -> STEEL POLE | H69: =_xlfn.XLOOKUP($G69,'O_OPEX Tariff Summary'!$R$8:$R$137,'O_OPEX Tariff Summary'!$AC$8:$AC$137) -> 16.329022 | J69: 23.39196766 | K69: 15.7361874 | L69: 15.7361874 | M69: 15.7361874 | N69: 16.16559112 | O69: 16.16559112 | P69: 15.1260121 | Q69: =_xlfn.XLOOKUP($D69,#REF!,#REF!,_xlfn.XLOOKUP($G69,#REF!,#REF!)) ->  | T69: =_xlfn.XLOOKUP($F69,'O_CAPEX Tariff Summary'!$R$9:$R$178,'O_CAPEX Tariff Summary'!$V$9:$V$178) -> 203.838635 | V69: 199.9574123 | W69: 167.5708497 | X69: 166.1736018 | Y69: 168.7021131 | Z69: 169.6283656 | AA69: 169.6283656 | AB69: 167.3859243 | AC69: =_xlfn.XLOOKUP($D69,#REF!,#REF!,_xlfn.XLOOKUP($F69,#REF!,#REF!)) ->  | AF69: =IF($F69="NO_CAPEX",SUMIFS('I_Number of assets'!$M$8:$M$113,'I_Number of assets'!$F$8:$F$119,$G69),SUMIFS('I_Number of assets'!$M$8:$M$113,'I_Number of assets'!$F$8:$F$119,$F69)) ->  | AG69: =_xlfn.XLOOKUP($F69,'O_CAPEX Tariff Summary'!$R$9:$R$178,'O_CAPEX Tariff Summary'!$J$9:$J$178) -> 3260
B70: Support | C70: Steel pole | D70: 9.0m Steel Column Single Outreach | E70: STEEL POLE | F70: 9.0_Single | G70: =_xlfn.XLOOKUP($D70,'O_OPEX Tariff Summary'!$D$8:$D$137,'O_OPEX Tariff Summary'!$R$8:$R$137,_xlfn.XLOOKUP($E70,'O_OPEX Tariff Summary'!$D$8:$D$137,'O_OPEX Tariff Summary'!$R$8:$R$137)) -> STEEL POLE | H70: =_xlfn.XLOOKUP($G70,'O_OPEX Tariff Summary'!$R$8:$R$137,'O_OPEX Tariff Summary'!$AC$8:$AC$137) -> 16.329022 | J70: 23.39196766 | K70: 15.7361874 | L70: 15.7361874 | M70: 15.7361874 | N70: 16.16559112 | O70: 16.16559112 | P70: 15.1260121 | Q70: =_xlfn.XLOOKUP($D70,#REF!,#REF!,_xlfn.XLOOKUP($G70,#REF!,#REF!)) ->  | T70: =_xlfn.XLOOKUP($F70,'O_CAPEX Tariff Summary'!$R$9:$R$178,'O_CAPEX Tariff Summary'!$V$9:$V$178) -> 226.2831095 | AC70: =_xlfn.XLOOKUP($D70,#REF!,#REF!,_xlfn.XLOOKUP($F70,#REF!,#REF!)) ->  | AF70: =IF($F70="NO_CAPEX",SUMIFS('I_Number of assets'!$M$8:$M$113,'I_Number of assets'!$F$8:$F$119,$G70),SUMIFS('I_Number of assets'!$M$8:$M$113,'I_Number of assets'!$F$8:$F$119,$F70)) ->  | AG70: =_xlfn.XLOOKUP($F70,'O_CAPEX Tariff Summary'!$R$9:$R$178,'O_CAPEX Tariff Summary'!$J$9:$J$178) -> 496
B71: Support | C71: Steel pole | D71: 10.5m Steel Column Single Outreach | E71: STEEL POLE | F71: 10.5_Single | G71: =_xlfn.XLOOKUP($D71,'O_OPEX Tariff Summary'!$D$8:$D$137,'O_OPEX Tariff Summary'!$R$8:$R$137,_xlfn.XLOOKUP($E71,'O_OPEX Tariff Summary'!$D$8:$D$137,'O_OPEX Tariff Summary'!$R$8:$R$137)) -> STEEL POLE | H71: =_xlfn.XLOOKUP($G71,'O_OPEX Tariff Summary'!$R$8:$R$137,'O_OPEX Tariff Summary'!$AC$8:$AC$137) -> 16.329022 | J71: 23.39196766 | K71: 15.7361874 | L71: 15.7361874 | M71: 15.7361874 | N71: 16.16559112 | O71: 16.16559112 | P71: 15.1260121 | Q71: =_xlfn.XLOOKUP($D71,#REF!,#REF!,_xlfn.XLOOKUP($G71,#REF!,#REF!)) ->  | T71: =_xlfn.XLOOKUP($F71,'O_CAPEX Tariff Summary'!$R$9:$R$178,'O_CAPEX Tariff Summary'!$V$9:$V$178) -> 361.7238692 | AC71: =_xlfn.XLOOKUP($D71,#REF!,#REF!,_xlfn.XLOOKUP($F71,#REF!,#REF!)) ->  | AF71: =IF($F71="NO_CAPEX",SUMIFS('I_Number of assets'!$M$8:$M$113,'I_Number of assets'!$F$8:$F$119,$G71),SUMIFS('I_Number of assets'!$M$8:$M$113,'I_Number of assets'!$F$8:$F$119,$F71)) ->  | AG71: =_xlfn.XLOOKUP($F71,'O_CAPEX Tariff Summary'!$R$9:$R$178,'O_CAPEX Tariff Summary'!$J$9:$J$178) -> 454
B72: Support | C72: Steel pole | D72: 12.0m Steel Column Single Outreach | E72: STEEL POLE | F72: 12.0_Single | G72: =_xlfn.XLOOKUP($D72,'O_OPEX Tariff Summary'!$D$8:$D$137,'O_OPEX Tariff Summary'!$R$8:$R$137,_xlfn.XLOOKUP($E72,'O_OPEX Tariff Summary'!$D$8:$D$137,'O_OPEX Tariff Summary'!$R$8:$R$137)) -> STEEL POLE | H72: =_xlfn.XLOOKUP($G72,'O_OPEX Tariff Summary'!$R$8:$R$137,'O_OPEX Tariff Summary'!$AC$8:$AC$137) -> 16.329022 | J72: 23.39196766 | K72: 15.7361874 | L72: 15.7361874 | M72: 15.7361874 | N72: 16.16559112 | O72: 16.16559112 | P72: 15.1260121 | Q72: =_xlfn.XLOOKUP($D72,#REF!,#REF!,_xlfn.XLOOKUP($G72,#REF!,#REF!)) ->  | T72: =_xlfn.XLOOKUP($F72,'O_CAPEX Tariff Summary'!$R$9:$R$178,'O_CAPEX Tariff Summary'!$V$9:$V$178) -> 378.2716202 | AC72: =_xlfn.XLOOKUP($D72,#REF!,#REF!,_xlfn.XLOOKUP($F72,#REF!,#REF!)) ->  | AF72: =IF($F72="NO_CAPEX",SUMIFS('I_Number of assets'!$M$8:$M$113,'I_Number of assets'!$F$8:$F$119,$G72),SUMIFS('I_Number of assets'!$M$8:$M$113,'I_Number of assets'!$F$8:$F$119,$F72)) ->  | AG72: =_xlfn.XLOOKUP($F72,'O_CAPEX Tariff Summary'!$R$9:$R$178,'O_CAPEX Tariff Summary'!$J$9:$J$178) -> 177
B73: Support | C73: Roundabout column | D73: 12m Roundabout Column | E73: R/BOUT COLUMN | F73: 7206.10.73 | G73: =_xlfn.XLOOKUP($D73,'O_OPEX Tariff Summary'!$D$8:$D$137,'O_OPEX Tariff Summary'!$R$8:$R$137,_xlfn.XLOOKUP($E73,'O_OPEX Tariff Summary'!$D$8:$D$137,'O_OPEX Tariff Summary'!$R$8:$R$137)) -> R/BOUT COLUMN | H73: =_xlfn.XLOOKUP($G73,'O_OPEX Tariff Summary'!$R$8:$R$137,'O_OPEX Tariff Summary'!$AC$8:$AC$137) -> 16.329022 | J73: 23.39196766 | K73: 15.7361874 | L73: 15.7361874 | M73: 15.7361874 | N73: 16.16559112 | O73: 16.16559112 | P73: 15.1260121 | Q73: =_xlfn.XLOOKUP($D73,#REF!,#REF!,_xlfn.XLOOKUP($G73,#REF!,#REF!)) ->  | T73: =_xlfn.XLOOKUP($F73,'O_CAPEX Tariff Summary'!$R$9:$R$178,'O_CAPEX Tariff Summary'!$V$9:$V$178) -> 504.3130279 | V73: 487.8521307 | W73: 408.8360372 | X73: 390.7912714 | Y73: 397.2857972 | Z73: 401.934988 | AA73: 401.934988 | AB73: 392.8542229 | AC73: =_xlfn.XLOOKUP($D73,#REF!,#REF!,_xlfn.XLOOKUP($F73,#REF!,#REF!)) ->  | AF73: =IF($F73="NO_CAPEX",SUMIFS('I_Number of assets'!$M$8:$M$113,'I_Number of assets'!$F$8:$F$119,$G73),SUMIFS('I_Number of assets'!$M$8:$M$113,'I_Number of assets'!$F$8:$F$119,$F73)) ->  | AG73: =_xlfn.XLOOKUP($F73,'O_CAPEX Tariff Summary'!$R$9:$R$178,'O_CAPEX Tariff Summary'!$J$9:$J$178) -> 16
B74: Support | C74: Roundabout column | D74: 15m Roundabout Column | E74: R/BOUT COLUMN | F74: 7206.10.74 | G74: =_xlfn.XLOOKUP($D74,'O_OPEX Tariff Summary'!$D$8:$D$137,'O_OPEX Tariff Summary'!$R$8:$R$137,_xlfn.XLOOKUP($E74,'O_OPEX Tariff Summary'!$D$8:$D$137,'O_OPEX Tariff Summary'!$R$8:$R$137)) -> R/BOUT COLUMN | H74: =_xlfn.XLOOKUP($G74,'O_OPEX Tariff Summary'!$R$8:$R$137,'O_OPEX Tariff Summary'!$AC$8:$AC$137) -> 16.329022 | J74: 23.39196766 | K74: 15.7361874 | L74: 15.7361874 | M74: 15.7361874 | N74: 16.16559112 | O74: 16.16559112 | P74: 15.1260121 | Q74: =_xlfn.XLOOKUP($D74,#REF!,#REF!,_xlfn.XLOOKUP($G74,#REF!,#REF!)) ->  | T74: =_xlfn.XLOOKUP($F74,'O_CAPEX Tariff Summary'!$R$9:$R$178,'O_CAPEX Tariff Summary'!$V$9:$V$178) -> 555.0727118 | AC74: =_xlfn.XLOOKUP($D74,#REF!,#REF!,_xlfn.XLOOKUP($F74,#REF!,#REF!)) ->  | AF74: =IF($F74="NO_CAPEX",SUMIFS('I_Number of assets'!$M$8:$M$113,'I_Number of assets'!$F$8:$F$119,$G74),SUMIFS('I_Number of assets'!$M$8:$M$113,'I_Number of assets'!$F$8:$F$119,$F74)) ->  | AG74: =_xlfn.XLOOKUP($F74,'O_CAPEX Tariff Summary'!$R$9:$R$178,'O_CAPEX Tariff Summary'!$J$9:$J$178) -> 2
B75: Support | C75: Roundabout column | D75: 18m Roundabout Column | E75: R/BOUT COLUMN | F75: 7206.10.75 | G75: =_xlfn.XLOOKUP($D75,'O_OPEX Tariff Summary'!$D$8:$D$137,'O_OPEX Tariff Summary'!$R$8:$R$137,_xlfn.XLOOKUP($E75,'O_OPEX Tariff Summary'!$D$8:$D$137,'O_OPEX Tariff Summary'!$R$8:$R$137)) -> R/BOUT COLUMN | H75: =_xlfn.XLOOKUP($G75,'O_OPEX Tariff Summary'!$R$8:$R$137,'O_OPEX Tariff Summary'!$AC$8:$AC$137) -> 16.329022 | J75: 23.39196766 | K75: 15.7361874 | L75: 15.7361874 | M75: 15.7361874 | N75: 16.16559112 | O75: 16.16559112 | P75: 15.1260121 | Q75: =_xlfn.XLOOKUP($D75,#REF!,#REF!,_xlfn.XLOOKUP($G75,#REF!,#REF!)) ->  | T75: =_xlfn.XLOOKUP($F75,'O_CAPEX Tariff Summary'!$R$9:$R$178,'O_CAPEX Tariff Summary'!$V$9:$V$178) -> 744.2129625 | AC75: =_xlfn.XLOOKUP($D75,#REF!,#REF!,_xlfn.XLOOKUP($F75,#REF!,#REF!)) ->  | AF75: =IF($F75="NO_CAPEX",SUMIFS('I_Number of assets'!$M$8:$M$113,'I_Number of assets'!$F$8:$F$119,$G75),SUMIFS('I_Number of assets'!$M$8:$M$113,'I_Number of assets'!$F$8:$F$119,$F75)) ->  | AG75: =_xlfn.XLOOKUP($F75,'O_CAPEX Tariff Summary'!$R$9:$R$178,'O_CAPEX Tariff Summary'!$J$9:$J$178) -> 3
B76: Support | C76: Shared or No Pole | D76: SHARED OR NO POLE | E76: SHARED OR NO POLE | F76: NO_CAPEX | G76: =_xlfn.XLOOKUP($D76,'O_OPEX Tariff Summary'!$D$8:$D$137,'O_OPEX Tariff Summary'!$R$8:$R$137,_xlfn.XLOOKUP($E76,'O_OPEX Tariff Summary'!$D$8:$D$137,'O_OPEX Tariff Summary'!$R$8:$R$137)) -> SHARED OR NO POLE | H76: =_xlfn.XLOOKUP($G76,'O_OPEX Tariff Summary'!$R$8:$R$137,'O_OPEX Tariff Summary'!$AC$8:$AC$137) -> 0 | J76: 0 | K76: 0 | L76: 0 | M76: 0 | N76: 0 | O76: 0 | P76: 0 | Q76: =_xlfn.XLOOKUP($D76,#REF!,#REF!,_xlfn.XLOOKUP($G76,#REF!,#REF!)) ->  | T76: =_xlfn.XLOOKUP($F76,'O_CAPEX Tariff Summary'!$R$9:$R$178,'O_CAPEX Tariff Summary'!$V$9:$V$178) -> 0 | V76: 0 | W76: 0 | X76: 0 | Y76: 0 | Z76: 0 | AA76: 0 | AB76: 0 | AC76: =_xlfn.XLOOKUP($D76,#REF!,#REF!,_xlfn.XLOOKUP($F76,#REF!,#REF!)) ->  | AF76: =IF($F76="NO_CAPEX",SUMIFS('I_Number of assets'!$M$8:$M$113,'I_Number of assets'!$F$8:$F$119,$G76),SUMIFS('I_Number of assets'!$M$8:$M$113,'I_Number of assets'!$F$8:$F$119,$F76)) ->  | AG76: =_xlfn.XLOOKUP($F76,'O_CAPEX Tariff Summary'!$R$9:$R$178,'O_CAPEX Tariff Summary'!$J$9:$J$178) -> 0
B77: Support | C77: Suspended | D77: SUSPENDED | E77: SUSPENDED | F77: NO_CAPEX | G77: =_xlfn.XLOOKUP($D77,'O_OPEX Tariff Summary'!$D$8:$D$137,'O_OPEX Tariff Summary'!$R$8:$R$137,_xlfn.XLOOKUP($E77,'O_OPEX Tariff Summary'!$D$8:$D$137,'O_OPEX Tariff Summary'!$R$8:$R$137)) -> SUSPENDED | H77: =_xlfn.XLOOKUP($G77,'O_OPEX Tariff Summary'!$R$8:$R$137,'O_OPEX Tariff Summary'!$AC$8:$AC$137) -> 37.56304982 | J77: 53.35415204 | K77: 35.89227495 | L77: 35.89227495 | M77: 35.89227495 | N77: 36.8909194 | O77: 36.8909194 | P77: 34.81176136 | Q77: =_xlfn.XLOOKUP($D77,#REF!,#REF!,_xlfn.XLOOKUP($G77,#REF!,#REF!)) ->  | T77: =_xlfn.XLOOKUP($F77,'O_CAPEX Tariff Summary'!$R$9:$R$178,'O_CAPEX Tariff Summary'!$V$9:$V$178) -> 0 | V77: 0 | W77: 0 | X77: 0 | Y77: 0 | Z77: 0 | AA77: 0 | AB77: 0 | AC77: =_xlfn.XLOOKUP($D77,#REF!,#REF!,_xlfn.XLOOKUP($F77,#REF!,#REF!)) ->  | AF77: =IF($F77="NO_CAPEX",SUMIFS('I_Number of assets'!$M$8:$M$113,'I_Number of assets'!$F$8:$F$119,$G77),SUMIFS('I_Number of assets'!$M$8:$M$113,'I_Number of assets'!$F$8:$F$119,$F77)) ->  | AG77: =_xlfn.XLOOKUP($F77,'O_CAPEX Tariff Summary'!$R$9:$R$178,'O_CAPEX Tariff Summary'!$J$9:$J$178) -> 0
B78: Support | C78: No capital | D78: NO CAPITAL | E78: NO CAPITAL | F78: NO CAPITAL | G78: =_xlfn.XLOOKUP($D78,'O_OPEX Tariff Summary'!$D$8:$D$137,'O_OPEX Tariff Summary'!$R$8:$R$137,_xlfn.XLOOKUP($E78,'O_OPEX Tariff Summary'!$D$8:$D$137,'O_OPEX Tariff Summary'!$R$8:$R$137)) -> NO CAPITAL | H78: =_xlfn.XLOOKUP($G78,'O_OPEX Tariff Summary'!$R$8:$R$137,'O_OPEX Tariff Summary'!$AC$8:$AC$137) -> 0 | J78: 0 | K78: 0 | L78: 0 | M78: 0 | N78: 0 | O78: 0 | P78: 0 | Q78: =_xlfn.XLOOKUP($D78,#REF!,#REF!,_xlfn.XLOOKUP($G78,#REF!,#REF!)) ->  | T78: =_xlfn.XLOOKUP($F78,'O_CAPEX Tariff Summary'!$R$9:$R$178,'O_CAPEX Tariff Summary'!$V$9:$V$178) ->  | V78: 0 | W78: 0 | X78: 0 | Y78: 0 | Z78: 0 | AA78: 0 | AB78: 0 | AC78: =_xlfn.XLOOKUP($D78,#REF!,#REF!,_xlfn.XLOOKUP($F78,#REF!,#REF!)) ->  | AF78: =IF($F78="NO_CAPEX",SUMIFS('I_Number of assets'!$M$8:$M$113,'I_Number of assets'!$F$8:$F$119,$G78),SUMIFS('I_Number of assets'!$M$8:$M$113,'I_Number of assets'!$F$8:$F$119,$F78)) ->  | AG78: =_xlfn.XLOOKUP($F78,'O_CAPEX Tariff Summary'!$R$9:$R$178,'O_CAPEX Tariff Summary'!$J$9:$J$178) -> 
B79: Traffic | C79: Night patrol | D79: Street Patrol | E79: Street Patrol | F79: NO_CAPEX | G79: =_xlfn.XLOOKUP($D79,'O_OPEX Tariff Summary'!$D$8:$D$137,'O_OPEX Tariff Summary'!$R$8:$R$137,_xlfn.XLOOKUP($E79,'O_OPEX Tariff Summary'!$D$8:$D$137,'O_OPEX Tariff Summary'!$R$8:$R$137)) -> Street Patrol | H79: =_xlfn.XLOOKUP($G79,'O_OPEX Tariff Summary'!$R$8:$R$137,'O_OPEX Tariff Summary'!$AC$8:$AC$137) -> 9.798394704 | J79: 15.43191626 | K79: 10.38132105 | L79: 10.38132105 | M79: 10.38132105 | N79: 10.38132105 | O79: 10.38132105 | P79: 10.38132105 | Q79: =_xlfn.XLOOKUP($D79,#REF!,#REF!,_xlfn.XLOOKUP($G79,#REF!,#REF!)) ->  | T79: =_xlfn.XLOOKUP($F79,'O_CAPEX Tariff Summary'!$R$9:$R$178,'O_CAPEX Tariff Summary'!$V$9:$V$178) -> 0 | V79: 0 | W79: 0 | X79: 0 | Y79: 0 | Z79: 0 | AA79: 0 | AB79: 0 | AC79: =_xlfn.XLOOKUP($D79,#REF!,#REF!,_xlfn.XLOOKUP($F79,#REF!,#REF!)) ->  | AF79: =IF($F79="NO_CAPEX",SUMIFS('I_Number of assets'!$M$8:$M$113,'I_Number of assets'!$F$8:$F$119,$G79),SUMIFS('I_Number of assets'!$M$8:$M$113,'I_Number of assets'!$F$8:$F$119,$F79)) ->  | AG79: =_xlfn.XLOOKUP($F79,'O_CAPEX Tariff Summary'!$R$9:$R$178,'O_CAPEX Tariff Summary'!$J$9:$J$178) -> 0
B80: Lamp | C80: LED | D80: LED 33W Luminaire StreetLED2 Category P3 Aeroscreen | E80: LED0101 | F80: LED0101 | G80: =_xlfn.XLOOKUP($D80,'O_OPEX Tariff Summary'!$D$8:$D$137,'O_OPEX Tariff Summary'!$R$8:$R$137,_xlfn.XLOOKUP($E80,'O_OPEX Tariff Summary'!$D$8:$D$137,'O_OPEX Tariff Summary'!$R$8:$R$137)) -> LED0101 | H80: =_xlfn.XLOOKUP($G80,'O_OPEX Tariff Summary'!$R$8:$R$137,'O_OPEX Tariff Summary'!$AC$8:$AC$137) -> 36.35553348 | J80: 54.89352562 | K80: 36.92783859 | L80: 36.63902681 | M80: 37.16167125 | N80: 37.57291997 | O80: 36.35673593 | P80: 35.43631601 | Q80: =_xlfn.XLOOKUP($D80,#REF!,#REF!,_xlfn.XLOOKUP($G80,#REF!,#REF!)) ->  | T80: =_xlfn.XLOOKUP($F80,'O_CAPEX Tariff Summary'!$R$9:$R$178,'O_CAPEX Tariff Summary'!$V$9:$V$178) -> 69.84960687 | V80: 88.77432348 | W80: 74.3957858 | X80: 72.64577397 | Y80: 75.8126599 | Z80: 76.32020536 | AA80: 76.32020536 | AB80: 75.09144654 | AC80: =_xlfn.XLOOKUP($D80,#REF!,#REF!,_xlfn.XLOOKUP($F80,#REF!,#REF!)) ->  | AF80: =IF($F80="NO_CAPEX",SUMIFS('I_Number of assets'!$M$8:$M$113,'I_Number of assets'!$F$8:$F$119,$G80),SUMIFS('I_Number of assets'!$M$8:$M$113,'I_Number of assets'!$F$8:$F$119,$F80)) ->  | AG80: =_xlfn.XLOOKUP($F80,'O_CAPEX Tariff Summary'!$R$9:$R$178,'O_CAPEX Tariff Summary'!$J$9:$J$178) -> 4139
B81: Lamp | C81: LED | D81: LED 33W Luminaire StreetLED2 Category P3 Aeroscreen Connected | E81: LED0102 | F81: LED0102 | G81: =_xlfn.XLOOKUP($D81,'O_OPEX Tariff Summary'!$D$8:$D$137,'O_OPEX Tariff Summary'!$R$8:$R$137,_xlfn.XLOOKUP($E81,'O_OPEX Tariff Summary'!$D$8:$D$137,'O_OPEX Tariff Summary'!$R$8:$R$137)) ->  | H81: =_xlfn.XLOOKUP($G81,'O_OPEX Tariff Summary'!$R$8:$R$137,'O_OPEX Tariff Summary'!$AC$8:$AC$137) ->  | J81: 54.3030391 | K81: 36.53060793 | L81: 36.2600369 | M81: 36.74967222 | N81: 37.15005442 | O81: 36.35673593 | P81: 35.43631601 | Q81: =_xlfn.XLOOKUP($D81,#REF!,#REF!,_xlfn.XLOOKUP($G81,#REF!,#REF!)) ->  | T81: =_xlfn.XLOOKUP($F81,'O_CAPEX Tariff Summary'!$R$9:$R$178,'O_CAPEX Tariff Summary'!$V$9:$V$178) ->  | V81: 131.8821878 | W81: 110.5215856 | X81: 108.7715738 | Y81: 111.9384597 | Z81: 112.5448777 | AA81: 112.5448777 | AB81: 111.0767503 | AC81: =_xlfn.XLOOKUP($D81,#REF!,#REF!,_xlfn.XLOOKUP($F81,#REF!,#REF!)) ->  | AF81: =IF($F81="NO_CAPEX",SUMIFS('I_Number of assets'!$M$8:$M$113,'I_Number of assets'!$F$8:$F$119,$G81),SUMIFS('I_Number of assets'!$M$8:$M$113,'I_Number of assets'!$F$8:$F$119,$F81)) ->  | AG81: =_xlfn.XLOOKUP($F81,'O_CAPEX Tariff Summary'!$R$9:$R$178,'O_CAPEX Tariff Summary'!$J$9:$J$178) -> 
B82: Lamp | C82: LED | D82: LED 33W Luminaire StreetLED2 Category P3 Aeroscreen + Zhaga | E82: LED0103 | F82: LED0103 | G82: =_xlfn.XLOOKUP($D82,'O_OPEX Tariff Summary'!$D$8:$D$137,'O_OPEX Tariff Summary'!$R$8:$R$137,_xlfn.XLOOKUP($E82,'O_OPEX Tariff Summary'!$D$8:$D$137,'O_OPEX Tariff Summary'!$R$8:$R$137)) -> LED0103 | H82: =_xlfn.XLOOKUP($G82,'O_OPEX Tariff Summary'!$R$8:$R$137,'O_OPEX Tariff Summary'!$AC$8:$AC$137) -> 36.35553348 | J82: 62.27715862 | K82: 41.89493816 | L82: 41.32035472 | M82: 42.3601421 | N82: 42.90984229 | O82: 43.74706682 | P82: 42.36371001 | Q82: =_xlfn.XLOOKUP($D82,#REF!,#REF!,_xlfn.XLOOKUP($G82,#REF!,#REF!)) ->  | T82: =_xlfn.XLOOKUP($F82,'O_CAPEX Tariff Summary'!$R$9:$R$178,'O_CAPEX Tariff Summary'!$V$9:$V$178) -> 74.12416338 | V82: 93.73174232 | W82: 78.55026489 | X82: 76.80025306 | Y82: 79.96713899 | Z82: 80.47468445 | AA82: 80.47468445 | AB82: 79.24592563 | AC82: =_xlfn.XLOOKUP($D82,#REF!,#REF!,_xlfn.XLOOKUP($F82,#REF!,#REF!)) ->  | AF82: =IF($F82="NO_CAPEX",SUMIFS('I_Number of assets'!$M$8:$M$113,'I_Number of assets'!$F$8:$F$119,$G82),SUMIFS('I_Number of assets'!$M$8:$M$113,'I_Number of assets'!$F$8:$F$119,$F82)) ->  | AG82: =_xlfn.XLOOKUP($F82,'O_CAPEX Tariff Summary'!$R$9:$R$178,'O_CAPEX Tariff Summary'!$J$9:$J$178) -> 0
B83: Lamp | C83: LED | D83: LED 33W Luminaire StreetLED2 Category P3 Aeroscreen + Zhaga Connected | E83: LED0104 | F83: LED0104 | G83: =_xlfn.XLOOKUP($D83,'O_OPEX Tariff Summary'!$D$8:$D$137,'O_OPEX Tariff Summary'!$R$8:$R$137,_xlfn.XLOOKUP($E83,'O_OPEX Tariff Summary'!$D$8:$D$137,'O_OPEX Tariff Summary'!$R$8:$R$137)) ->  | H83: =_xlfn.XLOOKUP($G83,'O_OPEX Tariff Summary'!$R$8:$R$137,'O_OPEX Tariff Summary'!$AC$8:$AC$137) ->  | J83: 62.27715862 | K83: 41.89493816 | L83: 41.32035472 | M83: 42.3601421 | N83: 42.90984229 | O83: 43.74706682 | P83: 42.36371001 | Q83: =_xlfn.XLOOKUP($D83,#REF!,#REF!,_xlfn.XLOOKUP($G83,#REF!,#REF!)) ->  | T83: =_xlfn.XLOOKUP($F83,'O_CAPEX Tariff Summary'!$R$9:$R$178,'O_CAPEX Tariff Summary'!$V$9:$V$178) ->  | V83: 136.8396066 | W83: 114.6760647 | X83: 112.9260529 | Y83: 116.0929388 | Z83: 116.6993568 | AA83: 116.6993568 | AB83: 115.2312294 | AC83: =_xlfn.XLOOKUP($D83,#REF!,#REF!,_xlfn.XLOOKUP($F83,#REF!,#REF!)) ->  | AF83: =IF($F83="NO_CAPEX",SUMIFS('I_Number of assets'!$M$8:$M$113,'I_Number of assets'!$F$8:$F$119,$G83),SUMIFS('I_Number of assets'!$M$8:$M$113,'I_Number of assets'!$F$8:$F$119,$F83)) ->  | AG83: =_xlfn.XLOOKUP($F83,'O_CAPEX Tariff Summary'!$R$9:$R$178,'O_CAPEX Tariff Summary'!$J$9:$J$178) -> 
B84: Lamp | C84: LED | D84: LED 17W Luminaire StreetLED3 3000K P4/P5 | E84: LED0105 | F84: LED0105 | G84: =_xlfn.XLOOKUP($D84,'O_OPEX Tariff Summary'!$D$8:$D$137,'O_OPEX Tariff Summary'!$R$8:$R$137,_xlfn.XLOOKUP($E84,'O_OPEX Tariff Summary'!$D$8:$D$137,'O_OPEX Tariff Summary'!$R$8:$R$137)) -> LED0105 | H84: =_xlfn.XLOOKUP($G84,'O_OPEX Tariff Summary'!$R$8:$R$137,'O_OPEX Tariff Summary'!$AC$8:$AC$137) -> 36.35553348 | J84: 56.76339962 | K84: 38.18573566 | L84: 37.83916152 | M84: 38.46633486 | N84: 38.91199419 | O84: 36.35673593 | P84: 35.43631601 | Q84: =_xlfn.XLOOKUP($D84,#REF!,#REF!,_xlfn.XLOOKUP($G84,#REF!,#REF!)) ->  | T84: =_xlfn.XLOOKUP($F84,'O_CAPEX Tariff Summary'!$R$9:$R$178,'O_CAPEX Tariff Summary'!$V$9:$V$178) -> 57.23966517 | V84: 74.14993788 | W84: 62.14007248 | X84: 60.39006065 | Y84: 63.55694658 | Z84: 64.06449205 | AA84: 64.06449205 | AB84: 62.83573322 | AC84: =_xlfn.XLOOKUP($D84,#REF!,#REF!,_xlfn.XLOOKUP($F84,#REF!,#REF!)) ->  | AF84: =IF($F84="NO_CAPEX",SUMIFS('I_Number of assets'!$M$8:$M$113,'I_Number of assets'!$F$8:$F$119,$G84),SUMIFS('I_Number of assets'!$M$8:$M$113,'I_Number of assets'!$F$8:$F$119,$F84)) ->  | AG84: =_xlfn.XLOOKUP($F84,'O_CAPEX Tariff Summary'!$R$9:$R$178,'O_CAPEX Tariff Summary'!$J$9:$J$178) -> 9262
B85: Lamp | C85: LED | D85: LED 17W Luminaire StreetLED3 3000K P4/P5 Connected | E85: LED0106 | F85: LED0106 | G85: =_xlfn.XLOOKUP($D85,'O_OPEX Tariff Summary'!$D$8:$D$137,'O_OPEX Tariff Summary'!$R$8:$R$137,_xlfn.XLOOKUP($E85,'O_OPEX Tariff Summary'!$D$8:$D$137,'O_OPEX Tariff Summary'!$R$8:$R$137)) ->  | H85: =_xlfn.XLOOKUP($G85,'O_OPEX Tariff Summary'!$R$8:$R$137,'O_OPEX Tariff Summary'!$AC$8:$AC$137) ->  | J85: 54.3030391 | K85: 36.53060793 | L85: 36.2600369 | M85: 36.74967222 | N85: 37.15005442 | O85: 36.35673593 | P85: 35.43631601 | Q85: =_xlfn.XLOOKUP($D85,#REF!,#REF!,_xlfn.XLOOKUP($G85,#REF!,#REF!)) ->  | T85: =_xlfn.XLOOKUP($F85,'O_CAPEX Tariff Summary'!$R$9:$R$178,'O_CAPEX Tariff Summary'!$V$9:$V$178) ->  | V85: 117.2578022 | W85: 98.26587231 | X85: 96.51586048 | Y85: 99.68274642 | Z85: 100.2891644 | AA85: 100.2891644 | AB85: 98.82103694 | AC85: =_xlfn.XLOOKUP($D85,#REF!,#REF!,_xlfn.XLOOKUP($F85,#REF!,#REF!)) ->  | AF85: =IF($F85="NO_CAPEX",SUMIFS('I_Number of assets'!$M$8:$M$113,'I_Number of assets'!$F$8:$F$119,$G85),SUMIFS('I_Number of assets'!$M$8:$M$113,'I_Number of assets'!$F$8:$F$119,$F85)) ->  | AG85: =_xlfn.XLOOKUP($F85,'O_CAPEX Tariff Summary'!$R$9:$R$178,'O_CAPEX Tariff Summary'!$J$9:$J$178) -> 
B86: Lamp | C86: LED | D86: LED 17W Luminaire StreetLED3 3000K P4/P5 + Zhaga | E86: LED0107 | F86: LED0107 | G86: =_xlfn.XLOOKUP($D86,'O_OPEX Tariff Summary'!$D$8:$D$137,'O_OPEX Tariff Summary'!$R$8:$R$137,_xlfn.XLOOKUP($E86,'O_OPEX Tariff Summary'!$D$8:$D$137,'O_OPEX Tariff Summary'!$R$8:$R$137)) -> LED0107 | H86: =_xlfn.XLOOKUP($G86,'O_OPEX Tariff Summary'!$R$8:$R$137,'O_OPEX Tariff Summary'!$AC$8:$AC$137) -> 36.35553348 | J86: 62.27715862 | K86: 41.89493816 | L86: 41.32035472 | M86: 42.3601421 | N86: 42.90984229 | O86: 43.74706682 | P86: 42.36371001 | Q86: =_xlfn.XLOOKUP($D86,#REF!,#REF!,_xlfn.XLOOKUP($G86,#REF!,#REF!)) ->  | T86: =_xlfn.XLOOKUP($F86,'O_CAPEX Tariff Summary'!$R$9:$R$178,'O_CAPEX Tariff Summary'!$V$9:$V$178) -> 61.51422168 | V86: 79.10735672 | W86: 66.29455157 | X86: 64.54453974 | Y86: 67.71142567 | Z86: 68.21897114 | AA86: 68.21897114 | AB86: 66.99021231 | AC86: =_xlfn.XLOOKUP($D86,#REF!,#REF!,_xlfn.XLOOKUP($F86,#REF!,#REF!)) ->  | AF86: =IF($F86="NO_CAPEX",SUMIFS('I_Number of assets'!$M$8:$M$113,'I_Number of assets'!$F$8:$F$119,$G86),SUMIFS('I_Number of assets'!$M$8:$M$113,'I_Number of assets'!$F$8:$F$119,$F86)) ->  | AG86: =_xlfn.XLOOKUP($F86,'O_CAPEX Tariff Summary'!$R$9:$R$178,'O_CAPEX Tariff Summary'!$J$9:$J$178) -> 0
B87: Lamp | C87: LED | D87: LED 17W Luminaire StreetLED3 3000K P4/P5 + Zhaga Connected | E87: LED0108 | F87: LED0108 | G87: =_xlfn.XLOOKUP($D87,'O_OPEX Tariff Summary'!$D$8:$D$137,'O_OPEX Tariff Summary'!$R$8:$R$137,_xlfn.XLOOKUP($E87,'O_OPEX Tariff Summary'!$D$8:$D$137,'O_OPEX Tariff Summary'!$R$8:$R$137)) ->  | H87: =_xlfn.XLOOKUP($G87,'O_OPEX Tariff Summary'!$R$8:$R$137,'O_OPEX Tariff Summary'!$AC$8:$AC$137) ->  | J87: 62.27715862 | K87: 41.89493816 | L87: 41.32035472 | M87: 42.3601421 | N87: 42.90984229 | O87: 43.74706682 | P87: 42.36371001 | Q87: =_xlfn.XLOOKUP($D87,#REF!,#REF!,_xlfn.XLOOKUP($G87,#REF!,#REF!)) ->  | T87: =_xlfn.XLOOKUP($F87,'O_CAPEX Tariff Summary'!$R$9:$R$178,'O_CAPEX Tariff Summary'!$V$9:$V$178) ->  | V87: 122.215221 | W87: 102.4203514 | X87: 100.6703396 | Y87: 103.8372255 | Z87: 104.4436435 | AA87: 104.4436435 | AB87: 102.975516 | AC87: =_xlfn.XLOOKUP($D87,#REF!,#REF!,_xlfn.XLOOKUP($F87,#REF!,#REF!)) ->  | AF87: =IF($F87="NO_CAPEX",SUMIFS('I_Number of assets'!$M$8:$M$113,'I_Number of assets'!$F$8:$F$119,$G87),SUMIFS('I_Number of assets'!$M$8:$M$113,'I_Number of assets'!$F$8:$F$119,$F87)) ->  | AG87: =_xlfn.XLOOKUP($F87,'O_CAPEX Tariff Summary'!$R$9:$R$178,'O_CAPEX Tariff Summary'!$J$9:$J$178) -> 
B88: Lamp | C88: LED | D88: LED 17W Luminaire StreetLED3 Louvred Category P4/P5 Reduced RRW | E88: LED0109 | F88: LED0109 | G88: =_xlfn.XLOOKUP($D88,'O_OPEX Tariff Summary'!$D$8:$D$137,'O_OPEX Tariff Summary'!$R$8:$R$137,_xlfn.XLOOKUP($E88,'O_OPEX Tariff Summary'!$D$8:$D$137,'O_OPEX Tariff Summary'!$R$8:$R$137)) -> LED0109 | H88: =_xlfn.XLOOKUP($G88,'O_OPEX Tariff Summary'!$R$8:$R$137,'O_OPEX Tariff Summary'!$AC$8:$AC$137) -> 36.35553348 | J88: 61.04442692 | K88: 41.0656579 | L88: 40.58683837 | M88: 41.45332784 | N88: 41.97776939 | O88: 36.35673593 | P88: 35.43631601 | Q88: =_xlfn.XLOOKUP($D88,#REF!,#REF!,_xlfn.XLOOKUP($G88,#REF!,#REF!)) ->  | T88: =_xlfn.XLOOKUP($F88,'O_CAPEX Tariff Summary'!$R$9:$R$178,'O_CAPEX Tariff Summary'!$V$9:$V$178) -> 55.74357039 | V88: 72.41484128 | W88: 60.6860048 | X88: 58.93599297 | Y88: 62.1028789 | Z88: 62.61042436 | AA88: 62.61042436 | AB88: 61.38166554 | AC88: =_xlfn.XLOOKUP($D88,#REF!,#REF!,_xlfn.XLOOKUP($F88,#REF!,#REF!)) ->  | AF88: =IF($F88="NO_CAPEX",SUMIFS('I_Number of assets'!$M$8:$M$113,'I_Number of assets'!$F$8:$F$119,$G88),SUMIFS('I_Number of assets'!$M$8:$M$113,'I_Number of assets'!$F$8:$F$119,$F88)) ->  | AG88: =_xlfn.XLOOKUP($F88,'O_CAPEX Tariff Summary'!$R$9:$R$178,'O_CAPEX Tariff Summary'!$J$9:$J$178) -> 464 | AH88: =IF(SUM(_xlfn.ANCHORARRAY(AC88))=0,0,1) -> 
B89: Lamp | C89: LED | D89: LED 17W Luminaire StreetLED3 Louvred Category P4/P5 Reduced RRW Connected | E89: LED0110 | F89: LED0110 | G89: =_xlfn.XLOOKUP($D89,'O_OPEX Tariff Summary'!$D$8:$D$137,'O_OPEX Tariff Summary'!$R$8:$R$137,_xlfn.XLOOKUP($E89,'O_OPEX Tariff Summary'!$D$8:$D$137,'O_OPEX Tariff Summary'!$R$8:$R$137)) ->  | H89: =_xlfn.XLOOKUP($G89,'O_OPEX Tariff Summary'!$R$8:$R$137,'O_OPEX Tariff Summary'!$AC$8:$AC$137) ->  | J89: 54.3030391 | K89: 36.53060793 | L89: 36.2600369 | M89: 36.74967222 | N89: 37.15005442 | O89: 36.35673593 | P89: 35.43631601 | Q89: =_xlfn.XLOOKUP($D89,#REF!,#REF!,_xlfn.XLOOKUP($G89,#REF!,#REF!)) ->  | T89: =_xlfn.XLOOKUP($F89,'O_CAPEX Tariff Summary'!$R$9:$R$178,'O_CAPEX Tariff Summary'!$V$9:$V$178) ->  | V89: 115.5227056 | W89: 96.81180463 | X89: 95.0617928 | Y89: 98.22867874 | Z89: 98.83509669 | AA89: 98.83509669 | AB89: 97.36696926 | AC89: =_xlfn.XLOOKUP($D89,#REF!,#REF!,_xlfn.XLOOKUP($F89,#REF!,#REF!)) ->  | AF89: =IF($F89="NO_CAPEX",SUMIFS('I_Number of assets'!$M$8:$M$113,'I_Number of assets'!$F$8:$F$119,$G89),SUMIFS('I_Number of assets'!$M$8:$M$113,'I_Number of assets'!$F$8:$F$119,$F89)) ->  | AG89: =_xlfn.XLOOKUP($F89,'O_CAPEX Tariff Summary'!$R$9:$R$178,'O_CAPEX Tariff Summary'!$J$9:$J$178) -> 
B90: Lamp | C90: LED | D90: LED 17W Luminaire StreetLED3 Louvred Category P4/P5 Reduced RRW + Zhaga | E90: LED0111 | F90: LED0111 | G90: =_xlfn.XLOOKUP($D90,'O_OPEX Tariff Summary'!$D$8:$D$137,'O_OPEX Tariff Summary'!$R$8:$R$137,_xlfn.XLOOKUP($E90,'O_OPEX Tariff Summary'!$D$8:$D$137,'O_OPEX Tariff Summary'!$R$8:$R$137)) -> LED0111 | H90: =_xlfn.XLOOKUP($G90,'O_OPEX Tariff Summary'!$R$8:$R$137,'O_OPEX Tariff Summary'!$AC$8:$AC$137) -> 36.35553348 | J90: 62.27715862 | K90: 41.89493816 | L90: 41.32035472 | M90: 42.3601421 | N90: 42.90984229 | O90: 43.74706682 | P90: 42.36371001 | Q90: =_xlfn.XLOOKUP($D90,#REF!,#REF!,_xlfn.XLOOKUP($G90,#REF!,#REF!)) ->  | T90: =_xlfn.XLOOKUP($F90,'O_CAPEX Tariff Summary'!$R$9:$R$178,'O_CAPEX Tariff Summary'!$V$9:$V$178) -> 65.57505036 | V90: 83.81690463 | W90: 70.24130671 | X90: 68.49129488 | Y90: 71.65818081 | Z90: 72.16572627 | AA90: 72.16572627 | AB90: 70.93696745 | AC90: =_xlfn.XLOOKUP($D90,#REF!,#REF!,_xlfn.XLOOKUP($F90,#REF!,#REF!)) ->  | AF90: =IF($F90="NO_CAPEX",SUMIFS('I_Number of assets'!$M$8:$M$113,'I_Number of assets'!$F$8:$F$119,$G90),SUMIFS('I_Number of assets'!$M$8:$M$113,'I_Number of assets'!$F$8:$F$119,$F90)) ->  | AG90: =_xlfn.XLOOKUP($F90,'O_CAPEX Tariff Summary'!$R$9:$R$178,'O_CAPEX Tariff Summary'!$J$9:$J$178) -> 0
B91: Lamp | C91: LED | D91: LED 17W Luminaire StreetLED3 Louvred Category P4/P5 Reduced RRW + Zhaga Connected | E91: LED0112 | F91: LED0112 | G91: =_xlfn.XLOOKUP($D91,'O_OPEX Tariff Summary'!$D$8:$D$137,'O_OPEX Tariff Summary'!$R$8:$R$137,_xlfn.XLOOKUP($E91,'O_OPEX Tariff Summary'!$D$8:$D$137,'O_OPEX Tariff Summary'!$R$8:$R$137)) ->  | H91: =_xlfn.XLOOKUP($G91,'O_OPEX Tariff Summary'!$R$8:$R$137,'O_OPEX Tariff Summary'!$AC$8:$AC$137) ->  | J91: 62.27715862 | K91: 41.89493816 | L91: 41.32035472 | M91: 42.3601421 | N91: 42.90984229 | O91: 43.74706682 | P91: 42.36371001 | Q91: =_xlfn.XLOOKUP($D91,#REF!,#REF!,_xlfn.XLOOKUP($G91,#REF!,#REF!)) ->  | T91: =_xlfn.XLOOKUP($F91,'O_CAPEX Tariff Summary'!$R$9:$R$178,'O_CAPEX Tariff Summary'!$V$9:$V$178) ->  | V91: 126.924769 | W91: 106.3671065 | X91: 104.6170947 | Y91: 107.7839806 | Z91: 108.3903986 | AA91: 108.3903986 | AB91: 106.9222712 | AC91: =_xlfn.XLOOKUP($D91,#REF!,#REF!,_xlfn.XLOOKUP($F91,#REF!,#REF!)) ->  | AF91: =IF($F91="NO_CAPEX",SUMIFS('I_Number of assets'!$M$8:$M$113,'I_Number of assets'!$F$8:$F$119,$G91),SUMIFS('I_Number of assets'!$M$8:$M$113,'I_Number of assets'!$F$8:$F$119,$F91)) ->  | AG91: =_xlfn.XLOOKUP($F91,'O_CAPEX Tariff Summary'!$R$9:$R$178,'O_CAPEX Tariff Summary'!$J$9:$J$178) -> 
B92: Lamp | C92: LED | D92: LED 25W Luminaire StreetLED3 2200K, 2022lm, 505mA | E92: LED0113 | F92: LED0113 | G92: =_xlfn.XLOOKUP($D92,'O_OPEX Tariff Summary'!$D$8:$D$137,'O_OPEX Tariff Summary'!$R$8:$R$137,_xlfn.XLOOKUP($E92,'O_OPEX Tariff Summary'!$D$8:$D$137,'O_OPEX Tariff Summary'!$R$8:$R$137)) -> LED0113 | H92: =_xlfn.XLOOKUP($G92,'O_OPEX Tariff Summary'!$R$8:$R$137,'O_OPEX Tariff Summary'!$AC$8:$AC$137) -> 36.35553348 | J92: 54.3030391 | K92: 36.53060793 | L92: 36.2600369 | M92: 36.74967222 | N92: 37.15005442 | O92: 36.35673593 | P92: 35.43631601 | Q92: =_xlfn.XLOOKUP($D92,#REF!,#REF!,_xlfn.XLOOKUP($G92,#REF!,#REF!)) ->  | T92: =_xlfn.XLOOKUP($F92,'O_CAPEX Tariff Summary'!$R$9:$R$178,'O_CAPEX Tariff Summary'!$V$9:$V$178) -> 61.72794951 | V92: 79.35522766 | W92: 66.50227552 | X92: 64.75226369 | Y92: 67.91914963 | Z92: 68.42669509 | AA92: 68.42669509 | AB92: 67.19793626 | AC92: =_xlfn.XLOOKUP($D92,#REF!,#REF!,_xlfn.XLOOKUP($F92,#REF!,#REF!)) ->  | AF92: =IF($F92="NO_CAPEX",SUMIFS('I_Number of assets'!$M$8:$M$113,'I_Number of assets'!$F$8:$F$119,$G92),SUMIFS('I_Number of assets'!$M$8:$M$113,'I_Number of assets'!$F$8:$F$119,$F92)) ->  | AG92: =_xlfn.XLOOKUP($F92,'O_CAPEX Tariff Summary'!$R$9:$R$178,'O_CAPEX Tariff Summary'!$J$9:$J$178) -> 44
B93: Lamp | C93: LED | D93: LED 25W Luminaire StreetLED3 2200K, 2022lm, 505mA Connected | E93: LED0114 | F93: LED0114 | G93: =_xlfn.XLOOKUP($D93,'O_OPEX Tariff Summary'!$D$8:$D$137,'O_OPEX Tariff Summary'!$R$8:$R$137,_xlfn.XLOOKUP($E93,'O_OPEX Tariff Summary'!$D$8:$D$137,'O_OPEX Tariff Summary'!$R$8:$R$137)) ->  | H93: =_xlfn.XLOOKUP($G93,'O_OPEX Tariff Summary'!$R$8:$R$137,'O_OPEX Tariff Summary'!$AC$8:$AC$137) ->  | J93: 54.3030391 | K93: 36.53060793 | L93: 36.2600369 | M93: 36.74967222 | N93: 37.15005442 | O93: 36.35673593 | P93: 35.43631601 | Q93: =_xlfn.XLOOKUP($D93,#REF!,#REF!,_xlfn.XLOOKUP($G93,#REF!,#REF!)) ->  | T93: =_xlfn.XLOOKUP($F93,'O_CAPEX Tariff Summary'!$R$9:$R$178,'O_CAPEX Tariff Summary'!$V$9:$V$178) ->  | V93: 122.463092 | W93: 102.6280754 | X93: 100.8780635 | Y93: 104.0449495 | Z93: 104.6513674 | AA93: 104.6513674 | AB93: 103.18324 | AC93: =_xlfn.XLOOKUP($D93,#REF!,#REF!,_xlfn.XLOOKUP($F93,#REF!,#REF!)) ->  | AF93: =IF($F93="NO_CAPEX",SUMIFS('I_Number of assets'!$M$8:$M$113,'I_Number of assets'!$F$8:$F$119,$G93),SUMIFS('I_Number of assets'!$M$8:$M$113,'I_Number of assets'!$F$8:$F$119,$F93)) ->  | AG93: =_xlfn.XLOOKUP($F93,'O_CAPEX Tariff Summary'!$R$9:$R$178,'O_CAPEX Tariff Summary'!$J$9:$J$178) -> 
B94: Lamp | C94: LED | D94: LED 25W Luminaire StreetLED3 2200K, 2022lm, 505mA + Zhaga | E94: LED0115 | F94: LED0115 | G94: =_xlfn.XLOOKUP($D94,'O_OPEX Tariff Summary'!$D$8:$D$137,'O_OPEX Tariff Summary'!$R$8:$R$137,_xlfn.XLOOKUP($E94,'O_OPEX Tariff Summary'!$D$8:$D$137,'O_OPEX Tariff Summary'!$R$8:$R$137)) -> LED0115 | H94: =_xlfn.XLOOKUP($G94,'O_OPEX Tariff Summary'!$R$8:$R$137,'O_OPEX Tariff Summary'!$AC$8:$AC$137) -> 36.35553348 | J94: 62.27715862 | K94: 41.89493816 | L94: 41.32035472 | M94: 42.3601421 | N94: 42.90984229 | O94: 43.74706682 | P94: 42.36371001 | Q94: =_xlfn.XLOOKUP($D94,#REF!,#REF!,_xlfn.XLOOKUP($G94,#REF!,#REF!)) ->  | T94: =_xlfn.XLOOKUP($F94,'O_CAPEX Tariff Summary'!$R$9:$R$178,'O_CAPEX Tariff Summary'!$V$9:$V$178) -> 66.00250602 | V94: 84.31264651 | W94: 70.65675461 | X94: 68.90674278 | Y94: 72.07362872 | Z94: 72.58117418 | AA94: 72.58117418 | AB94: 71.35241535 | AC94: =_xlfn.XLOOKUP($D94,#REF!,#REF!,_xlfn.XLOOKUP($F94,#REF!,#REF!)) ->  | AF94: =IF($F94="NO_CAPEX",SUMIFS('I_Number of assets'!$M$8:$M$113,'I_Number of assets'!$F$8:$F$119,$G94),SUMIFS('I_Number of assets'!$M$8:$M$113,'I_Number of assets'!$F$8:$F$119,$F94)) ->  | AG94: =_xlfn.XLOOKUP($F94,'O_CAPEX Tariff Summary'!$R$9:$R$178,'O_CAPEX Tariff Summary'!$J$9:$J$178) -> 0
B95: Lamp | C95: LED | D95: LED 25W Luminaire StreetLED3 2200K, 2022lm, 505mA + Zhaga Connected | E95: LED0116 | F95: LED0116 | G95: =_xlfn.XLOOKUP($D95,'O_OPEX Tariff Summary'!$D$8:$D$137,'O_OPEX Tariff Summary'!$R$8:$R$137,_xlfn.XLOOKUP($E95,'O_OPEX Tariff Summary'!$D$8:$D$137,'O_OPEX Tariff Summary'!$R$8:$R$137)) ->  | H95: =_xlfn.XLOOKUP($G95,'O_OPEX Tariff Summary'!$R$8:$R$137,'O_OPEX Tariff Summary'!$AC$8:$AC$137) ->  | J95: 62.27715862 | K95: 41.89493816 | L95: 41.32035472 | M95: 42.3601421 | N95: 42.90984229 | O95: 43.74706682 | P95: 42.36371001 | Q95: =_xlfn.XLOOKUP($D95,#REF!,#REF!,_xlfn.XLOOKUP($G95,#REF!,#REF!)) ->  | T95: =_xlfn.XLOOKUP($F95,'O_CAPEX Tariff Summary'!$R$9:$R$178,'O_CAPEX Tariff Summary'!$V$9:$V$178) ->  | V95: 127.4205108 | W95: 106.7825545 | X95: 105.0325426 | Y95: 108.1994286 | Z95: 108.8058465 | AA95: 108.8058465 | AB95: 107.3377191 | AC95: =_xlfn.XLOOKUP($D95,#REF!,#REF!,_xlfn.XLOOKUP($F95,#REF!,#REF!)) ->  | AF95: =IF($F95="NO_CAPEX",SUMIFS('I_Number of assets'!$M$8:$M$113,'I_Number of assets'!$F$8:$F$119,$G95),SUMIFS('I_Number of assets'!$M$8:$M$113,'I_Number of assets'!$F$8:$F$119,$F95)) ->  | AG95: =_xlfn.XLOOKUP($F95,'O_CAPEX Tariff Summary'!$R$9:$R$178,'O_CAPEX Tariff Summary'!$J$9:$J$178) -> 
B96: Lamp | C96: LED | D96: LED 50W Luminaire RoadLED Midi 4000K, 7614lm, 208mA | E96: LED0117 | F96: LED0117 | G96: =_xlfn.XLOOKUP($D96,'O_OPEX Tariff Summary'!$D$8:$D$137,'O_OPEX Tariff Summary'!$R$8:$R$137,_xlfn.XLOOKUP($E96,'O_OPEX Tariff Summary'!$D$8:$D$137,'O_OPEX Tariff Summary'!$R$8:$R$137)) -> LED0117 | H96: =_xlfn.XLOOKUP($G96,'O_OPEX Tariff Summary'!$R$8:$R$137,'O_OPEX Tariff Summary'!$AC$8:$AC$137) -> 42.82711115 | J96: 68.67929566 | K96: 46.20176816 | L96: 42.70747705 | M96: 43.96511398 | N96: 44.59377866 | O96: 42.82466149 | P96: 41.42383392 | Q96: =_xlfn.XLOOKUP($D96,#REF!,#REF!,_xlfn.XLOOKUP($G96,#REF!,#REF!)) ->  | T96: =_xlfn.XLOOKUP($F96,'O_CAPEX Tariff Summary'!$R$9:$R$178,'O_CAPEX Tariff Summary'!$V$9:$V$178) -> 131.9920564 | V96: 201.3395511 | W96: 168.7291272 | X96: 146.1285899 | Y96: 154.2627921 | Z96: 156.2468335 | AA96: 156.2468335 | AB96: 151.4435035 | AC96: =_xlfn.XLOOKUP($D96,#REF!,#REF!,_xlfn.XLOOKUP($F96,#REF!,#REF!)) ->  | AF96: =IF($F96="NO_CAPEX",SUMIFS('I_Number of assets'!$M$8:$M$113,'I_Number of assets'!$F$8:$F$119,$G96),SUMIFS('I_Number of assets'!$M$8:$M$113,'I_Number of assets'!$F$8:$F$119,$F96)) ->  | AG96: =_xlfn.XLOOKUP($F96,'O_CAPEX Tariff Summary'!$R$9:$R$178,'O_CAPEX Tariff Summary'!$J$9:$J$178) -> 47
B97: Lamp | C97: LED | D97: LED 50W Luminaire RoadLED Midi 4000K, 7614lm, 208mA Connected | E97: LED0118 | F97: LED0118 | G97: =_xlfn.XLOOKUP($D97,'O_OPEX Tariff Summary'!$D$8:$D$137,'O_OPEX Tariff Summary'!$R$8:$R$137,_xlfn.XLOOKUP($E97,'O_OPEX Tariff Summary'!$D$8:$D$137,'O_OPEX Tariff Summary'!$R$8:$R$137)) ->  | H97: =_xlfn.XLOOKUP($G97,'O_OPEX Tariff Summary'!$R$8:$R$137,'O_OPEX Tariff Summary'!$AC$8:$AC$137) ->  | J97: 68.67929566 | K97: 46.20176816 | L97: 42.70747705 | M97: 43.96511398 | N97: 44.59377866 | O97: 42.82466149 | P97: 41.42383392 | Q97: =_xlfn.XLOOKUP($D97,#REF!,#REF!,_xlfn.XLOOKUP($G97,#REF!,#REF!)) ->  | T97: =_xlfn.XLOOKUP($F97,'O_CAPEX Tariff Summary'!$R$9:$R$178,'O_CAPEX Tariff Summary'!$V$9:$V$178) ->  | V97: 244.4474154 | W97: 204.854927 | X97: 182.2543897 | Y97: 190.3885919 | Z97: 192.4715058 | AA97: 192.4715058 | AB97: 187.4288072 | AC97: =_xlfn.XLOOKUP($D97,#REF!,#REF!,_xlfn.XLOOKUP($F97,#REF!,#REF!)) ->  | AF97: =IF($F97="NO_CAPEX",SUMIFS('I_Number of assets'!$M$8:$M$113,'I_Number of assets'!$F$8:$F$119,$G97),SUMIFS('I_Number of assets'!$M$8:$M$113,'I_Number of assets'!$F$8:$F$119,$F97)) ->  | AG97: =_xlfn.XLOOKUP($F97,'O_CAPEX Tariff Summary'!$R$9:$R$178,'O_CAPEX Tariff Summary'!$J$9:$J$178) -> 
B98: Lamp | C98: LED | D98: LED 50W Luminaire RoadLED Midi 4000K, 7614lm, 208mA + Zhaga | E98: LED0119 | F98: LED0119 | G98: =_xlfn.XLOOKUP($D98,'O_OPEX Tariff Summary'!$D$8:$D$137,'O_OPEX Tariff Summary'!$R$8:$R$137,_xlfn.XLOOKUP($E98,'O_OPEX Tariff Summary'!$D$8:$D$137,'O_OPEX Tariff Summary'!$R$8:$R$137)) -> LED0119 | H98: =_xlfn.XLOOKUP($G98,'O_OPEX Tariff Summary'!$R$8:$R$137,'O_OPEX Tariff Summary'!$AC$8:$AC$137) -> 42.82711115 | J98: 92.80651244 | K98: 62.43257055 | L98: 55.01210965 | M98: 57.68282179 | N98: 58.71730161 | O98: 60.47969792 | P98: 57.85363123 | Q98: =_xlfn.XLOOKUP($D98,#REF!,#REF!,_xlfn.XLOOKUP($G98,#REF!,#REF!)) ->  | T98: =_xlfn.XLOOKUP($F98,'O_CAPEX Tariff Summary'!$R$9:$R$178,'O_CAPEX Tariff Summary'!$V$9:$V$178) -> 136.2666129 | V98: 206.29697 | W98: 172.8836063 | X98: 150.283069 | Y98: 158.4172712 | Z98: 160.4013125 | AA98: 160.4013125 | AB98: 155.5979826 | AC98: =_xlfn.XLOOKUP($D98,#REF!,#REF!,_xlfn.XLOOKUP($F98,#REF!,#REF!)) ->  | AF98: =IF($F98="NO_CAPEX",SUMIFS('I_Number of assets'!$M$8:$M$113,'I_Number of assets'!$F$8:$F$119,$G98),SUMIFS('I_Number of assets'!$M$8:$M$113,'I_Number of assets'!$F$8:$F$119,$F98)) ->  | AG98: =_xlfn.XLOOKUP($F98,'O_CAPEX Tariff Summary'!$R$9:$R$178,'O_CAPEX Tariff Summary'!$J$9:$J$178) -> 0
B99: Lamp | C99: LED | D99: LED 50W Luminaire RoadLED Midi 4000K, 7614lm, 208mA + Zhaga Connected | E99: LED0120 | F99: LED0120 | G99: =_xlfn.XLOOKUP($D99,'O_OPEX Tariff Summary'!$D$8:$D$137,'O_OPEX Tariff Summary'!$R$8:$R$137,_xlfn.XLOOKUP($E99,'O_OPEX Tariff Summary'!$D$8:$D$137,'O_OPEX Tariff Summary'!$R$8:$R$137)) ->  | H99: =_xlfn.XLOOKUP($G99,'O_OPEX Tariff Summary'!$R$8:$R$137,'O_OPEX Tariff Summary'!$AC$8:$AC$137) ->  | J99: 92.80651244 | K99: 62.43257055 | L99: 55.01210965 | M99: 57.68282179 | N99: 58.71730161 | O99: 60.47969792 | P99: 57.85363123 | Q99: =_xlfn.XLOOKUP($D99,#REF!,#REF!,_xlfn.XLOOKUP($G99,#REF!,#REF!)) ->  | T99: =_xlfn.XLOOKUP($F99,'O_CAPEX Tariff Summary'!$R$9:$R$178,'O_CAPEX Tariff Summary'!$V$9:$V$178) ->  | V99: 249.4048343 | W99: 209.0094061 | X99: 186.4088688 | Y99: 194.543071 | Z99: 196.6259849 | AA99: 196.6259849 | AB99: 191.5832863 | AC99: =_xlfn.XLOOKUP($D99,#REF!,#REF!,_xlfn.XLOOKUP($F99,#REF!,#REF!)) ->  | AF99: =IF($F99="NO_CAPEX",SUMIFS('I_Number of assets'!$M$8:$M$113,'I_Number of assets'!$F$8:$F$119,$G99),SUMIFS('I_Number of assets'!$M$8:$M$113,'I_Number of assets'!$F$8:$F$119,$F99)) ->  | AG99: =_xlfn.XLOOKUP($F99,'O_CAPEX Tariff Summary'!$R$9:$R$178,'O_CAPEX Tariff Summary'!$J$9:$J$178) -> 
B100: Lamp | C100: LED | D100: LED 80W Luminaire RoadLED Midi 4000K, 9509lm, 661mA | E100: LED0121 | F100: LED0121 | G100: =_xlfn.XLOOKUP($D100,'O_OPEX Tariff Summary'!$D$8:$D$137,'O_OPEX Tariff Summary'!$R$8:$R$137,_xlfn.XLOOKUP($E100,'O_OPEX Tariff Summary'!$D$8:$D$137,'O_OPEX Tariff Summary'!$R$8:$R$137)) -> LED0121 | H100: =_xlfn.XLOOKUP($G100,'O_OPEX Tariff Summary'!$R$8:$R$137,'O_OPEX Tariff Summary'!$AC$8:$AC$137) -> 42.82711115 | J100: 65.42997824 | K100: 44.01589528 | L100: 41.01237539 | M100: 42.09337792 | N100: 42.66734188 | O100: 42.82466149 | P100: 41.42383392 | Q100: =_xlfn.XLOOKUP($D100,#REF!,#REF!,_xlfn.XLOOKUP($G100,#REF!,#REF!)) ->  | T100: =_xlfn.XLOOKUP($F100,'O_CAPEX Tariff Summary'!$R$9:$R$178,'O_CAPEX Tariff Summary'!$V$9:$V$178) -> 131.9920564 | V100: 201.3395511 | W100: 168.7291272 | X100: 146.1285899 | Y100: 154.2627921 | Z100: 156.2468335 | AA100: 156.2468335 | AB100: 151.4435035 | AC100: =_xlfn.XLOOKUP($D100,#REF!,#REF!,_xlfn.XLOOKUP($F100,#REF!,#REF!)) ->  | AF100: =IF($F100="NO_CAPEX",SUMIFS('I_Number of assets'!$M$8:$M$113,'I_Number of assets'!$F$8:$F$119,$G100),SUMIFS('I_Number of assets'!$M$8:$M$113,'I_Number of assets'!$F$8:$F$119,$F100)) ->  | AG100: =_xlfn.XLOOKUP($F100,'O_CAPEX Tariff Summary'!$R$9:$R$178,'O_CAPEX Tariff Summary'!$J$9:$J$178) -> 2669
B101: Lamp | C101: LED | D101: LED 80W Luminaire RoadLED Midi 4000K, 9509lm, 661mA Connected | E101: LED0122 | F101: LED0122 | G101: =_xlfn.XLOOKUP($D101,'O_OPEX Tariff Summary'!$D$8:$D$137,'O_OPEX Tariff Summary'!$R$8:$R$137,_xlfn.XLOOKUP($E101,'O_OPEX Tariff Summary'!$D$8:$D$137,'O_OPEX Tariff Summary'!$R$8:$R$137)) ->  | H101: =_xlfn.XLOOKUP($G101,'O_OPEX Tariff Summary'!$R$8:$R$137,'O_OPEX Tariff Summary'!$AC$8:$AC$137) ->  | J101: 68.67929566 | K101: 46.20176816 | L101: 42.70747705 | M101: 43.96511398 | N101: 44.59377866 | O101: 42.82466149 | P101: 41.42383392 | Q101: =_xlfn.XLOOKUP($D101,#REF!,#REF!,_xlfn.XLOOKUP($G101,#REF!,#REF!)) ->  | T101: =_xlfn.XLOOKUP($F101,'O_CAPEX Tariff Summary'!$R$9:$R$178,'O_CAPEX Tariff Summary'!$V$9:$V$178) ->  | V101: 244.4474154 | W101: 204.854927 | X101: 182.2543897 | Y101: 190.3885919 | Z101: 192.4715058 | AA101: 192.4715058 | AB101: 187.4288072 | AC101: =_xlfn.XLOOKUP($D101,#REF!,#REF!,_xlfn.XLOOKUP($F101,#REF!,#REF!)) ->  | AF101: =IF($F101="NO_CAPEX",SUMIFS('I_Number of assets'!$M$8:$M$113,'I_Number of assets'!$F$8:$F$119,$G101),SUMIFS('I_Number of assets'!$M$8:$M$113,'I_Number of assets'!$F$8:$F$119,$F101)) ->  | AG101: =_xlfn.XLOOKUP($F101,'O_CAPEX Tariff Summary'!$R$9:$R$178,'O_CAPEX Tariff Summary'!$J$9:$J$178) -> 
B102: Lamp | C102: LED | D102: LED 80W Luminaire RoadLED Midi 4000K, 9509lm, 661mA + Zhaga | E102: LED0123 | F102: LED0123 | G102: =_xlfn.XLOOKUP($D102,'O_OPEX Tariff Summary'!$D$8:$D$137,'O_OPEX Tariff Summary'!$R$8:$R$137,_xlfn.XLOOKUP($E102,'O_OPEX Tariff Summary'!$D$8:$D$137,'O_OPEX Tariff Summary'!$R$8:$R$137)) -> LED0123 | H102: =_xlfn.XLOOKUP($G102,'O_OPEX Tariff Summary'!$R$8:$R$137,'O_OPEX Tariff Summary'!$AC$8:$AC$137) -> 42.82711115 | J102: 92.80651244 | K102: 62.43257055 | L102: 55.01210965 | M102: 57.68282179 | N102: 58.71730161 | O102: 60.47969792 | P102: 57.85363123 | Q102: =_xlfn.XLOOKUP($D102,#REF!,#REF!,_xlfn.XLOOKUP($G102,#REF!,#REF!)) ->  | T102: =_xlfn.XLOOKUP($F102,'O_CAPEX Tariff Summary'!$R$9:$R$178,'O_CAPEX Tariff Summary'!$V$9:$V$178) -> 136.2666129 | V102: 206.29697 | W102: 172.8836063 | X102: 150.283069 | Y102: 158.4172712 | Z102: 160.4013125 | AA102: 160.4013125 | AB102: 155.5979826 | AC102: =_xlfn.XLOOKUP($D102,#REF!,#REF!,_xlfn.XLOOKUP($F102,#REF!,#REF!)) ->  | AF102: =IF($F102="NO_CAPEX",SUMIFS('I_Number of assets'!$M$8:$M$113,'I_Number of assets'!$F$8:$F$119,$G102),SUMIFS('I_Number of assets'!$M$8:$M$113,'I_Number of assets'!$F$8:$F$119,$F102)) ->  | AG102: =_xlfn.XLOOKUP($F102,'O_CAPEX Tariff Summary'!$R$9:$R$178,'O_CAPEX Tariff Summary'!$J$9:$J$178) -> 0
B103: Lamp | C103: LED | D103: LED 80W Luminaire RoadLED Midi 4000K, 9509lm, 661mA + Zhaga Connected | E103: LED0124 | F103: LED0124 | G103: =_xlfn.XLOOKUP($D103,'O_OPEX Tariff Summary'!$D$8:$D$137,'O_OPEX Tariff Summary'!$R$8:$R$137,_xlfn.XLOOKUP($E103,'O_OPEX Tariff Summary'!$D$8:$D$137,'O_OPEX Tariff Summary'!$R$8:$R$137)) ->  | H103: =_xlfn.XLOOKUP($G103,'O_OPEX Tariff Summary'!$R$8:$R$137,'O_OPEX Tariff Summary'!$AC$8:$AC$137) ->  | J103: 92.80651244 | K103: 62.43257055 | L103: 55.01210965 | M103: 57.68282179 | N103: 58.71730161 | O103: 60.47969792 | P103: 57.85363123 | Q103: =_xlfn.XLOOKUP($D103,#REF!,#REF!,_xlfn.XLOOKUP($G103,#REF!,#REF!)) ->  | T103: =_xlfn.XLOOKUP($F103,'O_CAPEX Tariff Summary'!$R$9:$R$178,'O_CAPEX Tariff Summary'!$V$9:$V$178) ->  | V103: 249.4048343 | W103: 209.0094061 | X103: 186.4088688 | Y103: 194.543071 | Z103: 196.6259849 | AA103: 196.6259849 | AB103: 191.5832863 | AC103: =_xlfn.XLOOKUP($D103,#REF!,#REF!,_xlfn.XLOOKUP($F103,#REF!,#REF!)) ->  | AF103: =IF($F103="NO_CAPEX",SUMIFS('I_Number of assets'!$M$8:$M$113,'I_Number of assets'!$F$8:$F$119,$G103),SUMIFS('I_Number of assets'!$M$8:$M$113,'I_Number of assets'!$F$8:$F$119,$F103)) ->  | AG103: =_xlfn.XLOOKUP($F103,'O_CAPEX Tariff Summary'!$R$9:$R$178,'O_CAPEX Tariff Summary'!$J$9:$J$178) -> 
B104: Lamp | C104: LED | D104: LED 150W Luminaire RoadLED Midi 4000K, 20321lm, 650mA | E104: LED0125 | F104: LED0125 | G104: =_xlfn.XLOOKUP($D104,'O_OPEX Tariff Summary'!$D$8:$D$137,'O_OPEX Tariff Summary'!$R$8:$R$137,_xlfn.XLOOKUP($E104,'O_OPEX Tariff Summary'!$D$8:$D$137,'O_OPEX Tariff Summary'!$R$8:$R$137)) -> LED0125 | H104: =_xlfn.XLOOKUP($G104,'O_OPEX Tariff Summary'!$R$8:$R$137,'O_OPEX Tariff Summary'!$AC$8:$AC$137) -> 42.82711115 | J104: 63.35041509 | K104: 42.61693663 | L104: 39.92751033 | M104: 40.89546684 | N104: 41.43442235 | O104: 42.82466149 | P104: 41.42383392 | Q104: =_xlfn.XLOOKUP($D104,#REF!,#REF!,_xlfn.XLOOKUP($G104,#REF!,#REF!)) ->  | T104: =_xlfn.XLOOKUP($F104,'O_CAPEX Tariff Summary'!$R$9:$R$178,'O_CAPEX Tariff Summary'!$V$9:$V$178) -> 135.1979738 | V104: 205.0576153 | W104: 171.8449865 | X104: 149.2444492 | Y104: 157.3786514 | Z104: 159.3626928 | AA104: 159.3626928 | AB104: 154.5593628 | AC104: =_xlfn.XLOOKUP($D104,#REF!,#REF!,_xlfn.XLOOKUP($F104,#REF!,#REF!)) ->  | AF104: =IF($F104="NO_CAPEX",SUMIFS('I_Number of assets'!$M$8:$M$113,'I_Number of assets'!$F$8:$F$119,$G104),SUMIFS('I_Number of assets'!$M$8:$M$113,'I_Number of assets'!$F$8:$F$119,$F104)) ->  | AG104: =_xlfn.XLOOKUP($F104,'O_CAPEX Tariff Summary'!$R$9:$R$178,'O_CAPEX Tariff Summary'!$J$9:$J$178) -> 6593
B105: Lamp | C105: LED | D105: LED 150W Luminaire RoadLED Midi 4000K, 20321lm, 650mA Connected | E105: LED0126 | F105: LED0126 | G105: =_xlfn.XLOOKUP($D105,'O_OPEX Tariff Summary'!$D$8:$D$137,'O_OPEX Tariff Summary'!$R$8:$R$137,_xlfn.XLOOKUP($E105,'O_OPEX Tariff Summary'!$D$8:$D$137,'O_OPEX Tariff Summary'!$R$8:$R$137)) ->  | H105: =_xlfn.XLOOKUP($G105,'O_OPEX Tariff Summary'!$R$8:$R$137,'O_OPEX Tariff Summary'!$AC$8:$AC$137) ->  | J105: 68.67929566 | K105: 46.20176816 | L105: 42.70747705 | M105: 43.96511398 | N105: 44.59377866 | O105: 42.82466149 | P105: 41.42383392 | Q105: =_xlfn.XLOOKUP($D105,#REF!,#REF!,_xlfn.XLOOKUP($G105,#REF!,#REF!)) ->  | T105: =_xlfn.XLOOKUP($F105,'O_CAPEX Tariff Summary'!$R$9:$R$178,'O_CAPEX Tariff Summary'!$V$9:$V$178) ->  | V105: 248.1654796 | W105: 207.9707863 | X105: 185.3702491 | Y105: 193.5044513 | Z105: 195.5873651 | AA105: 195.5873651 | AB105: 190.5446665 | AC105: =_xlfn.XLOOKUP($D105,#REF!,#REF!,_xlfn.XLOOKUP($F105,#REF!,#REF!)) ->  | AF105: =IF($F105="NO_CAPEX",SUMIFS('I_Number of assets'!$M$8:$M$113,'I_Number of assets'!$F$8:$F$119,$G105),SUMIFS('I_Number of assets'!$M$8:$M$113,'I_Number of assets'!$F$8:$F$119,$F105)) ->  | AG105: =_xlfn.XLOOKUP($F105,'O_CAPEX Tariff Summary'!$R$9:$R$178,'O_CAPEX Tariff Summary'!$J$9:$J$178) -> 
B106: Lamp | C106: LED | D106: LED 150W Luminaire RoadLED Midi 4000K, 20321lm, 650mA + Zhaga | E106: LED0127 | F106: LED0127 | G106: =_xlfn.XLOOKUP($D106,'O_OPEX Tariff Summary'!$D$8:$D$137,'O_OPEX Tariff Summary'!$R$8:$R$137,_xlfn.XLOOKUP($E106,'O_OPEX Tariff Summary'!$D$8:$D$137,'O_OPEX Tariff Summary'!$R$8:$R$137)) -> LED0127 | H106: =_xlfn.XLOOKUP($G106,'O_OPEX Tariff Summary'!$R$8:$R$137,'O_OPEX Tariff Summary'!$AC$8:$AC$137) -> 42.82711115 | J106: 92.80651244 | K106: 62.43257055 | L106: 55.01210965 | M106: 57.68282179 | N106: 58.71730161 | O106: 60.47969792 | P106: 57.85363123 | Q106: =_xlfn.XLOOKUP($D106,#REF!,#REF!,_xlfn.XLOOKUP($G106,#REF!,#REF!)) ->  | T106: =_xlfn.XLOOKUP($F106,'O_CAPEX Tariff Summary'!$R$9:$R$178,'O_CAPEX Tariff Summary'!$V$9:$V$178) -> 136.2666129 | V106: 206.29697 | W106: 172.8836063 | X106: 150.283069 | Y106: 158.4172712 | Z106: 160.4013125 | AA106: 160.4013125 | AB106: 155.5979826 | AC106: =_xlfn.XLOOKUP($D106,#REF!,#REF!,_xlfn.XLOOKUP($F106,#REF!,#REF!)) ->  | AF106: =IF($F106="NO_CAPEX",SUMIFS('I_Number of assets'!$M$8:$M$113,'I_Number of assets'!$F$8:$F$119,$G106),SUMIFS('I_Number of assets'!$M$8:$M$113,'I_Number of assets'!$F$8:$F$119,$F106)) ->  | AG106: =_xlfn.XLOOKUP($F106,'O_CAPEX Tariff Summary'!$R$9:$R$178,'O_CAPEX Tariff Summary'!$J$9:$J$178) -> 0
B107: Lamp | C107: LED | D107: LED 150W Luminaire RoadLED Midi 4000K, 20321lm, 650mA + Zhaga Connected | E107: LED0128 | F107: LED0128 | G107: =_xlfn.XLOOKUP($D107,'O_OPEX Tariff Summary'!$D$8:$D$137,'O_OPEX Tariff Summary'!$R$8:$R$137,_xlfn.XLOOKUP($E107,'O_OPEX Tariff Summary'!$D$8:$D$137,'O_OPEX Tariff Summary'!$R$8:$R$137)) ->  | H107: =_xlfn.XLOOKUP($G107,'O_OPEX Tariff Summary'!$R$8:$R$137,'O_OPEX Tariff Summary'!$AC$8:$AC$137) ->  | J107: 92.80651244 | K107: 62.43257055 | L107: 55.01210965 | M107: 57.68282179 | N107: 58.71730161 | O107: 60.47969792 | P107: 57.85363123 | Q107: =_xlfn.XLOOKUP($D107,#REF!,#REF!,_xlfn.XLOOKUP($G107,#REF!,#REF!)) ->  | T107: =_xlfn.XLOOKUP($F107,'O_CAPEX Tariff Summary'!$R$9:$R$178,'O_CAPEX Tariff Summary'!$V$9:$V$178) ->  | V107: 249.4048343 | W107: 209.0094061 | X107: 186.4088688 | Y107: 194.543071 | Z107: 196.6259849 | AA107: 196.6259849 | AB107: 191.5832863 | AC107: =_xlfn.XLOOKUP($D107,#REF!,#REF!,_xlfn.XLOOKUP($F107,#REF!,#REF!)) ->  | AF107: =IF($F107="NO_CAPEX",SUMIFS('I_Number of assets'!$M$8:$M$113,'I_Number of assets'!$F$8:$F$119,$G107),SUMIFS('I_Number of assets'!$M$8:$M$113,'I_Number of assets'!$F$8:$F$119,$F107)) ->  | AG107: =_xlfn.XLOOKUP($F107,'O_CAPEX Tariff Summary'!$R$9:$R$178,'O_CAPEX Tariff Summary'!$J$9:$J$178) -> 
B108: Lamp | C108: LED | D108: LED 300W Luminaire RoadLED 4K 4000K, 35254lm, 650mA, Aeroscreen | E108: LED0129 | F108: LED0129 | G108: =_xlfn.XLOOKUP($D108,'O_OPEX Tariff Summary'!$D$8:$D$137,'O_OPEX Tariff Summary'!$R$8:$R$137,_xlfn.XLOOKUP($E108,'O_OPEX Tariff Summary'!$D$8:$D$137,'O_OPEX Tariff Summary'!$R$8:$R$137)) -> LED0129 | H108: =_xlfn.XLOOKUP($G108,'O_OPEX Tariff Summary'!$R$8:$R$137,'O_OPEX Tariff Summary'!$AC$8:$AC$137) -> 42.82711115 | J108: 67.76948678 | K108: 45.58972375 | L108: 42.23284859 | M108: 43.44102789 | N108: 44.05437636 | O108: 42.82466149 | P108: 41.42383392 | Q108: =_xlfn.XLOOKUP($D108,#REF!,#REF!,_xlfn.XLOOKUP($G108,#REF!,#REF!)) ->  | T108: =_xlfn.XLOOKUP($F108,'O_CAPEX Tariff Summary'!$R$9:$R$178,'O_CAPEX Tariff Summary'!$V$9:$V$178) -> 196.110404 | V108: 275.7008338 | W108: 231.0463136 | X108: 208.4457763 | Y108: 216.5799785 | Z108: 218.5640198 | AA108: 218.5640198 | AB108: 213.7606899 | AC108: =_xlfn.XLOOKUP($D108,#REF!,#REF!,_xlfn.XLOOKUP($F108,#REF!,#REF!)) ->  | AF108: =IF($F108="NO_CAPEX",SUMIFS('I_Number of assets'!$M$8:$M$113,'I_Number of assets'!$F$8:$F$119,$G108),SUMIFS('I_Number of assets'!$M$8:$M$113,'I_Number of assets'!$F$8:$F$119,$F108)) ->  | AG108: =_xlfn.XLOOKUP($F108,'O_CAPEX Tariff Summary'!$R$9:$R$178,'O_CAPEX Tariff Summary'!$J$9:$J$178) -> 412
B109: Lamp | C109: LED | D109: LED 300W Luminaire RoadLED 4K 4000K, 35254lm, 650mA, Aeroscreen Connected | E109: LED0130 | F109: LED0130 | G109: =_xlfn.XLOOKUP($D109,'O_OPEX Tariff Summary'!$D$8:$D$137,'O_OPEX Tariff Summary'!$R$8:$R$137,_xlfn.XLOOKUP($E109,'O_OPEX Tariff Summary'!$D$8:$D$137,'O_OPEX Tariff Summary'!$R$8:$R$137)) ->  | H109: =_xlfn.XLOOKUP($G109,'O_OPEX Tariff Summary'!$R$8:$R$137,'O_OPEX Tariff Summary'!$AC$8:$AC$137) ->  | J109: 68.67929566 | K109: 46.20176816 | L109: 42.70747705 | M109: 43.96511398 | N109: 44.59377866 | O109: 42.82466149 | P109: 41.42383392 | Q109: =_xlfn.XLOOKUP($D109,#REF!,#REF!,_xlfn.XLOOKUP($G109,#REF!,#REF!)) ->  | T109: =_xlfn.XLOOKUP($F109,'O_CAPEX Tariff Summary'!$R$9:$R$178,'O_CAPEX Tariff Summary'!$V$9:$V$178) ->  | V109: 318.8086982 | W109: 267.1721134 | X109: 244.5715761 | Y109: 252.7057783 | Z109: 254.7886921 | AA109: 254.7886921 | AB109: 249.7459936 | AC109: =_xlfn.XLOOKUP($D109,#REF!,#REF!,_xlfn.XLOOKUP($F109,#REF!,#REF!)) ->  | AF109: =IF($F109="NO_CAPEX",SUMIFS('I_Number of assets'!$M$8:$M$113,'I_Number of assets'!$F$8:$F$119,$G109),SUMIFS('I_Number of assets'!$M$8:$M$113,'I_Number of assets'!$F$8:$F$119,$F109)) ->  | AG109: =_xlfn.XLOOKUP($F109,'O_CAPEX Tariff Summary'!$R$9:$R$178,'O_CAPEX Tariff Summary'!$J$9:$J$178) -> 
B110: Lamp | C110: LED | D110: LED 300W Luminaire RoadLED 4K 4000K, 35254lm, 650mA, Aeroscreen + Zhaga | E110: LED0131 | F110: LED0131 | G110: =_xlfn.XLOOKUP($D110,'O_OPEX Tariff Summary'!$D$8:$D$137,'O_OPEX Tariff Summary'!$R$8:$R$137,_xlfn.XLOOKUP($E110,'O_OPEX Tariff Summary'!$D$8:$D$137,'O_OPEX Tariff Summary'!$R$8:$R$137)) -> LED0131 | H110: =_xlfn.XLOOKUP($G110,'O_OPEX Tariff Summary'!$R$8:$R$137,'O_OPEX Tariff Summary'!$AC$8:$AC$137) -> 42.82711115 | J110: 92.80651244 | K110: 62.43257055 | L110: 55.01210965 | M110: 57.68282179 | N110: 58.71730161 | O110: 60.47969792 | P110: 57.85363123 | Q110: =_xlfn.XLOOKUP($D110,#REF!,#REF!,_xlfn.XLOOKUP($G110,#REF!,#REF!)) ->  | T110: =_xlfn.XLOOKUP($F110,'O_CAPEX Tariff Summary'!$R$9:$R$178,'O_CAPEX Tariff Summary'!$V$9:$V$178) -> 200.3849605 | V110: 280.6582527 | W110: 235.2007926 | X110: 212.6002554 | Y110: 220.7344575 | Z110: 222.7184989 | AA110: 222.7184989 | AB110: 217.9151689 | AC110: =_xlfn.XLOOKUP($D110,#REF!,#REF!,_xlfn.XLOOKUP($F110,#REF!,#REF!)) ->  | AF110: =IF($F110="NO_CAPEX",SUMIFS('I_Number of assets'!$M$8:$M$113,'I_Number of assets'!$F$8:$F$119,$G110),SUMIFS('I_Number of assets'!$M$8:$M$113,'I_Number of assets'!$F$8:$F$119,$F110)) ->  | AG110: =_xlfn.XLOOKUP($F110,'O_CAPEX Tariff Summary'!$R$9:$R$178,'O_CAPEX Tariff Summary'!$J$9:$J$178) -> 0
B111: Lamp | C111: LED | D111: LED 300W Luminaire RoadLED 4K 4000K, 35254lm, 650mA, Aeroscreen + Zhaga Connected | E111: LED0132 | F111: LED0132 | G111: =_xlfn.XLOOKUP($D111,'O_OPEX Tariff Summary'!$D$8:$D$137,'O_OPEX Tariff Summary'!$R$8:$R$137,_xlfn.XLOOKUP($E111,'O_OPEX Tariff Summary'!$D$8:$D$137,'O_OPEX Tariff Summary'!$R$8:$R$137)) ->  | H111: =_xlfn.XLOOKUP($G111,'O_OPEX Tariff Summary'!$R$8:$R$137,'O_OPEX Tariff Summary'!$AC$8:$AC$137) ->  | J111: 92.80651244 | K111: 62.43257055 | L111: 55.01210965 | M111: 57.68282179 | N111: 58.71730161 | O111: 60.47969792 | P111: 57.85363123 | Q111: =_xlfn.XLOOKUP($D111,#REF!,#REF!,_xlfn.XLOOKUP($G111,#REF!,#REF!)) ->  | T111: =_xlfn.XLOOKUP($F111,'O_CAPEX Tariff Summary'!$R$9:$R$178,'O_CAPEX Tariff Summary'!$V$9:$V$178) ->  | V111: 323.766117 | W111: 271.3265925 | X111: 248.7260552 | Y111: 256.8602574 | Z111: 258.9431712 | AA111: 258.9431712 | AB111: 253.9004727 | AC111: =_xlfn.XLOOKUP($D111,#REF!,#REF!,_xlfn.XLOOKUP($F111,#REF!,#REF!)) ->  | AF111: =IF($F111="NO_CAPEX",SUMIFS('I_Number of assets'!$M$8:$M$113,'I_Number of assets'!$F$8:$F$119,$G111),SUMIFS('I_Number of assets'!$M$8:$M$113,'I_Number of assets'!$F$8:$F$119,$F111)) ->  | AG111: =_xlfn.XLOOKUP($F111,'O_CAPEX Tariff Summary'!$R$9:$R$178,'O_CAPEX Tariff Summary'!$J$9:$J$178) -> 
B112: Lamp | C112: LED | D112: LED 27W Luminaire, IGNIS Mini 020 MX2 Square 3000K, 425mA, 3685lm | E112: LED0133 | F112: LED0133 | G112: =_xlfn.XLOOKUP($D112,'O_OPEX Tariff Summary'!$D$8:$D$137,'O_OPEX Tariff Summary'!$R$8:$R$137,_xlfn.XLOOKUP($E112,'O_OPEX Tariff Summary'!$D$8:$D$137,'O_OPEX Tariff Summary'!$R$8:$R$137)) -> LED0133 | H112: =_xlfn.XLOOKUP($G112,'O_OPEX Tariff Summary'!$R$8:$R$137,'O_OPEX Tariff Summary'!$AC$8:$AC$137) -> 36.35553348 | J112: 51.941093 | K112: 34.94168532 | L112: 34.74407726 | M112: 35.10167609 | N112: 35.45859224 | O112: 36.34102764 | P112: 35.42158498 | Q112: =_xlfn.XLOOKUP($D112,#REF!,#REF!,_xlfn.XLOOKUP($G112,#REF!,#REF!)) ->  | T112: =_xlfn.XLOOKUP($F112,'O_CAPEX Tariff Summary'!$R$9:$R$178,'O_CAPEX Tariff Summary'!$V$9:$V$178) -> 69.74274296 | V112: 88.650388 | W112: 74.29192382 | X112: 72.54191199 | Y112: 75.70879792 | Z112: 76.21634339 | AA112: 76.21634339 | AB112: 74.98758456 | AC112: =_xlfn.XLOOKUP($D112,#REF!,#REF!,_xlfn.XLOOKUP($F112,#REF!,#REF!)) ->  | AF112: =IF($F112="NO_CAPEX",SUMIFS('I_Number of assets'!$M$8:$M$113,'I_Number of assets'!$F$8:$F$119,$G112),SUMIFS('I_Number of assets'!$M$8:$M$113,'I_Number of assets'!$F$8:$F$119,$F112)) ->  | AG112: =_xlfn.XLOOKUP($F112,'O_CAPEX Tariff Summary'!$R$9:$R$178,'O_CAPEX Tariff Summary'!$J$9:$J$178) -> 2802
B113: Lamp | C113: LED | D113: LED 27W Luminaire, IGNIS Mini 020 MX2 Square 3000K, 425mA, 3685lm Connected | E113: LED0134 | F113: LED0134 | G113: =_xlfn.XLOOKUP($D113,'O_OPEX Tariff Summary'!$D$8:$D$137,'O_OPEX Tariff Summary'!$R$8:$R$137,_xlfn.XLOOKUP($E113,'O_OPEX Tariff Summary'!$D$8:$D$137,'O_OPEX Tariff Summary'!$R$8:$R$137)) ->  | H113: =_xlfn.XLOOKUP($G113,'O_OPEX Tariff Summary'!$R$8:$R$137,'O_OPEX Tariff Summary'!$AC$8:$AC$137) ->  | J113: 54.3030391 | K113: 36.53060793 | L113: 36.2600369 | M113: 36.74967222 | N113: 37.15005442 | O113: 36.34102764 | P113: 35.42158498 | Q113: =_xlfn.XLOOKUP($D113,#REF!,#REF!,_xlfn.XLOOKUP($G113,#REF!,#REF!)) ->  | T113: =_xlfn.XLOOKUP($F113,'O_CAPEX Tariff Summary'!$R$9:$R$178,'O_CAPEX Tariff Summary'!$V$9:$V$178) ->  | V113: 131.7582523 | W113: 110.4177237 | X113: 108.6677118 | Y113: 111.8345978 | Z113: 112.4410157 | AA113: 112.4410157 | AB113: 110.9728883 | AC113: =_xlfn.XLOOKUP($D113,#REF!,#REF!,_xlfn.XLOOKUP($F113,#REF!,#REF!)) ->  | AF113: =IF($F113="NO_CAPEX",SUMIFS('I_Number of assets'!$M$8:$M$113,'I_Number of assets'!$F$8:$F$119,$G113),SUMIFS('I_Number of assets'!$M$8:$M$113,'I_Number of assets'!$F$8:$F$119,$F113)) ->  | AG113: =_xlfn.XLOOKUP($F113,'O_CAPEX Tariff Summary'!$R$9:$R$178,'O_CAPEX Tariff Summary'!$J$9:$J$178) -> 
B114: Lamp | C114: LED | D114: LED 27W Luminaire, IGNIS Mini 020 MX2 Square 3000K, 425mA, 3685lm + Zhaga | E114: LED0135 | F114: LED0135 | G114: =_xlfn.XLOOKUP($D114,'O_OPEX Tariff Summary'!$D$8:$D$137,'O_OPEX Tariff Summary'!$R$8:$R$137,_xlfn.XLOOKUP($E114,'O_OPEX Tariff Summary'!$D$8:$D$137,'O_OPEX Tariff Summary'!$R$8:$R$137)) -> LED0135 | H114: =_xlfn.XLOOKUP($G114,'O_OPEX Tariff Summary'!$R$8:$R$137,'O_OPEX Tariff Summary'!$AC$8:$AC$137) -> 36.35553348 | J114: 62.27715862 | K114: 41.89493816 | L114: 41.32035472 | M114: 42.3601421 | N114: 42.90984229 | O114: 43.71579558 | P114: 42.33438425 | Q114: =_xlfn.XLOOKUP($D114,#REF!,#REF!,_xlfn.XLOOKUP($G114,#REF!,#REF!)) ->  | T114: =_xlfn.XLOOKUP($F114,'O_CAPEX Tariff Summary'!$R$9:$R$178,'O_CAPEX Tariff Summary'!$V$9:$V$178) -> 78.71931163 | V114: 95.71470986 | W114: 80.21205652 | X114: 78.46204469 | Y114: 81.62893063 | Z114: 82.13647609 | AA114: 82.13647609 | AB114: 80.90771726 | AC114: =_xlfn.XLOOKUP($D114,#REF!,#REF!,_xlfn.XLOOKUP($F114,#REF!,#REF!)) ->  | AF114: =IF($F114="NO_CAPEX",SUMIFS('I_Number of assets'!$M$8:$M$113,'I_Number of assets'!$F$8:$F$119,$G114),SUMIFS('I_Number of assets'!$M$8:$M$113,'I_Number of assets'!$F$8:$F$119,$F114)) ->  | AG114: =_xlfn.XLOOKUP($F114,'O_CAPEX Tariff Summary'!$R$9:$R$178,'O_CAPEX Tariff Summary'!$J$9:$J$178) -> 0
B115: Lamp | C115: LED | D115: LED 27W Luminaire, IGNIS Mini 020 MX2 Square 3000K, 425mA, 3685lm + Zhaga Connected | E115: LED0136 | F115: LED0136 | G115: =_xlfn.XLOOKUP($D115,'O_OPEX Tariff Summary'!$D$8:$D$137,'O_OPEX Tariff Summary'!$R$8:$R$137,_xlfn.XLOOKUP($E115,'O_OPEX Tariff Summary'!$D$8:$D$137,'O_OPEX Tariff Summary'!$R$8:$R$137)) ->  | H115: =_xlfn.XLOOKUP($G115,'O_OPEX Tariff Summary'!$R$8:$R$137,'O_OPEX Tariff Summary'!$AC$8:$AC$137) ->  | J115: 62.27715862 | K115: 41.89493816 | L115: 41.32035472 | M115: 42.3601421 | N115: 42.90984229 | O115: 43.71579558 | P115: 42.33438425 | Q115: =_xlfn.XLOOKUP($D115,#REF!,#REF!,_xlfn.XLOOKUP($G115,#REF!,#REF!)) ->  | T115: =_xlfn.XLOOKUP($F115,'O_CAPEX Tariff Summary'!$R$9:$R$178,'O_CAPEX Tariff Summary'!$V$9:$V$178) ->  | V115: 138.8225742 | W115: 116.3378564 | X115: 114.5878445 | Y115: 117.7547305 | Z115: 118.3611484 | AA115: 118.3611484 | AB115: 116.893021 | AC115: =_xlfn.XLOOKUP($D115,#REF!,#REF!,_xlfn.XLOOKUP($F115,#REF!,#REF!)) ->  | AF115: =IF($F115="NO_CAPEX",SUMIFS('I_Number of assets'!$M$8:$M$113,'I_Number of assets'!$F$8:$F$119,$G115),SUMIFS('I_Number of assets'!$M$8:$M$113,'I_Number of assets'!$F$8:$F$119,$F115)) ->  | AG115: =_xlfn.XLOOKUP($F115,'O_CAPEX Tariff Summary'!$R$9:$R$178,'O_CAPEX Tariff Summary'!$J$9:$J$178) -> 
B116: Lamp | C116: LED | D116: LED 22W Luminaire, IGNIS Mini 020 MX2 Square 3000K , 275mA, 2506lm | E116: LED0137 | F116: LED0137 | G116: =_xlfn.XLOOKUP($D116,'O_OPEX Tariff Summary'!$D$8:$D$137,'O_OPEX Tariff Summary'!$R$8:$R$137,_xlfn.XLOOKUP($E116,'O_OPEX Tariff Summary'!$D$8:$D$137,'O_OPEX Tariff Summary'!$R$8:$R$137)) -> LED0137 | H116: =_xlfn.XLOOKUP($G116,'O_OPEX Tariff Summary'!$R$8:$R$137,'O_OPEX Tariff Summary'!$AC$8:$AC$137) -> 36.35553348 | J116: 52.53157952 | K116: 35.33891597 | L116: 35.12306717 | M116: 35.51367512 | N116: 35.88145779 | O116: 36.34102764 | P116: 35.42158498 | Q116: =_xlfn.XLOOKUP($D116,#REF!,#REF!,_xlfn.XLOOKUP($G116,#REF!,#REF!)) ->  | T116: =_xlfn.XLOOKUP($F116,'O_CAPEX Tariff Summary'!$R$9:$R$178,'O_CAPEX Tariff Summary'!$V$9:$V$178) -> 69.74274296 | V116: 88.650388 | W116: 74.29192382 | X116: 72.54191199 | Y116: 75.70879792 | Z116: 76.21634339 | AA116: 76.21634339 | AB116: 74.98758456 | AC116: =_xlfn.XLOOKUP($D116,#REF!,#REF!,_xlfn.XLOOKUP($F116,#REF!,#REF!)) ->  | AF116: =IF($F116="NO_CAPEX",SUMIFS('I_Number of assets'!$M$8:$M$113,'I_Number of assets'!$F$8:$F$119,$G116),SUMIFS('I_Number of assets'!$M$8:$M$113,'I_Number of assets'!$F$8:$F$119,$F116)) ->  | AG116: =_xlfn.XLOOKUP($F116,'O_CAPEX Tariff Summary'!$R$9:$R$178,'O_CAPEX Tariff Summary'!$J$9:$J$178) -> 1468
B117: Lamp | C117: LED | D117: LED 22W Luminaire, IGNIS Mini 020 MX2 Square 3000K , 275mA, 2506lm Connected | E117: LED0138 | F117: LED0138 | G117: =_xlfn.XLOOKUP($D117,'O_OPEX Tariff Summary'!$D$8:$D$137,'O_OPEX Tariff Summary'!$R$8:$R$137,_xlfn.XLOOKUP($E117,'O_OPEX Tariff Summary'!$D$8:$D$137,'O_OPEX Tariff Summary'!$R$8:$R$137)) ->  | H117: =_xlfn.XLOOKUP($G117,'O_OPEX Tariff Summary'!$R$8:$R$137,'O_OPEX Tariff Summary'!$AC$8:$AC$137) ->  | J117: 54.3030391 | K117: 36.53060793 | L117: 36.2600369 | M117: 36.74967222 | N117: 37.15005442 | O117: 36.34102764 | P117: 35.42158498 | Q117: =_xlfn.XLOOKUP($D117,#REF!,#REF!,_xlfn.XLOOKUP($G117,#REF!,#REF!)) ->  | T117: =_xlfn.XLOOKUP($F117,'O_CAPEX Tariff Summary'!$R$9:$R$178,'O_CAPEX Tariff Summary'!$V$9:$V$178) ->  | V117: 131.7582523 | W117: 110.4177237 | X117: 108.6677118 | Y117: 111.8345978 | Z117: 112.4410157 | AA117: 112.4410157 | AB117: 110.9728883 | AC117: =_xlfn.XLOOKUP($D117,#REF!,#REF!,_xlfn.XLOOKUP($F117,#REF!,#REF!)) ->  | AF117: =IF($F117="NO_CAPEX",SUMIFS('I_Number of assets'!$M$8:$M$113,'I_Number of assets'!$F$8:$F$119,$G117),SUMIFS('I_Number of assets'!$M$8:$M$113,'I_Number of assets'!$F$8:$F$119,$F117)) ->  | AG117: =_xlfn.XLOOKUP($F117,'O_CAPEX Tariff Summary'!$R$9:$R$178,'O_CAPEX Tariff Summary'!$J$9:$J$178) -> 
B118: Lamp | C118: LED | D118: LED 22W Luminaire, IGNIS Mini 020 MX2 Square 3000K , 275mA, 2506lm + Zhaga | E118: LED0139 | F118: LED0139 | G118: =_xlfn.XLOOKUP($D118,'O_OPEX Tariff Summary'!$D$8:$D$137,'O_OPEX Tariff Summary'!$R$8:$R$137,_xlfn.XLOOKUP($E118,'O_OPEX Tariff Summary'!$D$8:$D$137,'O_OPEX Tariff Summary'!$R$8:$R$137)) -> LED0139 | H118: =_xlfn.XLOOKUP($G118,'O_OPEX Tariff Summary'!$R$8:$R$137,'O_OPEX Tariff Summary'!$AC$8:$AC$137) -> 36.35553348 | J118: 62.27715862 | K118: 41.89493816 | L118: 41.32035472 | M118: 42.3601421 | N118: 42.90984229 | O118: 43.71579558 | P118: 42.33438425 | Q118: =_xlfn.XLOOKUP($D118,#REF!,#REF!,_xlfn.XLOOKUP($G118,#REF!,#REF!)) ->  | T118: =_xlfn.XLOOKUP($F118,'O_CAPEX Tariff Summary'!$R$9:$R$178,'O_CAPEX Tariff Summary'!$V$9:$V$178) -> 78.71931163 | V118: 95.71470986 | W118: 80.21205652 | X118: 78.46204469 | Y118: 81.62893063 | Z118: 82.13647609 | AA118: 82.13647609 | AB118: 80.90771726 | AC118: =_xlfn.XLOOKUP($D118,#REF!,#REF!,_xlfn.XLOOKUP($F118,#REF!,#REF!)) ->  | AF118: =IF($F118="NO_CAPEX",SUMIFS('I_Number of assets'!$M$8:$M$113,'I_Number of assets'!$F$8:$F$119,$G118),SUMIFS('I_Number of assets'!$M$8:$M$113,'I_Number of assets'!$F$8:$F$119,$F118)) ->  | AG118: =_xlfn.XLOOKUP($F118,'O_CAPEX Tariff Summary'!$R$9:$R$178,'O_CAPEX Tariff Summary'!$J$9:$J$178) -> 0
B119: Lamp | C119: LED | D119: LED 22W Luminaire, IGNIS Mini 020 MX2 Square 3000K , 275mA, 2506lm + Zhaga Connected | E119: LED0140 | F119: LED0140 | G119: =_xlfn.XLOOKUP($D119,'O_OPEX Tariff Summary'!$D$8:$D$137,'O_OPEX Tariff Summary'!$R$8:$R$137,_xlfn.XLOOKUP($E119,'O_OPEX Tariff Summary'!$D$8:$D$137,'O_OPEX Tariff Summary'!$R$8:$R$137)) ->  | H119: =_xlfn.XLOOKUP($G119,'O_OPEX Tariff Summary'!$R$8:$R$137,'O_OPEX Tariff Summary'!$AC$8:$AC$137) ->  | J119: 62.27715862 | K119: 41.89493816 | L119: 41.32035472 | M119: 42.3601421 | N119: 42.90984229 | O119: 43.71579558 | P119: 42.33438425 | Q119: =_xlfn.XLOOKUP($D119,#REF!,#REF!,_xlfn.XLOOKUP($G119,#REF!,#REF!)) ->  | T119: =_xlfn.XLOOKUP($F119,'O_CAPEX Tariff Summary'!$R$9:$R$178,'O_CAPEX Tariff Summary'!$V$9:$V$178) ->  | V119: 138.8225742 | W119: 116.3378564 | X119: 114.5878445 | Y119: 117.7547305 | Z119: 118.3611484 | AA119: 118.3611484 | AB119: 116.893021 | AC119: =_xlfn.XLOOKUP($D119,#REF!,#REF!,_xlfn.XLOOKUP($F119,#REF!,#REF!)) ->  | AF119: =IF($F119="NO_CAPEX",SUMIFS('I_Number of assets'!$M$8:$M$113,'I_Number of assets'!$F$8:$F$119,$G119),SUMIFS('I_Number of assets'!$M$8:$M$113,'I_Number of assets'!$F$8:$F$119,$F119)) ->  | AG119: =_xlfn.XLOOKUP($F119,'O_CAPEX Tariff Summary'!$R$9:$R$178,'O_CAPEX Tariff Summary'!$J$9:$J$178) -> 
B120: Lamp | C120: LED | D120: LED 22W Luminaire, IGNIS Mini 020 MX2 Square 3000K, 275mA, 2200lm & Shield | E120: LED0141 | F120: LED0141 | G120: =_xlfn.XLOOKUP($D120,'O_OPEX Tariff Summary'!$D$8:$D$137,'O_OPEX Tariff Summary'!$R$8:$R$137,_xlfn.XLOOKUP($E120,'O_OPEX Tariff Summary'!$D$8:$D$137,'O_OPEX Tariff Summary'!$R$8:$R$137)) -> LED0141 | H120: =_xlfn.XLOOKUP($G120,'O_OPEX Tariff Summary'!$R$8:$R$137,'O_OPEX Tariff Summary'!$AC$8:$AC$137) -> 36.35553348 | J120: 54.3030391 | K120: 36.53060793 | L120: 36.2600369 | M120: 36.74967222 | N120: 37.15005442 | O120: 36.34102764 | P120: 35.42158498 | Q120: =_xlfn.XLOOKUP($D120,#REF!,#REF!,_xlfn.XLOOKUP($G120,#REF!,#REF!)) ->  | T120: =_xlfn.XLOOKUP($F120,'O_CAPEX Tariff Summary'!$R$9:$R$178,'O_CAPEX Tariff Summary'!$V$9:$V$178) -> 69.74274296 | V120: 88.650388 | W120: 74.29192382 | X120: 72.54191199 | Y120: 75.70879792 | Z120: 76.21634339 | AA120: 76.21634339 | AB120: 74.98758456 | AC120: =_xlfn.XLOOKUP($D120,#REF!,#REF!,_xlfn.XLOOKUP($F120,#REF!,#REF!)) ->  | AF120: =IF($F120="NO_CAPEX",SUMIFS('I_Number of assets'!$M$8:$M$113,'I_Number of assets'!$F$8:$F$119,$G120),SUMIFS('I_Number of assets'!$M$8:$M$113,'I_Number of assets'!$F$8:$F$119,$F120)) ->  | AG120: =_xlfn.XLOOKUP($F120,'O_CAPEX Tariff Summary'!$R$9:$R$178,'O_CAPEX Tariff Summary'!$J$9:$J$178) -> 6
B121: Lamp | C121: LED | D121: LED 22W Luminaire, IGNIS Mini 020 MX2 Square 3000K, 275mA, 2200lm & Shield Connected | E121: LED0142 | F121: LED0142 | G121: =_xlfn.XLOOKUP($D121,'O_OPEX Tariff Summary'!$D$8:$D$137,'O_OPEX Tariff Summary'!$R$8:$R$137,_xlfn.XLOOKUP($E121,'O_OPEX Tariff Summary'!$D$8:$D$137,'O_OPEX Tariff Summary'!$R$8:$R$137)) ->  | H121: =_xlfn.XLOOKUP($G121,'O_OPEX Tariff Summary'!$R$8:$R$137,'O_OPEX Tariff Summary'!$AC$8:$AC$137) ->  | J121: 54.3030391 | K121: 36.53060793 | L121: 36.2600369 | M121: 36.74967222 | N121: 37.15005442 | O121: 36.34102764 | P121: 35.42158498 | Q121: =_xlfn.XLOOKUP($D121,#REF!,#REF!,_xlfn.XLOOKUP($G121,#REF!,#REF!)) ->  | T121: =_xlfn.XLOOKUP($F121,'O_CAPEX Tariff Summary'!$R$9:$R$178,'O_CAPEX Tariff Summary'!$V$9:$V$178) ->  | V121: 131.7582523 | W121: 110.4177237 | X121: 108.6677118 | Y121: 111.8345978 | Z121: 112.4410157 | AA121: 112.4410157 | AB121: 110.9728883 | AC121: =_xlfn.XLOOKUP($D121,#REF!,#REF!,_xlfn.XLOOKUP($F121,#REF!,#REF!)) ->  | AF121: =IF($F121="NO_CAPEX",SUMIFS('I_Number of assets'!$M$8:$M$113,'I_Number of assets'!$F$8:$F$119,$G121),SUMIFS('I_Number of assets'!$M$8:$M$113,'I_Number of assets'!$F$8:$F$119,$F121)) ->  | AG121: =_xlfn.XLOOKUP($F121,'O_CAPEX Tariff Summary'!$R$9:$R$178,'O_CAPEX Tariff Summary'!$J$9:$J$178) -> 
B122: Lamp | C122: LED | D122: LED 22W Luminaire, IGNIS Mini 020 MX2 Square 3000K, 275mA, 2200lm & Shield + Zhaga | E122: LED0143 | F122: LED0143 | G122: =_xlfn.XLOOKUP($D122,'O_OPEX Tariff Summary'!$D$8:$D$137,'O_OPEX Tariff Summary'!$R$8:$R$137,_xlfn.XLOOKUP($E122,'O_OPEX Tariff Summary'!$D$8:$D$137,'O_OPEX Tariff Summary'!$R$8:$R$137)) -> LED0143 | H122: =_xlfn.XLOOKUP($G122,'O_OPEX Tariff Summary'!$R$8:$R$137,'O_OPEX Tariff Summary'!$AC$8:$AC$137) -> 36.35553348 | J122: 62.27715862 | K122: 41.89493816 | L122: 41.32035472 | M122: 42.3601421 | N122: 42.90984229 | O122: 43.71579558 | P122: 42.33438425 | Q122: =_xlfn.XLOOKUP($D122,#REF!,#REF!,_xlfn.XLOOKUP($G122,#REF!,#REF!)) ->  | T122: =_xlfn.XLOOKUP($F122,'O_CAPEX Tariff Summary'!$R$9:$R$178,'O_CAPEX Tariff Summary'!$V$9:$V$178) -> 78.71931163 | V122: 95.71470986 | W122: 80.21205652 | X122: 78.46204469 | Y122: 81.62893063 | Z122: 82.13647609 | AA122: 82.13647609 | AB122: 80.90771726 | AC122: =_xlfn.XLOOKUP($D122,#REF!,#REF!,_xlfn.XLOOKUP($F122,#REF!,#REF!)) ->  | AF122: =IF($F122="NO_CAPEX",SUMIFS('I_Number of assets'!$M$8:$M$113,'I_Number of assets'!$F$8:$F$119,$G122),SUMIFS('I_Number of assets'!$M$8:$M$113,'I_Number of assets'!$F$8:$F$119,$F122)) ->  | AG122: =_xlfn.XLOOKUP($F122,'O_CAPEX Tariff Summary'!$R$9:$R$178,'O_CAPEX Tariff Summary'!$J$9:$J$178) -> 0
B123: Lamp | C123: LED | D123: LED 22W Luminaire, IGNIS Mini 020 MX2 Square 3000K, 275mA, 2200lm & Shield + Zhaga Connected | E123: LED0144 | F123: LED0144 | G123: =_xlfn.XLOOKUP($D123,'O_OPEX Tariff Summary'!$D$8:$D$137,'O_OPEX Tariff Summary'!$R$8:$R$137,_xlfn.XLOOKUP($E123,'O_OPEX Tariff Summary'!$D$8:$D$137,'O_OPEX Tariff Summary'!$R$8:$R$137)) ->  | H123: =_xlfn.XLOOKUP($G123,'O_OPEX Tariff Summary'!$R$8:$R$137,'O_OPEX Tariff Summary'!$AC$8:$AC$137) ->  | J123: 62.27715862 | K123: 41.89493816 | L123: 41.32035472 | M123: 42.3601421 | N123: 42.90984229 | O123: 43.71579558 | P123: 42.33438425 | Q123: =_xlfn.XLOOKUP($D123,#REF!,#REF!,_xlfn.XLOOKUP($G123,#REF!,#REF!)) ->  | T123: =_xlfn.XLOOKUP($F123,'O_CAPEX Tariff Summary'!$R$9:$R$178,'O_CAPEX Tariff Summary'!$V$9:$V$178) ->  | V123: 138.8225742 | W123: 116.3378564 | X123: 114.5878445 | Y123: 117.7547305 | Z123: 118.3611484 | AA123: 118.3611484 | AB123: 116.893021 | AC123: =_xlfn.XLOOKUP($D123,#REF!,#REF!,_xlfn.XLOOKUP($F123,#REF!,#REF!)) ->  | AF123: =IF($F123="NO_CAPEX",SUMIFS('I_Number of assets'!$M$8:$M$113,'I_Number of assets'!$F$8:$F$119,$G123),SUMIFS('I_Number of assets'!$M$8:$M$113,'I_Number of assets'!$F$8:$F$119,$F123)) ->  | AG123: =_xlfn.XLOOKUP($F123,'O_CAPEX Tariff Summary'!$R$9:$R$178,'O_CAPEX Tariff Summary'!$J$9:$J$178) -> 
B124: Lamp | C124: LED | D124: LED 22W Luminaire, IGNIS Mini 020 MX2 Square 2200K, 350mA, 2811lm | E124: LED0145 | F124: LED0145 | G124: =_xlfn.XLOOKUP($D124,'O_OPEX Tariff Summary'!$D$8:$D$137,'O_OPEX Tariff Summary'!$R$8:$R$137,_xlfn.XLOOKUP($E124,'O_OPEX Tariff Summary'!$D$8:$D$137,'O_OPEX Tariff Summary'!$R$8:$R$137)) -> LED0145 | H124: =_xlfn.XLOOKUP($G124,'O_OPEX Tariff Summary'!$R$8:$R$137,'O_OPEX Tariff Summary'!$AC$8:$AC$137) -> 36.35553348 | J124: 54.3030391 | K124: 36.53060793 | L124: 36.2600369 | M124: 36.74967222 | N124: 37.15005442 | O124: 36.34102764 | P124: 35.42158498 | Q124: =_xlfn.XLOOKUP($D124,#REF!,#REF!,_xlfn.XLOOKUP($G124,#REF!,#REF!)) ->  | T124: =_xlfn.XLOOKUP($F124,'O_CAPEX Tariff Summary'!$R$9:$R$178,'O_CAPEX Tariff Summary'!$V$9:$V$178) -> 69.74274296 | V124: 88.650388 | W124: 74.29192382 | X124: 72.54191199 | Y124: 75.70879792 | Z124: 76.21634339 | AA124: 76.21634339 | AB124: 74.98758456 | AC124: =_xlfn.XLOOKUP($D124,#REF!,#REF!,_xlfn.XLOOKUP($F124,#REF!,#REF!)) ->  | AF124: =IF($F124="NO_CAPEX",SUMIFS('I_Number of assets'!$M$8:$M$113,'I_Number of assets'!$F$8:$F$119,$G124),SUMIFS('I_Number of assets'!$M$8:$M$113,'I_Number of assets'!$F$8:$F$119,$F124)) ->  | AG124: =_xlfn.XLOOKUP($F124,'O_CAPEX Tariff Summary'!$R$9:$R$178,'O_CAPEX Tariff Summary'!$J$9:$J$178) -> 53
B125: Lamp | C125: LED | D125: LED 22W Luminaire, IGNIS Mini 020 MX2 Square 2200K, 350mA, 2811lm Connected | E125: LED0146 | F125: LED0146 | G125: =_xlfn.XLOOKUP($D125,'O_OPEX Tariff Summary'!$D$8:$D$137,'O_OPEX Tariff Summary'!$R$8:$R$137,_xlfn.XLOOKUP($E125,'O_OPEX Tariff Summary'!$D$8:$D$137,'O_OPEX Tariff Summary'!$R$8:$R$137)) ->  | H125: =_xlfn.XLOOKUP($G125,'O_OPEX Tariff Summary'!$R$8:$R$137,'O_OPEX Tariff Summary'!$AC$8:$AC$137) ->  | J125: 54.3030391 | K125: 36.53060793 | L125: 36.2600369 | M125: 36.74967222 | N125: 37.15005442 | O125: 36.34102764 | P125: 35.42158498 | Q125: =_xlfn.XLOOKUP($D125,#REF!,#REF!,_xlfn.XLOOKUP($G125,#REF!,#REF!)) ->  | T125: =_xlfn.XLOOKUP($F125,'O_CAPEX Tariff Summary'!$R$9:$R$178,'O_CAPEX Tariff Summary'!$V$9:$V$178) ->  | V125: 131.7582523 | W125: 110.4177237 | X125: 108.6677118 | Y125: 111.8345978 | Z125: 112.4410157 | AA125: 112.4410157 | AB125: 110.9728883 | AC125: =_xlfn.XLOOKUP($D125,#REF!,#REF!,_xlfn.XLOOKUP($F125,#REF!,#REF!)) ->  | AF125: =IF($F125="NO_CAPEX",SUMIFS('I_Number of assets'!$M$8:$M$113,'I_Number of assets'!$F$8:$F$119,$G125),SUMIFS('I_Number of assets'!$M$8:$M$113,'I_Number of assets'!$F$8:$F$119,$F125)) ->  | AG125: =_xlfn.XLOOKUP($F125,'O_CAPEX Tariff Summary'!$R$9:$R$178,'O_CAPEX Tariff Summary'!$J$9:$J$178) -> 
B126: Lamp | C126: LED | D126: LED 22W Luminaire, IGNIS Mini 020 MX2 Square 2200K, 350mA, 2811lm + Zhaga | E126: LED0147 | F126: LED0147 | G126: =_xlfn.XLOOKUP($D126,'O_OPEX Tariff Summary'!$D$8:$D$137,'O_OPEX Tariff Summary'!$R$8:$R$137,_xlfn.XLOOKUP($E126,'O_OPEX Tariff Summary'!$D$8:$D$137,'O_OPEX Tariff Summary'!$R$8:$R$137)) -> LED0147 | H126: =_xlfn.XLOOKUP($G126,'O_OPEX Tariff Summary'!$R$8:$R$137,'O_OPEX Tariff Summary'!$AC$8:$AC$137) -> 36.35553348 | J126: 62.27715862 | K126: 41.89493816 | L126: 41.32035472 | M126: 42.3601421 | N126: 42.90984229 | O126: 43.71579558 | P126: 42.33438425 | Q126: =_xlfn.XLOOKUP($D126,#REF!,#REF!,_xlfn.XLOOKUP($G126,#REF!,#REF!)) ->  | T126: =_xlfn.XLOOKUP($F126,'O_CAPEX Tariff Summary'!$R$9:$R$178,'O_CAPEX Tariff Summary'!$V$9:$V$178) -> 78.71931163 | V126: 95.71470986 | W126: 80.21205652 | X126: 78.46204469 | Y126: 81.62893063 | Z126: 82.13647609 | AA126: 82.13647609 | AB126: 80.90771726 | AC126: =_xlfn.XLOOKUP($D126,#REF!,#REF!,_xlfn.XLOOKUP($F126,#REF!,#REF!)) ->  | AF126: =IF($F126="NO_CAPEX",SUMIFS('I_Number of assets'!$M$8:$M$113,'I_Number of assets'!$F$8:$F$119,$G126),SUMIFS('I_Number of assets'!$M$8:$M$113,'I_Number of assets'!$F$8:$F$119,$F126)) ->  | AG126: =_xlfn.XLOOKUP($F126,'O_CAPEX Tariff Summary'!$R$9:$R$178,'O_CAPEX Tariff Summary'!$J$9:$J$178) -> 0
B127: Lamp | C127: LED | D127: LED 22W Luminaire, IGNIS Mini 020 MX2 Square 2200K, 350mA, 2811lm + Zhaga Connected | E127: LED0148 | F127: LED0148 | G127: =_xlfn.XLOOKUP($D127,'O_OPEX Tariff Summary'!$D$8:$D$137,'O_OPEX Tariff Summary'!$R$8:$R$137,_xlfn.XLOOKUP($E127,'O_OPEX Tariff Summary'!$D$8:$D$137,'O_OPEX Tariff Summary'!$R$8:$R$137)) ->  | H127: =_xlfn.XLOOKUP($G127,'O_OPEX Tariff Summary'!$R$8:$R$137,'O_OPEX Tariff Summary'!$AC$8:$AC$137) ->  | J127: 62.27715862 | K127: 41.89493816 | L127: 41.32035472 | M127: 42.3601421 | N127: 42.90984229 | O127: 43.71579558 | P127: 42.33438425 | Q127: =_xlfn.XLOOKUP($D127,#REF!,#REF!,_xlfn.XLOOKUP($G127,#REF!,#REF!)) ->  | T127: =_xlfn.XLOOKUP($F127,'O_CAPEX Tariff Summary'!$R$9:$R$178,'O_CAPEX Tariff Summary'!$V$9:$V$178) ->  | V127: 138.8225742 | W127: 116.3378564 | X127: 114.5878445 | Y127: 117.7547305 | Z127: 118.3611484 | AA127: 118.3611484 | AB127: 116.893021 | AC127: =_xlfn.XLOOKUP($D127,#REF!,#REF!,_xlfn.XLOOKUP($F127,#REF!,#REF!)) ->  | AF127: =IF($F127="NO_CAPEX",SUMIFS('I_Number of assets'!$M$8:$M$113,'I_Number of assets'!$F$8:$F$119,$G127),SUMIFS('I_Number of assets'!$M$8:$M$113,'I_Number of assets'!$F$8:$F$119,$F127)) ->  | AG127: =_xlfn.XLOOKUP($F127,'O_CAPEX Tariff Summary'!$R$9:$R$178,'O_CAPEX Tariff Summary'!$J$9:$J$178) -> 
B128: Lamp | C128: LED | D128: LED 71W Luminaire, IGNIS 1 036 NSW1 Square 4000K, 650mA, 8960lm | E128: LED0149 | F128: LED0149 | G128: =_xlfn.XLOOKUP($D128,'O_OPEX Tariff Summary'!$D$8:$D$137,'O_OPEX Tariff Summary'!$R$8:$R$137,_xlfn.XLOOKUP($E128,'O_OPEX Tariff Summary'!$D$8:$D$137,'O_OPEX Tariff Summary'!$R$8:$R$137)) -> LED0149 | H128: =_xlfn.XLOOKUP($G128,'O_OPEX Tariff Summary'!$R$8:$R$137,'O_OPEX Tariff Summary'!$AC$8:$AC$137) -> 42.82711115 | J128: 62.05068813 | K128: 41.74258748 | L128: 39.24946967 | M128: 40.14677242 | N128: 40.66384764 | O128: 42.82466149 | P128: 41.42383392 | Q128: =_xlfn.XLOOKUP($D128,#REF!,#REF!,_xlfn.XLOOKUP($G128,#REF!,#REF!)) ->  | T128: =_xlfn.XLOOKUP($F128,'O_CAPEX Tariff Summary'!$R$9:$R$178,'O_CAPEX Tariff Summary'!$V$9:$V$178) -> 119.3821147 | V128: 186.7151655 | W128: 156.4734139 | X128: 133.8728766 | Y128: 142.0070788 | Z128: 143.9911201 | AA128: 143.9911201 | AB128: 139.1877902 | AC128: =_xlfn.XLOOKUP($D128,#REF!,#REF!,_xlfn.XLOOKUP($F128,#REF!,#REF!)) ->  | AF128: =IF($F128="NO_CAPEX",SUMIFS('I_Number of assets'!$M$8:$M$113,'I_Number of assets'!$F$8:$F$119,$G128),SUMIFS('I_Number of assets'!$M$8:$M$113,'I_Number of assets'!$F$8:$F$119,$F128)) ->  | AG128: =_xlfn.XLOOKUP($F128,'O_CAPEX Tariff Summary'!$R$9:$R$178,'O_CAPEX Tariff Summary'!$J$9:$J$178) -> 309
B129: Lamp | C129: LED | D129: LED 71W Luminaire, IGNIS 1 036 NSW1 Square 4000K, 650mA, 8960lm Connected | E129: LED0150 | F129: LED0150 | G129: =_xlfn.XLOOKUP($D129,'O_OPEX Tariff Summary'!$D$8:$D$137,'O_OPEX Tariff Summary'!$R$8:$R$137,_xlfn.XLOOKUP($E129,'O_OPEX Tariff Summary'!$D$8:$D$137,'O_OPEX Tariff Summary'!$R$8:$R$137)) ->  | H129: =_xlfn.XLOOKUP($G129,'O_OPEX Tariff Summary'!$R$8:$R$137,'O_OPEX Tariff Summary'!$AC$8:$AC$137) ->  | J129: 68.67929566 | K129: 46.20176816 | L129: 42.70747705 | M129: 43.96511398 | N129: 44.59377866 | O129: 42.82466149 | P129: 41.42383392 | Q129: =_xlfn.XLOOKUP($D129,#REF!,#REF!,_xlfn.XLOOKUP($G129,#REF!,#REF!)) ->  | T129: =_xlfn.XLOOKUP($F129,'O_CAPEX Tariff Summary'!$R$9:$R$178,'O_CAPEX Tariff Summary'!$V$9:$V$178) ->  | V129: 229.8230298 | W129: 192.5992137 | X129: 169.9986764 | Y129: 178.1328786 | Z129: 180.2157925 | AA129: 180.2157925 | AB129: 175.1730939 | AC129: =_xlfn.XLOOKUP($D129,#REF!,#REF!,_xlfn.XLOOKUP($F129,#REF!,#REF!)) ->  | AF129: =IF($F129="NO_CAPEX",SUMIFS('I_Number of assets'!$M$8:$M$113,'I_Number of assets'!$F$8:$F$119,$G129),SUMIFS('I_Number of assets'!$M$8:$M$113,'I_Number of assets'!$F$8:$F$119,$F129)) ->  | AG129: =_xlfn.XLOOKUP($F129,'O_CAPEX Tariff Summary'!$R$9:$R$178,'O_CAPEX Tariff Summary'!$J$9:$J$178) -> 
B130: Lamp | C130: LED | D130: LED 71W Luminaire, IGNIS 1 036 NSW1 Square 4000K, 650mA, 8960lm + Zhaga | E130: LED0151 | F130: LED0151 | G130: =_xlfn.XLOOKUP($D130,'O_OPEX Tariff Summary'!$D$8:$D$137,'O_OPEX Tariff Summary'!$R$8:$R$137,_xlfn.XLOOKUP($E130,'O_OPEX Tariff Summary'!$D$8:$D$137,'O_OPEX Tariff Summary'!$R$8:$R$137)) -> LED0151 | H130: =_xlfn.XLOOKUP($G130,'O_OPEX Tariff Summary'!$R$8:$R$137,'O_OPEX Tariff Summary'!$AC$8:$AC$137) -> 42.82711115 | J130: 92.80651244 | K130: 62.43257055 | L130: 55.01210965 | M130: 57.68282179 | N130: 58.71730161 | O130: 60.47969792 | P130: 57.85363123 | Q130: =_xlfn.XLOOKUP($D130,#REF!,#REF!,_xlfn.XLOOKUP($G130,#REF!,#REF!)) ->  | T130: =_xlfn.XLOOKUP($F130,'O_CAPEX Tariff Summary'!$R$9:$R$178,'O_CAPEX Tariff Summary'!$V$9:$V$178) -> 128.3586834 | V130: 192.6640681 | W130: 161.4587888 | X130: 138.8582515 | Y130: 146.9924537 | Z130: 148.976495 | AA130: 148.976495 | AB130: 144.1731651 | AC130: =_xlfn.XLOOKUP($D130,#REF!,#REF!,_xlfn.XLOOKUP($F130,#REF!,#REF!)) ->  | AF130: =IF($F130="NO_CAPEX",SUMIFS('I_Number of assets'!$M$8:$M$113,'I_Number of assets'!$F$8:$F$119,$G130),SUMIFS('I_Number of assets'!$M$8:$M$113,'I_Number of assets'!$F$8:$F$119,$F130)) ->  | AG130: =_xlfn.XLOOKUP($F130,'O_CAPEX Tariff Summary'!$R$9:$R$178,'O_CAPEX Tariff Summary'!$J$9:$J$178) -> 0
B131: Lamp | C131: LED | D131: LED 71W Luminaire, IGNIS 1 036 NSW1 Square 4000K, 650mA, 8960lm + Zhaga Connected | E131: LED0152 | F131: LED0152 | G131: =_xlfn.XLOOKUP($D131,'O_OPEX Tariff Summary'!$D$8:$D$137,'O_OPEX Tariff Summary'!$R$8:$R$137,_xlfn.XLOOKUP($E131,'O_OPEX Tariff Summary'!$D$8:$D$137,'O_OPEX Tariff Summary'!$R$8:$R$137)) ->  | H131: =_xlfn.XLOOKUP($G131,'O_OPEX Tariff Summary'!$R$8:$R$137,'O_OPEX Tariff Summary'!$AC$8:$AC$137) ->  | J131: 92.80651244 | K131: 62.43257055 | L131: 55.01210965 | M131: 57.68282179 | N131: 58.71730161 | O131: 60.47969792 | P131: 57.85363123 | Q131: =_xlfn.XLOOKUP($D131,#REF!,#REF!,_xlfn.XLOOKUP($G131,#REF!,#REF!)) ->  | T131: =_xlfn.XLOOKUP($F131,'O_CAPEX Tariff Summary'!$R$9:$R$178,'O_CAPEX Tariff Summary'!$V$9:$V$178) ->  | V131: 235.7719325 | W131: 197.5845886 | X131: 174.9840513 | Y131: 183.1182535 | Z131: 185.2011674 | AA131: 185.2011674 | AB131: 180.1584688 | AC131: =_xlfn.XLOOKUP($D131,#REF!,#REF!,_xlfn.XLOOKUP($F131,#REF!,#REF!)) ->  | AF131: =IF($F131="NO_CAPEX",SUMIFS('I_Number of assets'!$M$8:$M$113,'I_Number of assets'!$F$8:$F$119,$G131),SUMIFS('I_Number of assets'!$M$8:$M$113,'I_Number of assets'!$F$8:$F$119,$F131)) ->  | AG131: =_xlfn.XLOOKUP($F131,'O_CAPEX Tariff Summary'!$R$9:$R$178,'O_CAPEX Tariff Summary'!$J$9:$J$178) -> 
B132: Lamp | C132: LED | D132: LED 49W Luminaire, IGNIS 1 036 NSW1 Square 4000K, 450mA, 6532lm | E132: LED0153 | F132: LED0153 | G132: =_xlfn.XLOOKUP($D132,'O_OPEX Tariff Summary'!$D$8:$D$137,'O_OPEX Tariff Summary'!$R$8:$R$137,_xlfn.XLOOKUP($E132,'O_OPEX Tariff Summary'!$D$8:$D$137,'O_OPEX Tariff Summary'!$R$8:$R$137)) -> LED0153 | H132: =_xlfn.XLOOKUP($G132,'O_OPEX Tariff Summary'!$R$8:$R$137,'O_OPEX Tariff Summary'!$AC$8:$AC$137) -> 42.82711115 | J132: 68.67929566 | K132: 46.20176816 | L132: 42.70747705 | M132: 43.96511398 | N132: 44.59377866 | O132: 42.82466149 | P132: 41.42383392 | Q132: =_xlfn.XLOOKUP($D132,#REF!,#REF!,_xlfn.XLOOKUP($G132,#REF!,#REF!)) ->  | T132: =_xlfn.XLOOKUP($F132,'O_CAPEX Tariff Summary'!$R$9:$R$178,'O_CAPEX Tariff Summary'!$V$9:$V$178) -> 119.3821147 | V132: 186.7151655 | W132: 156.4734139 | X132: 133.8728766 | Y132: 142.0070788 | Z132: 143.9911201 | AA132: 143.9911201 | AB132: 139.1877902 | AC132: =_xlfn.XLOOKUP($D132,#REF!,#REF!,_xlfn.XLOOKUP($F132,#REF!,#REF!)) ->  | AF132: =IF($F132="NO_CAPEX",SUMIFS('I_Number of assets'!$M$8:$M$113,'I_Number of assets'!$F$8:$F$119,$G132),SUMIFS('I_Number of assets'!$M$8:$M$113,'I_Number of assets'!$F$8:$F$119,$F132)) ->  | AG132: =_xlfn.XLOOKUP($F132,'O_CAPEX Tariff Summary'!$R$9:$R$178,'O_CAPEX Tariff Summary'!$J$9:$J$178) -> 0
B133: Lamp | C133: LED | D133: LED 49W Luminaire, IGNIS 1 036 NSW1 Square 4000K, 450mA, 6532lm Connected | E133: LED0154 | F133: LED0154 | G133: =_xlfn.XLOOKUP($D133,'O_OPEX Tariff Summary'!$D$8:$D$137,'O_OPEX Tariff Summary'!$R$8:$R$137,_xlfn.XLOOKUP($E133,'O_OPEX Tariff Summary'!$D$8:$D$137,'O_OPEX Tariff Summary'!$R$8:$R$137)) ->  | H133: =_xlfn.XLOOKUP($G133,'O_OPEX Tariff Summary'!$R$8:$R$137,'O_OPEX Tariff Summary'!$AC$8:$AC$137) ->  | J133: 68.67929566 | K133: 46.20176816 | L133: 42.70747705 | M133: 43.96511398 | N133: 44.59377866 | O133: 42.82466149 | P133: 41.42383392 | Q133: =_xlfn.XLOOKUP($D133,#REF!,#REF!,_xlfn.XLOOKUP($G133,#REF!,#REF!)) ->  | T133: =_xlfn.XLOOKUP($F133,'O_CAPEX Tariff Summary'!$R$9:$R$178,'O_CAPEX Tariff Summary'!$V$9:$V$178) ->  | V133: 229.8230298 | W133: 192.5992137 | X133: 169.9986764 | Y133: 178.1328786 | Z133: 180.2157925 | AA133: 180.2157925 | AB133: 175.1730939 | AC133: =_xlfn.XLOOKUP($D133,#REF!,#REF!,_xlfn.XLOOKUP($F133,#REF!,#REF!)) ->  | AF133: =IF($F133="NO_CAPEX",SUMIFS('I_Number of assets'!$M$8:$M$113,'I_Number of assets'!$F$8:$F$119,$G133),SUMIFS('I_Number of assets'!$M$8:$M$113,'I_Number of assets'!$F$8:$F$119,$F133)) ->  | AG133: =_xlfn.XLOOKUP($F133,'O_CAPEX Tariff Summary'!$R$9:$R$178,'O_CAPEX Tariff Summary'!$J$9:$J$178) -> 
B134: Lamp | C134: LED | D134: LED 49W Luminaire, IGNIS 1 036 NSW1 Square 4000K, 450mA, 6532lm + Zhaga | E134: LED0155 | F134: LED0155 | G134: =_xlfn.XLOOKUP($D134,'O_OPEX Tariff Summary'!$D$8:$D$137,'O_OPEX Tariff Summary'!$R$8:$R$137,_xlfn.XLOOKUP($E134,'O_OPEX Tariff Summary'!$D$8:$D$137,'O_OPEX Tariff Summary'!$R$8:$R$137)) -> LED0155 | H134: =_xlfn.XLOOKUP($G134,'O_OPEX Tariff Summary'!$R$8:$R$137,'O_OPEX Tariff Summary'!$AC$8:$AC$137) -> 42.82711115 | J134: 92.80651244 | K134: 62.43257055 | L134: 55.01210965 | M134: 57.68282179 | N134: 58.71730161 | O134: 60.47969792 | P134: 57.85363123 | Q134: =_xlfn.XLOOKUP($D134,#REF!,#REF!,_xlfn.XLOOKUP($G134,#REF!,#REF!)) ->  | T134: =_xlfn.XLOOKUP($F134,'O_CAPEX Tariff Summary'!$R$9:$R$178,'O_CAPEX Tariff Summary'!$V$9:$V$178) -> 128.3586834 | V134: 192.6640681 | W134: 161.4587888 | X134: 138.8582515 | Y134: 146.9924537 | Z134: 148.976495 | AA134: 148.976495 | AB134: 144.1731651 | AC134: =_xlfn.XLOOKUP($D134,#REF!,#REF!,_xlfn.XLOOKUP($F134,#REF!,#REF!)) ->  | AF134: =IF($F134="NO_CAPEX",SUMIFS('I_Number of assets'!$M$8:$M$113,'I_Number of assets'!$F$8:$F$119,$G134),SUMIFS('I_Number of assets'!$M$8:$M$113,'I_Number of assets'!$F$8:$F$119,$F134)) ->  | AG134: =_xlfn.XLOOKUP($F134,'O_CAPEX Tariff Summary'!$R$9:$R$178,'O_CAPEX Tariff Summary'!$J$9:$J$178) -> 0
B135: Lamp | C135: LED | D135: LED 49W Luminaire, IGNIS 1 036 NSW1 Square 4000K, 450mA, 6532lm + Zhaga Connected | E135: LED0156 | F135: LED0156 | G135: =_xlfn.XLOOKUP($D135,'O_OPEX Tariff Summary'!$D$8:$D$137,'O_OPEX Tariff Summary'!$R$8:$R$137,_xlfn.XLOOKUP($E135,'O_OPEX Tariff Summary'!$D$8:$D$137,'O_OPEX Tariff Summary'!$R$8:$R$137)) ->  | H135: =_xlfn.XLOOKUP($G135,'O_OPEX Tariff Summary'!$R$8:$R$137,'O_OPEX Tariff Summary'!$AC$8:$AC$137) ->  | J135: 92.80651244 | K135: 62.43257055 | L135: 55.01210965 | M135: 57.68282179 | N135: 58.71730161 | O135: 60.47969792 | P135: 57.85363123 | Q135: =_xlfn.XLOOKUP($D135,#REF!,#REF!,_xlfn.XLOOKUP($G135,#REF!,#REF!)) ->  | T135: =_xlfn.XLOOKUP($F135,'O_CAPEX Tariff Summary'!$R$9:$R$178,'O_CAPEX Tariff Summary'!$V$9:$V$178) ->  | V135: 235.7719325 | W135: 197.5845886 | X135: 174.9840513 | Y135: 183.1182535 | Z135: 185.2011674 | AA135: 185.2011674 | AB135: 180.1584688 | AC135: =_xlfn.XLOOKUP($D135,#REF!,#REF!,_xlfn.XLOOKUP($F135,#REF!,#REF!)) ->  | AF135: =IF($F135="NO_CAPEX",SUMIFS('I_Number of assets'!$M$8:$M$113,'I_Number of assets'!$F$8:$F$119,$G135),SUMIFS('I_Number of assets'!$M$8:$M$113,'I_Number of assets'!$F$8:$F$119,$F135)) ->  | AG135: =_xlfn.XLOOKUP($F135,'O_CAPEX Tariff Summary'!$R$9:$R$178,'O_CAPEX Tariff Summary'!$J$9:$J$178) -> 
B136: Lamp | C136: LED | D136: LED 17W Luminaire GE Evolve 3000K P4/P5 | E136: LED0157 | F136: LED0157 | G136: =_xlfn.XLOOKUP($D136,'O_OPEX Tariff Summary'!$D$8:$D$137,'O_OPEX Tariff Summary'!$R$8:$R$137,_xlfn.XLOOKUP($E136,'O_OPEX Tariff Summary'!$D$8:$D$137,'O_OPEX Tariff Summary'!$R$8:$R$137)) -> LED0157 | H136: =_xlfn.XLOOKUP($G136,'O_OPEX Tariff Summary'!$R$8:$R$137,'O_OPEX Tariff Summary'!$AC$8:$AC$137) -> 36.35553348 | J136: 52.62999394 | K136: 35.40512108 | L136: 35.18623215 | M136: 35.58234163 | N136: 35.95193538 | O136: 36.34102764 | P136: 35.42158498 | Q136: =_xlfn.XLOOKUP($D136,#REF!,#REF!,_xlfn.XLOOKUP($G136,#REF!,#REF!)) ->  | T136: =_xlfn.XLOOKUP($F136,'O_CAPEX Tariff Summary'!$R$9:$R$178,'O_CAPEX Tariff Summary'!$V$9:$V$178) -> 54.88865909 | V136: 71.42335751 | W136: 59.85510898 | X136: 58.10509715 | Y136: 61.27198308 | Z136: 61.77952855 | AA136: 61.77952855 | AB136: 60.55076972 | AC136: =_xlfn.XLOOKUP($D136,#REF!,#REF!,_xlfn.XLOOKUP($F136,#REF!,#REF!)) ->  | AF136: =IF($F136="NO_CAPEX",SUMIFS('I_Number of assets'!$M$8:$M$113,'I_Number of assets'!$F$8:$F$119,$G136),SUMIFS('I_Number of assets'!$M$8:$M$113,'I_Number of assets'!$F$8:$F$119,$F136)) ->  | AG136: =_xlfn.XLOOKUP($F136,'O_CAPEX Tariff Summary'!$R$9:$R$178,'O_CAPEX Tariff Summary'!$J$9:$J$178) -> 4070
B137: Lamp | C137: LED | D137: LED 17W Luminaire GE Evolve 3000K P4/P5 Connected | E137: LED0158 | F137: LED0158 | G137: =_xlfn.XLOOKUP($D137,'O_OPEX Tariff Summary'!$D$8:$D$137,'O_OPEX Tariff Summary'!$R$8:$R$137,_xlfn.XLOOKUP($E137,'O_OPEX Tariff Summary'!$D$8:$D$137,'O_OPEX Tariff Summary'!$R$8:$R$137)) ->  | H137: =_xlfn.XLOOKUP($G137,'O_OPEX Tariff Summary'!$R$8:$R$137,'O_OPEX Tariff Summary'!$AC$8:$AC$137) ->  | J137: 54.3030391 | K137: 36.53060793 | L137: 36.2600369 | M137: 36.74967222 | N137: 37.15005442 | O137: 36.34102764 | P137: 35.42158498 | Q137: =_xlfn.XLOOKUP($D137,#REF!,#REF!,_xlfn.XLOOKUP($G137,#REF!,#REF!)) ->  | T137: =_xlfn.XLOOKUP($F137,'O_CAPEX Tariff Summary'!$R$9:$R$178,'O_CAPEX Tariff Summary'!$V$9:$V$178) ->  | V137: 114.5312218 | W137: 95.98090881 | X137: 94.23089698 | Y137: 97.39778292 | Z137: 98.00420087 | AA137: 98.00420087 | AB137: 96.53607344 | AC137: =_xlfn.XLOOKUP($D137,#REF!,#REF!,_xlfn.XLOOKUP($F137,#REF!,#REF!)) ->  | AF137: =IF($F137="NO_CAPEX",SUMIFS('I_Number of assets'!$M$8:$M$113,'I_Number of assets'!$F$8:$F$119,$G137),SUMIFS('I_Number of assets'!$M$8:$M$113,'I_Number of assets'!$F$8:$F$119,$F137)) ->  | AG137: =_xlfn.XLOOKUP($F137,'O_CAPEX Tariff Summary'!$R$9:$R$178,'O_CAPEX Tariff Summary'!$J$9:$J$178) -> 
B138: Lamp | C138: LED | D138: Bourke Hill 17W LED Aeroscreen luminaire Top Entry | E138: LED0159 | F138: LED0159 | G138: =_xlfn.XLOOKUP($D138,'O_OPEX Tariff Summary'!$D$8:$D$137,'O_OPEX Tariff Summary'!$R$8:$R$137,_xlfn.XLOOKUP($E138,'O_OPEX Tariff Summary'!$D$8:$D$137,'O_OPEX Tariff Summary'!$R$8:$R$137)) -> LED0159 | H138: =_xlfn.XLOOKUP($G138,'O_OPEX Tariff Summary'!$R$8:$R$137,'O_OPEX Tariff Summary'!$AC$8:$AC$137) -> 36.35553348 | J138: 54.3030391 | K138: 36.53060793 | L138: 36.2600369 | M138: 36.74967222 | N138: 37.15005442 | O138: 36.34102764 | P138: 35.42158498 | Q138: =_xlfn.XLOOKUP($D138,#REF!,#REF!,_xlfn.XLOOKUP($G138,#REF!,#REF!)) ->  | T138: =_xlfn.XLOOKUP($F138,'O_CAPEX Tariff Summary'!$R$9:$R$178,'O_CAPEX Tariff Summary'!$V$9:$V$178) -> 122.2157729 | V138: 149.6899644 | W138: 125.4450847 | X138: 124.4101341 | Y138: 126.2830189 | Z138: 126.5831795 | AA138: 126.5831795 | AB138: 125.856496 | AC138: =_xlfn.XLOOKUP($D138,#REF!,#REF!,_xlfn.XLOOKUP($F138,#REF!,#REF!)) ->  | AF138: =IF($F138="NO_CAPEX",SUMIFS('I_Number of assets'!$M$8:$M$113,'I_Number of assets'!$F$8:$F$119,$G138),SUMIFS('I_Number of assets'!$M$8:$M$113,'I_Number of assets'!$F$8:$F$119,$F138)) ->  | AG138: =_xlfn.XLOOKUP($F138,'O_CAPEX Tariff Summary'!$R$9:$R$178,'O_CAPEX Tariff Summary'!$J$9:$J$178) -> 399
B139: Lamp | C139: LED | D139: Bourke Hill 34W LED Aeroscreen luminaire Top Entry | E139: LED0163 | F139: LED0163 | G139: =_xlfn.XLOOKUP($D139,'O_OPEX Tariff Summary'!$D$8:$D$137,'O_OPEX Tariff Summary'!$R$8:$R$137,_xlfn.XLOOKUP($E139,'O_OPEX Tariff Summary'!$D$8:$D$137,'O_OPEX Tariff Summary'!$R$8:$R$137)) -> LED0163 | H139: =_xlfn.XLOOKUP($G139,'O_OPEX Tariff Summary'!$R$8:$R$137,'O_OPEX Tariff Summary'!$AC$8:$AC$137) -> 36.35553348 | J139: 54.3030391 | K139: 36.53060793 | L139: 36.2600369 | M139: 36.74967222 | N139: 37.15005442 | O139: 36.34102764 | P139: 35.42158498 | Q139: =_xlfn.XLOOKUP($D139,#REF!,#REF!,_xlfn.XLOOKUP($G139,#REF!,#REF!)) ->  | T139: =_xlfn.XLOOKUP($F139,'O_CAPEX Tariff Summary'!$R$9:$R$178,'O_CAPEX Tariff Summary'!$V$9:$V$178) -> 122.2157729 | V139: 149.6899644 | W139: 125.4450847 | X139: 124.4101341 | Y139: 126.2830189 | Z139: 126.5831795 | AA139: 126.5831795 | AB139: 125.856496 | AC139: =_xlfn.XLOOKUP($D139,#REF!,#REF!,_xlfn.XLOOKUP($F139,#REF!,#REF!)) ->  | AF139: =IF($F139="NO_CAPEX",SUMIFS('I_Number of assets'!$M$8:$M$113,'I_Number of assets'!$F$8:$F$119,$G139),SUMIFS('I_Number of assets'!$M$8:$M$113,'I_Number of assets'!$F$8:$F$119,$F139)) ->  | AG139: =_xlfn.XLOOKUP($F139,'O_CAPEX Tariff Summary'!$R$9:$R$178,'O_CAPEX Tariff Summary'!$J$9:$J$178) -> 41
B140: Lamp | C140: LED | D140: Bourke Hill 17W LED Aeroscreen luminaire Side Entry | E140: LED0167 | F140: LED0167 | G140: =_xlfn.XLOOKUP($D140,'O_OPEX Tariff Summary'!$D$8:$D$137,'O_OPEX Tariff Summary'!$R$8:$R$137,_xlfn.XLOOKUP($E140,'O_OPEX Tariff Summary'!$D$8:$D$137,'O_OPEX Tariff Summary'!$R$8:$R$137)) -> LED0167 | H140: =_xlfn.XLOOKUP($G140,'O_OPEX Tariff Summary'!$R$8:$R$137,'O_OPEX Tariff Summary'!$AC$8:$AC$137) -> 36.35553348 | J140: 54.3030391 | K140: 36.53060793 | L140: 36.2600369 | M140: 36.74967222 | N140: 37.15005442 | O140: 36.34102764 | P140: 35.42158498 | Q140: =_xlfn.XLOOKUP($D140,#REF!,#REF!,_xlfn.XLOOKUP($G140,#REF!,#REF!)) ->  | T140: =_xlfn.XLOOKUP($F140,'O_CAPEX Tariff Summary'!$R$9:$R$178,'O_CAPEX Tariff Summary'!$V$9:$V$178) -> 122.2157729 | V140: 149.6899644 | W140: 125.4450847 | X140: 124.4101341 | Y140: 126.2830189 | Z140: 126.5831795 | AA140: 126.5831795 | AB140: 125.856496 | AC140: =_xlfn.XLOOKUP($D140,#REF!,#REF!,_xlfn.XLOOKUP($F140,#REF!,#REF!)) ->  | AF140: =IF($F140="NO_CAPEX",SUMIFS('I_Number of assets'!$M$8:$M$113,'I_Number of assets'!$F$8:$F$119,$G140),SUMIFS('I_Number of assets'!$M$8:$M$113,'I_Number of assets'!$F$8:$F$119,$F140)) ->  | AG140: =_xlfn.XLOOKUP($F140,'O_CAPEX Tariff Summary'!$R$9:$R$178,'O_CAPEX Tariff Summary'!$J$9:$J$178) -> 4
B141: Lamp | C141: LED | D141: Bourke Hill 34W LED Aeroscreen luminaire Side Entry | E141: LED0171 | F141: LED0171 | G141: =_xlfn.XLOOKUP($D141,'O_OPEX Tariff Summary'!$D$8:$D$137,'O_OPEX Tariff Summary'!$R$8:$R$137,_xlfn.XLOOKUP($E141,'O_OPEX Tariff Summary'!$D$8:$D$137,'O_OPEX Tariff Summary'!$R$8:$R$137)) -> LED0171 | H141: =_xlfn.XLOOKUP($G141,'O_OPEX Tariff Summary'!$R$8:$R$137,'O_OPEX Tariff Summary'!$AC$8:$AC$137) -> 36.35553348 | J141: 54.3030391 | K141: 36.53060793 | L141: 36.2600369 | M141: 36.74967222 | N141: 37.15005442 | O141: 36.34102764 | P141: 35.42158498 | Q141: =_xlfn.XLOOKUP($D141,#REF!,#REF!,_xlfn.XLOOKUP($G141,#REF!,#REF!)) ->  | T141: =_xlfn.XLOOKUP($F141,'O_CAPEX Tariff Summary'!$R$9:$R$178,'O_CAPEX Tariff Summary'!$V$9:$V$178) -> 122.2157729 | V141: 149.6899644 | W141: 125.4450847 | X141: 124.4101341 | Y141: 126.2830189 | Z141: 126.5831795 | AA141: 126.5831795 | AB141: 125.856496 | AC141: =_xlfn.XLOOKUP($D141,#REF!,#REF!,_xlfn.XLOOKUP($F141,#REF!,#REF!)) ->  | AF141: =IF($F141="NO_CAPEX",SUMIFS('I_Number of assets'!$M$8:$M$113,'I_Number of assets'!$F$8:$F$119,$G141),SUMIFS('I_Number of assets'!$M$8:$M$113,'I_Number of assets'!$F$8:$F$119,$F141)) ->  | AG141: =_xlfn.XLOOKUP($F141,'O_CAPEX Tariff Summary'!$R$9:$R$178,'O_CAPEX Tariff Summary'!$J$9:$J$178) -> 0
B142: Lamp | C142: LED | D142: Parkville 80W LED Aeroscreen luminaire Top Entry | E142: LED0175 | F142: LED0175 | G142: =_xlfn.XLOOKUP($D142,'O_OPEX Tariff Summary'!$D$8:$D$137,'O_OPEX Tariff Summary'!$R$8:$R$137,_xlfn.XLOOKUP($E142,'O_OPEX Tariff Summary'!$D$8:$D$137,'O_OPEX Tariff Summary'!$R$8:$R$137)) -> LED0175 | H142: =_xlfn.XLOOKUP($G142,'O_OPEX Tariff Summary'!$R$8:$R$137,'O_OPEX Tariff Summary'!$AC$8:$AC$137) -> 42.82711115 | J142: 68.67929566 | K142: 46.20176816 | L142: 42.70747705 | M142: 43.96511398 | N142: 44.59377866 | O142: 42.82466149 | P142: 41.42383392 | Q142: =_xlfn.XLOOKUP($D142,#REF!,#REF!,_xlfn.XLOOKUP($G142,#REF!,#REF!)) ->  | T142: =_xlfn.XLOOKUP($F142,'O_CAPEX Tariff Summary'!$R$9:$R$178,'O_CAPEX Tariff Summary'!$V$9:$V$178) -> 217.4190327 | V142: 229.5229876 | W142: 192.3477685 | X142: 178.981893 | Y142: 183.7924306 | Z142: 185.0827311 | AA142: 185.0827311 | AB142: 181.9589358 | AC142: =_xlfn.XLOOKUP($D142,#REF!,#REF!,_xlfn.XLOOKUP($F142,#REF!,#REF!)) ->  | AF142: =IF($F142="NO_CAPEX",SUMIFS('I_Number of assets'!$M$8:$M$113,'I_Number of assets'!$F$8:$F$119,$G142),SUMIFS('I_Number of assets'!$M$8:$M$113,'I_Number of assets'!$F$8:$F$119,$F142)) ->  | AG142: =_xlfn.XLOOKUP($F142,'O_CAPEX Tariff Summary'!$R$9:$R$178,'O_CAPEX Tariff Summary'!$J$9:$J$178) -> 25
B143: Lamp | C143: LED | D143: Parkville 100W LED Aeroscreen luminaire Top Entry | E143: LED0179 | F143: LED0179 | G143: =_xlfn.XLOOKUP($D143,'O_OPEX Tariff Summary'!$D$8:$D$137,'O_OPEX Tariff Summary'!$R$8:$R$137,_xlfn.XLOOKUP($E143,'O_OPEX Tariff Summary'!$D$8:$D$137,'O_OPEX Tariff Summary'!$R$8:$R$137)) -> LED0179 | H143: =_xlfn.XLOOKUP($G143,'O_OPEX Tariff Summary'!$R$8:$R$137,'O_OPEX Tariff Summary'!$AC$8:$AC$137) -> 42.82711115 | J143: 68.67929566 | K143: 46.20176816 | L143: 42.70747705 | M143: 43.96511398 | N143: 44.59377866 | O143: 42.82466149 | P143: 41.42383392 | Q143: =_xlfn.XLOOKUP($D143,#REF!,#REF!,_xlfn.XLOOKUP($G143,#REF!,#REF!)) ->  | T143: =_xlfn.XLOOKUP($F143,'O_CAPEX Tariff Summary'!$R$9:$R$178,'O_CAPEX Tariff Summary'!$V$9:$V$178) -> 217.4190327 | V143: 229.5229876 | W143: 192.3477685 | X143: 178.981893 | Y143: 183.7924306 | Z143: 185.0827311 | AA143: 185.0827311 | AB143: 181.9589358 | AC143: =_xlfn.XLOOKUP($D143,#REF!,#REF!,_xlfn.XLOOKUP($F143,#REF!,#REF!)) ->  | AF143: =IF($F143="NO_CAPEX",SUMIFS('I_Number of assets'!$M$8:$M$113,'I_Number of assets'!$F$8:$F$119,$G143),SUMIFS('I_Number of assets'!$M$8:$M$113,'I_Number of assets'!$F$8:$F$119,$F143)) ->  | AG143: =_xlfn.XLOOKUP($F143,'O_CAPEX Tariff Summary'!$R$9:$R$178,'O_CAPEX Tariff Summary'!$J$9:$J$178) -> 5
B144: Lamp | C144: LED | D144: Parkville 155W LED Aeroscreen luminaire Top Entry | E144: LED0183 | F144: LED0183 | G144: =_xlfn.XLOOKUP($D144,'O_OPEX Tariff Summary'!$D$8:$D$137,'O_OPEX Tariff Summary'!$R$8:$R$137,_xlfn.XLOOKUP($E144,'O_OPEX Tariff Summary'!$D$8:$D$137,'O_OPEX Tariff Summary'!$R$8:$R$137)) -> LED0183 | H144: =_xlfn.XLOOKUP($G144,'O_OPEX Tariff Summary'!$R$8:$R$137,'O_OPEX Tariff Summary'!$AC$8:$AC$137) -> 42.82711115 | J144: 68.67929566 | K144: 46.20176816 | L144: 42.70747705 | M144: 43.96511398 | N144: 44.59377866 | O144: 42.82466149 | P144: 41.42383392 | Q144: =_xlfn.XLOOKUP($D144,#REF!,#REF!,_xlfn.XLOOKUP($G144,#REF!,#REF!)) ->  | T144: =_xlfn.XLOOKUP($F144,'O_CAPEX Tariff Summary'!$R$9:$R$178,'O_CAPEX Tariff Summary'!$V$9:$V$178) -> 222.9753295 | V144: 236.1195364 | W144: 197.8758921 | X144: 184.5100166 | Y144: 189.3205542 | Z144: 190.6108547 | AA144: 190.6108547 | AB144: 187.4870594 | AC144: =_xlfn.XLOOKUP($D144,#REF!,#REF!,_xlfn.XLOOKUP($F144,#REF!,#REF!)) ->  | AF144: =IF($F144="NO_CAPEX",SUMIFS('I_Number of assets'!$M$8:$M$113,'I_Number of assets'!$F$8:$F$119,$G144),SUMIFS('I_Number of assets'!$M$8:$M$113,'I_Number of assets'!$F$8:$F$119,$F144)) ->  | AG144: =_xlfn.XLOOKUP($F144,'O_CAPEX Tariff Summary'!$R$9:$R$178,'O_CAPEX Tariff Summary'!$J$9:$J$178) -> 49
B145: Lamp | C145: LED | D145: Parkville 80W LED Aeroscreen luminaire Side Entry | E145: LED0187 | F145: LED0187 | G145: =_xlfn.XLOOKUP($D145,'O_OPEX Tariff Summary'!$D$8:$D$137,'O_OPEX Tariff Summary'!$R$8:$R$137,_xlfn.XLOOKUP($E145,'O_OPEX Tariff Summary'!$D$8:$D$137,'O_OPEX Tariff Summary'!$R$8:$R$137)) -> LED0187 | H145: =_xlfn.XLOOKUP($G145,'O_OPEX Tariff Summary'!$R$8:$R$137,'O_OPEX Tariff Summary'!$AC$8:$AC$137) -> 42.82711115 | J145: 68.67929566 | K145: 46.20176816 | L145: 42.70747705 | M145: 43.96511398 | N145: 44.59377866 | O145: 42.82466149 | P145: 41.42383392 | Q145: =_xlfn.XLOOKUP($D145,#REF!,#REF!,_xlfn.XLOOKUP($G145,#REF!,#REF!)) ->  | T145: =_xlfn.XLOOKUP($F145,'O_CAPEX Tariff Summary'!$R$9:$R$178,'O_CAPEX Tariff Summary'!$V$9:$V$178) -> 222.3579632 | V145: 235.3865865 | W145: 197.2616561 | X145: 183.8957806 | Y145: 188.7063182 | Z145: 189.9966187 | AA145: 189.9966187 | AB145: 186.8728234 | AC145: =_xlfn.XLOOKUP($D145,#REF!,#REF!,_xlfn.XLOOKUP($F145,#REF!,#REF!)) ->  | AF145: =IF($F145="NO_CAPEX",SUMIFS('I_Number of assets'!$M$8:$M$113,'I_Number of assets'!$F$8:$F$119,$G145),SUMIFS('I_Number of assets'!$M$8:$M$113,'I_Number of assets'!$F$8:$F$119,$F145)) ->  | AG145: =_xlfn.XLOOKUP($F145,'O_CAPEX Tariff Summary'!$R$9:$R$178,'O_CAPEX Tariff Summary'!$J$9:$J$178) -> 2
B146: Lamp | C146: LED | D146: Parkville 100W LED Aeroscreen luminaire Side Entry | E146: LED0191 | F146: LED0191 | G146: =_xlfn.XLOOKUP($D146,'O_OPEX Tariff Summary'!$D$8:$D$137,'O_OPEX Tariff Summary'!$R$8:$R$137,_xlfn.XLOOKUP($E146,'O_OPEX Tariff Summary'!$D$8:$D$137,'O_OPEX Tariff Summary'!$R$8:$R$137)) -> LED0191 | H146: =_xlfn.XLOOKUP($G146,'O_OPEX Tariff Summary'!$R$8:$R$137,'O_OPEX Tariff Summary'!$AC$8:$AC$137) -> 42.82711115 | J146: 68.67929566 | K146: 46.20176816 | L146: 42.70747705 | M146: 43.96511398 | N146: 44.59377866 | O146: 42.82466149 | P146: 41.42383392 | Q146: =_xlfn.XLOOKUP($D146,#REF!,#REF!,_xlfn.XLOOKUP($G146,#REF!,#REF!)) ->  | T146: =_xlfn.XLOOKUP($F146,'O_CAPEX Tariff Summary'!$R$9:$R$178,'O_CAPEX Tariff Summary'!$V$9:$V$178) -> 222.3579632 | V146: 235.3865865 | W146: 197.2616561 | X146: 183.8957806 | Y146: 188.7063182 | Z146: 189.9966187 | AA146: 189.9966187 | AB146: 186.8728234 | AC146: =_xlfn.XLOOKUP($D146,#REF!,#REF!,_xlfn.XLOOKUP($F146,#REF!,#REF!)) ->  | AF146: =IF($F146="NO_CAPEX",SUMIFS('I_Number of assets'!$M$8:$M$113,'I_Number of assets'!$F$8:$F$119,$G146),SUMIFS('I_Number of assets'!$M$8:$M$113,'I_Number of assets'!$F$8:$F$119,$F146)) ->  | AG146: =_xlfn.XLOOKUP($F146,'O_CAPEX Tariff Summary'!$R$9:$R$178,'O_CAPEX Tariff Summary'!$J$9:$J$178) -> 0
B147: Lamp | C147: LED | D147: Parkville 155W LED Aeroscreen luminaire Side Entry | E147: LED0195 | F147: LED0195 | G147: =_xlfn.XLOOKUP($D147,'O_OPEX Tariff Summary'!$D$8:$D$137,'O_OPEX Tariff Summary'!$R$8:$R$137,_xlfn.XLOOKUP($E147,'O_OPEX Tariff Summary'!$D$8:$D$137,'O_OPEX Tariff Summary'!$R$8:$R$137)) -> LED0195 | H147: =_xlfn.XLOOKUP($G147,'O_OPEX Tariff Summary'!$R$8:$R$137,'O_OPEX Tariff Summary'!$AC$8:$AC$137) -> 42.82711115 | J147: 68.67929566 | K147: 46.20176816 | L147: 42.70747705 | M147: 43.96511398 | N147: 44.59377866 | O147: 42.82466149 | P147: 41.42383392 | Q147: =_xlfn.XLOOKUP($D147,#REF!,#REF!,_xlfn.XLOOKUP($G147,#REF!,#REF!)) ->  | T147: =_xlfn.XLOOKUP($F147,'O_CAPEX Tariff Summary'!$R$9:$R$178,'O_CAPEX Tariff Summary'!$V$9:$V$178) -> 227.91426 | V147: 241.9831354 | W147: 202.7897797 | X147: 189.4239042 | Y147: 194.2344418 | Z147: 195.5247423 | AA147: 195.5247423 | AB147: 192.400947 | AC147: =_xlfn.XLOOKUP($D147,#REF!,#REF!,_xlfn.XLOOKUP($F147,#REF!,#REF!)) ->  | AF147: =IF($F147="NO_CAPEX",SUMIFS('I_Number of assets'!$M$8:$M$113,'I_Number of assets'!$F$8:$F$119,$G147),SUMIFS('I_Number of assets'!$M$8:$M$113,'I_Number of assets'!$F$8:$F$119,$F147)) ->  | AG147: =_xlfn.XLOOKUP($F147,'O_CAPEX Tariff Summary'!$R$9:$R$178,'O_CAPEX Tariff Summary'!$J$9:$J$178) -> 0
B148: Lamp | C148: LED | D148: Kensington 17W LED 3000k | E148: LED0199 | F148: LED0199 | G148: =_xlfn.XLOOKUP($D148,'O_OPEX Tariff Summary'!$D$8:$D$137,'O_OPEX Tariff Summary'!$R$8:$R$137,_xlfn.XLOOKUP($E148,'O_OPEX Tariff Summary'!$D$8:$D$137,'O_OPEX Tariff Summary'!$R$8:$R$137)) -> LED0199 | H148: =_xlfn.XLOOKUP($G148,'O_OPEX Tariff Summary'!$R$8:$R$137,'O_OPEX Tariff Summary'!$AC$8:$AC$137) -> 36.35553348 | J148: 54.3030391 | K148: 36.53060793 | L148: 36.2600369 | M148: 36.74967222 | N148: 37.15005442 | O148: 36.34102764 | P148: 35.42158498 | Q148: =_xlfn.XLOOKUP($D148,#REF!,#REF!,_xlfn.XLOOKUP($G148,#REF!,#REF!)) ->  | T148: =_xlfn.XLOOKUP($F148,'O_CAPEX Tariff Summary'!$R$9:$R$178,'O_CAPEX Tariff Summary'!$V$9:$V$178) -> 147.0215514 | V148: 179.1398901 | W148: 150.1250854 | X148: 149.0901348 | Y148: 150.9630196 | Z148: 151.2631801 | AA148: 151.2631801 | AB148: 150.5364966 | AC148: =_xlfn.XLOOKUP($D148,#REF!,#REF!,_xlfn.XLOOKUP($F148,#REF!,#REF!)) ->  | AF148: =IF($F148="NO_CAPEX",SUMIFS('I_Number of assets'!$M$8:$M$113,'I_Number of assets'!$F$8:$F$119,$G148),SUMIFS('I_Number of assets'!$M$8:$M$113,'I_Number of assets'!$F$8:$F$119,$F148)) ->  | AG148: =_xlfn.XLOOKUP($F148,'O_CAPEX Tariff Summary'!$R$9:$R$178,'O_CAPEX Tariff Summary'!$J$9:$J$178) -> 107
B149: Lamp | C149: LED | D149: Kensington 34W LED 3000k | E149: LED0203 | F149: LED0203 | G149: =_xlfn.XLOOKUP($D149,'O_OPEX Tariff Summary'!$D$8:$D$137,'O_OPEX Tariff Summary'!$R$8:$R$137,_xlfn.XLOOKUP($E149,'O_OPEX Tariff Summary'!$D$8:$D$137,'O_OPEX Tariff Summary'!$R$8:$R$137)) -> LED0203 | H149: =_xlfn.XLOOKUP($G149,'O_OPEX Tariff Summary'!$R$8:$R$137,'O_OPEX Tariff Summary'!$AC$8:$AC$137) -> 36.35553348 | J149: 54.3030391 | K149: 36.53060793 | L149: 36.2600369 | M149: 36.74967222 | N149: 37.15005442 | O149: 36.34102764 | P149: 35.42158498 | Q149: =_xlfn.XLOOKUP($D149,#REF!,#REF!,_xlfn.XLOOKUP($G149,#REF!,#REF!)) ->  | T149: =_xlfn.XLOOKUP($F149,'O_CAPEX Tariff Summary'!$R$9:$R$178,'O_CAPEX Tariff Summary'!$V$9:$V$178) -> 146.2930591 | V149: 178.2750093 | W149: 149.400287 | X149: 148.3653363 | Y149: 150.2382212 | Z149: 150.5383817 | AA149: 150.5383817 | AB149: 149.8116982 | AC149: =_xlfn.XLOOKUP($D149,#REF!,#REF!,_xlfn.XLOOKUP($F149,#REF!,#REF!)) ->  | AF149: =IF($F149="NO_CAPEX",SUMIFS('I_Number of assets'!$M$8:$M$113,'I_Number of assets'!$F$8:$F$119,$G149),SUMIFS('I_Number of assets'!$M$8:$M$113,'I_Number of assets'!$F$8:$F$119,$F149)) ->  | AG149: =_xlfn.XLOOKUP($F149,'O_CAPEX Tariff Summary'!$R$9:$R$178,'O_CAPEX Tariff Summary'!$J$9:$J$178) -> 23
B150: Lamp | C150: LED | D150: LED210-Emilio Catenary 71W | E150: LED0210 | F150: LED0210 | G150: =_xlfn.XLOOKUP($D150,'O_OPEX Tariff Summary'!$D$8:$D$137,'O_OPEX Tariff Summary'!$R$8:$R$137,_xlfn.XLOOKUP($E150,'O_OPEX Tariff Summary'!$D$8:$D$137,'O_OPEX Tariff Summary'!$R$8:$R$137)) -> LED0210 | H150: =_xlfn.XLOOKUP($G150,'O_OPEX Tariff Summary'!$R$8:$R$137,'O_OPEX Tariff Summary'!$AC$8:$AC$137) -> 42.82711115 | J150: 68.67929566 | K150: 46.20176816 | L150: 42.70747705 | M150: 43.96511398 | N150: 44.59377866 | O150: 42.82466149 | P150: 41.42383392 | Q150: =_xlfn.XLOOKUP($D150,#REF!,#REF!,_xlfn.XLOOKUP($G150,#REF!,#REF!)) ->  | T150: =_xlfn.XLOOKUP($F150,'O_CAPEX Tariff Summary'!$R$9:$R$178,'O_CAPEX Tariff Summary'!$V$9:$V$178) -> 205.7440038 | V150: 283.1369621 | W150: 237.2780322 | X150: 214.6774949 | Y150: 222.8116971 | Z150: 224.7957385 | AA150: 224.7957385 | AB150: 219.9924085 | AC150: =_xlfn.XLOOKUP($D150,#REF!,#REF!,_xlfn.XLOOKUP($F150,#REF!,#REF!)) ->  | AF150: =IF($F150="NO_CAPEX",SUMIFS('I_Number of assets'!$M$8:$M$113,'I_Number of assets'!$F$8:$F$119,$G150),SUMIFS('I_Number of assets'!$M$8:$M$113,'I_Number of assets'!$F$8:$F$119,$F150)) ->  | AG150: =_xlfn.XLOOKUP($F150,'O_CAPEX Tariff Summary'!$R$9:$R$178,'O_CAPEX Tariff Summary'!$J$9:$J$178) -> 1
B151: Lamp | C151: LED | D151: LED214-GE Area Lighter Flood Light 150W | E151: LED0214 | F151: LED0214 | G151: =_xlfn.XLOOKUP($D151,'O_OPEX Tariff Summary'!$D$8:$D$137,'O_OPEX Tariff Summary'!$R$8:$R$137,_xlfn.XLOOKUP($E151,'O_OPEX Tariff Summary'!$D$8:$D$137,'O_OPEX Tariff Summary'!$R$8:$R$137)) -> LED0214 | H151: =_xlfn.XLOOKUP($G151,'O_OPEX Tariff Summary'!$R$8:$R$137,'O_OPEX Tariff Summary'!$AC$8:$AC$137) -> 42.82711115 | J151: 68.67929566 | K151: 46.20176816 | L151: 42.70747705 | M151: 43.96511398 | N151: 44.59377866 | O151: 42.82466149 | P151: 41.42383392 | Q151: =_xlfn.XLOOKUP($D151,#REF!,#REF!,_xlfn.XLOOKUP($G151,#REF!,#REF!)) ->  | T151: =_xlfn.XLOOKUP($F151,'O_CAPEX Tariff Summary'!$R$9:$R$178,'O_CAPEX Tariff Summary'!$V$9:$V$178) -> 102.4976165 | V151: 167.1333611 | W151: 140.0632215 | X151: 117.4626842 | Y151: 125.5968864 | Z151: 127.5809277 | AA151: 127.5809277 | AB151: 122.7775978 | AC151: =_xlfn.XLOOKUP($D151,#REF!,#REF!,_xlfn.XLOOKUP($F151,#REF!,#REF!)) ->  | AF151: =IF($F151="NO_CAPEX",SUMIFS('I_Number of assets'!$M$8:$M$113,'I_Number of assets'!$F$8:$F$119,$G151),SUMIFS('I_Number of assets'!$M$8:$M$113,'I_Number of assets'!$F$8:$F$119,$F151)) ->  | AG151: =_xlfn.XLOOKUP($F151,'O_CAPEX Tariff Summary'!$R$9:$R$178,'O_CAPEX Tariff Summary'!$J$9:$J$178) -> 145
B152: Lamp | C152: LED | D152: LED218-GE Area Lighter Flood Light 240W | E152: LED0218 | F152: LED0218 | G152: =_xlfn.XLOOKUP($D152,'O_OPEX Tariff Summary'!$D$8:$D$137,'O_OPEX Tariff Summary'!$R$8:$R$137,_xlfn.XLOOKUP($E152,'O_OPEX Tariff Summary'!$D$8:$D$137,'O_OPEX Tariff Summary'!$R$8:$R$137)) -> LED0218 | H152: =_xlfn.XLOOKUP($G152,'O_OPEX Tariff Summary'!$R$8:$R$137,'O_OPEX Tariff Summary'!$AC$8:$AC$137) -> 42.82711115 | J152: 68.67929566 | K152: 46.20176816 | L152: 42.70747705 | M152: 43.96511398 | N152: 44.59377866 | O152: 42.82466149 | P152: 41.42383392 | Q152: =_xlfn.XLOOKUP($D152,#REF!,#REF!,_xlfn.XLOOKUP($G152,#REF!,#REF!)) ->  | T152: =_xlfn.XLOOKUP($F152,'O_CAPEX Tariff Summary'!$R$9:$R$178,'O_CAPEX Tariff Summary'!$V$9:$V$178) -> 119.1683869 | V152: 186.4672946 | W152: 156.2656899 | X152: 133.6651526 | Y152: 141.7993548 | Z152: 143.7833962 | AA152: 143.7833962 | AB152: 138.9800662 | AC152: =_xlfn.XLOOKUP($D152,#REF!,#REF!,_xlfn.XLOOKUP($F152,#REF!,#REF!)) ->  | AF152: =IF($F152="NO_CAPEX",SUMIFS('I_Number of assets'!$M$8:$M$113,'I_Number of assets'!$F$8:$F$119,$G152),SUMIFS('I_Number of assets'!$M$8:$M$113,'I_Number of assets'!$F$8:$F$119,$F152)) ->  | AG152: =_xlfn.XLOOKUP($F152,'O_CAPEX Tariff Summary'!$R$9:$R$178,'O_CAPEX Tariff Summary'!$J$9:$J$178) -> 88 | AH152: =IF(SUM(_xlfn.ANCHORARRAY(AC152))=0,0,1) -> 
B153: Lamp | C153: LED | D153: LED222-Sirkel Catenary 100W | E153: LED0222 | F153: LED0222 | G153: =_xlfn.XLOOKUP($D153,'O_OPEX Tariff Summary'!$D$8:$D$137,'O_OPEX Tariff Summary'!$R$8:$R$137,_xlfn.XLOOKUP($E153,'O_OPEX Tariff Summary'!$D$8:$D$137,'O_OPEX Tariff Summary'!$R$8:$R$137)) -> LED0222 | H153: =_xlfn.XLOOKUP($G153,'O_OPEX Tariff Summary'!$R$8:$R$137,'O_OPEX Tariff Summary'!$AC$8:$AC$137) -> 42.82711115 | J153: 68.67929566 | K153: 46.20176816 | L153: 42.70747705 | M153: 43.96511398 | N153: 44.59377866 | O153: 42.82466149 | P153: 41.42383392 | Q153: =_xlfn.XLOOKUP($D153,#REF!,#REF!,_xlfn.XLOOKUP($G153,#REF!,#REF!)) ->  | T153: =_xlfn.XLOOKUP($F153,'O_CAPEX Tariff Summary'!$R$9:$R$178,'O_CAPEX Tariff Summary'!$V$9:$V$178) -> 311.5572488 | V153: 403.3543691 | W153: 338.0241501 | X153: 315.4236129 | Y153: 323.557815 | Z153: 325.5418564 | AA153: 325.5418564 | AB153: 320.7385264 | AC153: =_xlfn.XLOOKUP($D153,#REF!,#REF!,_xlfn.XLOOKUP($F153,#REF!,#REF!)) ->  | AF153: =IF($F153="NO_CAPEX",SUMIFS('I_Number of assets'!$M$8:$M$113,'I_Number of assets'!$F$8:$F$119,$G153),SUMIFS('I_Number of assets'!$M$8:$M$113,'I_Number of assets'!$F$8:$F$119,$F153)) ->  | AG153: =_xlfn.XLOOKUP($F153,'O_CAPEX Tariff Summary'!$R$9:$R$178,'O_CAPEX Tariff Summary'!$J$9:$J$178) -> 2
J155: =SUMPRODUCT(J$14:J$153,$AF$14:$AF$153) ->  | K155: =SUMPRODUCT(K$14:K$153,$AF$14:$AF$153) ->  | V155: =SUMPRODUCT(V$14:V$153,$AG$14:$AG$153,$AH$14:$AH$153) -> 
D158: Rearrange
D159: Opex
D160: RP 19-24 charge - indirect | E160: RP 19-24 charge - direct | F160: Change labour rates to RP 24-29 rates | G160: Change failure rates to RP 24-29 rates | H160: Decrease labour on-cost | I160: Decrease % of installations requiring TC | J160: Increase number of traffic controllers | K160: RP 24-29 proposed overheads | L160: RP 24-29 proposed | V160: =D160 -> RP 19-24 charge - indirect | W160: =#REF! ->  | X160: =F160 -> Change labour rates to RP 24-29 rates | Y160: Change failure rates to RP 24-29 rates | Z160: Decrease labour on-cost | AA160: Decrease % of installations requiring TC | AB160: Increase number of traffic controllers | AC160: RP 24-29 proposed overheads | AD160: RP 24-29 proposed
D161: =D162 ->  | E161: =F162 ->  | F161: =G162-F162 ->  | G161: =H162-G162 ->  | L161: =L162 ->  | V161: =V162 ->  | W161: =W162 ->  | X161: =Y162-X162 ->  | AC161: =AD162-AC162 ->  | AD161: =AD162 -> 
D162: =_xlfn.SORTBY($J$155:$R$155,COLUMN($J$155:$R$155),-1) ->  | V162: =_xlfn.SORTBY($V$155:$AD$155,COLUMN($V$155:$AD$155),-1) -> 

Sheet O_Scenario analysis (hidden)
A2: Scenario analysis
A3: To explore potential under recovery of indirect costs
C5: Live scenario | D5: ='I_Global Inputs'!F3 -> Base Case
E8: FY23 | F8: FY24 | G8: FY25 | H8: FY26 | I8: FY27 | J8: FY28 | K8: FY29
C9: Live | D9: Direct opex | E9: =#REF! ->  | F9: =#REF! ->  | G9: =#REF! ->  | H9: =#REF! ->  | I9: =#REF! ->  | J9: =#REF! ->  | K9: =#REF! -> 
D10: Indirect opex | E10: =#REF! ->  | F10: =#REF! ->  | G10: =#REF! ->  | H10: =#REF! ->  | I10: =#REF! ->  | J10: =#REF! ->  | K10: =#REF! -> 
D11: Direct capex | E11: =#REF! ->  | F11: =#REF! ->  | G11: =#REF! ->  | H11: =#REF! ->  | I11: =#REF! ->  | J11: =#REF! ->  | K11: =#REF! -> 
D12: Indirect capex | E12: =#REF! ->  | F12: =#REF! ->  | G12: =#REF! ->  | H12: =#REF! ->  | I12: =#REF! ->  | J12: =#REF! ->  | K12: =#REF! -> 
A14: =IF(ISBLANK(C14),A13,C14) -> Base Case | B14: 1 | C14: =INDEX('I_Global Inputs'!$H$6:$Q$6,,'O_Scenario analysis'!B14) -> Base Case | D14: =D9 -> Direct opex | E14: 6014807.849 | F14: 5619274.964 | G14: 5602738.98 | H14: 5588521.684 | I14: 5576915.474 | J14: 5601310.022 | K14: 5686054.126
A15: =IF(ISBLANK(C15),A14,C15) -> Base Case | B15: 1 | D15: =D10 -> Indirect opex | E15: 5897093.701 | F15: 5509301.68 | G15: 5493089.318 | H15: 5479150.264 | I15: 5467771.197 | J15: 5491688.326 | K15: 5574773.926
A16: Base Case | B16: 1 | D16: Direct capex | E16: 2194418.272 | F16: 2069017.223 | G16: 1913124.16 | H16: 1821421.027 | I16: 1728416.434 | J16: 1675917.259 | K16: 1601338.617
A17: Base Case | B17: 1 | D17: Indirect capex | E17: 1096011.62 | F17: 1033379.528 | G17: 955518.0693 | H17: 909716.5458 | I17: 863265.0032 | J17: 837044.0651 | K17: 799795.4422
A18: Low labour rate scenario | B18: =B14+1 -> 2 | C18: =INDEX('I_Global Inputs'!$H$6:$Q$6,,'O_Scenario analysis'!B18) -> Low labour rate scenario | D18: =D14 -> Direct opex
A19: Low labour rate scenario | B19: =B15+1 -> 2 | D19: =D15 -> Indirect opex
A20: Low labour rate scenario | B20: 2 | D20: Direct capex
A21: Low labour rate scenario | B21: 2 | D21: Indirect capex
A22: Scenario 2 | B22: 3 | C22: =INDEX('I_Global Inputs'!$H$6:$Q$6,,'O_Scenario analysis'!B22) -> Scenario 2 | D22: Direct opex
A23: Scenario 2 | B23: 3 | D23: Indirect opex
A24: Scenario 2 | B24: 3 | D24: Direct capex
A25: Scenario 2 | B25: 3 | D25: Indirect capex
A26: Scenario 3 | B26: 4 | C26: =INDEX('I_Global Inputs'!$H$6:$Q$6,,'O_Scenario analysis'!B26) -> Scenario 3 | D26: Direct opex
A27: Scenario 3 | B27: 4 | D27: Indirect opex
A28: Scenario 3 | B28: 4 | D28: Direct capex
A29: Scenario 3 | B29: 4 | D29: Indirect capex
A30: Scenario 4 | B30: 5 | C30: =INDEX('I_Global Inputs'!$H$6:$Q$6,,'O_Scenario analysis'!B30) -> Scenario 4 | D30: Direct opex
A31: Scenario 4 | B31: 5 | D31: Indirect opex
A32: Scenario 4 | B32: 5 | D32: Direct capex
A33: Scenario 4 | B33: 5 | D33: Indirect capex
A34: Scenario 5 | B34: 6 | C34: =INDEX('I_Global Inputs'!$H$6:$Q$6,,'O_Scenario analysis'!B34) -> Scenario 5 | D34: Direct opex
A35: Scenario 5 | B35: 6 | D35: Indirect opex
A36: Scenario 5 | B36: 6 | D36: Direct capex
A37: Scenario 5 | B37: 6 | D37: Indirect capex
A38: Scenario 6 | B38: 7 | C38: =INDEX('I_Global Inputs'!$H$6:$Q$6,,'O_Scenario analysis'!B38) -> Scenario 6 | D38: Direct opex
A39: Scenario 6 | B39: 7 | D39: Indirect opex
A40: Scenario 6 | B40: 7 | D40: Direct capex
A41: Scenario 6 | B41: 7 | D41: Indirect capex
D44: Base Case | E44: less | F44: AER approved
E46: FY23 | F46: FY24 | G46: FY25 | H46: FY26 | I46: FY27 | J46: FY28 | K46: FY29
D47: =D9 -> Direct opex | E47: =_xlfn.XLOOKUP($D$44&$D47,$A$14:$A$41&$D$14:$D$41,$E$14:$E$41)-_xlfn.XLOOKUP($F$44&$D47,$A$14:$A$41&$D$14:$D$41,$E$14:$E$41) ->  | F47: =_xlfn.XLOOKUP($D$44&$D47,$A$14:$A$41&$D$14:$D$41,$E$14:$E$41)-_xlfn.XLOOKUP($F$44&$D47,$A$14:$A$41&$D$14:$D$41,$E$14:$E$41) ->  | G47: =_xlfn.XLOOKUP($D$44&$D47,$A$14:$A$41&$D$14:$D$41,$E$14:$E$41)-_xlfn.XLOOKUP($F$44&$D47,$A$14:$A$41&$D$14:$D$41,$E$14:$E$41) ->  | H47: =_xlfn.XLOOKUP($D$44&$D47,$A$14:$A$41&$D$14:$D$41,$E$14:$E$41)-_xlfn.XLOOKUP($F$44&$D47,$A$14:$A$41&$D$14:$D$41,$E$14:$E$41) ->  | I47: =_xlfn.XLOOKUP($D$44&$D47,$A$14:$A$41&$D$14:$D$41,$E$14:$E$41)-_xlfn.XLOOKUP($F$44&$D47,$A$14:$A$41&$D$14:$D$41,$E$14:$E$41) ->  | J47: =_xlfn.XLOOKUP($D$44&$D47,$A$14:$A$41&$D$14:$D$41,$E$14:$E$41)-_xlfn.XLOOKUP($F$44&$D47,$A$14:$A$41&$D$14:$D$41,$E$14:$E$41) ->  | K47: =_xlfn.XLOOKUP($D$44&$D47,$A$14:$A$41&$D$14:$D$41,$E$14:$E$41)-_xlfn.XLOOKUP($F$44&$D47,$A$14:$A$41&$D$14:$D$41,$E$14:$E$41) -> 
D48: =D10 -> Indirect opex | E48: =_xlfn.XLOOKUP($D$44&$D48,$A$14:$A$41&$D$14:$D$41,$E$14:$E$41)-_xlfn.XLOOKUP($F$44&$D48,$A$14:$A$41&$D$14:$D$41,$E$14:$E$41) ->  | F48: =_xlfn.XLOOKUP($D$44&$D48,$A$14:$A$41&$D$14:$D$41,$E$14:$E$41)-_xlfn.XLOOKUP($F$44&$D48,$A$14:$A$41&$D$14:$D$41,$E$14:$E$41) ->  | G48: =_xlfn.XLOOKUP($D$44&$D48,$A$14:$A$41&$D$14:$D$41,$E$14:$E$41)-_xlfn.XLOOKUP($F$44&$D48,$A$14:$A$41&$D$14:$D$41,$E$14:$E$41) ->  | H48: =_xlfn.XLOOKUP($D$44&$D48,$A$14:$A$41&$D$14:$D$41,$E$14:$E$41)-_xlfn.XLOOKUP($F$44&$D48,$A$14:$A$41&$D$14:$D$41,$E$14:$E$41) ->  | I48: =_xlfn.XLOOKUP($D$44&$D48,$A$14:$A$41&$D$14:$D$41,$E$14:$E$41)-_xlfn.XLOOKUP($F$44&$D48,$A$14:$A$41&$D$14:$D$41,$E$14:$E$41) ->  | J48: =_xlfn.XLOOKUP($D$44&$D48,$A$14:$A$41&$D$14:$D$41,$E$14:$E$41)-_xlfn.XLOOKUP($F$44&$D48,$A$14:$A$41&$D$14:$D$41,$E$14:$E$41) ->  | K48: =_xlfn.XLOOKUP($D$44&$D48,$A$14:$A$41&$D$14:$D$41,$E$14:$E$41)-_xlfn.XLOOKUP($F$44&$D48,$A$14:$A$41&$D$14:$D$41,$E$14:$E$41) -> 
D49: Direct capex | E49: =_xlfn.XLOOKUP($D$44&$D49,$A$14:$A$41&$D$14:$D$41,$E$14:$E$41)-_xlfn.XLOOKUP($F$44&$D49,$A$14:$A$41&$D$14:$D$41,$E$14:$E$41) ->  | F49: =_xlfn.XLOOKUP($D$44&$D49,$A$14:$A$41&$D$14:$D$41,$E$14:$E$41)-_xlfn.XLOOKUP($F$44&$D49,$A$14:$A$41&$D$14:$D$41,$E$14:$E$41) ->  | G49: =_xlfn.XLOOKUP($D$44&$D49,$A$14:$A$41&$D$14:$D$41,$E$14:$E$41)-_xlfn.XLOOKUP($F$44&$D49,$A$14:$A$41&$D$14:$D$41,$E$14:$E$41) ->  | H49: =_xlfn.XLOOKUP($D$44&$D49,$A$14:$A$41&$D$14:$D$41,$E$14:$E$41)-_xlfn.XLOOKUP($F$44&$D49,$A$14:$A$41&$D$14:$D$41,$E$14:$E$41) ->  | I49: =_xlfn.XLOOKUP($D$44&$D49,$A$14:$A$41&$D$14:$D$41,$E$14:$E$41)-_xlfn.XLOOKUP($F$44&$D49,$A$14:$A$41&$D$14:$D$41,$E$14:$E$41) ->  | J49: =_xlfn.XLOOKUP($D$44&$D49,$A$14:$A$41&$D$14:$D$41,$E$14:$E$41)-_xlfn.XLOOKUP($F$44&$D49,$A$14:$A$41&$D$14:$D$41,$E$14:$E$41) ->  | K49: =_xlfn.XLOOKUP($D$44&$D49,$A$14:$A$41&$D$14:$D$41,$E$14:$E$41)-_xlfn.XLOOKUP($F$44&$D49,$A$14:$A$41&$D$14:$D$41,$E$14:$E$41) -> 
D50: Indirect capex | E50: =_xlfn.XLOOKUP($D$44&$D50,$A$14:$A$41&$D$14:$D$41,$E$14:$E$41)-_xlfn.XLOOKUP($F$44&$D50,$A$14:$A$41&$D$14:$D$41,$E$14:$E$41) ->  | F50: =_xlfn.XLOOKUP($D$44&$D50,$A$14:$A$41&$D$14:$D$41,$E$14:$E$41)-_xlfn.XLOOKUP($F$44&$D50,$A$14:$A$41&$D$14:$D$41,$E$14:$E$41) ->  | G50: =_xlfn.XLOOKUP($D$44&$D50,$A$14:$A$41&$D$14:$D$41,$E$14:$E$41)-_xlfn.XLOOKUP($F$44&$D50,$A$14:$A$41&$D$14:$D$41,$E$14:$E$41) ->  | H50: =_xlfn.XLOOKUP($D$44&$D50,$A$14:$A$41&$D$14:$D$41,$E$14:$E$41)-_xlfn.XLOOKUP($F$44&$D50,$A$14:$A$41&$D$14:$D$41,$E$14:$E$41) ->  | I50: =_xlfn.XLOOKUP($D$44&$D50,$A$14:$A$41&$D$14:$D$41,$E$14:$E$41)-_xlfn.XLOOKUP($F$44&$D50,$A$14:$A$41&$D$14:$D$41,$E$14:$E$41) ->  | J50: =_xlfn.XLOOKUP($D$44&$D50,$A$14:$A$41&$D$14:$D$41,$E$14:$E$41)-_xlfn.XLOOKUP($F$44&$D50,$A$14:$A$41&$D$14:$D$41,$E$14:$E$41) ->  | K50: =_xlfn.XLOOKUP($D$44&$D50,$A$14:$A$41&$D$14:$D$41,$E$14:$E$41)-_xlfn.XLOOKUP($F$44&$D50,$A$14:$A$41&$D$14:$D$41,$E$14:$E$41) -> 
E52: Shortfall
E54: Current shortfall (approximated from SCI) | G54: Forecast shortfall
E55: =E46 -> FY23 | F55: =F46 -> FY24 | G55: FY25 | H55: FY26 | I55: FY27 | J55: FY28 | K55: FY29
D56: Direct
D57: Indirect | E57: 3686955.234 | F57: 2807992.265
A63: Opex tariffs | E63: 1 | F63: =E63+1 -> 2 | G63: 3 | H63: 4 | I63: 5 | J63: 6 | K63: 7
C64: FY25 | D64: Live | E64: =INDEX('I_Global Inputs'!$H$6:$Q$6,,'O_Scenario analysis'!E63) -> Base Case | F64: =INDEX('I_Global Inputs'!$H$6:$Q$6,,'O_Scenario analysis'!F63) -> Low labour rate scenario | G64: =INDEX('I_Global Inputs'!$H$6:$Q$6,,'O_Scenario analysis'!G63) -> Scenario 2 | H64: =INDEX('I_Global Inputs'!$H$6:$Q$6,,'O_Scenario analysis'!H63) -> Scenario 3 | I64: =INDEX('I_Global Inputs'!$H$6:$Q$6,,'O_Scenario analysis'!I63) -> Scenario 4 | J64: =INDEX('I_Global Inputs'!$H$6:$Q$6,,'O_Scenario analysis'!J63) -> Scenario 5 | K64: =INDEX('I_Global Inputs'!$H$6:$Q$6,,'O_Scenario analysis'!K63) -> Scenario 6
C65: ='O_OPEX Tariff Summary'!D8 -> LED 36W Gerard Luminaire (Cat P3) | D65: ='O_OPEX Tariff Summary'!AC8 -> 36.35553348 | E65: 58.29699586
C66: ='O_OPEX Tariff Summary'!D9 -> LED 23W Gerard Luminaire (Cat P3) - Aeroscreen | D66: ='O_OPEX Tariff Summary'!AC9 -> 36.35553348 | E66: 55.85980904
C67: ='O_OPEX Tariff Summary'!D10 -> LED 17W Gerard Luminaire (Cat P4/P5) | D67: ='O_OPEX Tariff Summary'!AC10 -> 36.35553348 | E67: 54.97355928
C68: ='O_OPEX Tariff Summary'!D11 -> LED 17W Gerard Luminaire (Cat P4/P5) - Aeroscreen | D68: ='O_OPEX Tariff Summary'!AC11 -> 36.35553348 | E68: 55.0843405
C69: ='O_OPEX Tariff Summary'!D12 -> LED 17W Gerard Luminaire - Louvred (Cat P4/P5 RRW) | D69: ='O_OPEX Tariff Summary'!AC12 -> 36.35553348 | E69: 55.0843405
C70: ='O_OPEX Tariff Summary'!D13 -> LED 25W GE Evolve Luminaire (Cat P4/P5) | D70: ='O_OPEX Tariff Summary'!AC13 -> 36.35553348 | E70: 56.91223062
C71: ='O_OPEX Tariff Summary'!D14 -> LED 35W Pecan Luminaire (Cat P3) | D71: ='O_OPEX Tariff Summary'!AC14 -> 36.35553348 | E71: 55.0843405
C72: ='O_OPEX Tariff Summary'!D15 -> LED 29W Pecan Luminaire (Cat P3) - Aeroscreen | D72: ='O_OPEX Tariff Summary'!AC15 -> 36.35553348 | E72: 55.0843405
C73: ='O_OPEX Tariff Summary'!D16 -> LED 42W Pecan Luminaire (Cat V5) | D73: ='O_OPEX Tariff Summary'!AC16 -> 42.82711115 | E73: 71.66518612
C74: ='O_OPEX Tariff Summary'!D17 -> LED 36W Pecan Luminaire (Cat V5) - Aeroscreen | D74: ='O_OPEX Tariff Summary'!AC17 -> 42.82711115 | E74: 89.49015744
C75: ='O_OPEX Tariff Summary'!D18 -> LED 105W Aldridge Luminaire (Cat V3) | D75: ='O_OPEX Tariff Summary'!AC18 -> 42.82711115 | E75: 71.66518612
C76: ='O_OPEX Tariff Summary'!D19 -> LED 198W Aldridge Luminaire (Cat V1) - Standard Dist. | D76: ='O_OPEX Tariff Summary'!AC19 -> 42.82711115 | E76: 71.66518612
C77: ='O_OPEX Tariff Summary'!D20 -> LED 198W Aldridge Luminaire (Cat V1) - Forward Dist. | D77: ='O_OPEX Tariff Summary'!AC20 -> 42.82711115 | E77: 71.66518612
C78: ='O_OPEX Tariff Summary'!D21 -> LED 298W Aldrige Luminaire (Cat V1) - Standard Dist. | D78: ='O_OPEX Tariff Summary'!AC21 -> 42.82711115 | E78: 71.66518612
C79: ='O_OPEX Tariff Summary'!D22 -> LED 100W Aldridge Luminaire - Brownfield | D79: ='O_OPEX Tariff Summary'!AC22 -> 42.82711115 | E79: 71.66518612
C80: ='O_OPEX Tariff Summary'!D23 -> LED 200W Aldridge Luminaire - Brownfield | D80: ='O_OPEX Tariff Summary'!AC23 -> 42.82711115 | E80: 71.66518612
C81: ='O_OPEX Tariff Summary'!D24 -> LED 300W Aldridge Luminaire - Brownfield | D81: ='O_OPEX Tariff Summary'!AC24 -> 42.82711115 | E81: 71.66518612
C82: ='O_OPEX Tariff Summary'!D25 -> Fluorescent Twin 20 | D82: ='O_OPEX Tariff Summary'!AC25 -> 54.77399899 | E82: 74.40683386
C83: ='O_OPEX Tariff Summary'!D26 -> Fluorescent 40 | D83: ='O_OPEX Tariff Summary'!AC26 -> 59.23946511 | E83: 80.89125264
C84: ='O_OPEX Tariff Summary'!D27 -> High Pressure Sodium 50 | D84: ='O_OPEX Tariff Summary'!AC27 -> 101.5131802 | E84: 139.682304
C85: ='O_OPEX Tariff Summary'!D28 -> High Pressure Sodium 50 Twin Arc | D85: ='O_OPEX Tariff Summary'!AC28 -> 72.6391959 | E85: 114.6547055
C86: ='O_OPEX Tariff Summary'!D29 -> High Pressure Sodium 70 | D86: ='O_OPEX Tariff Summary'!AC29 -> 96.32061133 | E86: 132.2955044
C87: ='O_OPEX Tariff Summary'!D30 -> High Pressure Sodium 150 | D87: ='O_OPEX Tariff Summary'!AC30 -> 102.8843746 | E87: 188.8633055
C88: ='O_OPEX Tariff Summary'!D31 -> High Pressure Sodium 250 | D88: ='O_OPEX Tariff Summary'!AC31 -> 85.48176569 | E88: 150.0228358
C89: ='O_OPEX Tariff Summary'!D32 -> High Pressure Sodium 2x250 | D89: ='O_OPEX Tariff Summary'!AC32 -> 110.1259831 | E89: 198.8659175
C90: ='O_OPEX Tariff Summary'!D33 -> High Pressure Sodium 400 | D90: ='O_OPEX Tariff Summary'!AC33 -> 85.33954871 | E90: 134.2428048
C91: ='O_OPEX Tariff Summary'!D34 -> High Pressure Sodium 2x400 | D91: ='O_OPEX Tariff Summary'!AC34 -> 142.1888768 | E91: 233.3137878
C92: ='O_OPEX Tariff Summary'!D35 -> High Pressure Sodium 3x400 | D92: ='O_OPEX Tariff Summary'!AC35 -> 163.229444 | E92: 255.9193093
C93: ='O_OPEX Tariff Summary'!D36 -> High Pressure Sodium 400 Twin Arc | D93: ='O_OPEX Tariff Summary'!AC36 -> 99.9815517 | E93: 208.6151624
C94: ='O_OPEX Tariff Summary'!D37 -> High Pressure Sodium 70 Twin Arc | D94: ='O_OPEX Tariff Summary'!AC37 -> 66.71516345 | E94: 107.06725
C95: ='O_OPEX Tariff Summary'!D38 -> High Pressure Sodium 150 Twin Arc | D95: ='O_OPEX Tariff Summary'!AC38 -> 94.12637221 | E95: 201.1153457
C96: ='O_OPEX Tariff Summary'!D39 -> High Pressure Sodium 250 Twin Arc | D96: ='O_OPEX Tariff Summary'!AC39 -> 105.0181335 | E96: 215.0660859
C97: ='O_OPEX Tariff Summary'!D40 -> Mercury Vapour 50 | D97: ='O_OPEX Tariff Summary'!AC40 -> 54.29013228 | E97: 73.35766441
C98: ='O_OPEX Tariff Summary'!D41 -> Mercury Vapour 80 | D98: ='O_OPEX Tariff Summary'!AC41 -> 53.66567768 | E98: 72.73093893
C99: ='O_OPEX Tariff Summary'!D42 -> Mercury Vapour 125 | D99: ='O_OPEX Tariff Summary'!AC42 -> 73.06541688 | E99: 100.1115053
C100: ='O_OPEX Tariff Summary'!D43 -> Mercury Vapour 250 | D100: ='O_OPEX Tariff Summary'!AC43 -> 89.16986746 | E100: 157.4976011
C101: ='O_OPEX Tariff Summary'!D44 -> Mercury Vapour 400 | D101: ='O_OPEX Tariff Summary'!AC44 -> 83.35315617 | E101: 142.4311175
C102: ='O_OPEX Tariff Summary'!D45 -> Mercury Vapour 2x400 | D102: ='O_OPEX Tariff Summary'!AC45 -> 90.51186909 | E102: 196.4852201
C103: ='O_OPEX Tariff Summary'!D46 -> Metal Hallide (Reactor Control Gear) 250 | D103: ='O_OPEX Tariff Summary'!AC46 -> 77.39750415 | E103: 115.4588158
C104: ='O_OPEX Tariff Summary'!D47 -> Metal Hallide (Reactor Control Gear) 400 | D104: ='O_OPEX Tariff Summary'!AC47 -> 80.79419074 | E104: 115.5957553
C105: ='O_OPEX Tariff Summary'!D48 -> Incandescent 60 | D105: ='O_OPEX Tariff Summary'!AC48 -> 70.96044191 | E105: 97.84941721
C106: ='O_OPEX Tariff Summary'!D49 -> Metal Hallide (Reactor Control Gear) 1000 | D106: ='O_OPEX Tariff Summary'!AC49 -> 130.1210794 | E106: 220.3498378
C107: ='O_OPEX Tariff Summary'!D50 -> High Pressure Sodium 600 (Internal Ignitor) | D107: ='O_OPEX Tariff Summary'!AC50 -> 150.4753386 | E107: 273.2927111
C108: ='O_OPEX Tariff Summary'!D51 -> Compact Fluorescent 1x42 | D108: ='O_OPEX Tariff Summary'!AC51 -> 83.95764923 | E108: 115.1442086
C109: ='O_OPEX Tariff Summary'!D52 -> Compact Fluorescent 1x32 | D109: ='O_OPEX Tariff Summary'!AC52 -> 51.51122102 | E109: 68.16803936
C110: ='O_OPEX Tariff Summary'!D53 -> T5 2x14W | D110: ='O_OPEX Tariff Summary'!AC53 -> 75.17057026 | E110: 102.3731353
C111: ='O_OPEX Tariff Summary'!D54 -> T5 2x24W | D111: ='O_OPEX Tariff Summary'!AC54 -> 67.59095603 | E111: 108.1887786
C112: ='O_OPEX Tariff Summary'!D55 -> Low Pressure Sodium 55 | D112: ='O_OPEX Tariff Summary'!AC55 -> 107.2662141 | E112: 129.6024868
C113: ='O_OPEX Tariff Summary'!D56 -> Low Pressure Sodium 90/100 | D113: ='O_OPEX Tariff Summary'!AC56 -> 225.2324058 | E113: 281.1820612
C114: ='O_OPEX Tariff Summary'!D57 -> Low Pressure Sodium 135 | D114: ='O_OPEX Tariff Summary'!AC57 -> 339.4897501 | E114: 591.3848247
C115: ='O_OPEX Tariff Summary'!D58 -> WOOD POLE | D115: ='O_OPEX Tariff Summary'!AC58 -> 18.78152491 | E115: 29.13616438
C116: ='O_OPEX Tariff Summary'!D59 -> STEEL POLE | D116: ='O_OPEX Tariff Summary'!AC59 -> 16.329022 | E116: 26.1669085
C117: ='O_OPEX Tariff Summary'!D60 -> R/BOUT COLUMN | D117: ='O_OPEX Tariff Summary'!AC60 -> 16.329022 | E117: 26.1669085
C118: ='O_OPEX Tariff Summary'!D61 -> SHARED OR NO POLE | D118: ='O_OPEX Tariff Summary'!AC61 -> 0 | E118: 0
C119: ='O_OPEX Tariff Summary'!D62 -> SUSPENDED | D119: ='O_OPEX Tariff Summary'!AC62 -> 37.56304982 | E119: 58.27232876
C120: ='O_OPEX Tariff Summary'!D63 -> NO CAPITAL | D120: ='O_OPEX Tariff Summary'!AC63 -> 0 | E120: 0
C121: ='O_OPEX Tariff Summary'!D64 -> Street Patrol | D121: ='O_OPEX Tariff Summary'!AC64 -> 9.798394704 | E121: 13.04622523
C122: ='O_OPEX Tariff Summary'!D65 -> LED 33W Luminaire StreetLED2 Category P3 Aeroscreen | D122: ='O_OPEX Tariff Summary'!AC65 -> 36.35553348 | E122: 55.74902782
C123: ='O_OPEX Tariff Summary'!#REF! ->  | D123: ='O_OPEX Tariff Summary'!#REF! ->  | E123: 55.0843405
C124: ='O_OPEX Tariff Summary'!D66 -> LED 33W Luminaire StreetLED2 Category P3 Aeroscreen + Zhaga | D124: ='O_OPEX Tariff Summary'!AC66 -> 36.35553348 | E124: 63.94687931
C125: ='O_OPEX Tariff Summary'!#REF! ->  | D125: ='O_OPEX Tariff Summary'!#REF! ->  | E125: 63.94687931
C126: ='O_OPEX Tariff Summary'!D67 -> LED 17W Luminaire StreetLED3 3000K P4/P5 | D126: ='O_OPEX Tariff Summary'!AC67 -> 36.35553348 | E126: 57.85387098
C127: ='O_OPEX Tariff Summary'!#REF! ->  | D127: ='O_OPEX Tariff Summary'!#REF! ->  | E127: 55.0843405
C128: ='O_OPEX Tariff Summary'!D68 -> LED 17W Luminaire StreetLED3 3000K P4/P5 + Zhaga | D128: ='O_OPEX Tariff Summary'!AC68 -> 36.35553348 | E128: 63.94687931
C129: ='O_OPEX Tariff Summary'!#REF! ->  | D129: ='O_OPEX Tariff Summary'!#REF! ->  | E129: 63.94687931
C130: ='O_OPEX Tariff Summary'!D69 -> LED 17W Luminaire StreetLED3 Louvred Category P4/P5 Reduced RRW | D130: ='O_OPEX Tariff Summary'!AC69 -> 36.35553348 | E130: 62.67285402
C131: ='O_OPEX Tariff Summary'!#REF! ->  | D131: ='O_OPEX Tariff Summary'!#REF! ->  | E131: 55.0843405
C132: ='O_OPEX Tariff Summary'!D70 -> LED 17W Luminaire StreetLED3 Louvred Category P4/P5 Reduced RRW + Zhaga | D132: ='O_OPEX Tariff Summary'!AC70 -> 36.35553348 | E132: 63.94687931
C133: ='O_OPEX Tariff Summary'!#REF! ->  | D133: ='O_OPEX Tariff Summary'!#REF! ->  | E133: 63.94687931
C134: ='O_OPEX Tariff Summary'!D71 -> LED 25W Luminaire StreetLED3 2200K, 2022lm, 505mA | D134: ='O_OPEX Tariff Summary'!AC71 -> 36.35553348 | E134: 55.0843405
C135: ='O_OPEX Tariff Summary'!#REF! ->  | D135: ='O_OPEX Tariff Summary'!#REF! ->  | E135: 55.0843405
C136: ='O_OPEX Tariff Summary'!D72 -> LED 25W Luminaire StreetLED3 2200K, 2022lm, 505mA + Zhaga | D136: ='O_OPEX Tariff Summary'!AC72 -> 36.35553348 | E136: 63.94687931
C137: ='O_OPEX Tariff Summary'!#REF! ->  | D137: ='O_OPEX Tariff Summary'!#REF! ->  | E137: 63.94687931
C138: ='O_OPEX Tariff Summary'!D73 -> LED 50W Luminaire RoadLED Midi 4000K, 7614lm, 208mA | D138: ='O_OPEX Tariff Summary'!AC73 -> 42.82711115 | E138: 71.66518612
C139: ='O_OPEX Tariff Summary'!#REF! ->  | D139: ='O_OPEX Tariff Summary'!#REF! ->  | E139: 71.66518612
C140: ='O_OPEX Tariff Summary'!D74 -> LED 50W Luminaire RoadLED Midi 4000K, 7614lm, 208mA + Zhaga | D140: ='O_OPEX Tariff Summary'!AC74 -> 42.82711115 | E140: 99.15788854
C141: ='O_OPEX Tariff Summary'!#REF! ->  | D141: ='O_OPEX Tariff Summary'!#REF! ->  | E141: 99.15788854
C142: ='O_OPEX Tariff Summary'!D75 -> LED 80W Luminaire RoadLED Midi 4000K, 9509lm, 661mA | D142: ='O_OPEX Tariff Summary'!AC75 -> 42.82711115 | E142: 67.95165042
C143: ='O_OPEX Tariff Summary'!#REF! ->  | D143: ='O_OPEX Tariff Summary'!#REF! ->  | E143: 71.66518612
C144: ='O_OPEX Tariff Summary'!D76 -> LED 80W Luminaire RoadLED Midi 4000K, 9509lm, 661mA + Zhaga | D144: ='O_OPEX Tariff Summary'!AC76 -> 42.82711115 | E144: 99.15788854
C145: ='O_OPEX Tariff Summary'!#REF! ->  | D145: ='O_OPEX Tariff Summary'!#REF! ->  | E145: 99.15788854
C146: ='O_OPEX Tariff Summary'!D77 -> LED 150W Luminaire RoadLED Midi 4000K, 20321lm, 650mA | D146: ='O_OPEX Tariff Summary'!AC77 -> 42.82711115 | E146: 65.57498758
C147: ='O_OPEX Tariff Summary'!#REF! ->  | D147: ='O_OPEX Tariff Summary'!#REF! ->  | E147: 71.66518612
C148: ='O_OPEX Tariff Summary'!D78 -> LED 150W Luminaire RoadLED Midi 4000K, 20321lm, 650mA + Zhaga | D148: ='O_OPEX Tariff Summary'!AC78 -> 42.82711115 | E148: 99.15788854
C149: ='O_OPEX Tariff Summary'!#REF! ->  | D149: ='O_OPEX Tariff Summary'!#REF! ->  | E149: 99.15788854
C150: ='O_OPEX Tariff Summary'!D79 -> LED 300W Luminaire RoadLED 4K 4000K, 35254lm, 650mA, Aeroscreen | D150: ='O_OPEX Tariff Summary'!AC79 -> 42.82711115 | E150: 70.62539612
C151: ='O_OPEX Tariff Summary'!#REF! ->  | D151: ='O_OPEX Tariff Summary'!#REF! ->  | E151: 71.66518612
C152: ='O_OPEX Tariff Summary'!D80 -> LED 300W Luminaire RoadLED 4K 4000K, 35254lm, 650mA, Aeroscreen + Zhaga | D152: ='O_OPEX Tariff Summary'!AC80 -> 42.82711115 | E152: 99.15788854
C153: ='O_OPEX Tariff Summary'!#REF! ->  | D153: ='O_OPEX Tariff Summary'!#REF! ->  | E153: 99.15788854
C154: ='O_OPEX Tariff Summary'!D81 -> LED 27W Luminaire, IGNIS Mini 020 MX2 Square 3000K, 425mA, 3685lm | D154: ='O_OPEX Tariff Summary'!AC81 -> 36.35553348 | E154: 52.42559124
C155: ='O_OPEX Tariff Summary'!#REF! ->  | D155: ='O_OPEX Tariff Summary'!#REF! ->  | E155: 55.0843405
C156: ='O_OPEX Tariff Summary'!D82 -> LED 27W Luminaire, IGNIS Mini 020 MX2 Square 3000K, 425mA, 3685lm + Zhaga | D156: ='O_OPEX Tariff Summary'!AC82 -> 36.35553348 | E156: 63.94687931
C157: ='O_OPEX Tariff Summary'!#REF! ->  | D157: ='O_OPEX Tariff Summary'!#REF! ->  | E157: 63.94687931
C158: ='O_OPEX Tariff Summary'!D83 -> LED 22W Luminaire, IGNIS Mini 020 MX2 Square 3000K , 275mA, 2506lm | D158: ='O_OPEX Tariff Summary'!AC83 -> 36.35553348 | E158: 53.09027856
C159: ='O_OPEX Tariff Summary'!#REF! ->  | D159: ='O_OPEX Tariff Summary'!#REF! ->  | E159: 55.0843405
C160: ='O_OPEX Tariff Summary'!D84 -> LED 22W Luminaire, IGNIS Mini 020 MX2 Square 3000K , 275mA, 2506lm + Zhaga | D160: ='O_OPEX Tariff Summary'!AC84 -> 36.35553348 | E160: 63.94687931
C161: ='O_OPEX Tariff Summary'!#REF! ->  | D161: ='O_OPEX Tariff Summary'!#REF! ->  | E161: 63.94687931
C162: ='O_OPEX Tariff Summary'!D85 -> LED 22W Luminaire, IGNIS Mini 020 MX2 Square 3000K, 275mA, 2200lm & Shield | D162: ='O_OPEX Tariff Summary'!AC85 -> 36.35553348 | E162: 55.0843405
C163: ='O_OPEX Tariff Summary'!#REF! ->  | D163: ='O_OPEX Tariff Summary'!#REF! ->  | E163: 55.0843405
C164: ='O_OPEX Tariff Summary'!D86 -> LED 22W Luminaire, IGNIS Mini 020 MX2 Square 3000K, 275mA, 2200lm & Shield + Zhaga | D164: ='O_OPEX Tariff Summary'!AC86 -> 36.35553348 | E164: 63.94687931
C165: ='O_OPEX Tariff Summary'!#REF! ->  | D165: ='O_OPEX Tariff Summary'!#REF! ->  | E165: 63.94687931
C166: ='O_OPEX Tariff Summary'!D87 -> LED 22W Luminaire, IGNIS Mini 020 MX2 Square 2200K, 350mA, 2811lm | D166: ='O_OPEX Tariff Summary'!AC87 -> 36.35553348 | E166: 55.0843405
C167: ='O_OPEX Tariff Summary'!#REF! ->  | D167: ='O_OPEX Tariff Summary'!#REF! ->  | E167: 55.0843405
C168: ='O_OPEX Tariff Summary'!D88 -> LED 22W Luminaire, IGNIS Mini 020 MX2 Square 2200K, 350mA, 2811lm + Zhaga | D168: ='O_OPEX Tariff Summary'!AC88 -> 36.35553348 | E168: 63.94687931
C169: ='O_OPEX Tariff Summary'!#REF! ->  | D169: ='O_OPEX Tariff Summary'!#REF! ->  | E169: 63.94687931
C170: ='O_OPEX Tariff Summary'!D89 -> LED 71W Luminaire, IGNIS 1 036 NSW1 Square 4000K, 650mA, 8960lm | D170: ='O_OPEX Tariff Summary'!AC89 -> 42.82711115 | E170: 64.0895733
C171: ='O_OPEX Tariff Summary'!#REF! ->  | D171: ='O_OPEX Tariff Summary'!#REF! ->  | E171: 71.66518612
C172: ='O_OPEX Tariff Summary'!D90 -> LED 71W Luminaire, IGNIS 1 036 NSW1 Square 4000K, 650mA, 8960lm + Zhaga | D172: ='O_OPEX Tariff Summary'!AC90 -> 42.82711115 | E172: 99.15788854
C173: ='O_OPEX Tariff Summary'!#REF! ->  | D173: ='O_OPEX Tariff Summary'!#REF! ->  | E173: 99.15788854
C174: ='O_OPEX Tariff Summary'!D91 -> LED 49W Luminaire, IGNIS 1 036 NSW1 Square 4000K, 450mA, 6532lm | D174: ='O_OPEX Tariff Summary'!AC91 -> 42.82711115 | E174: 71.66518612
C175: ='O_OPEX Tariff Summary'!#REF! ->  | D175: ='O_OPEX Tariff Summary'!#REF! ->  | E175: 71.66518612
C176: ='O_OPEX Tariff Summary'!D92 -> LED 49W Luminaire, IGNIS 1 036 NSW1 Square 4000K, 450mA, 6532lm + Zhaga | D176: ='O_OPEX Tariff Summary'!AC92 -> 42.82711115 | E176: 99.15788854
C177: ='O_OPEX Tariff Summary'!#REF! ->  | D177: ='O_OPEX Tariff Summary'!#REF! ->  | E177: 99.15788854
C178: ='O_OPEX Tariff Summary'!D93 -> LED 17W Luminaire GE Evolve 3000K P4/P5 | D178: ='O_OPEX Tariff Summary'!AC93 -> 36.35553348 | E178: 53.20105977
C179: ='O_OPEX Tariff Summary'!#REF! ->  | D179: ='O_OPEX Tariff Summary'!#REF! ->  | E179: 55.0843405
C180: ='O_OPEX Tariff Summary'!D94 -> Bourke Hill 17W LED Aeroscreen luminaire Top Entry | D180: ='O_OPEX Tariff Summary'!AC94 -> 36.35553348 | E180: 55.0843405
C181: ='O_OPEX Tariff Summary'!D95 -> Bourke Hill 34W LED Aeroscreen luminaire Top Entry | D181: ='O_OPEX Tariff Summary'!AC95 -> 36.35553348 | E181: 55.0843405
C182: ='O_OPEX Tariff Summary'!D96 -> Bourke Hill 17W LED Aeroscreen luminaire Side Entry | D182: ='O_OPEX Tariff Summary'!AC96 -> 36.35553348 | E182: 55.0843405
C183: ='O_OPEX Tariff Summary'!D97 -> Bourke Hill 34W LED Aeroscreen luminaire Side Entry | D183: ='O_OPEX Tariff Summary'!AC97 -> 36.35553348 | E183: 55.0843405
C184: ='O_OPEX Tariff Summary'!D98 -> Parkville 80W LED Aeroscreen luminaire Top Entry | D184: ='O_OPEX Tariff Summary'!AC98 -> 42.82711115 | E184: 71.66518612
C185: ='O_OPEX Tariff Summary'!D99 -> Parkville 100W LED Aeroscreen luminaire Top Entry | D185: ='O_OPEX Tariff Summary'!AC99 -> 42.82711115 | E185: 71.66518612
C186: ='O_OPEX Tariff Summary'!D100 -> Parkville 155W LED Aeroscreen luminaire Top Entry | D186: ='O_OPEX Tariff Summary'!AC100 -> 42.82711115 | E186: 71.66518612
C187: ='O_OPEX Tariff Summary'!D101 -> Parkville 80W LED Aeroscreen luminaire Side Entry | D187: ='O_OPEX Tariff Summary'!AC101 -> 42.82711115 | E187: 71.66518612
C188: ='O_OPEX Tariff Summary'!D102 -> Parkville 100W LED Aeroscreen luminaire Side Entry | D188: ='O_OPEX Tariff Summary'!AC102 -> 42.82711115 | E188: 71.66518612
C189: ='O_OPEX Tariff Summary'!D103 -> Parkville 155W LED Aeroscreen luminaire Side Entry | D189: ='O_OPEX Tariff Summary'!AC103 -> 42.82711115 | E189: 71.66518612
C190: ='O_OPEX Tariff Summary'!D104 -> Kensington 17W LED 3000k | D190: ='O_OPEX Tariff Summary'!AC104 -> 36.35553348 | E190: 55.0843405
C191: ='O_OPEX Tariff Summary'!D105 -> Kensington 34W LED 3000k | D191: ='O_OPEX Tariff Summary'!AC105 -> 36.35553348 | E191: 55.0843405
C192: ='O_OPEX Tariff Summary'!D106 -> LED210-Emilio Catenary 71W | D192: ='O_OPEX Tariff Summary'!AC106 -> 42.82711115 | E192: 71.66518612
C193: ='O_OPEX Tariff Summary'!D107 -> LED214-GE Area Lighter Flood Light 150W | D193: ='O_OPEX Tariff Summary'!AC107 -> 42.82711115 | E193: 71.66518612
C194: ='O_OPEX Tariff Summary'!D108 -> LED218-GE Area Lighter Flood Light 240W | D194: ='O_OPEX Tariff Summary'!AC108 -> 42.82711115 | E194: 71.66518612
C195: ='O_OPEX Tariff Summary'!D137 -> LED0292-GE Area Lighter Flood Light 500W | D195: ='O_OPEX Tariff Summary'!AC137 -> 42.82711115 | E195: 71.66518612
A197: Capex tariffs
E198: 1 | F198: =E198+1 -> 2 | G198: 3 | H198: 4 | I198: 5 | J198: 6 | K198: 7
C199: FY25 | D199: Live | E199: =INDEX('I_Global Inputs'!$H$6:$Q$6,,'O_Scenario analysis'!E198) -> Base Case | F199: =INDEX('I_Global Inputs'!$H$6:$Q$6,,'O_Scenario analysis'!F198) -> Low labour rate scenario | G199: =INDEX('I_Global Inputs'!$H$6:$Q$6,,'O_Scenario analysis'!G198) -> Scenario 2 | H199: =INDEX('I_Global Inputs'!$H$6:$Q$6,,'O_Scenario analysis'!H198) -> Scenario 3 | I199: =INDEX('I_Global Inputs'!$H$6:$Q$6,,'O_Scenario analysis'!I198) -> Scenario 4 | J199: =INDEX('I_Global Inputs'!$H$6:$Q$6,,'O_Scenario analysis'!J198) -> Scenario 5 | K199: =INDEX('I_Global Inputs'!$H$6:$Q$6,,'O_Scenario analysis'!K198) -> Scenario 6
C200: ='O_CAPEX Tariff Summary'!#REF! ->  | D200: ='O_CAPEX Tariff Summary'!#REF! ->  | E200: 83.62141246
C201: ='O_CAPEX Tariff Summary'!#REF! ->  | D201: ='O_CAPEX Tariff Summary'!#REF! ->  | E201: 79.67753682
C202: ='O_CAPEX Tariff Summary'!#REF! ->  | D202: ='O_CAPEX Tariff Summary'!#REF! ->  | E202: 81.72465116
C203: ='O_CAPEX Tariff Summary'!#REF! ->  | D203: ='O_CAPEX Tariff Summary'!#REF! ->  | E203: 83.85735107
C204: ='O_CAPEX Tariff Summary'!#REF! ->  | D204: ='O_CAPEX Tariff Summary'!#REF! ->  | E204: 69.85795438
C205: ='O_CAPEX Tariff Summary'!#REF! ->  | D205: ='O_CAPEX Tariff Summary'!#REF! ->  | E205: 61.33851505
C206: ='O_CAPEX Tariff Summary'!#REF! ->  | D206: ='O_CAPEX Tariff Summary'!#REF! ->  | E206: 97.71990048
C207: ='O_CAPEX Tariff Summary'!#REF! ->  | D207: ='O_CAPEX Tariff Summary'!#REF! ->  | E207: 97.71990048
C208: ='O_CAPEX Tariff Summary'!#REF! ->  | D208: ='O_CAPEX Tariff Summary'!#REF! ->  | E208: 189.8724157
C209: ='O_CAPEX Tariff Summary'!#REF! ->  | D209: ='O_CAPEX Tariff Summary'!#REF! ->  | E209: 189.8724157
C210: ='O_CAPEX Tariff Summary'!#REF! ->  | D210: ='O_CAPEX Tariff Summary'!#REF! ->  | E210: 267.3211293
C211: ='O_CAPEX Tariff Summary'!#REF! ->  | D211: ='O_CAPEX Tariff Summary'!#REF! ->  | E211: 291.7799264
C212: ='O_CAPEX Tariff Summary'!#REF! ->  | D212: ='O_CAPEX Tariff Summary'!#REF! ->  | E212: 289.1732932
C213: ='O_CAPEX Tariff Summary'!#REF! ->  | D213: ='O_CAPEX Tariff Summary'!#REF! ->  | E213: 320.2159252
C214: ='O_CAPEX Tariff Summary'!#REF! ->  | D214: ='O_CAPEX Tariff Summary'!#REF! ->  | E214: 290.7244567
C215: ='O_CAPEX Tariff Summary'!#REF! ->  | D215: ='O_CAPEX Tariff Summary'!#REF! ->  | E215: 290.7244567
C216: ='O_CAPEX Tariff Summary'!#REF! ->  | D216: ='O_CAPEX Tariff Summary'!#REF! ->  | E216: 318.9959667
... 124 more rows

Sheet O_Council (hidden)
B1: Council summary output
AF2: Council
B3: Council | AF3: =B4 -> Armidale Regional Council
B4: Armidale Regional Council
L5: Opex recovery (Real FY24) | R5: Capex recovery (Real FY24) | X5: Volumes | AH5: Volumes
C6: FY25 | D6: FY26 | E6: FY27 | F6: FY28 | G6: FY29 | K6: Council | L6: =C6 -> FY25 | M6: =D6 -> FY26 | N6: =E6 -> FY27 | O6: =F6 -> FY28 | P6: =G6 -> FY29 | R6: =L6 -> FY25 | S6: =M6 -> FY26 | T6: FY27 | U6: FY28 | V6: FY29 | X6: =R6 -> FY25 | Y6: =S6 -> FY26 | Z6: =T6 -> FY27 | AA6: =U6 -> FY28 | AB6: =V6 -> FY29 | AF6: Asset mapping | AH6: =C$6 -> FY25 | AI6: =D$6 -> FY26 | AJ6: =E$6 -> FY27 | AK6: =F$6 -> FY28 | AL6: =G$6 -> FY29
B7: Opex revenue | C7: =_xlfn.XLOOKUP($B$4,$K$7:$K$93,L$7:L$93) -> 0 | D7: =_xlfn.XLOOKUP($B$4,$K$7:$K$93,M$7:M$93) -> 0 | E7: =_xlfn.XLOOKUP($B$4,$K$7:$K$93,N$7:N$93) -> 0 | F7: =_xlfn.XLOOKUP($B$4,$K$7:$K$93,O$7:O$93) -> 0 | G7: =_xlfn.XLOOKUP($B$4,$K$7:$K$93,P$7:P$93) -> 0 | K7: Armidale Regional Council | L7: =SUMIFS('C_Council assets'!P$8:P$11321,'C_Council assets'!$C$8:$C$11321,O_Council!$K7) -> 0 | M7: =SUMIFS('C_Council assets'!Q$8:Q$11321,'C_Council assets'!$C$8:$C$11321,O_Council!$K7) -> 0 | N7: =SUMIFS('C_Council assets'!R$8:R$11321,'C_Council assets'!$C$8:$C$11321,O_Council!$K7) -> 0 | O7: =SUMIFS('C_Council assets'!S$8:S$11321,'C_Council assets'!$C$8:$C$11321,O_Council!$K7) -> 0 | P7: =SUMIFS('C_Council assets'!T$8:T$11321,'C_Council assets'!$C$8:$C$11321,O_Council!$K7) -> 0 | R7: =SUMIFS('C_Council assets'!X$8:X$11321,'C_Council assets'!$C$8:$C$11321,O_Council!$K7) -> 0 | S7: =SUMIFS('C_Council assets'!Y$8:Y$11321,'C_Council assets'!$C$8:$C$11321,O_Council!$K7) -> 0 | T7: =SUMIFS('C_Council assets'!Z$8:Z$11321,'C_Council assets'!$C$8:$C$11321,O_Council!$K7) -> 0 | U7: =SUMIFS('C_Council assets'!AA$8:AA$11321,'C_Council assets'!$C$8:$C$11321,O_Council!$K7) -> 0 | V7: =SUMIFS('C_Council assets'!AB$8:AB$11321,'C_Council assets'!$C$8:$C$11321,O_Council!$K7) -> 0 | X7: =SUMIFS('I_Number of assets'!L$8:L$113,'I_Number of assets'!#REF!,O_Council!$K7) ->  | Y7: =SUMIFS('I_Number of assets'!M$8:M$113,'I_Number of assets'!#REF!,O_Council!$K7) ->  | Z7: =SUMIFS('I_Number of assets'!N$8:N$113,'I_Number of assets'!#REF!,O_Council!$K7) ->  | AA7: =SUMIFS('I_Number of assets'!O$8:O$113,'I_Number of assets'!#REF!,O_Council!$K7) ->  | AB7: =SUMIFS('I_Number of assets'!P$8:P$113,'I_Number of assets'!#REF!,O_Council!$K7) ->  | AF7: Total | AH7: =SUM(AH9:AH138) ->  | AI7: =SUM(AI9:AI138) ->  | AJ7: =SUM(AJ9:AJ138) ->  | AK7: =SUM(AK9:AK138) ->  | AL7: =SUM(AL9:AL138) -> 
B8: Capex revenue | C8: =_xlfn.XLOOKUP($B$4,$K$7:$K$93,R$7:R$93) -> 0 | D8: =_xlfn.XLOOKUP($B$4,$K$7:$K$93,S$7:S$93) -> 0 | E8: =_xlfn.XLOOKUP($B$4,$K$7:$K$93,T$7:T$93) -> 0 | F8: =_xlfn.XLOOKUP($B$4,$K$7:$K$93,U$7:U$93) -> 0 | G8: =_xlfn.XLOOKUP($B$4,$K$7:$K$93,V$7:V$93) -> 0 | K8: Ballina High School | L8: =SUMIFS('C_Council assets'!P$8:P$11321,'C_Council assets'!$C$8:$C$11321,O_Council!$K8) -> 0 | M8: =SUMIFS('C_Council assets'!Q$8:Q$11321,'C_Council assets'!$C$8:$C$11321,O_Council!$K8) -> 0 | N8: =SUMIFS('C_Council assets'!R$8:R$11321,'C_Council assets'!$C$8:$C$11321,O_Council!$K8) -> 0 | O8: =SUMIFS('C_Council assets'!S$8:S$11321,'C_Council assets'!$C$8:$C$11321,O_Council!$K8) -> 0 | P8: =SUMIFS('C_Council assets'!T$8:T$11321,'C_Council assets'!$C$8:$C$11321,O_Council!$K8) -> 0 | R8: =SUMIFS('C_Council assets'!X$8:X$11321,'C_Council assets'!$C$8:$C$11321,O_Council!$K8) -> 0 | S8: =SUMIFS('C_Council assets'!Y$8:Y$11321,'C_Council assets'!$C$8:$C$11321,O_Council!$K8) -> 0 | T8: =SUMIFS('C_Council assets'!Z$8:Z$11321,'C_Council assets'!$C$8:$C$11321,O_Council!$K8) -> 0 | U8: =SUMIFS('C_Council assets'!AA$8:AA$11321,'C_Council assets'!$C$8:$C$11321,O_Council!$K8) -> 0 | V8: =SUMIFS('C_Council assets'!AB$8:AB$11321,'C_Council assets'!$C$8:$C$11321,O_Council!$K8) -> 0 | X8: =SUMIFS('I_Number of assets'!L$8:L$113,'I_Number of assets'!#REF!,O_Council!$K8) ->  | Y8: =SUMIFS('I_Number of assets'!M$8:M$113,'I_Number of assets'!#REF!,O_Council!$K8) ->  | Z8: =SUMIFS('I_Number of assets'!N$8:N$113,'I_Number of assets'!#REF!,O_Council!$K8) ->  | AA8: =SUMIFS('I_Number of assets'!O$8:O$113,'I_Number of assets'!#REF!,O_Council!$K8) ->  | AB8: =SUMIFS('I_Number of assets'!P$8:P$113,'I_Number of assets'!#REF!,O_Council!$K8) -> 
K9: Ballina Shire Council | L9: =SUMIFS('C_Council assets'!P$8:P$11321,'C_Council assets'!$C$8:$C$11321,O_Council!$K9) -> 0 | M9: =SUMIFS('C_Council assets'!Q$8:Q$11321,'C_Council assets'!$C$8:$C$11321,O_Council!$K9) -> 0 | N9: =SUMIFS('C_Council assets'!R$8:R$11321,'C_Council assets'!$C$8:$C$11321,O_Council!$K9) -> 0 | O9: =SUMIFS('C_Council assets'!S$8:S$11321,'C_Council assets'!$C$8:$C$11321,O_Council!$K9) -> 0 | P9: =SUMIFS('C_Council assets'!T$8:T$11321,'C_Council assets'!$C$8:$C$11321,O_Council!$K9) -> 0 | R9: =SUMIFS('C_Council assets'!X$8:X$11321,'C_Council assets'!$C$8:$C$11321,O_Council!$K9) -> 0 | S9: =SUMIFS('C_Council assets'!Y$8:Y$11321,'C_Council assets'!$C$8:$C$11321,O_Council!$K9) -> 0 | T9: =SUMIFS('C_Council assets'!Z$8:Z$11321,'C_Council assets'!$C$8:$C$11321,O_Council!$K9) -> 0 | U9: =SUMIFS('C_Council assets'!AA$8:AA$11321,'C_Council assets'!$C$8:$C$11321,O_Council!$K9) -> 0 | V9: =SUMIFS('C_Council assets'!AB$8:AB$11321,'C_Council assets'!$C$8:$C$11321,O_Council!$K9) -> 0 | X9: =SUMIFS('I_Number of assets'!L$8:L$113,'I_Number of assets'!#REF!,O_Council!$K9) ->  | Y9: =SUMIFS('I_Number of assets'!M$8:M$113,'I_Number of assets'!#REF!,O_Council!$K9) ->  | Z9: =SUMIFS('I_Number of assets'!N$8:N$113,'I_Number of assets'!#REF!,O_Council!$K9) ->  | AA9: =SUMIFS('I_Number of assets'!O$8:O$113,'I_Number of assets'!#REF!,O_Council!$K9) ->  | AB9: =SUMIFS('I_Number of assets'!P$8:P$113,'I_Number of assets'!#REF!,O_Council!$K9) ->  | AF9: LED0001 | AH9: =SUMIFS('I_Number of assets'!L$8:L$113,'I_Number of assets'!#REF!,O_Council!$AF$3,'I_Number of assets'!$I$8:$I$113,O_Council!$AF9) ->  | AI9: =SUMIFS('I_Number of assets'!M$8:M$113,'I_Number of assets'!#REF!,O_Council!$AF$3,'I_Number of assets'!$I$8:$I$113,O_Council!$AF9) ->  | AJ9: =SUMIFS('I_Number of assets'!N$8:N$113,'I_Number of assets'!#REF!,O_Council!$AF$3,'I_Number of assets'!$I$8:$I$113,O_Council!$AF9) ->  | AK9: =SUMIFS('I_Number of assets'!O$8:O$113,'I_Number of assets'!#REF!,O_Council!$AF$3,'I_Number of assets'!$I$8:$I$113,O_Council!$AF9) ->  | AL9: =SUMIFS('I_Number of assets'!P$8:P$113,'I_Number of assets'!#REF!,O_Council!$AF$3,'I_Number of assets'!$I$8:$I$113,O_Council!$AF9) -> 
B10: Volumes | C10: =_xlfn.XLOOKUP($B$4,$K$7:$K$93,X$7:X$93) ->  | D10: =_xlfn.XLOOKUP($B$4,$K$7:$K$93,Y$7:Y$93) ->  | E10: =_xlfn.XLOOKUP($B$4,$K$7:$K$93,Z$7:Z$93) ->  | F10: =_xlfn.XLOOKUP($B$4,$K$7:$K$93,AA$7:AA$93) ->  | G10: =_xlfn.XLOOKUP($B$4,$K$7:$K$93,AB$7:AB$93) ->  | K10: Balonne Shire Council | L10: =SUMIFS('C_Council assets'!P$8:P$11321,'C_Council assets'!$C$8:$C$11321,O_Council!$K10) -> 0 | M10: =SUMIFS('C_Council assets'!Q$8:Q$11321,'C_Council assets'!$C$8:$C$11321,O_Council!$K10) -> 0 | N10: =SUMIFS('C_Council assets'!R$8:R$11321,'C_Council assets'!$C$8:$C$11321,O_Council!$K10) -> 0 | O10: =SUMIFS('C_Council assets'!S$8:S$11321,'C_Council assets'!$C$8:$C$11321,O_Council!$K10) -> 0 | P10: =SUMIFS('C_Council assets'!T$8:T$11321,'C_Council assets'!$C$8:$C$11321,O_Council!$K10) -> 0 | R10: =SUMIFS('C_Council assets'!X$8:X$11321,'C_Council assets'!$C$8:$C$11321,O_Council!$K10) -> 0 | S10: =SUMIFS('C_Council assets'!Y$8:Y$11321,'C_Council assets'!$C$8:$C$11321,O_Council!$K10) -> 0 | T10: =SUMIFS('C_Council assets'!Z$8:Z$11321,'C_Council assets'!$C$8:$C$11321,O_Council!$K10) -> 0 | U10: =SUMIFS('C_Council assets'!AA$8:AA$11321,'C_Council assets'!$C$8:$C$11321,O_Council!$K10) -> 0 | V10: =SUMIFS('C_Council assets'!AB$8:AB$11321,'C_Council assets'!$C$8:$C$11321,O_Council!$K10) -> 0 | X10: =SUMIFS('I_Number of assets'!L$8:L$113,'I_Number of assets'!#REF!,O_Council!$K10) ->  | Y10: =SUMIFS('I_Number of assets'!M$8:M$113,'I_Number of assets'!#REF!,O_Council!$K10) ->  | Z10: =SUMIFS('I_Number of assets'!N$8:N$113,'I_Number of assets'!#REF!,O_Council!$K10) ->  | AA10: =SUMIFS('I_Number of assets'!O$8:O$113,'I_Number of assets'!#REF!,O_Council!$K10) ->  | AB10: =SUMIFS('I_Number of assets'!P$8:P$113,'I_Number of assets'!#REF!,O_Council!$K10) ->  | AF10: LED0002 | AH10: =SUMIFS('I_Number of assets'!L$8:L$113,'I_Number of assets'!#REF!,O_Council!$AF$3,'I_Number of assets'!$I$8:$I$113,O_Council!$AF10) ->  | AI10: =SUMIFS('I_Number of assets'!M$8:M$113,'I_Number of assets'!#REF!,O_Council!$AF$3,'I_Number of assets'!$I$8:$I$113,O_Council!$AF10) ->  | AJ10: =SUMIFS('I_Number of assets'!N$8:N$113,'I_Number of assets'!#REF!,O_Council!$AF$3,'I_Number of assets'!$I$8:$I$113,O_Council!$AF10) ->  | AK10: =SUMIFS('I_Number of assets'!O$8:O$113,'I_Number of assets'!#REF!,O_Council!$AF$3,'I_Number of assets'!$I$8:$I$113,O_Council!$AF10) ->  | AL10: =SUMIFS('I_Number of assets'!P$8:P$113,'I_Number of assets'!#REF!,O_Council!$AF$3,'I_Number of assets'!$I$8:$I$113,O_Council!$AF10) -> 
K11: Balranald Shire Council | L11: =SUMIFS('C_Council assets'!P$8:P$11321,'C_Council assets'!$C$8:$C$11321,O_Council!$K11) -> 0 | M11: =SUMIFS('C_Council assets'!Q$8:Q$11321,'C_Council assets'!$C$8:$C$11321,O_Council!$K11) -> 0 | N11: =SUMIFS('C_Council assets'!R$8:R$11321,'C_Council assets'!$C$8:$C$11321,O_Council!$K11) -> 0 | O11: =SUMIFS('C_Council assets'!S$8:S$11321,'C_Council assets'!$C$8:$C$11321,O_Council!$K11) -> 0 | P11: =SUMIFS('C_Council assets'!T$8:T$11321,'C_Council assets'!$C$8:$C$11321,O_Council!$K11) -> 0 | R11: =SUMIFS('C_Council assets'!X$8:X$11321,'C_Council assets'!$C$8:$C$11321,O_Council!$K11) -> 0 | S11: =SUMIFS('C_Council assets'!Y$8:Y$11321,'C_Council assets'!$C$8:$C$11321,O_Council!$K11) -> 0 | T11: =SUMIFS('C_Council assets'!Z$8:Z$11321,'C_Council assets'!$C$8:$C$11321,O_Council!$K11) -> 0 | U11: =SUMIFS('C_Council assets'!AA$8:AA$11321,'C_Council assets'!$C$8:$C$11321,O_Council!$K11) -> 0 | V11: =SUMIFS('C_Council assets'!AB$8:AB$11321,'C_Council assets'!$C$8:$C$11321,O_Council!$K11) -> 0 | X11: =SUMIFS('I_Number of assets'!L$8:L$113,'I_Number of assets'!#REF!,O_Council!$K11) ->  | Y11: =SUMIFS('I_Number of assets'!M$8:M$113,'I_Number of assets'!#REF!,O_Council!$K11) ->  | Z11: =SUMIFS('I_Number of assets'!N$8:N$113,'I_Number of assets'!#REF!,O_Council!$K11) ->  | AA11: =SUMIFS('I_Number of assets'!O$8:O$113,'I_Number of assets'!#REF!,O_Council!$K11) ->  | AB11: =SUMIFS('I_Number of assets'!P$8:P$113,'I_Number of assets'!#REF!,O_Council!$K11) ->  | AF11: LED0003 | AH11: =SUMIFS('I_Number of assets'!L$8:L$113,'I_Number of assets'!#REF!,O_Council!$AF$3,'I_Number of assets'!$I$8:$I$113,O_Council!$AF11) ->  | AI11: =SUMIFS('I_Number of assets'!M$8:M$113,'I_Number of assets'!#REF!,O_Council!$AF$3,'I_Number of assets'!$I$8:$I$113,O_Council!$AF11) ->  | AJ11: =SUMIFS('I_Number of assets'!N$8:N$113,'I_Number of assets'!#REF!,O_Council!$AF$3,'I_Number of assets'!$I$8:$I$113,O_Council!$AF11) ->  | AK11: =SUMIFS('I_Number of assets'!O$8:O$113,'I_Number of assets'!#REF!,O_Council!$AF$3,'I_Number of assets'!$I$8:$I$113,O_Council!$AF11) ->  | AL11: =SUMIFS('I_Number of assets'!P$8:P$113,'I_Number of assets'!#REF!,O_Council!$AF$3,'I_Number of assets'!$I$8:$I$113,O_Council!$AF11) -> 
K12: Bathurst Regional Council | L12: =SUMIFS('C_Council assets'!P$8:P$11321,'C_Council assets'!$C$8:$C$11321,O_Council!$K12) -> 0 | M12: =SUMIFS('C_Council assets'!Q$8:Q$11321,'C_Council assets'!$C$8:$C$11321,O_Council!$K12) -> 0 | N12: =SUMIFS('C_Council assets'!R$8:R$11321,'C_Council assets'!$C$8:$C$11321,O_Council!$K12) -> 0 | O12: =SUMIFS('C_Council assets'!S$8:S$11321,'C_Council assets'!$C$8:$C$11321,O_Council!$K12) -> 0 | P12: =SUMIFS('C_Council assets'!T$8:T$11321,'C_Council assets'!$C$8:$C$11321,O_Council!$K12) -> 0 | R12: =SUMIFS('C_Council assets'!X$8:X$11321,'C_Council assets'!$C$8:$C$11321,O_Council!$K12) -> 0 | S12: =SUMIFS('C_Council assets'!Y$8:Y$11321,'C_Council assets'!$C$8:$C$11321,O_Council!$K12) -> 0 | T12: =SUMIFS('C_Council assets'!Z$8:Z$11321,'C_Council assets'!$C$8:$C$11321,O_Council!$K12) -> 0 | U12: =SUMIFS('C_Council assets'!AA$8:AA$11321,'C_Council assets'!$C$8:$C$11321,O_Council!$K12) -> 0 | V12: =SUMIFS('C_Council assets'!AB$8:AB$11321,'C_Council assets'!$C$8:$C$11321,O_Council!$K12) -> 0 | X12: =SUMIFS('I_Number of assets'!L$8:L$113,'I_Number of assets'!#REF!,O_Council!$K12) ->  | Y12: =SUMIFS('I_Number of assets'!M$8:M$113,'I_Number of assets'!#REF!,O_Council!$K12) ->  | Z12: =SUMIFS('I_Number of assets'!N$8:N$113,'I_Number of assets'!#REF!,O_Council!$K12) ->  | AA12: =SUMIFS('I_Number of assets'!O$8:O$113,'I_Number of assets'!#REF!,O_Council!$K12) ->  | AB12: =SUMIFS('I_Number of assets'!P$8:P$113,'I_Number of assets'!#REF!,O_Council!$K12) ->  | AF12: LED0004 | AH12: =SUMIFS('I_Number of assets'!L$8:L$113,'I_Number of assets'!#REF!,O_Council!$AF$3,'I_Number of assets'!$I$8:$I$113,O_Council!$AF12) ->  | AI12: =SUMIFS('I_Number of assets'!M$8:M$113,'I_Number of assets'!#REF!,O_Council!$AF$3,'I_Number of assets'!$I$8:$I$113,O_Council!$AF12) ->  | AJ12: =SUMIFS('I_Number of assets'!N$8:N$113,'I_Number of assets'!#REF!,O_Council!$AF$3,'I_Number of assets'!$I$8:$I$113,O_Council!$AF12) ->  | AK12: =SUMIFS('I_Number of assets'!O$8:O$113,'I_Number of assets'!#REF!,O_Council!$AF$3,'I_Number of assets'!$I$8:$I$113,O_Council!$AF12) ->  | AL12: =SUMIFS('I_Number of assets'!P$8:P$113,'I_Number of assets'!#REF!,O_Council!$AF$3,'I_Number of assets'!$I$8:$I$113,O_Council!$AF12) -> 
K13: Bega Valley Shire Council | L13: =SUMIFS('C_Council assets'!P$8:P$11321,'C_Council assets'!$C$8:$C$11321,O_Council!$K13) -> 0 | M13: =SUMIFS('C_Council assets'!Q$8:Q$11321,'C_Council assets'!$C$8:$C$11321,O_Council!$K13) -> 0 | N13: =SUMIFS('C_Council assets'!R$8:R$11321,'C_Council assets'!$C$8:$C$11321,O_Council!$K13) -> 0 | O13: =SUMIFS('C_Council assets'!S$8:S$11321,'C_Council assets'!$C$8:$C$11321,O_Council!$K13) -> 0 | P13: =SUMIFS('C_Council assets'!T$8:T$11321,'C_Council assets'!$C$8:$C$11321,O_Council!$K13) -> 0 | R13: =SUMIFS('C_Council assets'!X$8:X$11321,'C_Council assets'!$C$8:$C$11321,O_Council!$K13) -> 0 | S13: =SUMIFS('C_Council assets'!Y$8:Y$11321,'C_Council assets'!$C$8:$C$11321,O_Council!$K13) -> 0 | T13: =SUMIFS('C_Council assets'!Z$8:Z$11321,'C_Council assets'!$C$8:$C$11321,O_Council!$K13) -> 0 | U13: =SUMIFS('C_Council assets'!AA$8:AA$11321,'C_Council assets'!$C$8:$C$11321,O_Council!$K13) -> 0 | V13: =SUMIFS('C_Council assets'!AB$8:AB$11321,'C_Council assets'!$C$8:$C$11321,O_Council!$K13) -> 0 | X13: =SUMIFS('I_Number of assets'!L$8:L$113,'I_Number of assets'!#REF!,O_Council!$K13) ->  | Y13: =SUMIFS('I_Number of assets'!M$8:M$113,'I_Number of assets'!#REF!,O_Council!$K13) ->  | Z13: =SUMIFS('I_Number of assets'!N$8:N$113,'I_Number of assets'!#REF!,O_Council!$K13) ->  | AA13: =SUMIFS('I_Number of assets'!O$8:O$113,'I_Number of assets'!#REF!,O_Council!$K13) ->  | AB13: =SUMIFS('I_Number of assets'!P$8:P$113,'I_Number of assets'!#REF!,O_Council!$K13) ->  | AF13: LED0005 | AH13: =SUMIFS('I_Number of assets'!L$8:L$113,'I_Number of assets'!#REF!,O_Council!$AF$3,'I_Number of assets'!$I$8:$I$113,O_Council!$AF13) ->  | AI13: =SUMIFS('I_Number of assets'!M$8:M$113,'I_Number of assets'!#REF!,O_Council!$AF$3,'I_Number of assets'!$I$8:$I$113,O_Council!$AF13) ->  | AJ13: =SUMIFS('I_Number of assets'!N$8:N$113,'I_Number of assets'!#REF!,O_Council!$AF$3,'I_Number of assets'!$I$8:$I$113,O_Council!$AF13) ->  | AK13: =SUMIFS('I_Number of assets'!O$8:O$113,'I_Number of assets'!#REF!,O_Council!$AF$3,'I_Number of assets'!$I$8:$I$113,O_Council!$AF13) ->  | AL13: =SUMIFS('I_Number of assets'!P$8:P$113,'I_Number of assets'!#REF!,O_Council!$AF$3,'I_Number of assets'!$I$8:$I$113,O_Council!$AF13) -> 
K14: Bellingen Shire Council | L14: =SUMIFS('C_Council assets'!P$8:P$11321,'C_Council assets'!$C$8:$C$11321,O_Council!$K14) -> 0 | M14: =SUMIFS('C_Council assets'!Q$8:Q$11321,'C_Council assets'!$C$8:$C$11321,O_Council!$K14) -> 0 | N14: =SUMIFS('C_Council assets'!R$8:R$11321,'C_Council assets'!$C$8:$C$11321,O_Council!$K14) -> 0 | O14: =SUMIFS('C_Council assets'!S$8:S$11321,'C_Council assets'!$C$8:$C$11321,O_Council!$K14) -> 0 | P14: =SUMIFS('C_Council assets'!T$8:T$11321,'C_Council assets'!$C$8:$C$11321,O_Council!$K14) -> 0 | R14: =SUMIFS('C_Council assets'!X$8:X$11321,'C_Council assets'!$C$8:$C$11321,O_Council!$K14) -> 0 | S14: =SUMIFS('C_Council assets'!Y$8:Y$11321,'C_Council assets'!$C$8:$C$11321,O_Council!$K14) -> 0 | T14: =SUMIFS('C_Council assets'!Z$8:Z$11321,'C_Council assets'!$C$8:$C$11321,O_Council!$K14) -> 0 | U14: =SUMIFS('C_Council assets'!AA$8:AA$11321,'C_Council assets'!$C$8:$C$11321,O_Council!$K14) -> 0 | V14: =SUMIFS('C_Council assets'!AB$8:AB$11321,'C_Council assets'!$C$8:$C$11321,O_Council!$K14) -> 0 | X14: =SUMIFS('I_Number of assets'!L$8:L$113,'I_Number of assets'!#REF!,O_Council!$K14) ->  | Y14: =SUMIFS('I_Number of assets'!M$8:M$113,'I_Number of assets'!#REF!,O_Council!$K14) ->  | Z14: =SUMIFS('I_Number of assets'!N$8:N$113,'I_Number of assets'!#REF!,O_Council!$K14) ->  | AA14: =SUMIFS('I_Number of assets'!O$8:O$113,'I_Number of assets'!#REF!,O_Council!$K14) ->  | AB14: =SUMIFS('I_Number of assets'!P$8:P$113,'I_Number of assets'!#REF!,O_Council!$K14) ->  | AF14: LED0006 | AH14: =SUMIFS('I_Number of assets'!L$8:L$113,'I_Number of assets'!#REF!,O_Council!$AF$3,'I_Number of assets'!$I$8:$I$113,O_Council!$AF14) ->  | AI14: =SUMIFS('I_Number of assets'!M$8:M$113,'I_Number of assets'!#REF!,O_Council!$AF$3,'I_Number of assets'!$I$8:$I$113,O_Council!$AF14) ->  | AJ14: =SUMIFS('I_Number of assets'!N$8:N$113,'I_Number of assets'!#REF!,O_Council!$AF$3,'I_Number of assets'!$I$8:$I$113,O_Council!$AF14) ->  | AK14: =SUMIFS('I_Number of assets'!O$8:O$113,'I_Number of assets'!#REF!,O_Council!$AF$3,'I_Number of assets'!$I$8:$I$113,O_Council!$AF14) ->  | AL14: =SUMIFS('I_Number of assets'!P$8:P$113,'I_Number of assets'!#REF!,O_Council!$AF$3,'I_Number of assets'!$I$8:$I$113,O_Council!$AF14) -> 
K15: Berrigan Shire Council | L15: =SUMIFS('C_Council assets'!P$8:P$11321,'C_Council assets'!$C$8:$C$11321,O_Council!$K15) -> 0 | M15: =SUMIFS('C_Council assets'!Q$8:Q$11321,'C_Council assets'!$C$8:$C$11321,O_Council!$K15) -> 0 | N15: =SUMIFS('C_Council assets'!R$8:R$11321,'C_Council assets'!$C$8:$C$11321,O_Council!$K15) -> 0 | O15: =SUMIFS('C_Council assets'!S$8:S$11321,'C_Council assets'!$C$8:$C$11321,O_Council!$K15) -> 0 | P15: =SUMIFS('C_Council assets'!T$8:T$11321,'C_Council assets'!$C$8:$C$11321,O_Council!$K15) -> 0 | R15: =SUMIFS('C_Council assets'!X$8:X$11321,'C_Council assets'!$C$8:$C$11321,O_Council!$K15) -> 0 | S15: =SUMIFS('C_Council assets'!Y$8:Y$11321,'C_Council assets'!$C$8:$C$11321,O_Council!$K15) -> 0 | T15: =SUMIFS('C_Council assets'!Z$8:Z$11321,'C_Council assets'!$C$8:$C$11321,O_Council!$K15) -> 0 | U15: =SUMIFS('C_Council assets'!AA$8:AA$11321,'C_Council assets'!$C$8:$C$11321,O_Council!$K15) -> 0 | V15: =SUMIFS('C_Council assets'!AB$8:AB$11321,'C_Council assets'!$C$8:$C$11321,O_Council!$K15) -> 0 | X15: =SUMIFS('I_Number of assets'!L$8:L$113,'I_Number of assets'!#REF!,O_Council!$K15) ->  | Y15: =SUMIFS('I_Number of assets'!M$8:M$113,'I_Number of assets'!#REF!,O_Council!$K15) ->  | Z15: =SUMIFS('I_Number of assets'!N$8:N$113,'I_Number of assets'!#REF!,O_Council!$K15) ->  | AA15: =SUMIFS('I_Number of assets'!O$8:O$113,'I_Number of assets'!#REF!,O_Council!$K15) ->  | AB15: =SUMIFS('I_Number of assets'!P$8:P$113,'I_Number of assets'!#REF!,O_Council!$K15) ->  | AF15: LED0007 | AH15: =SUMIFS('I_Number of assets'!L$8:L$113,'I_Number of assets'!#REF!,O_Council!$AF$3,'I_Number of assets'!$I$8:$I$113,O_Council!$AF15) ->  | AI15: =SUMIFS('I_Number of assets'!M$8:M$113,'I_Number of assets'!#REF!,O_Council!$AF$3,'I_Number of assets'!$I$8:$I$113,O_Council!$AF15) ->  | AJ15: =SUMIFS('I_Number of assets'!N$8:N$113,'I_Number of assets'!#REF!,O_Council!$AF$3,'I_Number of assets'!$I$8:$I$113,O_Council!$AF15) ->  | AK15: =SUMIFS('I_Number of assets'!O$8:O$113,'I_Number of assets'!#REF!,O_Council!$AF$3,'I_Number of assets'!$I$8:$I$113,O_Council!$AF15) ->  | AL15: =SUMIFS('I_Number of assets'!P$8:P$113,'I_Number of assets'!#REF!,O_Council!$AF$3,'I_Number of assets'!$I$8:$I$113,O_Council!$AF15) -> 
K16: Bland Shire Council | L16: =SUMIFS('C_Council assets'!P$8:P$11321,'C_Council assets'!$C$8:$C$11321,O_Council!$K16) -> 0 | M16: =SUMIFS('C_Council assets'!Q$8:Q$11321,'C_Council assets'!$C$8:$C$11321,O_Council!$K16) -> 0 | N16: =SUMIFS('C_Council assets'!R$8:R$11321,'C_Council assets'!$C$8:$C$11321,O_Council!$K16) -> 0 | O16: =SUMIFS('C_Council assets'!S$8:S$11321,'C_Council assets'!$C$8:$C$11321,O_Council!$K16) -> 0 | P16: =SUMIFS('C_Council assets'!T$8:T$11321,'C_Council assets'!$C$8:$C$11321,O_Council!$K16) -> 0 | R16: =SUMIFS('C_Council assets'!X$8:X$11321,'C_Council assets'!$C$8:$C$11321,O_Council!$K16) -> 0 | S16: =SUMIFS('C_Council assets'!Y$8:Y$11321,'C_Council assets'!$C$8:$C$11321,O_Council!$K16) -> 0 | T16: =SUMIFS('C_Council assets'!Z$8:Z$11321,'C_Council assets'!$C$8:$C$11321,O_Council!$K16) -> 0 | U16: =SUMIFS('C_Council assets'!AA$8:AA$11321,'C_Council assets'!$C$8:$C$11321,O_Council!$K16) -> 0 | V16: =SUMIFS('C_Council assets'!AB$8:AB$11321,'C_Council assets'!$C$8:$C$11321,O_Council!$K16) -> 0 | X16: =SUMIFS('I_Number of assets'!L$8:L$113,'I_Number of assets'!#REF!,O_Council!$K16) ->  | Y16: =SUMIFS('I_Number of assets'!M$8:M$113,'I_Number of assets'!#REF!,O_Council!$K16) ->  | Z16: =SUMIFS('I_Number of assets'!N$8:N$113,'I_Number of assets'!#REF!,O_Council!$K16) ->  | AA16: =SUMIFS('I_Number of assets'!O$8:O$113,'I_Number of assets'!#REF!,O_Council!$K16) ->  | AB16: =SUMIFS('I_Number of assets'!P$8:P$113,'I_Number of assets'!#REF!,O_Council!$K16) ->  | AF16: LED0008 | AH16: =SUMIFS('I_Number of assets'!L$8:L$113,'I_Number of assets'!#REF!,O_Council!$AF$3,'I_Number of assets'!$I$8:$I$113,O_Council!$AF16) ->  | AI16: =SUMIFS('I_Number of assets'!M$8:M$113,'I_Number of assets'!#REF!,O_Council!$AF$3,'I_Number of assets'!$I$8:$I$113,O_Council!$AF16) ->  | AJ16: =SUMIFS('I_Number of assets'!N$8:N$113,'I_Number of assets'!#REF!,O_Council!$AF$3,'I_Number of assets'!$I$8:$I$113,O_Council!$AF16) ->  | AK16: =SUMIFS('I_Number of assets'!O$8:O$113,'I_Number of assets'!#REF!,O_Council!$AF$3,'I_Number of assets'!$I$8:$I$113,O_Council!$AF16) ->  | AL16: =SUMIFS('I_Number of assets'!P$8:P$113,'I_Number of assets'!#REF!,O_Council!$AF$3,'I_Number of assets'!$I$8:$I$113,O_Council!$AF16) -> 
K17: Blayney Shire Council | L17: =SUMIFS('C_Council assets'!P$8:P$11321,'C_Council assets'!$C$8:$C$11321,O_Council!$K17) -> 0 | M17: =SUMIFS('C_Council assets'!Q$8:Q$11321,'C_Council assets'!$C$8:$C$11321,O_Council!$K17) -> 0 | N17: =SUMIFS('C_Council assets'!R$8:R$11321,'C_Council assets'!$C$8:$C$11321,O_Council!$K17) -> 0 | O17: =SUMIFS('C_Council assets'!S$8:S$11321,'C_Council assets'!$C$8:$C$11321,O_Council!$K17) -> 0 | P17: =SUMIFS('C_Council assets'!T$8:T$11321,'C_Council assets'!$C$8:$C$11321,O_Council!$K17) -> 0 | R17: =SUMIFS('C_Council assets'!X$8:X$11321,'C_Council assets'!$C$8:$C$11321,O_Council!$K17) -> 0 | S17: =SUMIFS('C_Council assets'!Y$8:Y$11321,'C_Council assets'!$C$8:$C$11321,O_Council!$K17) -> 0 | T17: =SUMIFS('C_Council assets'!Z$8:Z$11321,'C_Council assets'!$C$8:$C$11321,O_Council!$K17) -> 0 | U17: =SUMIFS('C_Council assets'!AA$8:AA$11321,'C_Council assets'!$C$8:$C$11321,O_Council!$K17) -> 0 | V17: =SUMIFS('C_Council assets'!AB$8:AB$11321,'C_Council assets'!$C$8:$C$11321,O_Council!$K17) -> 0 | X17: =SUMIFS('I_Number of assets'!L$8:L$113,'I_Number of assets'!#REF!,O_Council!$K17) ->  | Y17: =SUMIFS('I_Number of assets'!M$8:M$113,'I_Number of assets'!#REF!,O_Council!$K17) ->  | Z17: =SUMIFS('I_Number of assets'!N$8:N$113,'I_Number of assets'!#REF!,O_Council!$K17) ->  | AA17: =SUMIFS('I_Number of assets'!O$8:O$113,'I_Number of assets'!#REF!,O_Council!$K17) ->  | AB17: =SUMIFS('I_Number of assets'!P$8:P$113,'I_Number of assets'!#REF!,O_Council!$K17) ->  | AF17: LED0009 | AH17: =SUMIFS('I_Number of assets'!L$8:L$113,'I_Number of assets'!#REF!,O_Council!$AF$3,'I_Number of assets'!$I$8:$I$113,O_Council!$AF17) ->  | AI17: =SUMIFS('I_Number of assets'!M$8:M$113,'I_Number of assets'!#REF!,O_Council!$AF$3,'I_Number of assets'!$I$8:$I$113,O_Council!$AF17) ->  | AJ17: =SUMIFS('I_Number of assets'!N$8:N$113,'I_Number of assets'!#REF!,O_Council!$AF$3,'I_Number of assets'!$I$8:$I$113,O_Council!$AF17) ->  | AK17: =SUMIFS('I_Number of assets'!O$8:O$113,'I_Number of assets'!#REF!,O_Council!$AF$3,'I_Number of assets'!$I$8:$I$113,O_Council!$AF17) ->  | AL17: =SUMIFS('I_Number of assets'!P$8:P$113,'I_Number of assets'!#REF!,O_Council!$AF$3,'I_Number of assets'!$I$8:$I$113,O_Council!$AF17) -> 
K18: Bogan Shire Council | L18: =SUMIFS('C_Council assets'!P$8:P$11321,'C_Council assets'!$C$8:$C$11321,O_Council!$K18) -> 0 | M18: =SUMIFS('C_Council assets'!Q$8:Q$11321,'C_Council assets'!$C$8:$C$11321,O_Council!$K18) -> 0 | N18: =SUMIFS('C_Council assets'!R$8:R$11321,'C_Council assets'!$C$8:$C$11321,O_Council!$K18) -> 0 | O18: =SUMIFS('C_Council assets'!S$8:S$11321,'C_Council assets'!$C$8:$C$11321,O_Council!$K18) -> 0 | P18: =SUMIFS('C_Council assets'!T$8:T$11321,'C_Council assets'!$C$8:$C$11321,O_Council!$K18) -> 0 | R18: =SUMIFS('C_Council assets'!X$8:X$11321,'C_Council assets'!$C$8:$C$11321,O_Council!$K18) -> 0 | S18: =SUMIFS('C_Council assets'!Y$8:Y$11321,'C_Council assets'!$C$8:$C$11321,O_Council!$K18) -> 0 | T18: =SUMIFS('C_Council assets'!Z$8:Z$11321,'C_Council assets'!$C$8:$C$11321,O_Council!$K18) -> 0 | U18: =SUMIFS('C_Council assets'!AA$8:AA$11321,'C_Council assets'!$C$8:$C$11321,O_Council!$K18) -> 0 | V18: =SUMIFS('C_Council assets'!AB$8:AB$11321,'C_Council assets'!$C$8:$C$11321,O_Council!$K18) -> 0 | X18: =SUMIFS('I_Number of assets'!L$8:L$113,'I_Number of assets'!#REF!,O_Council!$K18) ->  | Y18: =SUMIFS('I_Number of assets'!M$8:M$113,'I_Number of assets'!#REF!,O_Council!$K18) ->  | Z18: =SUMIFS('I_Number of assets'!N$8:N$113,'I_Number of assets'!#REF!,O_Council!$K18) ->  | AA18: =SUMIFS('I_Number of assets'!O$8:O$113,'I_Number of assets'!#REF!,O_Council!$K18) ->  | AB18: =SUMIFS('I_Number of assets'!P$8:P$113,'I_Number of assets'!#REF!,O_Council!$K18) ->  | AF18: LED0010 | AH18: =SUMIFS('I_Number of assets'!L$8:L$113,'I_Number of assets'!#REF!,O_Council!$AF$3,'I_Number of assets'!$I$8:$I$113,O_Council!$AF18) ->  | AI18: =SUMIFS('I_Number of assets'!M$8:M$113,'I_Number of assets'!#REF!,O_Council!$AF$3,'I_Number of assets'!$I$8:$I$113,O_Council!$AF18) ->  | AJ18: =SUMIFS('I_Number of assets'!N$8:N$113,'I_Number of assets'!#REF!,O_Council!$AF$3,'I_Number of assets'!$I$8:$I$113,O_Council!$AF18) ->  | AK18: =SUMIFS('I_Number of assets'!O$8:O$113,'I_Number of assets'!#REF!,O_Council!$AF$3,'I_Number of assets'!$I$8:$I$113,O_Council!$AF18) ->  | AL18: =SUMIFS('I_Number of assets'!P$8:P$113,'I_Number of assets'!#REF!,O_Council!$AF$3,'I_Number of assets'!$I$8:$I$113,O_Council!$AF18) -> 
K19: Bourke Shire Council | L19: =SUMIFS('C_Council assets'!P$8:P$11321,'C_Council assets'!$C$8:$C$11321,O_Council!$K19) -> 0 | M19: =SUMIFS('C_Council assets'!Q$8:Q$11321,'C_Council assets'!$C$8:$C$11321,O_Council!$K19) -> 0 | N19: =SUMIFS('C_Council assets'!R$8:R$11321,'C_Council assets'!$C$8:$C$11321,O_Council!$K19) -> 0 | O19: =SUMIFS('C_Council assets'!S$8:S$11321,'C_Council assets'!$C$8:$C$11321,O_Council!$K19) -> 0 | P19: =SUMIFS('C_Council assets'!T$8:T$11321,'C_Council assets'!$C$8:$C$11321,O_Council!$K19) -> 0 | R19: =SUMIFS('C_Council assets'!X$8:X$11321,'C_Council assets'!$C$8:$C$11321,O_Council!$K19) -> 0 | S19: =SUMIFS('C_Council assets'!Y$8:Y$11321,'C_Council assets'!$C$8:$C$11321,O_Council!$K19) -> 0 | T19: =SUMIFS('C_Council assets'!Z$8:Z$11321,'C_Council assets'!$C$8:$C$11321,O_Council!$K19) -> 0 | U19: =SUMIFS('C_Council assets'!AA$8:AA$11321,'C_Council assets'!$C$8:$C$11321,O_Council!$K19) -> 0 | V19: =SUMIFS('C_Council assets'!AB$8:AB$11321,'C_Council assets'!$C$8:$C$11321,O_Council!$K19) -> 0 | X19: =SUMIFS('I_Number of assets'!L$8:L$113,'I_Number of assets'!#REF!,O_Council!$K19) ->  | Y19: =SUMIFS('I_Number of assets'!M$8:M$113,'I_Number of assets'!#REF!,O_Council!$K19) ->  | Z19: =SUMIFS('I_Number of assets'!N$8:N$113,'I_Number of assets'!#REF!,O_Council!$K19) ->  | AA19: =SUMIFS('I_Number of assets'!O$8:O$113,'I_Number of assets'!#REF!,O_Council!$K19) ->  | AB19: =SUMIFS('I_Number of assets'!P$8:P$113,'I_Number of assets'!#REF!,O_Council!$K19) ->  | AF19: LED0011 | AH19: =SUMIFS('I_Number of assets'!L$8:L$113,'I_Number of assets'!#REF!,O_Council!$AF$3,'I_Number of assets'!$I$8:$I$113,O_Council!$AF19) ->  | AI19: =SUMIFS('I_Number of assets'!M$8:M$113,'I_Number of assets'!#REF!,O_Council!$AF$3,'I_Number of assets'!$I$8:$I$113,O_Council!$AF19) ->  | AJ19: =SUMIFS('I_Number of assets'!N$8:N$113,'I_Number of assets'!#REF!,O_Council!$AF$3,'I_Number of assets'!$I$8:$I$113,O_Council!$AF19) ->  | AK19: =SUMIFS('I_Number of assets'!O$8:O$113,'I_Number of assets'!#REF!,O_Council!$AF$3,'I_Number of assets'!$I$8:$I$113,O_Council!$AF19) ->  | AL19: =SUMIFS('I_Number of assets'!P$8:P$113,'I_Number of assets'!#REF!,O_Council!$AF$3,'I_Number of assets'!$I$8:$I$113,O_Council!$AF19) -> 
K20: Brewarrina Shire Council | L20: =SUMIFS('C_Council assets'!P$8:P$11321,'C_Council assets'!$C$8:$C$11321,O_Council!$K20) -> 0 | M20: =SUMIFS('C_Council assets'!Q$8:Q$11321,'C_Council assets'!$C$8:$C$11321,O_Council!$K20) -> 0 | N20: =SUMIFS('C_Council assets'!R$8:R$11321,'C_Council assets'!$C$8:$C$11321,O_Council!$K20) -> 0 | O20: =SUMIFS('C_Council assets'!S$8:S$11321,'C_Council assets'!$C$8:$C$11321,O_Council!$K20) -> 0 | P20: =SUMIFS('C_Council assets'!T$8:T$11321,'C_Council assets'!$C$8:$C$11321,O_Council!$K20) -> 0 | R20: =SUMIFS('C_Council assets'!X$8:X$11321,'C_Council assets'!$C$8:$C$11321,O_Council!$K20) -> 0 | S20: =SUMIFS('C_Council assets'!Y$8:Y$11321,'C_Council assets'!$C$8:$C$11321,O_Council!$K20) -> 0 | T20: =SUMIFS('C_Council assets'!Z$8:Z$11321,'C_Council assets'!$C$8:$C$11321,O_Council!$K20) -> 0 | U20: =SUMIFS('C_Council assets'!AA$8:AA$11321,'C_Council assets'!$C$8:$C$11321,O_Council!$K20) -> 0 | V20: =SUMIFS('C_Council assets'!AB$8:AB$11321,'C_Council assets'!$C$8:$C$11321,O_Council!$K20) -> 0 | X20: =SUMIFS('I_Number of assets'!L$8:L$113,'I_Number of assets'!#REF!,O_Council!$K20) ->  | Y20: =SUMIFS('I_Number of assets'!M$8:M$113,'I_Number of assets'!#REF!,O_Council!$K20) ->  | Z20: =SUMIFS('I_Number of assets'!N$8:N$113,'I_Number of assets'!#REF!,O_Council!$K20) ->  | AA20: =SUMIFS('I_Number of assets'!O$8:O$113,'I_Number of assets'!#REF!,O_Council!$K20) ->  | AB20: =SUMIFS('I_Number of assets'!P$8:P$113,'I_Number of assets'!#REF!,O_Council!$K20) ->  | AF20: LED0012 | AH20: =SUMIFS('I_Number of assets'!L$8:L$113,'I_Number of assets'!#REF!,O_Council!$AF$3,'I_Number of assets'!$I$8:$I$113,O_Council!$AF20) ->  | AI20: =SUMIFS('I_Number of assets'!M$8:M$113,'I_Number of assets'!#REF!,O_Council!$AF$3,'I_Number of assets'!$I$8:$I$113,O_Council!$AF20) ->  | AJ20: =SUMIFS('I_Number of assets'!N$8:N$113,'I_Number of assets'!#REF!,O_Council!$AF$3,'I_Number of assets'!$I$8:$I$113,O_Council!$AF20) ->  | AK20: =SUMIFS('I_Number of assets'!O$8:O$113,'I_Number of assets'!#REF!,O_Council!$AF$3,'I_Number of assets'!$I$8:$I$113,O_Council!$AF20) ->  | AL20: =SUMIFS('I_Number of assets'!P$8:P$113,'I_Number of assets'!#REF!,O_Council!$AF$3,'I_Number of assets'!$I$8:$I$113,O_Council!$AF20) -> 
K21: Broken Hill City Council | L21: =SUMIFS('C_Council assets'!P$8:P$11321,'C_Council assets'!$C$8:$C$11321,O_Council!$K21) -> 0 | M21: =SUMIFS('C_Council assets'!Q$8:Q$11321,'C_Council assets'!$C$8:$C$11321,O_Council!$K21) -> 0 | N21: =SUMIFS('C_Council assets'!R$8:R$11321,'C_Council assets'!$C$8:$C$11321,O_Council!$K21) -> 0 | O21: =SUMIFS('C_Council assets'!S$8:S$11321,'C_Council assets'!$C$8:$C$11321,O_Council!$K21) -> 0 | P21: =SUMIFS('C_Council assets'!T$8:T$11321,'C_Council assets'!$C$8:$C$11321,O_Council!$K21) -> 0 | R21: =SUMIFS('C_Council assets'!X$8:X$11321,'C_Council assets'!$C$8:$C$11321,O_Council!$K21) -> 0 | S21: =SUMIFS('C_Council assets'!Y$8:Y$11321,'C_Council assets'!$C$8:$C$11321,O_Council!$K21) -> 0 | T21: =SUMIFS('C_Council assets'!Z$8:Z$11321,'C_Council assets'!$C$8:$C$11321,O_Council!$K21) -> 0 | U21: =SUMIFS('C_Council assets'!AA$8:AA$11321,'C_Council assets'!$C$8:$C$11321,O_Council!$K21) -> 0 | V21: =SUMIFS('C_Council assets'!AB$8:AB$11321,'C_Council assets'!$C$8:$C$11321,O_Council!$K21) -> 0 | X21: =SUMIFS('I_Number of assets'!L$8:L$113,'I_Number of assets'!#REF!,O_Council!$K21) ->  | Y21: =SUMIFS('I_Number of assets'!M$8:M$113,'I_Number of assets'!#REF!,O_Council!$K21) ->  | Z21: =SUMIFS('I_Number of assets'!N$8:N$113,'I_Number of assets'!#REF!,O_Council!$K21) ->  | AA21: =SUMIFS('I_Number of assets'!O$8:O$113,'I_Number of assets'!#REF!,O_Council!$K21) ->  | AB21: =SUMIFS('I_Number of assets'!P$8:P$113,'I_Number of assets'!#REF!,O_Council!$K21) ->  | AF21: LED0013 | AH21: =SUMIFS('I_Number of assets'!L$8:L$113,'I_Number of assets'!#REF!,O_Council!$AF$3,'I_Number of assets'!$I$8:$I$113,O_Council!$AF21) ->  | AI21: =SUMIFS('I_Number of assets'!M$8:M$113,'I_Number of assets'!#REF!,O_Council!$AF$3,'I_Number of assets'!$I$8:$I$113,O_Council!$AF21) ->  | AJ21: =SUMIFS('I_Number of assets'!N$8:N$113,'I_Number of assets'!#REF!,O_Council!$AF$3,'I_Number of assets'!$I$8:$I$113,O_Council!$AF21) ->  | AK21: =SUMIFS('I_Number of assets'!O$8:O$113,'I_Number of assets'!#REF!,O_Council!$AF$3,'I_Number of assets'!$I$8:$I$113,O_Council!$AF21) ->  | AL21: =SUMIFS('I_Number of assets'!P$8:P$113,'I_Number of assets'!#REF!,O_Council!$AF$3,'I_Number of assets'!$I$8:$I$113,O_Council!$AF21) -> 
K22: Byron Shire Council | L22: =SUMIFS('C_Council assets'!P$8:P$11321,'C_Council assets'!$C$8:$C$11321,O_Council!$K22) -> 0 | M22: =SUMIFS('C_Council assets'!Q$8:Q$11321,'C_Council assets'!$C$8:$C$11321,O_Council!$K22) -> 0 | N22: =SUMIFS('C_Council assets'!R$8:R$11321,'C_Council assets'!$C$8:$C$11321,O_Council!$K22) -> 0 | O22: =SUMIFS('C_Council assets'!S$8:S$11321,'C_Council assets'!$C$8:$C$11321,O_Council!$K22) -> 0 | P22: =SUMIFS('C_Council assets'!T$8:T$11321,'C_Council assets'!$C$8:$C$11321,O_Council!$K22) -> 0 | R22: =SUMIFS('C_Council assets'!X$8:X$11321,'C_Council assets'!$C$8:$C$11321,O_Council!$K22) -> 0 | S22: =SUMIFS('C_Council assets'!Y$8:Y$11321,'C_Council assets'!$C$8:$C$11321,O_Council!$K22) -> 0 | T22: =SUMIFS('C_Council assets'!Z$8:Z$11321,'C_Council assets'!$C$8:$C$11321,O_Council!$K22) -> 0 | U22: =SUMIFS('C_Council assets'!AA$8:AA$11321,'C_Council assets'!$C$8:$C$11321,O_Council!$K22) -> 0 | V22: =SUMIFS('C_Council assets'!AB$8:AB$11321,'C_Council assets'!$C$8:$C$11321,O_Council!$K22) -> 0 | X22: =SUMIFS('I_Number of assets'!L$8:L$113,'I_Number of assets'!#REF!,O_Council!$K22) ->  | Y22: =SUMIFS('I_Number of assets'!M$8:M$113,'I_Number of assets'!#REF!,O_Council!$K22) ->  | Z22: =SUMIFS('I_Number of assets'!N$8:N$113,'I_Number of assets'!#REF!,O_Council!$K22) ->  | AA22: =SUMIFS('I_Number of assets'!O$8:O$113,'I_Number of assets'!#REF!,O_Council!$K22) ->  | AB22: =SUMIFS('I_Number of assets'!P$8:P$113,'I_Number of assets'!#REF!,O_Council!$K22) ->  | AF22: LED0014 | AH22: =SUMIFS('I_Number of assets'!L$8:L$113,'I_Number of assets'!#REF!,O_Council!$AF$3,'I_Number of assets'!$I$8:$I$113,O_Council!$AF22) ->  | AI22: =SUMIFS('I_Number of assets'!M$8:M$113,'I_Number of assets'!#REF!,O_Council!$AF$3,'I_Number of assets'!$I$8:$I$113,O_Council!$AF22) ->  | AJ22: =SUMIFS('I_Number of assets'!N$8:N$113,'I_Number of assets'!#REF!,O_Council!$AF$3,'I_Number of assets'!$I$8:$I$113,O_Council!$AF22) ->  | AK22: =SUMIFS('I_Number of assets'!O$8:O$113,'I_Number of assets'!#REF!,O_Council!$AF$3,'I_Number of assets'!$I$8:$I$113,O_Council!$AF22) ->  | AL22: =SUMIFS('I_Number of assets'!P$8:P$113,'I_Number of assets'!#REF!,O_Council!$AF$3,'I_Number of assets'!$I$8:$I$113,O_Council!$AF22) -> 
K23: Cabonne Shire Council | L23: =SUMIFS('C_Council assets'!P$8:P$11321,'C_Council assets'!$C$8:$C$11321,O_Council!$K23) -> 0 | M23: =SUMIFS('C_Council assets'!Q$8:Q$11321,'C_Council assets'!$C$8:$C$11321,O_Council!$K23) -> 0 | N23: =SUMIFS('C_Council assets'!R$8:R$11321,'C_Council assets'!$C$8:$C$11321,O_Council!$K23) -> 0 | O23: =SUMIFS('C_Council assets'!S$8:S$11321,'C_Council assets'!$C$8:$C$11321,O_Council!$K23) -> 0 | P23: =SUMIFS('C_Council assets'!T$8:T$11321,'C_Council assets'!$C$8:$C$11321,O_Council!$K23) -> 0 | R23: =SUMIFS('C_Council assets'!X$8:X$11321,'C_Council assets'!$C$8:$C$11321,O_Council!$K23) -> 0 | S23: =SUMIFS('C_Council assets'!Y$8:Y$11321,'C_Council assets'!$C$8:$C$11321,O_Council!$K23) -> 0 | T23: =SUMIFS('C_Council assets'!Z$8:Z$11321,'C_Council assets'!$C$8:$C$11321,O_Council!$K23) -> 0 | U23: =SUMIFS('C_Council assets'!AA$8:AA$11321,'C_Council assets'!$C$8:$C$11321,O_Council!$K23) -> 0 | V23: =SUMIFS('C_Council assets'!AB$8:AB$11321,'C_Council assets'!$C$8:$C$11321,O_Council!$K23) -> 0 | X23: =SUMIFS('I_Number of assets'!L$8:L$113,'I_Number of assets'!#REF!,O_Council!$K23) ->  | Y23: =SUMIFS('I_Number of assets'!M$8:M$113,'I_Number of assets'!#REF!,O_Council!$K23) ->  | Z23: =SUMIFS('I_Number of assets'!N$8:N$113,'I_Number of assets'!#REF!,O_Council!$K23) ->  | AA23: =SUMIFS('I_Number of assets'!O$8:O$113,'I_Number of assets'!#REF!,O_Council!$K23) ->  | AB23: =SUMIFS('I_Number of assets'!P$8:P$113,'I_Number of assets'!#REF!,O_Council!$K23) ->  | AF23: LED0015 | AH23: =SUMIFS('I_Number of assets'!L$8:L$113,'I_Number of assets'!#REF!,O_Council!$AF$3,'I_Number of assets'!$I$8:$I$113,O_Council!$AF23) ->  | AI23: =SUMIFS('I_Number of assets'!M$8:M$113,'I_Number of assets'!#REF!,O_Council!$AF$3,'I_Number of assets'!$I$8:$I$113,O_Council!$AF23) ->  | AJ23: =SUMIFS('I_Number of assets'!N$8:N$113,'I_Number of assets'!#REF!,O_Council!$AF$3,'I_Number of assets'!$I$8:$I$113,O_Council!$AF23) ->  | AK23: =SUMIFS('I_Number of assets'!O$8:O$113,'I_Number of assets'!#REF!,O_Council!$AF$3,'I_Number of assets'!$I$8:$I$113,O_Council!$AF23) ->  | AL23: =SUMIFS('I_Number of assets'!P$8:P$113,'I_Number of assets'!#REF!,O_Council!$AF$3,'I_Number of assets'!$I$8:$I$113,O_Council!$AF23) -> 
K24: Carrathool Shire Council | L24: =SUMIFS('C_Council assets'!P$8:P$11321,'C_Council assets'!$C$8:$C$11321,O_Council!$K24) -> 0 | M24: =SUMIFS('C_Council assets'!Q$8:Q$11321,'C_Council assets'!$C$8:$C$11321,O_Council!$K24) -> 0 | N24: =SUMIFS('C_Council assets'!R$8:R$11321,'C_Council assets'!$C$8:$C$11321,O_Council!$K24) -> 0 | O24: =SUMIFS('C_Council assets'!S$8:S$11321,'C_Council assets'!$C$8:$C$11321,O_Council!$K24) -> 0 | P24: =SUMIFS('C_Council assets'!T$8:T$11321,'C_Council assets'!$C$8:$C$11321,O_Council!$K24) -> 0 | R24: =SUMIFS('C_Council assets'!X$8:X$11321,'C_Council assets'!$C$8:$C$11321,O_Council!$K24) -> 0 | S24: =SUMIFS('C_Council assets'!Y$8:Y$11321,'C_Council assets'!$C$8:$C$11321,O_Council!$K24) -> 0 | T24: =SUMIFS('C_Council assets'!Z$8:Z$11321,'C_Council assets'!$C$8:$C$11321,O_Council!$K24) -> 0 | U24: =SUMIFS('C_Council assets'!AA$8:AA$11321,'C_Council assets'!$C$8:$C$11321,O_Council!$K24) -> 0 | V24: =SUMIFS('C_Council assets'!AB$8:AB$11321,'C_Council assets'!$C$8:$C$11321,O_Council!$K24) -> 0 | X24: =SUMIFS('I_Number of assets'!L$8:L$113,'I_Number of assets'!#REF!,O_Council!$K24) ->  | Y24: =SUMIFS('I_Number of assets'!M$8:M$113,'I_Number of assets'!#REF!,O_Council!$K24) ->  | Z24: =SUMIFS('I_Number of assets'!N$8:N$113,'I_Number of assets'!#REF!,O_Council!$K24) ->  | AA24: =SUMIFS('I_Number of assets'!O$8:O$113,'I_Number of assets'!#REF!,O_Council!$K24) ->  | AB24: =SUMIFS('I_Number of assets'!P$8:P$113,'I_Number of assets'!#REF!,O_Council!$K24) ->  | AF24: LED0016 | AH24: =SUMIFS('I_Number of assets'!L$8:L$113,'I_Number of assets'!#REF!,O_Council!$AF$3,'I_Number of assets'!$I$8:$I$113,O_Council!$AF24) ->  | AI24: =SUMIFS('I_Number of assets'!M$8:M$113,'I_Number of assets'!#REF!,O_Council!$AF$3,'I_Number of assets'!$I$8:$I$113,O_Council!$AF24) ->  | AJ24: =SUMIFS('I_Number of assets'!N$8:N$113,'I_Number of assets'!#REF!,O_Council!$AF$3,'I_Number of assets'!$I$8:$I$113,O_Council!$AF24) ->  | AK24: =SUMIFS('I_Number of assets'!O$8:O$113,'I_Number of assets'!#REF!,O_Council!$AF$3,'I_Number of assets'!$I$8:$I$113,O_Council!$AF24) ->  | AL24: =SUMIFS('I_Number of assets'!P$8:P$113,'I_Number of assets'!#REF!,O_Council!$AF$3,'I_Number of assets'!$I$8:$I$113,O_Council!$AF24) -> 
K25: Central Darling Shire Council | L25: =SUMIFS('C_Council assets'!P$8:P$11321,'C_Council assets'!$C$8:$C$11321,O_Council!$K25) -> 0 | M25: =SUMIFS('C_Council assets'!Q$8:Q$11321,'C_Council assets'!$C$8:$C$11321,O_Council!$K25) -> 0 | N25: =SUMIFS('C_Council assets'!R$8:R$11321,'C_Council assets'!$C$8:$C$11321,O_Council!$K25) -> 0 | O25: =SUMIFS('C_Council assets'!S$8:S$11321,'C_Council assets'!$C$8:$C$11321,O_Council!$K25) -> 0 | P25: =SUMIFS('C_Council assets'!T$8:T$11321,'C_Council assets'!$C$8:$C$11321,O_Council!$K25) -> 0 | R25: =SUMIFS('C_Council assets'!X$8:X$11321,'C_Council assets'!$C$8:$C$11321,O_Council!$K25) -> 0 | S25: =SUMIFS('C_Council assets'!Y$8:Y$11321,'C_Council assets'!$C$8:$C$11321,O_Council!$K25) -> 0 | T25: =SUMIFS('C_Council assets'!Z$8:Z$11321,'C_Council assets'!$C$8:$C$11321,O_Council!$K25) -> 0 | U25: =SUMIFS('C_Council assets'!AA$8:AA$11321,'C_Council assets'!$C$8:$C$11321,O_Council!$K25) -> 0 | V25: =SUMIFS('C_Council assets'!AB$8:AB$11321,'C_Council assets'!$C$8:$C$11321,O_Council!$K25) -> 0 | X25: =SUMIFS('I_Number of assets'!L$8:L$113,'I_Number of assets'!#REF!,O_Council!$K25) ->  | Y25: =SUMIFS('I_Number of assets'!M$8:M$113,'I_Number of assets'!#REF!,O_Council!$K25) ->  | Z25: =SUMIFS('I_Number of assets'!N$8:N$113,'I_Number of assets'!#REF!,O_Council!$K25) ->  | AA25: =SUMIFS('I_Number of assets'!O$8:O$113,'I_Number of assets'!#REF!,O_Council!$K25) ->  | AB25: =SUMIFS('I_Number of assets'!P$8:P$113,'I_Number of assets'!#REF!,O_Council!$K25) ->  | AF25: LED0017 | AH25: =SUMIFS('I_Number of assets'!L$8:L$113,'I_Number of assets'!#REF!,O_Council!$AF$3,'I_Number of assets'!$I$8:$I$113,O_Council!$AF25) ->  | AI25: =SUMIFS('I_Number of assets'!M$8:M$113,'I_Number of assets'!#REF!,O_Council!$AF$3,'I_Number of assets'!$I$8:$I$113,O_Council!$AF25) ->  | AJ25: =SUMIFS('I_Number of assets'!N$8:N$113,'I_Number of assets'!#REF!,O_Council!$AF$3,'I_Number of assets'!$I$8:$I$113,O_Council!$AF25) ->  | AK25: =SUMIFS('I_Number of assets'!O$8:O$113,'I_Number of assets'!#REF!,O_Council!$AF$3,'I_Number of assets'!$I$8:$I$113,O_Council!$AF25) ->  | AL25: =SUMIFS('I_Number of assets'!P$8:P$113,'I_Number of assets'!#REF!,O_Council!$AF$3,'I_Number of assets'!$I$8:$I$113,O_Council!$AF25) -> 
K26: City Of Albury | L26: =SUMIFS('C_Council assets'!P$8:P$11321,'C_Council assets'!$C$8:$C$11321,O_Council!$K26) -> 0 | M26: =SUMIFS('C_Council assets'!Q$8:Q$11321,'C_Council assets'!$C$8:$C$11321,O_Council!$K26) -> 0 | N26: =SUMIFS('C_Council assets'!R$8:R$11321,'C_Council assets'!$C$8:$C$11321,O_Council!$K26) -> 0 | O26: =SUMIFS('C_Council assets'!S$8:S$11321,'C_Council assets'!$C$8:$C$11321,O_Council!$K26) -> 0 | P26: =SUMIFS('C_Council assets'!T$8:T$11321,'C_Council assets'!$C$8:$C$11321,O_Council!$K26) -> 0 | R26: =SUMIFS('C_Council assets'!X$8:X$11321,'C_Council assets'!$C$8:$C$11321,O_Council!$K26) -> 0 | S26: =SUMIFS('C_Council assets'!Y$8:Y$11321,'C_Council assets'!$C$8:$C$11321,O_Council!$K26) -> 0 | T26: =SUMIFS('C_Council assets'!Z$8:Z$11321,'C_Council assets'!$C$8:$C$11321,O_Council!$K26) -> 0 | U26: =SUMIFS('C_Council assets'!AA$8:AA$11321,'C_Council assets'!$C$8:$C$11321,O_Council!$K26) -> 0 | V26: =SUMIFS('C_Council assets'!AB$8:AB$11321,'C_Council assets'!$C$8:$C$11321,O_Council!$K26) -> 0 | X26: =SUMIFS('I_Number of assets'!L$8:L$113,'I_Number of assets'!#REF!,O_Council!$K26) ->  | Y26: =SUMIFS('I_Number of assets'!M$8:M$113,'I_Number of assets'!#REF!,O_Council!$K26) ->  | Z26: =SUMIFS('I_Number of assets'!N$8:N$113,'I_Number of assets'!#REF!,O_Council!$K26) ->  | AA26: =SUMIFS('I_Number of assets'!O$8:O$113,'I_Number of assets'!#REF!,O_Council!$K26) ->  | AB26: =SUMIFS('I_Number of assets'!P$8:P$113,'I_Number of assets'!#REF!,O_Council!$K26) ->  | AF26: FLU0060 | AH26: =SUMIFS('I_Number of assets'!L$8:L$113,'I_Number of assets'!#REF!,O_Council!$AF$3,'I_Number of assets'!$I$8:$I$113,O_Council!$AF26) ->  | AI26: =SUMIFS('I_Number of assets'!M$8:M$113,'I_Number of assets'!#REF!,O_Council!$AF$3,'I_Number of assets'!$I$8:$I$113,O_Council!$AF26) ->  | AJ26: =SUMIFS('I_Number of assets'!N$8:N$113,'I_Number of assets'!#REF!,O_Council!$AF$3,'I_Number of assets'!$I$8:$I$113,O_Council!$AF26) ->  | AK26: =SUMIFS('I_Number of assets'!O$8:O$113,'I_Number of assets'!#REF!,O_Council!$AF$3,'I_Number of assets'!$I$8:$I$113,O_Council!$AF26) ->  | AL26: =SUMIFS('I_Number of assets'!P$8:P$113,'I_Number of assets'!#REF!,O_Council!$AF$3,'I_Number of assets'!$I$8:$I$113,O_Council!$AF26) -> 
K27: City Of Wagga Wagga | L27: =SUMIFS('C_Council assets'!P$8:P$11321,'C_Council assets'!$C$8:$C$11321,O_Council!$K27) -> 0 | M27: =SUMIFS('C_Council assets'!Q$8:Q$11321,'C_Council assets'!$C$8:$C$11321,O_Council!$K27) -> 0 | N27: =SUMIFS('C_Council assets'!R$8:R$11321,'C_Council assets'!$C$8:$C$11321,O_Council!$K27) -> 0 | O27: =SUMIFS('C_Council assets'!S$8:S$11321,'C_Council assets'!$C$8:$C$11321,O_Council!$K27) -> 0 | P27: =SUMIFS('C_Council assets'!T$8:T$11321,'C_Council assets'!$C$8:$C$11321,O_Council!$K27) -> 0 | R27: =SUMIFS('C_Council assets'!X$8:X$11321,'C_Council assets'!$C$8:$C$11321,O_Council!$K27) -> 0 | S27: =SUMIFS('C_Council assets'!Y$8:Y$11321,'C_Council assets'!$C$8:$C$11321,O_Council!$K27) -> 0 | T27: =SUMIFS('C_Council assets'!Z$8:Z$11321,'C_Council assets'!$C$8:$C$11321,O_Council!$K27) -> 0 | U27: =SUMIFS('C_Council assets'!AA$8:AA$11321,'C_Council assets'!$C$8:$C$11321,O_Council!$K27) -> 0 | V27: =SUMIFS('C_Council assets'!AB$8:AB$11321,'C_Council assets'!$C$8:$C$11321,O_Council!$K27) -> 0 | X27: =SUMIFS('I_Number of assets'!L$8:L$113,'I_Number of assets'!#REF!,O_Council!$K27) ->  | Y27: =SUMIFS('I_Number of assets'!M$8:M$113,'I_Number of assets'!#REF!,O_Council!$K27) ->  | Z27: =SUMIFS('I_Number of assets'!N$8:N$113,'I_Number of assets'!#REF!,O_Council!$K27) ->  | AA27: =SUMIFS('I_Number of assets'!O$8:O$113,'I_Number of assets'!#REF!,O_Council!$K27) ->  | AB27: =SUMIFS('I_Number of assets'!P$8:P$113,'I_Number of assets'!#REF!,O_Council!$K27) ->  | AF27: FLU0130 | AH27: =SUMIFS('I_Number of assets'!L$8:L$113,'I_Number of assets'!#REF!,O_Council!$AF$3,'I_Number of assets'!$I$8:$I$113,O_Council!$AF27) ->  | AI27: =SUMIFS('I_Number of assets'!M$8:M$113,'I_Number of assets'!#REF!,O_Council!$AF$3,'I_Number of assets'!$I$8:$I$113,O_Council!$AF27) ->  | AJ27: =SUMIFS('I_Number of assets'!N$8:N$113,'I_Number of assets'!#REF!,O_Council!$AF$3,'I_Number of assets'!$I$8:$I$113,O_Council!$AF27) ->  | AK27: =SUMIFS('I_Number of assets'!O$8:O$113,'I_Number of assets'!#REF!,O_Council!$AF$3,'I_Number of assets'!$I$8:$I$113,O_Council!$AF27) ->  | AL27: =SUMIFS('I_Number of assets'!P$8:P$113,'I_Number of assets'!#REF!,O_Council!$AF$3,'I_Number of assets'!$I$8:$I$113,O_Council!$AF27) -> 
K28: Clarence Valley Council | L28: =SUMIFS('C_Council assets'!P$8:P$11321,'C_Council assets'!$C$8:$C$11321,O_Council!$K28) -> 0 | M28: =SUMIFS('C_Council assets'!Q$8:Q$11321,'C_Council assets'!$C$8:$C$11321,O_Council!$K28) -> 0 | N28: =SUMIFS('C_Council assets'!R$8:R$11321,'C_Council assets'!$C$8:$C$11321,O_Council!$K28) -> 0 | O28: =SUMIFS('C_Council assets'!S$8:S$11321,'C_Council assets'!$C$8:$C$11321,O_Council!$K28) -> 0 | P28: =SUMIFS('C_Council assets'!T$8:T$11321,'C_Council assets'!$C$8:$C$11321,O_Council!$K28) -> 0 | R28: =SUMIFS('C_Council assets'!X$8:X$11321,'C_Council assets'!$C$8:$C$11321,O_Council!$K28) -> 0 | S28: =SUMIFS('C_Council assets'!Y$8:Y$11321,'C_Council assets'!$C$8:$C$11321,O_Council!$K28) -> 0 | T28: =SUMIFS('C_Council assets'!Z$8:Z$11321,'C_Council assets'!$C$8:$C$11321,O_Council!$K28) -> 0 | U28: =SUMIFS('C_Council assets'!AA$8:AA$11321,'C_Council assets'!$C$8:$C$11321,O_Council!$K28) -> 0 | V28: =SUMIFS('C_Council assets'!AB$8:AB$11321,'C_Council assets'!$C$8:$C$11321,O_Council!$K28) -> 0 | X28: =SUMIFS('I_Number of assets'!L$8:L$113,'I_Number of assets'!#REF!,O_Council!$K28) ->  | Y28: =SUMIFS('I_Number of assets'!M$8:M$113,'I_Number of assets'!#REF!,O_Council!$K28) ->  | Z28: =SUMIFS('I_Number of assets'!N$8:N$113,'I_Number of assets'!#REF!,O_Council!$K28) ->  | AA28: =SUMIFS('I_Number of assets'!O$8:O$113,'I_Number of assets'!#REF!,O_Council!$K28) ->  | AB28: =SUMIFS('I_Number of assets'!P$8:P$113,'I_Number of assets'!#REF!,O_Council!$K28) ->  | AF28: HPS0010 | AH28: =SUMIFS('I_Number of assets'!L$8:L$113,'I_Number of assets'!#REF!,O_Council!$AF$3,'I_Number of assets'!$I$8:$I$113,O_Council!$AF28) ->  | AI28: =SUMIFS('I_Number of assets'!M$8:M$113,'I_Number of assets'!#REF!,O_Council!$AF$3,'I_Number of assets'!$I$8:$I$113,O_Council!$AF28) ->  | AJ28: =SUMIFS('I_Number of assets'!N$8:N$113,'I_Number of assets'!#REF!,O_Council!$AF$3,'I_Number of assets'!$I$8:$I$113,O_Council!$AF28) ->  | AK28: =SUMIFS('I_Number of assets'!O$8:O$113,'I_Number of assets'!#REF!,O_Council!$AF$3,'I_Number of assets'!$I$8:$I$113,O_Council!$AF28) ->  | AL28: =SUMIFS('I_Number of assets'!P$8:P$113,'I_Number of assets'!#REF!,O_Council!$AF$3,'I_Number of assets'!$I$8:$I$113,O_Council!$AF28) -> 
K29: Cobar Shire Council | L29: =SUMIFS('C_Council assets'!P$8:P$11321,'C_Council assets'!$C$8:$C$11321,O_Council!$K29) -> 0 | M29: =SUMIFS('C_Council assets'!Q$8:Q$11321,'C_Council assets'!$C$8:$C$11321,O_Council!$K29) -> 0 | N29: =SUMIFS('C_Council assets'!R$8:R$11321,'C_Council assets'!$C$8:$C$11321,O_Council!$K29) -> 0 | O29: =SUMIFS('C_Council assets'!S$8:S$11321,'C_Council assets'!$C$8:$C$11321,O_Council!$K29) -> 0 | P29: =SUMIFS('C_Council assets'!T$8:T$11321,'C_Council assets'!$C$8:$C$11321,O_Council!$K29) -> 0 | R29: =SUMIFS('C_Council assets'!X$8:X$11321,'C_Council assets'!$C$8:$C$11321,O_Council!$K29) -> 0 | S29: =SUMIFS('C_Council assets'!Y$8:Y$11321,'C_Council assets'!$C$8:$C$11321,O_Council!$K29) -> 0 | T29: =SUMIFS('C_Council assets'!Z$8:Z$11321,'C_Council assets'!$C$8:$C$11321,O_Council!$K29) -> 0 | U29: =SUMIFS('C_Council assets'!AA$8:AA$11321,'C_Council assets'!$C$8:$C$11321,O_Council!$K29) -> 0 | V29: =SUMIFS('C_Council assets'!AB$8:AB$11321,'C_Council assets'!$C$8:$C$11321,O_Council!$K29) -> 0 | X29: =SUMIFS('I_Number of assets'!L$8:L$113,'I_Number of assets'!#REF!,O_Council!$K29) ->  | Y29: =SUMIFS('I_Number of assets'!M$8:M$113,'I_Number of assets'!#REF!,O_Council!$K29) ->  | Z29: =SUMIFS('I_Number of assets'!N$8:N$113,'I_Number of assets'!#REF!,O_Council!$K29) ->  | AA29: =SUMIFS('I_Number of assets'!O$8:O$113,'I_Number of assets'!#REF!,O_Council!$K29) ->  | AB29: =SUMIFS('I_Number of assets'!P$8:P$113,'I_Number of assets'!#REF!,O_Council!$K29) ->  | AF29: HPS0010-TA | AH29: =SUMIFS('I_Number of assets'!L$8:L$113,'I_Number of assets'!#REF!,O_Council!$AF$3,'I_Number of assets'!$I$8:$I$113,O_Council!$AF29) ->  | AI29: =SUMIFS('I_Number of assets'!M$8:M$113,'I_Number of assets'!#REF!,O_Council!$AF$3,'I_Number of assets'!$I$8:$I$113,O_Council!$AF29) ->  | AJ29: =SUMIFS('I_Number of assets'!N$8:N$113,'I_Number of assets'!#REF!,O_Council!$AF$3,'I_Number of assets'!$I$8:$I$113,O_Council!$AF29) ->  | AK29: =SUMIFS('I_Number of assets'!O$8:O$113,'I_Number of assets'!#REF!,O_Council!$AF$3,'I_Number of assets'!$I$8:$I$113,O_Council!$AF29) ->  | AL29: =SUMIFS('I_Number of assets'!P$8:P$113,'I_Number of assets'!#REF!,O_Council!$AF$3,'I_Number of assets'!$I$8:$I$113,O_Council!$AF29) -> 
K30: Coffs Harbour City Council | L30: =SUMIFS('C_Council assets'!P$8:P$11321,'C_Council assets'!$C$8:$C$11321,O_Council!$K30) -> 0 | M30: =SUMIFS('C_Council assets'!Q$8:Q$11321,'C_Council assets'!$C$8:$C$11321,O_Council!$K30) -> 0 | N30: =SUMIFS('C_Council assets'!R$8:R$11321,'C_Council assets'!$C$8:$C$11321,O_Council!$K30) -> 0 | O30: =SUMIFS('C_Council assets'!S$8:S$11321,'C_Council assets'!$C$8:$C$11321,O_Council!$K30) -> 0 | P30: =SUMIFS('C_Council assets'!T$8:T$11321,'C_Council assets'!$C$8:$C$11321,O_Council!$K30) -> 0 | R30: =SUMIFS('C_Council assets'!X$8:X$11321,'C_Council assets'!$C$8:$C$11321,O_Council!$K30) -> 0 | S30: =SUMIFS('C_Council assets'!Y$8:Y$11321,'C_Council assets'!$C$8:$C$11321,O_Council!$K30) -> 0 | T30: =SUMIFS('C_Council assets'!Z$8:Z$11321,'C_Council assets'!$C$8:$C$11321,O_Council!$K30) -> 0 | U30: =SUMIFS('C_Council assets'!AA$8:AA$11321,'C_Council assets'!$C$8:$C$11321,O_Council!$K30) -> 0 | V30: =SUMIFS('C_Council assets'!AB$8:AB$11321,'C_Council assets'!$C$8:$C$11321,O_Council!$K30) -> 0 | X30: =SUMIFS('I_Number of assets'!L$8:L$113,'I_Number of assets'!#REF!,O_Council!$K30) ->  | Y30: =SUMIFS('I_Number of assets'!M$8:M$113,'I_Number of assets'!#REF!,O_Council!$K30) ->  | Z30: =SUMIFS('I_Number of assets'!N$8:N$113,'I_Number of assets'!#REF!,O_Council!$K30) ->  | AA30: =SUMIFS('I_Number of assets'!O$8:O$113,'I_Number of assets'!#REF!,O_Council!$K30) ->  | AB30: =SUMIFS('I_Number of assets'!P$8:P$113,'I_Number of assets'!#REF!,O_Council!$K30) ->  | AF30: HPS0020 | AH30: =SUMIFS('I_Number of assets'!L$8:L$113,'I_Number of assets'!#REF!,O_Council!$AF$3,'I_Number of assets'!$I$8:$I$113,O_Council!$AF30) ->  | AI30: =SUMIFS('I_Number of assets'!M$8:M$113,'I_Number of assets'!#REF!,O_Council!$AF$3,'I_Number of assets'!$I$8:$I$113,O_Council!$AF30) ->  | AJ30: =SUMIFS('I_Number of assets'!N$8:N$113,'I_Number of assets'!#REF!,O_Council!$AF$3,'I_Number of assets'!$I$8:$I$113,O_Council!$AF30) ->  | AK30: =SUMIFS('I_Number of assets'!O$8:O$113,'I_Number of assets'!#REF!,O_Council!$AF$3,'I_Number of assets'!$I$8:$I$113,O_Council!$AF30) ->  | AL30: =SUMIFS('I_Number of assets'!P$8:P$113,'I_Number of assets'!#REF!,O_Council!$AF$3,'I_Number of assets'!$I$8:$I$113,O_Council!$AF30) -> 
K31: Coolamon Shire Council | L31: =SUMIFS('C_Council assets'!P$8:P$11321,'C_Council assets'!$C$8:$C$11321,O_Council!$K31) -> 0 | M31: =SUMIFS('C_Council assets'!Q$8:Q$11321,'C_Council assets'!$C$8:$C$11321,O_Council!$K31) -> 0 | N31: =SUMIFS('C_Council assets'!R$8:R$11321,'C_Council assets'!$C$8:$C$11321,O_Council!$K31) -> 0 | O31: =SUMIFS('C_Council assets'!S$8:S$11321,'C_Council assets'!$C$8:$C$11321,O_Council!$K31) -> 0 | P31: =SUMIFS('C_Council assets'!T$8:T$11321,'C_Council assets'!$C$8:$C$11321,O_Council!$K31) -> 0 | R31: =SUMIFS('C_Council assets'!X$8:X$11321,'C_Council assets'!$C$8:$C$11321,O_Council!$K31) -> 0 | S31: =SUMIFS('C_Council assets'!Y$8:Y$11321,'C_Council assets'!$C$8:$C$11321,O_Council!$K31) -> 0 | T31: =SUMIFS('C_Council assets'!Z$8:Z$11321,'C_Council assets'!$C$8:$C$11321,O_Council!$K31) -> 0 | U31: =SUMIFS('C_Council assets'!AA$8:AA$11321,'C_Council assets'!$C$8:$C$11321,O_Council!$K31) -> 0 | V31: =SUMIFS('C_Council assets'!AB$8:AB$11321,'C_Council assets'!$C$8:$C$11321,O_Council!$K31) -> 0 | X31: =SUMIFS('I_Number of assets'!L$8:L$113,'I_Number of assets'!#REF!,O_Council!$K31) ->  | Y31: =SUMIFS('I_Number of assets'!M$8:M$113,'I_Number of assets'!#REF!,O_Council!$K31) ->  | Z31: =SUMIFS('I_Number of assets'!N$8:N$113,'I_Number of assets'!#REF!,O_Council!$K31) ->  | AA31: =SUMIFS('I_Number of assets'!O$8:O$113,'I_Number of assets'!#REF!,O_Council!$K31) ->  | AB31: =SUMIFS('I_Number of assets'!P$8:P$113,'I_Number of assets'!#REF!,O_Council!$K31) ->  | AF31: HPS0090 | AH31: =SUMIFS('I_Number of assets'!L$8:L$113,'I_Number of assets'!#REF!,O_Council!$AF$3,'I_Number of assets'!$I$8:$I$113,O_Council!$AF31) ->  | AI31: =SUMIFS('I_Number of assets'!M$8:M$113,'I_Number of assets'!#REF!,O_Council!$AF$3,'I_Number of assets'!$I$8:$I$113,O_Council!$AF31) ->  | AJ31: =SUMIFS('I_Number of assets'!N$8:N$113,'I_Number of assets'!#REF!,O_Council!$AF$3,'I_Number of assets'!$I$8:$I$113,O_Council!$AF31) ->  | AK31: =SUMIFS('I_Number of assets'!O$8:O$113,'I_Number of assets'!#REF!,O_Council!$AF$3,'I_Number of assets'!$I$8:$I$113,O_Council!$AF31) ->  | AL31: =SUMIFS('I_Number of assets'!P$8:P$113,'I_Number of assets'!#REF!,O_Council!$AF$3,'I_Number of assets'!$I$8:$I$113,O_Council!$AF31) -> 
K32: Coonamble Shire Council | L32: =SUMIFS('C_Council assets'!P$8:P$11321,'C_Council assets'!$C$8:$C$11321,O_Council!$K32) -> 0 | M32: =SUMIFS('C_Council assets'!Q$8:Q$11321,'C_Council assets'!$C$8:$C$11321,O_Council!$K32) -> 0 | N32: =SUMIFS('C_Council assets'!R$8:R$11321,'C_Council assets'!$C$8:$C$11321,O_Council!$K32) -> 0 | O32: =SUMIFS('C_Council assets'!S$8:S$11321,'C_Council assets'!$C$8:$C$11321,O_Council!$K32) -> 0 | P32: =SUMIFS('C_Council assets'!T$8:T$11321,'C_Council assets'!$C$8:$C$11321,O_Council!$K32) -> 0 | R32: =SUMIFS('C_Council assets'!X$8:X$11321,'C_Council assets'!$C$8:$C$11321,O_Council!$K32) -> 0 | S32: =SUMIFS('C_Council assets'!Y$8:Y$11321,'C_Council assets'!$C$8:$C$11321,O_Council!$K32) -> 0 | T32: =SUMIFS('C_Council assets'!Z$8:Z$11321,'C_Council assets'!$C$8:$C$11321,O_Council!$K32) -> 0 | U32: =SUMIFS('C_Council assets'!AA$8:AA$11321,'C_Council assets'!$C$8:$C$11321,O_Council!$K32) -> 0 | V32: =SUMIFS('C_Council assets'!AB$8:AB$11321,'C_Council assets'!$C$8:$C$11321,O_Council!$K32) -> 0 | X32: =SUMIFS('I_Number of assets'!L$8:L$113,'I_Number of assets'!#REF!,O_Council!$K32) ->  | Y32: =SUMIFS('I_Number of assets'!M$8:M$113,'I_Number of assets'!#REF!,O_Council!$K32) ->  | Z32: =SUMIFS('I_Number of assets'!N$8:N$113,'I_Number of assets'!#REF!,O_Council!$K32) ->  | AA32: =SUMIFS('I_Number of assets'!O$8:O$113,'I_Number of assets'!#REF!,O_Council!$K32) ->  | AB32: =SUMIFS('I_Number of assets'!P$8:P$113,'I_Number of assets'!#REF!,O_Council!$K32) ->  | AF32: HPS0110 | AH32: =SUMIFS('I_Number of assets'!L$8:L$113,'I_Number of assets'!#REF!,O_Council!$AF$3,'I_Number of assets'!$I$8:$I$113,O_Council!$AF32) ->  | AI32: =SUMIFS('I_Number of assets'!M$8:M$113,'I_Number of assets'!#REF!,O_Council!$AF$3,'I_Number of assets'!$I$8:$I$113,O_Council!$AF32) ->  | AJ32: =SUMIFS('I_Number of assets'!N$8:N$113,'I_Number of assets'!#REF!,O_Council!$AF$3,'I_Number of assets'!$I$8:$I$113,O_Council!$AF32) ->  | AK32: =SUMIFS('I_Number of assets'!O$8:O$113,'I_Number of assets'!#REF!,O_Council!$AF$3,'I_Number of assets'!$I$8:$I$113,O_Council!$AF32) ->  | AL32: =SUMIFS('I_Number of assets'!P$8:P$113,'I_Number of assets'!#REF!,O_Council!$AF$3,'I_Number of assets'!$I$8:$I$113,O_Council!$AF32) -> 
K33: Cowra Shire Council | L33: =SUMIFS('C_Council assets'!P$8:P$11321,'C_Council assets'!$C$8:$C$11321,O_Council!$K33) -> 0 | M33: =SUMIFS('C_Council assets'!Q$8:Q$11321,'C_Council assets'!$C$8:$C$11321,O_Council!$K33) -> 0 | N33: =SUMIFS('C_Council assets'!R$8:R$11321,'C_Council assets'!$C$8:$C$11321,O_Council!$K33) -> 0 | O33: =SUMIFS('C_Council assets'!S$8:S$11321,'C_Council assets'!$C$8:$C$11321,O_Council!$K33) -> 0 | P33: =SUMIFS('C_Council assets'!T$8:T$11321,'C_Council assets'!$C$8:$C$11321,O_Council!$K33) -> 0 | R33: =SUMIFS('C_Council assets'!X$8:X$11321,'C_Council assets'!$C$8:$C$11321,O_Council!$K33) -> 0 | S33: =SUMIFS('C_Council assets'!Y$8:Y$11321,'C_Council assets'!$C$8:$C$11321,O_Council!$K33) -> 0 | T33: =SUMIFS('C_Council assets'!Z$8:Z$11321,'C_Council assets'!$C$8:$C$11321,O_Council!$K33) -> 0 | U33: =SUMIFS('C_Council assets'!AA$8:AA$11321,'C_Council assets'!$C$8:$C$11321,O_Council!$K33) -> 0 | V33: =SUMIFS('C_Council assets'!AB$8:AB$11321,'C_Council assets'!$C$8:$C$11321,O_Council!$K33) -> 0 | X33: =SUMIFS('I_Number of assets'!L$8:L$113,'I_Number of assets'!#REF!,O_Council!$K33) ->  | Y33: =SUMIFS('I_Number of assets'!M$8:M$113,'I_Number of assets'!#REF!,O_Council!$K33) ->  | Z33: =SUMIFS('I_Number of assets'!N$8:N$113,'I_Number of assets'!#REF!,O_Council!$K33) ->  | AA33: =SUMIFS('I_Number of assets'!O$8:O$113,'I_Number of assets'!#REF!,O_Council!$K33) ->  | AB33: =SUMIFS('I_Number of assets'!P$8:P$113,'I_Number of assets'!#REF!,O_Council!$K33) ->  | AF33: HPS0120 | AH33: =SUMIFS('I_Number of assets'!L$8:L$113,'I_Number of assets'!#REF!,O_Council!$AF$3,'I_Number of assets'!$I$8:$I$113,O_Council!$AF33) ->  | AI33: =SUMIFS('I_Number of assets'!M$8:M$113,'I_Number of assets'!#REF!,O_Council!$AF$3,'I_Number of assets'!$I$8:$I$113,O_Council!$AF33) ->  | AJ33: =SUMIFS('I_Number of assets'!N$8:N$113,'I_Number of assets'!#REF!,O_Council!$AF$3,'I_Number of assets'!$I$8:$I$113,O_Council!$AF33) ->  | AK33: =SUMIFS('I_Number of assets'!O$8:O$113,'I_Number of assets'!#REF!,O_Council!$AF$3,'I_Number of assets'!$I$8:$I$113,O_Council!$AF33) ->  | AL33: =SUMIFS('I_Number of assets'!P$8:P$113,'I_Number of assets'!#REF!,O_Council!$AF$3,'I_Number of assets'!$I$8:$I$113,O_Council!$AF33) -> 
K34: Dubbo Regional Council | L34: =SUMIFS('C_Council assets'!P$8:P$11321,'C_Council assets'!$C$8:$C$11321,O_Council!$K34) -> 0 | M34: =SUMIFS('C_Council assets'!Q$8:Q$11321,'C_Council assets'!$C$8:$C$11321,O_Council!$K34) -> 0 | N34: =SUMIFS('C_Council assets'!R$8:R$11321,'C_Council assets'!$C$8:$C$11321,O_Council!$K34) -> 0 | O34: =SUMIFS('C_Council assets'!S$8:S$11321,'C_Council assets'!$C$8:$C$11321,O_Council!$K34) -> 0 | P34: =SUMIFS('C_Council assets'!T$8:T$11321,'C_Council assets'!$C$8:$C$11321,O_Council!$K34) -> 0 | R34: =SUMIFS('C_Council assets'!X$8:X$11321,'C_Council assets'!$C$8:$C$11321,O_Council!$K34) -> 0 | S34: =SUMIFS('C_Council assets'!Y$8:Y$11321,'C_Council assets'!$C$8:$C$11321,O_Council!$K34) -> 0 | T34: =SUMIFS('C_Council assets'!Z$8:Z$11321,'C_Council assets'!$C$8:$C$11321,O_Council!$K34) -> 0 | U34: =SUMIFS('C_Council assets'!AA$8:AA$11321,'C_Council assets'!$C$8:$C$11321,O_Council!$K34) -> 0 | V34: =SUMIFS('C_Council assets'!AB$8:AB$11321,'C_Council assets'!$C$8:$C$11321,O_Council!$K34) -> 0 | X34: =SUMIFS('I_Number of assets'!L$8:L$113,'I_Number of assets'!#REF!,O_Council!$K34) ->  | Y34: =SUMIFS('I_Number of assets'!M$8:M$113,'I_Number of assets'!#REF!,O_Council!$K34) ->  | Z34: =SUMIFS('I_Number of assets'!N$8:N$113,'I_Number of assets'!#REF!,O_Council!$K34) ->  | AA34: =SUMIFS('I_Number of assets'!O$8:O$113,'I_Number of assets'!#REF!,O_Council!$K34) ->  | AB34: =SUMIFS('I_Number of assets'!P$8:P$113,'I_Number of assets'!#REF!,O_Council!$K34) ->  | AF34: HPS0170 | AH34: =SUMIFS('I_Number of assets'!L$8:L$113,'I_Number of assets'!#REF!,O_Council!$AF$3,'I_Number of assets'!$I$8:$I$113,O_Council!$AF34) ->  | AI34: =SUMIFS('I_Number of assets'!M$8:M$113,'I_Number of assets'!#REF!,O_Council!$AF$3,'I_Number of assets'!$I$8:$I$113,O_Council!$AF34) ->  | AJ34: =SUMIFS('I_Number of assets'!N$8:N$113,'I_Number of assets'!#REF!,O_Council!$AF$3,'I_Number of assets'!$I$8:$I$113,O_Council!$AF34) ->  | AK34: =SUMIFS('I_Number of assets'!O$8:O$113,'I_Number of assets'!#REF!,O_Council!$AF$3,'I_Number of assets'!$I$8:$I$113,O_Council!$AF34) ->  | AL34: =SUMIFS('I_Number of assets'!P$8:P$113,'I_Number of assets'!#REF!,O_Council!$AF$3,'I_Number of assets'!$I$8:$I$113,O_Council!$AF34) -> 
K35: Dungog Shire Council | L35: =SUMIFS('C_Council assets'!P$8:P$11321,'C_Council assets'!$C$8:$C$11321,O_Council!$K35) -> 0 | M35: =SUMIFS('C_Council assets'!Q$8:Q$11321,'C_Council assets'!$C$8:$C$11321,O_Council!$K35) -> 0 | N35: =SUMIFS('C_Council assets'!R$8:R$11321,'C_Council assets'!$C$8:$C$11321,O_Council!$K35) -> 0 | O35: =SUMIFS('C_Council assets'!S$8:S$11321,'C_Council assets'!$C$8:$C$11321,O_Council!$K35) -> 0 | P35: =SUMIFS('C_Council assets'!T$8:T$11321,'C_Council assets'!$C$8:$C$11321,O_Council!$K35) -> 0 | R35: =SUMIFS('C_Council assets'!X$8:X$11321,'C_Council assets'!$C$8:$C$11321,O_Council!$K35) -> 0 | S35: =SUMIFS('C_Council assets'!Y$8:Y$11321,'C_Council assets'!$C$8:$C$11321,O_Council!$K35) -> 0 | T35: =SUMIFS('C_Council assets'!Z$8:Z$11321,'C_Council assets'!$C$8:$C$11321,O_Council!$K35) -> 0 | U35: =SUMIFS('C_Council assets'!AA$8:AA$11321,'C_Council assets'!$C$8:$C$11321,O_Council!$K35) -> 0 | V35: =SUMIFS('C_Council assets'!AB$8:AB$11321,'C_Council assets'!$C$8:$C$11321,O_Council!$K35) -> 0 | X35: =SUMIFS('I_Number of assets'!L$8:L$113,'I_Number of assets'!#REF!,O_Council!$K35) ->  | Y35: =SUMIFS('I_Number of assets'!M$8:M$113,'I_Number of assets'!#REF!,O_Council!$K35) ->  | Z35: =SUMIFS('I_Number of assets'!N$8:N$113,'I_Number of assets'!#REF!,O_Council!$K35) ->  | AA35: =SUMIFS('I_Number of assets'!O$8:O$113,'I_Number of assets'!#REF!,O_Council!$K35) ->  | AB35: =SUMIFS('I_Number of assets'!P$8:P$113,'I_Number of assets'!#REF!,O_Council!$K35) ->  | AF35: HPS0180 | AH35: =SUMIFS('I_Number of assets'!L$8:L$113,'I_Number of assets'!#REF!,O_Council!$AF$3,'I_Number of assets'!$I$8:$I$113,O_Council!$AF35) ->  | AI35: =SUMIFS('I_Number of assets'!M$8:M$113,'I_Number of assets'!#REF!,O_Council!$AF$3,'I_Number of assets'!$I$8:$I$113,O_Council!$AF35) ->  | AJ35: =SUMIFS('I_Number of assets'!N$8:N$113,'I_Number of assets'!#REF!,O_Council!$AF$3,'I_Number of assets'!$I$8:$I$113,O_Council!$AF35) ->  | AK35: =SUMIFS('I_Number of assets'!O$8:O$113,'I_Number of assets'!#REF!,O_Council!$AF$3,'I_Number of assets'!$I$8:$I$113,O_Council!$AF35) ->  | AL35: =SUMIFS('I_Number of assets'!P$8:P$113,'I_Number of assets'!#REF!,O_Council!$AF$3,'I_Number of assets'!$I$8:$I$113,O_Council!$AF35) -> 
K36: Edward River Council | L36: =SUMIFS('C_Council assets'!P$8:P$11321,'C_Council assets'!$C$8:$C$11321,O_Council!$K36) -> 0 | M36: =SUMIFS('C_Council assets'!Q$8:Q$11321,'C_Council assets'!$C$8:$C$11321,O_Council!$K36) -> 0 | N36: =SUMIFS('C_Council assets'!R$8:R$11321,'C_Council assets'!$C$8:$C$11321,O_Council!$K36) -> 0 | O36: =SUMIFS('C_Council assets'!S$8:S$11321,'C_Council assets'!$C$8:$C$11321,O_Council!$K36) -> 0 | P36: =SUMIFS('C_Council assets'!T$8:T$11321,'C_Council assets'!$C$8:$C$11321,O_Council!$K36) -> 0 | R36: =SUMIFS('C_Council assets'!X$8:X$11321,'C_Council assets'!$C$8:$C$11321,O_Council!$K36) -> 0 | S36: =SUMIFS('C_Council assets'!Y$8:Y$11321,'C_Council assets'!$C$8:$C$11321,O_Council!$K36) -> 0 | T36: =SUMIFS('C_Council assets'!Z$8:Z$11321,'C_Council assets'!$C$8:$C$11321,O_Council!$K36) -> 0 | U36: =SUMIFS('C_Council assets'!AA$8:AA$11321,'C_Council assets'!$C$8:$C$11321,O_Council!$K36) -> 0 | V36: =SUMIFS('C_Council assets'!AB$8:AB$11321,'C_Council assets'!$C$8:$C$11321,O_Council!$K36) -> 0 | X36: =SUMIFS('I_Number of assets'!L$8:L$113,'I_Number of assets'!#REF!,O_Council!$K36) ->  | Y36: =SUMIFS('I_Number of assets'!M$8:M$113,'I_Number of assets'!#REF!,O_Council!$K36) ->  | Z36: =SUMIFS('I_Number of assets'!N$8:N$113,'I_Number of assets'!#REF!,O_Council!$K36) ->  | AA36: =SUMIFS('I_Number of assets'!O$8:O$113,'I_Number of assets'!#REF!,O_Council!$K36) ->  | AB36: =SUMIFS('I_Number of assets'!P$8:P$113,'I_Number of assets'!#REF!,O_Council!$K36) ->  | AF36: HPS0190 | AH36: =SUMIFS('I_Number of assets'!L$8:L$113,'I_Number of assets'!#REF!,O_Council!$AF$3,'I_Number of assets'!$I$8:$I$113,O_Council!$AF36) ->  | AI36: =SUMIFS('I_Number of assets'!M$8:M$113,'I_Number of assets'!#REF!,O_Council!$AF$3,'I_Number of assets'!$I$8:$I$113,O_Council!$AF36) ->  | AJ36: =SUMIFS('I_Number of assets'!N$8:N$113,'I_Number of assets'!#REF!,O_Council!$AF$3,'I_Number of assets'!$I$8:$I$113,O_Council!$AF36) ->  | AK36: =SUMIFS('I_Number of assets'!O$8:O$113,'I_Number of assets'!#REF!,O_Council!$AF$3,'I_Number of assets'!$I$8:$I$113,O_Council!$AF36) ->  | AL36: =SUMIFS('I_Number of assets'!P$8:P$113,'I_Number of assets'!#REF!,O_Council!$AF$3,'I_Number of assets'!$I$8:$I$113,O_Council!$AF36) -> 
K37: Eurobodalla Shire | L37: =SUMIFS('C_Council assets'!P$8:P$11321,'C_Council assets'!$C$8:$C$11321,O_Council!$K37) -> 0 | M37: =SUMIFS('C_Council assets'!Q$8:Q$11321,'C_Council assets'!$C$8:$C$11321,O_Council!$K37) -> 0 | N37: =SUMIFS('C_Council assets'!R$8:R$11321,'C_Council assets'!$C$8:$C$11321,O_Council!$K37) -> 0 | O37: =SUMIFS('C_Council assets'!S$8:S$11321,'C_Council assets'!$C$8:$C$11321,O_Council!$K37) -> 0 | P37: =SUMIFS('C_Council assets'!T$8:T$11321,'C_Council assets'!$C$8:$C$11321,O_Council!$K37) -> 0 | R37: =SUMIFS('C_Council assets'!X$8:X$11321,'C_Council assets'!$C$8:$C$11321,O_Council!$K37) -> 0 | S37: =SUMIFS('C_Council assets'!Y$8:Y$11321,'C_Council assets'!$C$8:$C$11321,O_Council!$K37) -> 0 | T37: =SUMIFS('C_Council assets'!Z$8:Z$11321,'C_Council assets'!$C$8:$C$11321,O_Council!$K37) -> 0 | U37: =SUMIFS('C_Council assets'!AA$8:AA$11321,'C_Council assets'!$C$8:$C$11321,O_Council!$K37) -> 0 | V37: =SUMIFS('C_Council assets'!AB$8:AB$11321,'C_Council assets'!$C$8:$C$11321,O_Council!$K37) -> 0 | X37: =SUMIFS('I_Number of assets'!L$8:L$113,'I_Number of assets'!#REF!,O_Council!$K37) ->  | Y37: =SUMIFS('I_Number of assets'!M$8:M$113,'I_Number of assets'!#REF!,O_Council!$K37) ->  | Z37: =SUMIFS('I_Number of assets'!N$8:N$113,'I_Number of assets'!#REF!,O_Council!$K37) ->  | AA37: =SUMIFS('I_Number of assets'!O$8:O$113,'I_Number of assets'!#REF!,O_Council!$K37) ->  | AB37: =SUMIFS('I_Number of assets'!P$8:P$113,'I_Number of assets'!#REF!,O_Council!$K37) ->  | AF37: HPS0170-TA | AH37: =SUMIFS('I_Number of assets'!L$8:L$113,'I_Number of assets'!#REF!,O_Council!$AF$3,'I_Number of assets'!$I$8:$I$113,O_Council!$AF37) ->  | AI37: =SUMIFS('I_Number of assets'!M$8:M$113,'I_Number of assets'!#REF!,O_Council!$AF$3,'I_Number of assets'!$I$8:$I$113,O_Council!$AF37) ->  | AJ37: =SUMIFS('I_Number of assets'!N$8:N$113,'I_Number of assets'!#REF!,O_Council!$AF$3,'I_Number of assets'!$I$8:$I$113,O_Council!$AF37) ->  | AK37: =SUMIFS('I_Number of assets'!O$8:O$113,'I_Number of assets'!#REF!,O_Council!$AF$3,'I_Number of assets'!$I$8:$I$113,O_Council!$AF37) ->  | AL37: =SUMIFS('I_Number of assets'!P$8:P$113,'I_Number of assets'!#REF!,O_Council!$AF$3,'I_Number of assets'!$I$8:$I$113,O_Council!$AF37) -> 
K38: Federation Council | L38: =SUMIFS('C_Council assets'!P$8:P$11321,'C_Council assets'!$C$8:$C$11321,O_Council!$K38) -> 0 | M38: =SUMIFS('C_Council assets'!Q$8:Q$11321,'C_Council assets'!$C$8:$C$11321,O_Council!$K38) -> 0 | N38: =SUMIFS('C_Council assets'!R$8:R$11321,'C_Council assets'!$C$8:$C$11321,O_Council!$K38) -> 0 | O38: =SUMIFS('C_Council assets'!S$8:S$11321,'C_Council assets'!$C$8:$C$11321,O_Council!$K38) -> 0 | P38: =SUMIFS('C_Council assets'!T$8:T$11321,'C_Council assets'!$C$8:$C$11321,O_Council!$K38) -> 0 | R38: =SUMIFS('C_Council assets'!X$8:X$11321,'C_Council assets'!$C$8:$C$11321,O_Council!$K38) -> 0 | S38: =SUMIFS('C_Council assets'!Y$8:Y$11321,'C_Council assets'!$C$8:$C$11321,O_Council!$K38) -> 0 | T38: =SUMIFS('C_Council assets'!Z$8:Z$11321,'C_Council assets'!$C$8:$C$11321,O_Council!$K38) -> 0 | U38: =SUMIFS('C_Council assets'!AA$8:AA$11321,'C_Council assets'!$C$8:$C$11321,O_Council!$K38) -> 0 | V38: =SUMIFS('C_Council assets'!AB$8:AB$11321,'C_Council assets'!$C$8:$C$11321,O_Council!$K38) -> 0 | X38: =SUMIFS('I_Number of assets'!L$8:L$113,'I_Number of assets'!#REF!,O_Council!$K38) ->  | Y38: =SUMIFS('I_Number of assets'!M$8:M$113,'I_Number of assets'!#REF!,O_Council!$K38) ->  | Z38: =SUMIFS('I_Number of assets'!N$8:N$113,'I_Number of assets'!#REF!,O_Council!$K38) ->  | AA38: =SUMIFS('I_Number of assets'!O$8:O$113,'I_Number of assets'!#REF!,O_Council!$K38) ->  | AB38: =SUMIFS('I_Number of assets'!P$8:P$113,'I_Number of assets'!#REF!,O_Council!$K38) ->  | AF38: HPS0020-TA | AH38: =SUMIFS('I_Number of assets'!L$8:L$113,'I_Number of assets'!#REF!,O_Council!$AF$3,'I_Number of assets'!$I$8:$I$113,O_Council!$AF38) ->  | AI38: =SUMIFS('I_Number of assets'!M$8:M$113,'I_Number of assets'!#REF!,O_Council!$AF$3,'I_Number of assets'!$I$8:$I$113,O_Council!$AF38) ->  | AJ38: =SUMIFS('I_Number of assets'!N$8:N$113,'I_Number of assets'!#REF!,O_Council!$AF$3,'I_Number of assets'!$I$8:$I$113,O_Council!$AF38) ->  | AK38: =SUMIFS('I_Number of assets'!O$8:O$113,'I_Number of assets'!#REF!,O_Council!$AF$3,'I_Number of assets'!$I$8:$I$113,O_Council!$AF38) ->  | AL38: =SUMIFS('I_Number of assets'!P$8:P$113,'I_Number of assets'!#REF!,O_Council!$AF$3,'I_Number of assets'!$I$8:$I$113,O_Council!$AF38) -> 
K39: Forbes Shire Council | L39: =SUMIFS('C_Council assets'!P$8:P$11321,'C_Council assets'!$C$8:$C$11321,O_Council!$K39) -> 0 | M39: =SUMIFS('C_Council assets'!Q$8:Q$11321,'C_Council assets'!$C$8:$C$11321,O_Council!$K39) -> 0 | N39: =SUMIFS('C_Council assets'!R$8:R$11321,'C_Council assets'!$C$8:$C$11321,O_Council!$K39) -> 0 | O39: =SUMIFS('C_Council assets'!S$8:S$11321,'C_Council assets'!$C$8:$C$11321,O_Council!$K39) -> 0 | P39: =SUMIFS('C_Council assets'!T$8:T$11321,'C_Council assets'!$C$8:$C$11321,O_Council!$K39) -> 0 | R39: =SUMIFS('C_Council assets'!X$8:X$11321,'C_Council assets'!$C$8:$C$11321,O_Council!$K39) -> 0 | S39: =SUMIFS('C_Council assets'!Y$8:Y$11321,'C_Council assets'!$C$8:$C$11321,O_Council!$K39) -> 0 | T39: =SUMIFS('C_Council assets'!Z$8:Z$11321,'C_Council assets'!$C$8:$C$11321,O_Council!$K39) -> 0 | U39: =SUMIFS('C_Council assets'!AA$8:AA$11321,'C_Council assets'!$C$8:$C$11321,O_Council!$K39) -> 0 | V39: =SUMIFS('C_Council assets'!AB$8:AB$11321,'C_Council assets'!$C$8:$C$11321,O_Council!$K39) -> 0 | X39: =SUMIFS('I_Number of assets'!L$8:L$113,'I_Number of assets'!#REF!,O_Council!$K39) ->  | Y39: =SUMIFS('I_Number of assets'!M$8:M$113,'I_Number of assets'!#REF!,O_Council!$K39) ->  | Z39: =SUMIFS('I_Number of assets'!N$8:N$113,'I_Number of assets'!#REF!,O_Council!$K39) ->  | AA39: =SUMIFS('I_Number of assets'!O$8:O$113,'I_Number of assets'!#REF!,O_Council!$K39) ->  | AB39: =SUMIFS('I_Number of assets'!P$8:P$113,'I_Number of assets'!#REF!,O_Council!$K39) ->  | AF39: HPS0090-TA | AH39: =SUMIFS('I_Number of assets'!L$8:L$113,'I_Number of assets'!#REF!,O_Council!$AF$3,'I_Number of assets'!$I$8:$I$113,O_Council!$AF39) ->  | AI39: =SUMIFS('I_Number of assets'!M$8:M$113,'I_Number of assets'!#REF!,O_Council!$AF$3,'I_Number of assets'!$I$8:$I$113,O_Council!$AF39) ->  | AJ39: =SUMIFS('I_Number of assets'!N$8:N$113,'I_Number of assets'!#REF!,O_Council!$AF$3,'I_Number of assets'!$I$8:$I$113,O_Council!$AF39) ->  | AK39: =SUMIFS('I_Number of assets'!O$8:O$113,'I_Number of assets'!#REF!,O_Council!$AF$3,'I_Number of assets'!$I$8:$I$113,O_Council!$AF39) ->  | AL39: =SUMIFS('I_Number of assets'!P$8:P$113,'I_Number of assets'!#REF!,O_Council!$AF$3,'I_Number of assets'!$I$8:$I$113,O_Council!$AF39) -> 
K40: Gilgandra Shire Council | L40: =SUMIFS('C_Council assets'!P$8:P$11321,'C_Council assets'!$C$8:$C$11321,O_Council!$K40) -> 0 | M40: =SUMIFS('C_Council assets'!Q$8:Q$11321,'C_Council assets'!$C$8:$C$11321,O_Council!$K40) -> 0 | N40: =SUMIFS('C_Council assets'!R$8:R$11321,'C_Council assets'!$C$8:$C$11321,O_Council!$K40) -> 0 | O40: =SUMIFS('C_Council assets'!S$8:S$11321,'C_Council assets'!$C$8:$C$11321,O_Council!$K40) -> 0 | P40: =SUMIFS('C_Council assets'!T$8:T$11321,'C_Council assets'!$C$8:$C$11321,O_Council!$K40) -> 0 | R40: =SUMIFS('C_Council assets'!X$8:X$11321,'C_Council assets'!$C$8:$C$11321,O_Council!$K40) -> 0 | S40: =SUMIFS('C_Council assets'!Y$8:Y$11321,'C_Council assets'!$C$8:$C$11321,O_Council!$K40) -> 0 | T40: =SUMIFS('C_Council assets'!Z$8:Z$11321,'C_Council assets'!$C$8:$C$11321,O_Council!$K40) -> 0 | U40: =SUMIFS('C_Council assets'!AA$8:AA$11321,'C_Council assets'!$C$8:$C$11321,O_Council!$K40) -> 0 | V40: =SUMIFS('C_Council assets'!AB$8:AB$11321,'C_Council assets'!$C$8:$C$11321,O_Council!$K40) -> 0 | X40: =SUMIFS('I_Number of assets'!L$8:L$113,'I_Number of assets'!#REF!,O_Council!$K40) ->  | Y40: =SUMIFS('I_Number of assets'!M$8:M$113,'I_Number of assets'!#REF!,O_Council!$K40) ->  | Z40: =SUMIFS('I_Number of assets'!N$8:N$113,'I_Number of assets'!#REF!,O_Council!$K40) ->  | AA40: =SUMIFS('I_Number of assets'!O$8:O$113,'I_Number of assets'!#REF!,O_Council!$K40) ->  | AB40: =SUMIFS('I_Number of assets'!P$8:P$113,'I_Number of assets'!#REF!,O_Council!$K40) ->  | AF40: HPS0110-TA | AH40: =SUMIFS('I_Number of assets'!L$8:L$113,'I_Number of assets'!#REF!,O_Council!$AF$3,'I_Number of assets'!$I$8:$I$113,O_Council!$AF40) ->  | AI40: =SUMIFS('I_Number of assets'!M$8:M$113,'I_Number of assets'!#REF!,O_Council!$AF$3,'I_Number of assets'!$I$8:$I$113,O_Council!$AF40) ->  | AJ40: =SUMIFS('I_Number of assets'!N$8:N$113,'I_Number of assets'!#REF!,O_Council!$AF$3,'I_Number of assets'!$I$8:$I$113,O_Council!$AF40) ->  | AK40: =SUMIFS('I_Number of assets'!O$8:O$113,'I_Number of assets'!#REF!,O_Council!$AF$3,'I_Number of assets'!$I$8:$I$113,O_Council!$AF40) ->  | AL40: =SUMIFS('I_Number of assets'!P$8:P$113,'I_Number of assets'!#REF!,O_Council!$AF$3,'I_Number of assets'!$I$8:$I$113,O_Council!$AF40) -> 
K41: Glen Innes Severn Shire Council | L41: =SUMIFS('C_Council assets'!P$8:P$11321,'C_Council assets'!$C$8:$C$11321,O_Council!$K41) -> 0 | M41: =SUMIFS('C_Council assets'!Q$8:Q$11321,'C_Council assets'!$C$8:$C$11321,O_Council!$K41) -> 0 | N41: =SUMIFS('C_Council assets'!R$8:R$11321,'C_Council assets'!$C$8:$C$11321,O_Council!$K41) -> 0 | O41: =SUMIFS('C_Council assets'!S$8:S$11321,'C_Council assets'!$C$8:$C$11321,O_Council!$K41) -> 0 | P41: =SUMIFS('C_Council assets'!T$8:T$11321,'C_Council assets'!$C$8:$C$11321,O_Council!$K41) -> 0 | R41: =SUMIFS('C_Council assets'!X$8:X$11321,'C_Council assets'!$C$8:$C$11321,O_Council!$K41) -> 0 | S41: =SUMIFS('C_Council assets'!Y$8:Y$11321,'C_Council assets'!$C$8:$C$11321,O_Council!$K41) -> 0 | T41: =SUMIFS('C_Council assets'!Z$8:Z$11321,'C_Council assets'!$C$8:$C$11321,O_Council!$K41) -> 0 | U41: =SUMIFS('C_Council assets'!AA$8:AA$11321,'C_Council assets'!$C$8:$C$11321,O_Council!$K41) -> 0 | V41: =SUMIFS('C_Council assets'!AB$8:AB$11321,'C_Council assets'!$C$8:$C$11321,O_Council!$K41) -> 0 | X41: =SUMIFS('I_Number of assets'!L$8:L$113,'I_Number of assets'!#REF!,O_Council!$K41) ->  | Y41: =SUMIFS('I_Number of assets'!M$8:M$113,'I_Number of assets'!#REF!,O_Council!$K41) ->  | Z41: =SUMIFS('I_Number of assets'!N$8:N$113,'I_Number of assets'!#REF!,O_Council!$K41) ->  | AA41: =SUMIFS('I_Number of assets'!O$8:O$113,'I_Number of assets'!#REF!,O_Council!$K41) ->  | AB41: =SUMIFS('I_Number of assets'!P$8:P$113,'I_Number of assets'!#REF!,O_Council!$K41) ->  | AF41: MVA0010 | AH41: =SUMIFS('I_Number of assets'!L$8:L$113,'I_Number of assets'!#REF!,O_Council!$AF$3,'I_Number of assets'!$I$8:$I$113,O_Council!$AF41) ->  | AI41: =SUMIFS('I_Number of assets'!M$8:M$113,'I_Number of assets'!#REF!,O_Council!$AF$3,'I_Number of assets'!$I$8:$I$113,O_Council!$AF41) ->  | AJ41: =SUMIFS('I_Number of assets'!N$8:N$113,'I_Number of assets'!#REF!,O_Council!$AF$3,'I_Number of assets'!$I$8:$I$113,O_Council!$AF41) ->  | AK41: =SUMIFS('I_Number of assets'!O$8:O$113,'I_Number of assets'!#REF!,O_Council!$AF$3,'I_Number of assets'!$I$8:$I$113,O_Council!$AF41) ->  | AL41: =SUMIFS('I_Number of assets'!P$8:P$113,'I_Number of assets'!#REF!,O_Council!$AF$3,'I_Number of assets'!$I$8:$I$113,O_Council!$AF41) -> 
K42: Goondiwindi Regional Council | L42: =SUMIFS('C_Council assets'!P$8:P$11321,'C_Council assets'!$C$8:$C$11321,O_Council!$K42) -> 0 | M42: =SUMIFS('C_Council assets'!Q$8:Q$11321,'C_Council assets'!$C$8:$C$11321,O_Council!$K42) -> 0 | N42: =SUMIFS('C_Council assets'!R$8:R$11321,'C_Council assets'!$C$8:$C$11321,O_Council!$K42) -> 0 | O42: =SUMIFS('C_Council assets'!S$8:S$11321,'C_Council assets'!$C$8:$C$11321,O_Council!$K42) -> 0 | P42: =SUMIFS('C_Council assets'!T$8:T$11321,'C_Council assets'!$C$8:$C$11321,O_Council!$K42) -> 0 | R42: =SUMIFS('C_Council assets'!X$8:X$11321,'C_Council assets'!$C$8:$C$11321,O_Council!$K42) -> 0 | S42: =SUMIFS('C_Council assets'!Y$8:Y$11321,'C_Council assets'!$C$8:$C$11321,O_Council!$K42) -> 0 | T42: =SUMIFS('C_Council assets'!Z$8:Z$11321,'C_Council assets'!$C$8:$C$11321,O_Council!$K42) -> 0 | U42: =SUMIFS('C_Council assets'!AA$8:AA$11321,'C_Council assets'!$C$8:$C$11321,O_Council!$K42) -> 0 | V42: =SUMIFS('C_Council assets'!AB$8:AB$11321,'C_Council assets'!$C$8:$C$11321,O_Council!$K42) -> 0 | X42: =SUMIFS('I_Number of assets'!L$8:L$113,'I_Number of assets'!#REF!,O_Council!$K42) ->  | Y42: =SUMIFS('I_Number of assets'!M$8:M$113,'I_Number of assets'!#REF!,O_Council!$K42) ->  | Z42: =SUMIFS('I_Number of assets'!N$8:N$113,'I_Number of assets'!#REF!,O_Council!$K42) ->  | AA42: =SUMIFS('I_Number of assets'!O$8:O$113,'I_Number of assets'!#REF!,O_Council!$K42) ->  | AB42: =SUMIFS('I_Number of assets'!P$8:P$113,'I_Number of assets'!#REF!,O_Council!$K42) ->  | AF42: MVA0020 | AH42: =SUMIFS('I_Number of assets'!L$8:L$113,'I_Number of assets'!#REF!,O_Council!$AF$3,'I_Number of assets'!$I$8:$I$113,O_Council!$AF42) ->  | AI42: =SUMIFS('I_Number of assets'!M$8:M$113,'I_Number of assets'!#REF!,O_Council!$AF$3,'I_Number of assets'!$I$8:$I$113,O_Council!$AF42) ->  | AJ42: =SUMIFS('I_Number of assets'!N$8:N$113,'I_Number of assets'!#REF!,O_Council!$AF$3,'I_Number of assets'!$I$8:$I$113,O_Council!$AF42) ->  | AK42: =SUMIFS('I_Number of assets'!O$8:O$113,'I_Number of assets'!#REF!,O_Council!$AF$3,'I_Number of assets'!$I$8:$I$113,O_Council!$AF42) ->  | AL42: =SUMIFS('I_Number of assets'!P$8:P$113,'I_Number of assets'!#REF!,O_Council!$AF$3,'I_Number of assets'!$I$8:$I$113,O_Council!$AF42) -> 
K43: Goulburn Mulwaree Council | L43: =SUMIFS('C_Council assets'!P$8:P$11321,'C_Council assets'!$C$8:$C$11321,O_Council!$K43) -> 0 | M43: =SUMIFS('C_Council assets'!Q$8:Q$11321,'C_Council assets'!$C$8:$C$11321,O_Council!$K43) -> 0 | N43: =SUMIFS('C_Council assets'!R$8:R$11321,'C_Council assets'!$C$8:$C$11321,O_Council!$K43) -> 0 | O43: =SUMIFS('C_Council assets'!S$8:S$11321,'C_Council assets'!$C$8:$C$11321,O_Council!$K43) -> 0 | P43: =SUMIFS('C_Council assets'!T$8:T$11321,'C_Council assets'!$C$8:$C$11321,O_Council!$K43) -> 0 | R43: =SUMIFS('C_Council assets'!X$8:X$11321,'C_Council assets'!$C$8:$C$11321,O_Council!$K43) -> 0 | S43: =SUMIFS('C_Council assets'!Y$8:Y$11321,'C_Council assets'!$C$8:$C$11321,O_Council!$K43) -> 0 | T43: =SUMIFS('C_Council assets'!Z$8:Z$11321,'C_Council assets'!$C$8:$C$11321,O_Council!$K43) -> 0 | U43: =SUMIFS('C_Council assets'!AA$8:AA$11321,'C_Council assets'!$C$8:$C$11321,O_Council!$K43) -> 0 | V43: =SUMIFS('C_Council assets'!AB$8:AB$11321,'C_Council assets'!$C$8:$C$11321,O_Council!$K43) -> 0 | X43: =SUMIFS('I_Number of assets'!L$8:L$113,'I_Number of assets'!#REF!,O_Council!$K43) ->  | Y43: =SUMIFS('I_Number of assets'!M$8:M$113,'I_Number of assets'!#REF!,O_Council!$K43) ->  | Z43: =SUMIFS('I_Number of assets'!N$8:N$113,'I_Number of assets'!#REF!,O_Council!$K43) ->  | AA43: =SUMIFS('I_Number of assets'!O$8:O$113,'I_Number of assets'!#REF!,O_Council!$K43) ->  | AB43: =SUMIFS('I_Number of assets'!P$8:P$113,'I_Number of assets'!#REF!,O_Council!$K43) ->  | AF43: MVA0080 | AH43: =SUMIFS('I_Number of assets'!L$8:L$113,'I_Number of assets'!#REF!,O_Council!$AF$3,'I_Number of assets'!$I$8:$I$113,O_Council!$AF43) ->  | AI43: =SUMIFS('I_Number of assets'!M$8:M$113,'I_Number of assets'!#REF!,O_Council!$AF$3,'I_Number of assets'!$I$8:$I$113,O_Council!$AF43) ->  | AJ43: =SUMIFS('I_Number of assets'!N$8:N$113,'I_Number of assets'!#REF!,O_Council!$AF$3,'I_Number of assets'!$I$8:$I$113,O_Council!$AF43) ->  | AK43: =SUMIFS('I_Number of assets'!O$8:O$113,'I_Number of assets'!#REF!,O_Council!$AF$3,'I_Number of assets'!$I$8:$I$113,O_Council!$AF43) ->  | AL43: =SUMIFS('I_Number of assets'!P$8:P$113,'I_Number of assets'!#REF!,O_Council!$AF$3,'I_Number of assets'!$I$8:$I$113,O_Council!$AF43) -> 
K44: Greater Hume Shire Council | L44: =SUMIFS('C_Council assets'!P$8:P$11321,'C_Council assets'!$C$8:$C$11321,O_Council!$K44) -> 0 | M44: =SUMIFS('C_Council assets'!Q$8:Q$11321,'C_Council assets'!$C$8:$C$11321,O_Council!$K44) -> 0 | N44: =SUMIFS('C_Council assets'!R$8:R$11321,'C_Council assets'!$C$8:$C$11321,O_Council!$K44) -> 0 | O44: =SUMIFS('C_Council assets'!S$8:S$11321,'C_Council assets'!$C$8:$C$11321,O_Council!$K44) -> 0 | P44: =SUMIFS('C_Council assets'!T$8:T$11321,'C_Council assets'!$C$8:$C$11321,O_Council!$K44) -> 0 | R44: =SUMIFS('C_Council assets'!X$8:X$11321,'C_Council assets'!$C$8:$C$11321,O_Council!$K44) -> 0 | S44: =SUMIFS('C_Council assets'!Y$8:Y$11321,'C_Council assets'!$C$8:$C$11321,O_Council!$K44) -> 0 | T44: =SUMIFS('C_Council assets'!Z$8:Z$11321,'C_Council assets'!$C$8:$C$11321,O_Council!$K44) -> 0 | U44: =SUMIFS('C_Council assets'!AA$8:AA$11321,'C_Council assets'!$C$8:$C$11321,O_Council!$K44) -> 0 | V44: =SUMIFS('C_Council assets'!AB$8:AB$11321,'C_Council assets'!$C$8:$C$11321,O_Council!$K44) -> 0 | X44: =SUMIFS('I_Number of assets'!L$8:L$113,'I_Number of assets'!#REF!,O_Council!$K44) ->  | Y44: =SUMIFS('I_Number of assets'!M$8:M$113,'I_Number of assets'!#REF!,O_Council!$K44) ->  | Z44: =SUMIFS('I_Number of assets'!N$8:N$113,'I_Number of assets'!#REF!,O_Council!$K44) ->  | AA44: =SUMIFS('I_Number of assets'!O$8:O$113,'I_Number of assets'!#REF!,O_Council!$K44) ->  | AB44: =SUMIFS('I_Number of assets'!P$8:P$113,'I_Number of assets'!#REF!,O_Council!$K44) ->  | AF44: MVA0190 | AH44: =SUMIFS('I_Number of assets'!L$8:L$113,'I_Number of assets'!#REF!,O_Council!$AF$3,'I_Number of assets'!$I$8:$I$113,O_Council!$AF44) ->  | AI44: =SUMIFS('I_Number of assets'!M$8:M$113,'I_Number of assets'!#REF!,O_Council!$AF$3,'I_Number of assets'!$I$8:$I$113,O_Council!$AF44) ->  | AJ44: =SUMIFS('I_Number of assets'!N$8:N$113,'I_Number of assets'!#REF!,O_Council!$AF$3,'I_Number of assets'!$I$8:$I$113,O_Council!$AF44) ->  | AK44: =SUMIFS('I_Number of assets'!O$8:O$113,'I_Number of assets'!#REF!,O_Council!$AF$3,'I_Number of assets'!$I$8:$I$113,O_Council!$AF44) ->  | AL44: =SUMIFS('I_Number of assets'!P$8:P$113,'I_Number of assets'!#REF!,O_Council!$AF$3,'I_Number of assets'!$I$8:$I$113,O_Council!$AF44) -> 
